Workbook

Sheet Deprogrammed
A1: DEPROGRAMMED DATE | B1: Project Mode (for MTP Stats) | C1: Project Type (for MPO ID) | D1: FFCS (for MPO ID) | E1: El Paso District Rep No. | F1: State House of Rep. District No. | G1: Amended D2045 MTP | H1: 2019 CMP | I1: CMP Strategy | J1: City Area | K1: Project Element | L1: CSJ | M1: Project ID | N1: Project Name | O1: Project Description | P1: From | Q1: To | R1: Network | S1: Current Const. Cost / 2021-2050 Cost | T1: Est. Const. Cost | U1: Est. PE Cost | V1: Est. ROW Cost | W1: Total Project Cost/YOE | X1: Sponsor | Y1: YOE (FY) | Z1: New Revision Date | AA1: Revision Remarks | AB1: Prev Rev Date | AC1: Prev Revision Remarks | AD1: Other Comments Notes | AE1: REPEAT IN TRANSIT LIST? | AF1: HWY TRANSFER | AG1: Generating County EP, Horizon, & Socorro Potential TRZ Revenue? | AH1: SUN METRO- MATCH REQUIRED? (Transit Project List Only) | AI1: Amount to MATCH by SM | AJ1: CONSTRUCT COST? | AK1: PE? | AL1: PE COST COVERED BY PE REV? | AM1: ROW? | AN1: ROW COST COVERED BY ROW REV? | AO1: No. Inflated Years or $/yr. w/o Inflation | AP1: Infl. Rate- Yr Ex | AQ1: CONST. COST FOR FINANCIALS | AR1: Calculations only YOE=TPC | AS1: Calculations only | AT1: Construction Cost and Authorize Funding DIFFERENCE | AU1: Total AUTHORIZE Funding = PROJECT COST (Financials) | AV1: 1 - Preventive Maintenance & Rehabilitation | AW1: 2 - Metropolitan Area (TMA) Corridor Projects | AX1: 3 - Lcl Contribution | AY1: 3 - Transportation Mobility Fund | AZ1: 4 - Statewide Urban Connectivity Corridor Projects | BA1: 5 - CMAQ | BB1: 6 - Structures Replacement & Rehabilitation | BC1: 7 - STP - MM | BD1: 8 - Safety Projects | BE1: 9 - Transportation Alternatives-Set Aside | BF1: 9 - Transportation Enhancements Program (TXDOT) | BG1: 11 - District Discretionary | BH1: 11 - B | BI1: 11 - BSIF | BJ1: 12 - Strategic Priority | BK1: 12 - Strategic Priority CMAQ | BL1: 12 - Strategic Priority STP | BM1: Bonding CRRMA for Borderland Expressway | BN1: Total Construction Cost (non carry over) | BO1: Clear Lanes v2 | BP1: 10 - CBI Program | BQ1: 10 - Earmark | BR1: 5 - CMAQ Carryover | BS1: 7- STP Carryover | BT1: 7 - CRRSAA | BU1: 11-B Carryover | BV1: Prop 1/ Prop 7 | BW1: 3 - City of El Paso TRZ #3 | BX1: 3 - Socorro TRZ | BY1: 3 - Horizon TRZ | BZ1: 3 - Local PE Funds | CA1: 3 - State PE Funds | CB1: 3 - Local ROW Funds | CC1: 3 - State ROW Funds | CD1: Total Project Cost (Carryover Categories) | CE1: Total Construction Cost (Carryover Categories)
A2: 2022-11-01 | B2: Bike & Pedestrian | C2: Enhancements | D2: N/A | F2: 75 | G2: No | I2: Travel Demand Management | J2: East | K2: Bike/Ped | M2: E406X | N2: Zaragoza POE Pedestrian Drop Off and Pick Up Areas | O2: Project includes design and construction of pedestrian drop off and pick up areas for pedestrians walking to and from Juarez. Drop off and pick up areas will include sidewalks, illumination, landscaping and irrigation. | P2: Zaragoza POE | R2: 2032 | S2: 2750795 | T2: 3619858.559 | U2: 177373.0694 | V2: 0 | W2: 3797231.628 | X2: COEP | Y2: 2029 | Z2: 44866 | AA2: Amend RMS 2050 MTP to deprogram due to overlap in scope with Ysleta Port of Entry Pedestrian and Site Improvements RAISE grant project. Approved by TPB 11/18/22 | AE2: NO | AF2: NO | AG2: No | AH2: No | AJ2: YES | AK2: YES | AL2: NO | AM2: NO | AN2: NO | AO2: 7 | AP2: 0.04 | AQ2: 3797231.628 | AR2: TRUE | AS2: 3619858.559 | AT2: NOT IN TIP | AU2: 3797232 | BR2: 3797232
A3: 2022-11-01 | B3: Bike & Pedestrian | C3: Enhancements | D3: N/A | F3: 75 | G3: No | I3: Travel Demand Management | J3: East | K3: Bike/Ped | M3: E407X | N3: Zaragoza POE Pedestrian Shade Canopies | O3: Project includes design and construction of canopy shade structures for pedestrians, sidewalks as required, illumination, landscaping and irrigation. | P3: Zaragoza POE | R3: 2032 | S3: 8284198 | T3: 11790996.87 | U3: 577758.8466 | V3: 0 | W3: 12368755.72 | X3: COEP | Y3: 2031 | Z3: 44866 | AA3: Amend RMS 2050 MTP to deprogram due to overlap in scope with Ysleta Port of Entry Pedestrian and Site Improvements RAISE grant project. Approved by TPB 11/18/22 | AE3: NO | AF3: NO | AG3: No | AH3: No | AJ3: YES | AK3: YES | AL3: NO | AM3: NO | AN3: NO | AO3: 9 | AP3: 0.04 | AQ3: 12368755.72 | AR3: TRUE | AS3: 11790996.87 | AT3: NOT IN TIP | AU3: 12368755.72 | AX3: 2566666.716 | BR3: 9802089
A4: 2023-05-01 | B4: All-Improvements | C4: Transit | D4: N/A | E4: N/A | F4: N/A | G4: Yes | H4: N/A | I4: N/A | J4: Central | K4: Exempt | M4: T3D | N4: Curb Cuts / Ada Improvements (5339) | O4: Curb Cuts / Ada Improvements | R4: ALL | S4: 1000000 | T4: 1000000 | U4: 0 | V4: 0 | W4: 1000000 | X4: SUN METRO-TRANSIT | Y4: Even Yrs.-5339
A5: 2023-05-01 | C5: Transit | D5: N/A | E5: N/A | F5: N/A | G5: N/A | J5: Regional | M5: T2A | N5: JARC (5307) | O5: Job Access Reverse Commute | R5: ALL | U5: 0 | V5: 0 | X5: SUN METRO-TRANSIT | Y5: Odd yrs.-5307
A6: 2023-06-01 | B6: All-Management | C6: Transit | D6: N/A | E6: N/A | F6: N/A | H6: N/A | I6: N/A | J6: Central | K6: Exempt | N6: T3B | O6: Other Capital Program Items (5339) | P6: Computers Hardware & Software | S6: ALL | T6: 6543884.75 | U6: 225651.1983 | V6: 0 | W6: 0 | X6: 225651.1983 | Y6: SUN METRO-TRANSIT | Z6: ALL-5339
A7: 2024-02-01 | B7: Bike & Pedestrian | C7: Enhancements | D7: N/A | G7: No | I7: Travel Demand Management | J7: NE | K7: Bike/Ped | L7: 0167-02-085 | M7: E201X | N7: Dyer Pedestrian Sidewalk Improvements | O7: Project includes sidewalk improvements to pedestrian connectivity and accessibility on Dyer St from Gateway to Hercules Ave. Improves access to BRIO stations at Dyer and Hercules. | P7: Gateway Boulevard North | Q7: Hercules Ave | R7: 2032 | S7: 1322827 | T7: 1488000.471 | U7: 328229 | V7: 0 | W7: 1816229.471 | X7: COEP | Y7: 2025 | Z7: 45323 | AA7: Amend RMS 2050 MTP and RMS 23-26 TIP and 23-26 STIP to deprogram from FY 2025-EXEMPT | AE7: NO | AF7: NO | AG7: No | AH7: No | AJ7: YES | AK7: YES | AL7: NO | AM7: NO | AN7: NO | AO7: 3 | AP7: 0.04 | AQ7: 1816229.471 | AR7: TRUE | AS7: 1488000.471 | AT7: NOT IN TIP | AU7: 1816229 | BR7: 1816229
A8: 2024-02-01 | B8: Added Capacity | C8: Principal/Major Arterial | D8: Major Collector | E8: 5 | F8: 75 | G8: Yes | I8: Road Capacity | J8: East | K8: Capacity Changes | L8: 0924-06-621 | M8: P002X-CAP-1 | N8: Tierra Este (Arterial 1) -Phase I | O8: Build 2-lane roadway (1 lane in each direction with raised median). Existing 2-lane section from Windemere Dr. to Vista del Sol Dr. will remain the same | P8: Cozy Cove Ave. | Q8: Pellicano Dr. | R8: 2032 | S8: 15287844 | T8: 18599999.77 | U8: 0 | V8: 0 | W8: 18599999.77 | X8: County EP | Y8: 2027 | AE8: NO | AF8: NO | AH8: No | AJ8: ONLY | AK8: NO | AL8: NO | AM8: NO | AN8: NO | AO8: 5 | AP8: 0.04 | AQ8: 18599999.77 | AR8: TRUE | AS8: 18599999.77 | AT8: NOT IN TIP | AU8: 18600000 | BS8: 18600000
A9: 2024-02-01 | B9: Added Capacity | C9: Principal/Major Arterial | D9: Major Collector | E9: 5 | F9: 75 | G9: Yes | I9: Road Capacity | J9: East | K9: Capacity Changes | M9: P002X-CAP-2 | N9: Tierra Este (Arterial 1) -Phase II | O9: Widen from 1-lane to 2-lanes each direction from Cozy Cove Ave. to Montwood Dr., and from 1-lane to 3-lanes each direction from Montwood Dr. to Pellicano Dr. with bike lanes | P9: Cozy Cove Ave. | Q9: Pellicano Dr. | R9: 2032 | S9: 15400000 | T9: 15400000 | U9: 0 | V9: 0 | W9: 15400000 | X9: County EP | Y9: 2028 | AE9: NO | AF9: NO | AH9: No | AJ9: ONLY | AK9: NO | AL9: NO | AM9: NO | AN9: NO | AO9: 6 | AP9: 0.04 | AQ9: 15400000 | AR9: TRUE | AS9: 19485912.88 | AT9: NOT IN TIP | AU9: 15400000 | BS9: 15400000
A10: 2024-11-01 | B10: All-Plan | C10: Transit | D10: N/A | E10: N/A | F10: N/A | G10: N/A | H10: N/A | I10: N/A | J10: Central | K10: Exempt | M10: T3A | N10: Planning (5307) | O10: Short range planning | R10: ALL | S10: 24188423 | T10: 834084 | U10: 0 | V10: 0 | W10: 834048 | X10: SUN METRO-TRANSIT | Y10: All 5307 | Z10: 2024-11-01 | AA10: Deprogram from RMS 2050 MTP, Amended 2050 MTP, RMS 2025-2028 TIP, and 2025-2028 STIP | AB10: 2024-11-01 | AC10: Amend RMS 2050 MTP and RMS 23-26 TIP to reduce funding to $376,303 of FTA 5307 funds in FY 2024 | AF10: NO | AI10: 1129769 | AJ10: ONLY | AK10: NO | AL10: NO | AM10: NO | AN10: NO | AP10: 0.04 | AQ10: 834083.5657 | AR10: 0.04 | AS10: 834083.5657 | AT10: NOT IN TIP | AW10: 0 | BD10: 0 | CZ10: 0
A11: 2024-11-01 | B11: Improvements | C11: Transit | D11: N/A | E11: N/A | F11: N/A | G11: N/A | H11: N/A | I11: N/A | J11: Central | K11: Exempt | M11: T3E | N11: Security Equipment (5307 | O11: Security Equipment and Service Contract | R11: ALL | S11: 8487669 | T11: 292678 | U11: 0 | V11: 0 | W11: 292628 | X11: SUN METRO-TRANSIT | Y11: All 5307 | Z11: 2024-11-01 | AA11: Deprogram from RMS 2050 MTP, Amended 2050 MTP, RMS 2025-2028 TIP, and 2025-2028 STIP | AB11: 2024-11-01 | AC11: Amend RMS 2050 MTP and RMS 23-26 TIP to reduce funding to $376,303 of FTA 5307 funds in FY 2024 | AF11: NO | AI11: 255415 | AJ11: ONLY | AK11: NO | AL11: NO | AM11: NO | AN11: NO | AP11: 0.04 | AQ11: 292678 | AR11: 0.04 | AS11: 292678 | AT11: NOT IN TIP | CZ11: 0

Sheet MPO-IDs
E1: ID LEGEND CURRENT: | K1: ID LEGEND PROPOSED:
E2: DIGIT 1 | F2: FC or Project Type | H2: AREA | K2: d1 | L2: FC or project type
E3: DIGIT 2 | F3: Area | H3: 0 | I3: Regional | K3: d2 | L3: County Commissioner Dist. # | P3: Proposed for 5310 Projects
E4: DIGIT 3 | F4: counter1 | H4: 1 | I4: West | K4: d3 | L4: City Rep Dist # | P4: First 4 digits follow Transit and Regional
E5: DIGIT 4 | F5: counter2 | H5: 2 | I5: NE | K5: d4 | L5: city Area | M5: could be based on ISDs | P5: T010 for Sub recipients
E6: DIGIT 5 | F6: phase(s) | H6: 3 | I6: Central | K6: d5 | L6: Project Element | P6: T011 for Admin of MPO
E7: DIGIT 6 | F7: -CAP or -MOD or -PE or -ROW | H7: 4 | I7: East | K7: d6 | L7: counter | P7: Add -FY
E8: DIGIT 7 | H8: 5 | I8: Mission Valley | K8: d7 | L8: counter | P8: If needed add agency (PA, SCRTD, SM, etc)
E9: DIGIT 8 | H9: 6 | I9: NM | K9: d8 | L9: counter
K10: d9 | L10: counter... More if needed?!
K11: d10 | L11: phase(s): X for no additional phases, or A for phase 1, B for phase 2, etc...
K12: d11 | L12: modeling identifier -CAP or -MOD or -PE or -ROW
A14: SEE MAP IN Z:\PPP\Map files (need ARCGIS) for area number system.
A15: Functional Classifi. Or Project Type
A16: MINOR ARTERIAL | B16: BRIDGE | C16: BORDER CROSSINGS | D16: BUS PURCHASE | E16: ENHANCEMENTS | F16: FREEWAY / EXPRESSWAY | G16: INTERSTATES | H16: LANDSCAPE | I16: MISCELLANEOUS | J16: PRINCIPAL/MAJOR ARTERIAL | K16: REHABILITATION | L16: SIGNALS | M16: TRANSIT | N16: RAIL
A17: A101C-15B | B17: B001X | C17: C002X | D17: BP001 | E17: E002X | F17: F001B-15A | G17: I006X-15A | H17: L003X | I17: M013E | J17: P001X-CAP | K17: R008X | L17: S301C | M17: T004 | N17: X501 >> C033X
A18: A103A | B18: B201X-PE | C18: C006X | D18: BP002 | E18: E003A | F18: F002B-15A | G18: I007B-15A | H18: L004X | I18: M016B | J18: P002X-CAP | K18: R016X | L18: S301D | M18: T005
A19: A104X-25A | B19: B201X-CAP | C19: C015X | D19: BP003 | E19: E003B | F19: F008X-15A | G19: I007C | I19: M016C | J19: P003X-CAP | K19: R017X | L19: S301E | M19: T005A
A20: A105X-15A | B20: B300X | C20: C016X | D20: BP004 | E20: E004 | F20: F008X-ROW | G20: I007D | I20: M017X | J20: P004X-CAP | K20: R018X | L20: S301F | M20: T006
A21: A107B-15A | B21: B301X | C21: C017X | D21: BP005 | E21: E100X | F21: F011A-15A | G21: I007E | I21: M020X | J21: P005X-CAP | K21: R019X | L21: S301G | M21: T007
A22: A110X-15A | B22: B501A | C22: C018X | D22: BP006 | E22: E101X | F22: F011A-15A | G22: I007F | I22: M021X | J22: P006X-CAP | K22: R020X | L22: S201X | M22: T010
A23: A111X-15A | B23: B501X | C23: C019X | E23: E102X | F23: F013X-15A | G23: I007X | I23: M022X | J23: P007X-CAP | K23: R021X | L23: S305X | M23: T011
A24: A114X-05A | B24: B502X | C24: C020X | E24: E103X | F24: F014X-15A | G24: I009X-15A | I24: M023X | J24: P008X-CAP | K24: R022X | L24: S306X | M24: T011-17
A25: A123X | B25: B503X | C25: C021X | E25: E104X | F25: F016A-15A | G25: I010X-15A | I25: M024X | J25: P009X-CAP | K25: R023X | L25: S401X | M25: T011-18
A26: A124X | B26: B301A | C26: C022X | E26: E105X | F26: F017X-15A | G26: I011B-CAP | I26: M025B | J26: P010X-CAP | K26: R024X | L26: S601X | M26: T012A
A27: A124X-MOD | B27: B301B | C27: C023X | E27: E106X | F27: F018X-15A | G27: I011X-05A | I27: M025X | J27: P101X-15A | K27: R307C | M27: T013B
A28: A125X-CAP | B28: B301C | C28: C024X | E28: E107X | F28: F020X-15A | G28: I034X-MOD | I28: M028B | J28: P103D-MOD | K28: R307D | M28: T014
A29: A126X-CAP | B29: B601X | C29: C025X | E29: E108X-1 | F29: F022X | G29: I035X | I29: M030B | J29: P103E-MOD | K29: R605 | M29: T014A
A30: A127X | B30: B602X | C30: C026X | E30: E108X-2 | F30: F027X-MOD | G30: I041X-MOD | I30: M034X | J30: P106B-05A | K30: R606X | M30: T015A
A31: A128X | B31: B603X | C31: C027X | E31: E109X | F31: F029X | G31: I042X-MOD | I31: M035A | J31: P106D-25A | K31: R606X | M31: T015A-1
A32: A129X | B32: B604X | E32: E110X | G32: I043X | I32: M035B | J32: P112X-25A | K32: R607X | M32: T015A-2
A33: A130X | B33: B605X | C33: C028X | E33: E111X | F33: F031X-MOD | G33: I044A-MOD | I33: M036X | J33: P119X-25A | K33: R608X | M33: T015A-AA
A34: A131X | B34: B606X | C34: C029X | E34: E302A | F34: F032X-MOD | G34: I044X-MOD | I34: M037X | J34: P122X | K34: R609X | M34: T062X
A35: A133X | B35: B607X | C35: C030X | E35: E302B | F35: F033X-MOD | G35: I045X-MOD | I35: M038X | J35: P127X | K35: R610C | M35: T015C
A36: A134X | B36: B504X | C36: C031X | E36: E302C | F36: F034X-MOD | G36: I046X-MOD | I36: M039X | J36: P130X-MOD | K36: R611B | M36: T015C-1
A37: A135X-PE | B37: B608X | C37: C032X | E37: E400X | F37: F036X-MOD | G37: I047X-MOD | I37: M040X | J37: P131A-MOD | K37: R501X | M37: T015C-2
A38: A135X-CAP | B38: B609X | C38: C033X | E38: E200X | F38: F037X-MOD | G38: I048X-MOD | I38: M043X | J38: P132X | K38: R401X | M38: T016
A39: A136X-CAP | B39: B610X | C39: C034X | E39: E300X | F39: F038X-MOD | G39: I049X-MOD | I39: M044X | J39: P133X | K39: R201X | M39: T016-AA
C40: C035X | E40: E301X | F40: F039X-MOD | G40: I050X | I40: M044X | J40: P134X | K40: R402X | M40: T017A
A41: A204X-25A | C41: C036X | E41: E302X-1 | F41: F040X-MOD | G41: I051X | I41: M045X | J41: P135X | K41: R100X | M41: T017B
A42: A207X-15A | C42: C037X | E42: E302X-2 | F42: F041X-MOD | G42: I052X-MOD | I42: M046X | J42: P136X | K42: R403X | M42: T017C
A43: A217X-MOD | C43: C038X | E43: E303X | F43: F043X-MOD | G43: I053X-MOD | I43: M047X | J43: P201A-MOD | K43: R612X | M43: T017D
A44: A218X-MOD | C44: C039X | E44: E304X | F44: F044X | G44: I054X-MOD | I44: M048X | J44: P206B-15A | K44: R613X | M44: T017D-1
A45: A306X-MOD | C45: C040X | E45: E005X | F45: F045X | G45: I055B-MOD | I45: M050X | J45: P208C-MOD | K45: R614X | M45: T017D-2
A46: A307X | C46: C601X | E46: E401X | F46: F046X | G46: I055X-MOD | I46: M051X | J46: P213X-MOD | K46: R615X | M46: T019X
A47: A307X-B | C47: C041X | E47: E402X | F47: F047X-CAP | G47: I056X-MOD | I47: M052X | J47: P216X-MOD | K47: R616X | M47: T021X
A48: A308X-MOD | E48: E403X | F48: F048X | G48: I057X-CAP | I48: M053X | J48: P217X-CAP | K48: R404X | M48: T022X
A49: A404X-05A | E49: E404X | F49: F048X-2 | G49: I058X | I49: M054X | J49: P218X-CAP | M49: T023X
A50: A405X | E50: E500X | F50: F049X-CAP | G50: I059X-CAP | I50: M055X | J50: P219X-CAP | M50: T025X
A51: A407X-25A | E51: E502X-1 | F51: F050X-CAP | G51: I060X | I51: M056X | J51: P310X-05A | M51: T026X
A52: A408X-MOD | E52: E502X-2 | F52: F051X-CAP | G52: I061X-CAP | I52: M057X | J52: P313D-15A | M52: T027X
A53: A412X-MOD | E53: E600X | F53: F052X | G53: I062X-CAP | I53: M058X | J53: P313E-1 | M53: T028X
A54: A413X-MOD | E54: E501X | F54: F053A-CAP | G54: I063X-CAP | I54: M059X | J54: P313E-2 | M54: T029X
A55: A415X-MOD | E55: E502X | F55: F053BX-CAP | G55: I101A-CAP | I55: M060X | J55: P315X-15A | M55: T030X
A56: A416X-MOD | E56: E601X | F56: F054X-CAP | G56: I401X-CAP | I56: M061X | J56: P320X | M56: T031X
A57: A417X-MOD | E57: E601X-PE | F57: F055X | G57: I402X-CAP | I57: M062X | J57: P321X | M57: T032X
A58: A418X-MOD | E58: E602A | F58: F056X-CAP | G58: I403X-CAP | I58: M063X | J58: P325X-MOD | M58: T032X-1
A59: A419X | E59: E602B | G59: I404X | I59: M064X | J59: P326X-MOD | M59: T032X-2
A60: A420X | E60: E603X | F60: F057X-CAP | G60: I405X-CAP | I60: M065X | J60: P329X | M60: T033X-1
A61: A421X-CAP | E61: E604X | F61: F058X-CAP | G61: I406X-CAP | I61: M066X | J61: P330X | M61: T033X-2
A62: A422X-CAP | E62: E605X | F62: F059X-CAP-1 | G62: I600X | I62: M067X | J62: P331X | M62: T034X
A63: A423X-CAP | E63: E606X | F63: F059X-CAP-2 | G63: I064X-CAP | I63: M068X >> C032X | J63: P332X | M63: T036X & T037X
A64: A424X-CAP | E64: E607X | F64: F060X | G64: I065X-CAP | I64: M069X | J64: P333X | M64: T038X
A65: A425X-CAP | E65: E201X | F65: F061X-CAP | G65: I066X-CAP | I65: M070X | J65: P334X | M65: T039X
A66: A426X-CAP | E66: E405X | F66: F201X | G66: I067X-CAP | I66: M071X | J66: P401B-MOD | M66: T040X
A67: A427X-CAP | E67: E406X | F67: F202X | G67: I068X-CAP | I67: M072X | J67: P401C-MOD | M67: T041X
A68: A428X-CAP | E68: E407X | F68: F401X-CAP | G68: I069X-CAP | I68: M073X | J68: P401E-MOD | M68: T041X-1
A69: A429X-CAP | E69: E000X | F69: F402X-CAP | G69: I070X-CAP | I69: M074X | J69: P401F-MOD | M69: T041X-2
A70: A430X-CAP | E70: E408X | F70: F403X-CAP | G70: I102X | I70: M075X | J70: P401G-MOD | M70: T041X-3
A71: A431X | E71: E608X | F71: F404A-CAP | G71: I407X | I71: M076X | J71: P401H-MOD | M71: T041X-4
A72: A432X | E72: E609A | F72: F404B-CAP | G72: 1071X | I72: M077X | J72: P402X-05A | M72: T042
A73: A433X | E73: E610A | F73: F404C-CAP | I73: M078A | J73: P403C-15A | M73: T043
A74: A434X-CAP | E74: E510X | F74: F405X-CAP | I74: M078X | J74: P410X-15A | M74: T044
A75: A435X | E75: E503X | F75: F406X | I75: M079X | J75: P418A-15A | M75: T045
A76: A501B | E76: E504X | F76: F407A-CAP | I76: M080X | J76: P418C-MOD | M76: T050X
A77: A502X-15A | E77: E505X | F77: F407B-CAP | I77: M081A | J77: P421X-25A | M77: T051X
A78: A505X | E78: E506X | F78: F407C | I78: M081B | J78: P422X-15A | M78: T052X
A79: A506A-MOD | E79: E507X | F79: F407D-CAP | I79: M081C | J79: P424A-25A | M79: T053X
A80: A506B-05A | E80: E508X | F80: F408X-MOD | I80: M082X | J80: P424B-25A | M80: T054X
A81: A506X-05A | E81: E509X | F81: F409X-MOD | I81: M083X | J81: P425X-25A | M81: T055X
A82: A507X-15A | E82: E511X | I82: M084X | J82: P426X-25A | M82: T056X
A83: A513A-15A | I83: M085X | J83: P427A-MOD | M83: T057X
A84: A513B | I84: M086X | J84: P428X-MOD | M84: T058X
A85: A513B-MOD | I85: M087A | J85: P428X-CAP-2 | M85: T059X
A86: A513C | I86: M087B | J86: P429X-MOD | M86: T203B
A87: A513D-MOD | I87: M089A | J87: P430X-MOD | M87: T060X
A88: A513X-PE | I88: M090X | J88: P431X-MOD | M88: T1C
A89: A515X | I89: M106C | J89: P432X-MOD | M89: T061X
A90: A517X-MOD | I90: M107X | J90: P433X-MOD | M90: T063X
A91: A520X-MOD | I91: M301X-15A | J91: P434X-MOD | M91: T064X
A92: A521X-MOD | I92: M304X | J92: P515-ROW | M92: T065X
A93: A522B-MOD | I93: M305X | J93: P435X-MOD | M93: T065X-2
A94: A522C-MOD | I94: M306X | J94: P512X-15A | M94: T066X
A95: A522X-MOD | I95: M307X | J95: P436X-MOD | M95: T067X
A96: A523X-MOD | I96: M404B-15A | J96: P438X-MOD | M96: T068X
A97: A524X-PE | I97: M405X | J97: P439X-MOD | M97: T069X
A98: A524X-PE-2 | I98: M406X | J98: P440X-MOD | M98: T070X
A99: A524X-CAP | I99: M407X | J99: P441X | M99: T071X
A100: A524X-CAP2 | I100: M504X | J100: P442X | M100: T072X
A101: A524B-CAP | I101: M505X | J101: P443X-CAP | M101: T073X
A102: A526X | I102: M605A | J102: P443X-MOD | M102: T074X
A103: A527X-CAP | I103: M613X | J103: P444X-CAP | M103: T075X
A104: A528X-CAP | I104: M613X | J104: P445X-CAP | M104: T076X
A105: A600X-MOD | I105: M614X | J105: P446X-CAP | M105: T077X
A106: A601X-MOD | I106: M614X | J106: P447X-CAP | M106: T078X
A107: A602X | I107: M615X | J107: P448X-CAP | M107: T079X
A108: A603X-CAP | I108: M616X | J108: P449X-CAP | M108: T081X
A109: A604X-MOD | I109: M617X | J109: P450X-CAP | M109: T082X
A110: A605A-PE | I110: M619X | J110: P451X-CAP | M110: T083X
A111: A436X | I111: M622X | J111: P452X-CAP | M111: T083X
A112: A437X | I112: M623X | J112: P453X-CAP | M112: T084X
A113: A438X | I113: M623X-PE | J113: P454X-CAP | M113: T085X
A114: A439A | I114: M624X | J114: P455X-CAP | M114: T086X
A115: A439B | I115: M625X | J115: P456X-CAP | M115: T087X
A116: A440X | I116: M626X | J116: P457X-CAP | M116: T088A
A117: A441X | I117: M627X | J117: P458X | M117: T088B
A118: A138X | I118: M628X | J118: P459X-CAP | M118: T089X
A119: A139X | I119: M629X | J119: P460X | M119: T090X
A120: A442X | I120: M630X | J120: P461X-CAP | M120: T091X-1
A121: A529X | I121: M631X | J121: P462X | M121: T091X-2
A122: A606X | I122: M632X | J122: P463X-MOD | M122: T093X
A123: A607X | I123: M633X | J123: P464X-CAP | M123: T092X
A124: A443A | I124: M634X | J124: P465X-CAP-1 | M124: T095X
A125: A433-CAP-PE2 | I125: M635X | J125: P465X-CAP-2 | M125: T096X
I126: M637X-A | J126: P503X-15B | M126: T097X
I127: M637X-B | J127: P505D-MOD | M127: T099X
I128: M637X-T304 | J128: P505E-MOD | M128: T001-1
I129: M637X-CAP | J129: P506X-15B | M129: T001-2
I130: M637X-C | J130: P506X-ROW | M130: T001-3
I131: M637X-D | J131: P507A-MOD | M131: T101B
I132: M637X-E | J132: P509X-05A | M132: T106
I133: M637X-F | J133: P509X-ROW | M133: T107
I134: M637X-G | J134: P510X-25A | M134: T108X-1
I135: M637X-H | J135: P515B | M135: T108X-2
I136: M637X-I | J136: P517A-15A | M136: T109X
I137: M637X-T406 | J137: P533A-CAP | M137: T1A
I138: M637X-T408 | J138: P601X-15A | M138: T203A
I139: M637X-T409 | J139: P517B-15A | M139: T204
I140: M637X-T501 | J140: P518X | M140: T204-A
I141: M637X-T504 | J141: P519C-15A | M141: T204-B
I142: M637X-T505 | J142: P519D | M142: T2A
I143: M637X-X | J143: P519E | M143: T304
I144: M637X-T605 | J144: P520A-15A | M144: T305-CAP
I145: M638X-A | J145: P520B-15A | M145: T305-CAP-2
I146: M638X-B | J146: P528X-MOD | M146: T306C
I147: M639X | J147: P529X-MOD | M147: T3A
I148: M640X | J148: P530X-MOD | M148: T3B
I149: M641X | J149: P531X | M149: T3C
I150: M642X-PE | J150: P532X | M150: T3D
I151: M642x-PE2 | J151: P533X-CAP | M151: T3E
I152: M091X | J152: P603B-05B | M152: T3F
I153: M506X | J153: P603C-MOD | M153: T3G
I154: M507X | J154: P605X-05B | M154: T3H
I155: M308X | J155: P608X-15A | M155: T3I
I156: M309X | J156: P609X | M156: T402B
I157: M308A | J157: P610X-MOD | M157: T406
I158: M508X | J158: P611X-MOD | M158: T408
I159: M408X | J159: P612X-MOD | M159: T409
I160: M091X-2 | J160: P613X-CAP | M160: T501
I161: M091X-3 | J161: P614A | M161: T504
I162: M092X-1 | J162: P614B | M162: T505
I163: M092X-2 | J163: P614C | M163: T506X
I164: M108X-1 | J164: P614D | M164: T507-A
I165: M108X-2 | J165: P615X | M165: T507-B
I166: M310A | J166: P616X | M166: T605
I167: M310B | J167: P617X | M167: T606X
I168: M409X | J168: P618X-CAP | M168: T607X
I169: M311X | J169: P619X-CAP | M169: T608X
I170: M093X | J170: P620X-CAP | M170: T609X
I171: M094X | J171: P621X-CAP | M171: T610X
J172: P466X-CAP | M172: T100X
J173: P622X | M173: T002X
J174: P623A-PE | M174: T010-22PA
J175: P624X | M175: T010-22S
J176: P219X-CAP-PE | M176: T010-22SM
M177: T010-22SCRTD
M178: T010-23PA
M179: T010-23S
M180: T010-23SM
M181: T011-22MPO
M182: T011-23MPO
M183: T003X
M184: T611X
M185: T612X
M186: T612B
M187: T612C
M188: T613A
M189: T613B
M190: T614A
M191: T614B
M192: T614C
M193: T614D
M194: T615A
M195: T615B
M196: T615C
M197: T615D
M198: T615E
M199: T615F
M200: T616A
M201: T0100X
... 2 more rows

Sheet ProjectElement
A1: Exempt Projects/Programs
A2: Notwithstanding the other requirements of this subpart, highway and transit projects of the types listed in table 2 of this section are exempt from the requirement to determine conformity. Such projects may proceed toward implementation even in the absence of a conforming transportation plan and TIP. A particular action of the type listed in table 2 of this section is not exempt if the MPO in consultation with other agencies (see § 93.105(c)(1)(iii)), the EPA, and the FHWA (in the case of a highway project) or the FTA (in the case of a transit project) concur that it has potentially adverse emissions impacts for any reason. States and MPOs must ensure that exempt projects do not interfere with TCM implementation.
A3: Table 2 - Exempt Projects
A4: Safety
A5: Railroad/highway crossing.
A6: Projects that correct, improve, or eliminate a hazardous location or feature.
A7: Safer non-Federal-aid system roads.
A8: Shoulder improvements.
A9: Increasing sight distance.
A10: Highway Safety Improvement Program implementation.
A11: Traffic control devices and operating assistance other than signalization projects.
A12: Railroad/highway crossing warning devices.
A13: Guardrails, median barriers, crash cushions.
A14: Pavement resurfacing and/or rehabilitation.
A15: Pavement marking.
A16: Emergency relief (23 U.S.C. 125).
A17: Fencing.
A18: Skid treatments.
A19: Safety roadside rest areas.
A20: Adding medians.
A21: Truck climbing lanes outside the urbanized area.
A22: Lighting improvements.
A23: Widening narrow pavements or reconstructing bridges (no additional travel lanes).
A24: Emergency truck pullovers.
A25: Mass Transit
A26: Operating assistance to transit agencies.
A27: Purchase of support vehicles.
A28: Rehabilitation of transit vehicles 1.
A29: Purchase of office, shop, and operating equipment for existing facilities.
A30: Purchase of operating equipment for vehicles (e.g., radios, fareboxes, lifts, etc.).
A31: Construction or renovation of power, signal, and communications systems.
A32: Construction of small passenger shelters and information kiosks.
A33: Reconstruction or renovation of transit buildings and structures (e.g., rail or bus buildings, storage and maintenance facilities, stations, terminals, and ancillary structures).
A34: Rehabilitation or reconstruction of track structures, track, and trackbed in existing rights-of-way.
A35: Purchase of new buses and rail cars to replace existing vehicles or for minor expansions of the fleet 1.
A36: Construction of new bus or rail storage/maintenance facilities categorically excluded in 23 CFR part 771.
A37: Air Quality
A38: Continuation of ride-sharing and van-pooling promotion activities at current levels.
A39: Bicycle and pedestrian facilities.
A40: Other
A41: Specific activities which do not involve or lead directly to construction, such as:
A42: Planning and technical studies.
A43: Grants for training and research programs.
A44: Planning activities conducted pursuant to titles 23 and 49 U.S.C.
A45: Federal-aid systems revisions.
A46: Engineering to assess social, economic, and environmental effects of the proposed action or alternatives to that action.
A47: Noise attenuation.
A48: Emergency or hardship advance land acquisitions (23 CFR 710.503).
A49: Acquisition of scenic easements.
A50: Plantings, landscaping, etc.
A51: Sign removal.
A52: Directional and informational signs.
A53: Transportation enhancement activities (except rehabilitation and operation of historic transportation buildings, structures, or facilities).
A54: Repair of damage caused by natural disasters, civil unrest, or terrorist acts, except projects involving substantial functional, locational or capacity changes.
A56: Note:
A57: 1 In PM10 and PM2.5 nonattainment or maintenance areas, such projects are exempt only if they are in compliance with control measures in the applicable implementation plan.
A58: [62 FR 43801, Aug. 15, 1997, as amended at 69 FR 40081, July 1, 2004; 71 FR 12510, Mar. 10, 2006; 73 FR 4441, Jan. 24, 2008]

Sheet CMP
A1: The order is not meant to be hard and fast. Regional goals and objectives and local consensus should prevail.
B2: Strategies | C2: Description | D2: Examples
A3: 1 | B3: Travel Demand Management | C3: Travel Demand Management (TDM), nonautomotive travel modes, and land use management can all help to provide travelers with more options and reduce the number of vehicles or trips during congested periods. These include strategies that substitute communication for travel, or encourage regional cooperation to change development patterns and/or reduce sprawl. | D3: Promoting Alternatives (examples): | E3: - Programs that encourage transit use and ridesharing, such as marketing/outreach for transit and travel demand management (TDM) services | F3: - Pedestrian and bicycle improvements and other strategies that promote non motorized travel
A4: 2 | B4: Traffic Operations | C4: These strategies focus on getting more out of what we have. Rather than building new infrastructure, many transportation agencies have embraced strategies that deal with operation of the existing network of roads. Many of these operations-based strategies are supported by the use of enhanced technologies or Intelligent Transportation Systems (ITS). | D4: Arterial and Local Roads Operations (examples): | E4: - Optimizing the timing of traffic signals | F4: - Restricting turns at key intersections | G4: - Geometric improvements to roads and intersections | H4: - Converting streets to one-way operations | I4: - Transit signal priority | J4: - Access management
A5: 3 | B5: Public Transportation | C5: Improving transit operations, improving access to transit, and expanding transit service can help reduce the number of vehicles on the road by making transit more attractive or accessible. These strategies may be closely linked to strategies in the previous two categories (demand management and traffic operations). As with traffic operations, transit operations are often enhanced by ITS.
A6: 4 | B6: Road Capacity | C6: This category of strategies addresses adding more base capacity to the road network, such as adding additional lanes and building new highways, as well as redesigning specific bottlenecks (such as interchanges and intersections) to increase their capacity. Given the expense and possible adverse environmental impacts of new single-occupant vehicle capacity, management and operations strategies should be given due consideration before additional capacity is considered.
A7: 5 | B7: NON-CMP | C7: Non-CMP Strategies
A8: 6 | B8: N/A | C8: Not applicable to CMP Strategies
C9: Source: Email from Sonia Perez 2-12-13; CMP FHWA Guidance on Project Prioritization and Assesing Strategies/Projects

Sheet Financial Summary
A1: DO NOT DELETE | B1: EL PASO MPO
A2: ANYTHING IN | B2: Amended RMS 2050 Metropolitan Transportation Plan (MTP)
A3: THIS COLUMN | B3: 2022 - 2050 Financial Summary
A4: 1000000 | B4: =TODAY() -> 2025-04-28
B5: ='Hwy TX Financials'!B1 -> Revenue by Categories | C5: ='Hwy TX Financials'!G1 -> 2022 | D5: ='Hwy TX Financials'!H1 -> 2023 | E5: ='Hwy TX Financials'!I1 -> 2024 | F5: ='Hwy TX Financials'!J1 -> 2025 | G5: ='Hwy TX Financials'!K1 -> 2026 | H5: ='Hwy TX Financials'!L1 -> 2027 | I5: ='Hwy TX Financials'!M1 -> 2028 | J5: ='Hwy TX Financials'!N1 -> 2029 | K5: ='Hwy TX Financials'!O1 -> 2030 | L5: ='Hwy TX Financials'!P1 -> 2031 | M5: ='Hwy TX Financials'!Q1 -> 2032 | N5: 2033-2040 | O5: 2041-2050 | P5: ='Hwy TX Financials'!AJ1 -> TOTAL
A6: 1000000 | B6: ='Hwy TX Financials'!A2 -> TEXAS HIGHWAY FUNDING CATEGORIES
B7: ='Hwy TX Financials'!B3 -> 1 - Preventive Maintenance & Rehabilitation | C7: ='Hwy TX Financials'!G3 -> 43525878 | D7: ='Hwy TX Financials'!H3 -> 84268421 | E7: ='Hwy TX Financials'!I3 -> 42863475 | F7: ='Hwy TX Financials'!J3 -> 69645045 | G7: ='Hwy TX Financials'!K3 -> 69058347 | H7: ='Hwy TX Financials'!L3 -> 71794567 | I7: ='Hwy TX Financials'!M3 -> 59602137 | J7: ='Hwy TX Financials'!N3 -> 56955511 | K7: ='Hwy TX Financials'!O3 -> 44064670 | L7: ='Hwy TX Financials'!P3 -> 43458037 | M7: ='Hwy TX Financials'!Q3 -> 47412751 | N7: =SUM('Hwy TX Financials'!R3:Y3) -> 428290719 | O7: =SUM('Hwy TX Financials'!Z3:AI3) -> 642819454.7 | P7: ='Hwy TX Financials'!AJ3 -> 1703759013
B8: ='Hwy TX Financials'!B4 -> 2 - Metropolitan Area (TMA) Corridor Projects | C8: ='Hwy TX Financials'!G4 -> 166742472 | D8: ='Hwy TX Financials'!H4 -> 16497532 | E8: ='Hwy TX Financials'!I4 -> 34662677 | F8: ='Hwy TX Financials'!J4 -> 131670973 | G8: ='Hwy TX Financials'!K4 -> 154408093 | H8: ='Hwy TX Financials'!L4 -> 106340000 | I8: ='Hwy TX Financials'!M4 -> 0 | J8: ='Hwy TX Financials'!N4 -> 0 | K8: ='Hwy TX Financials'!O4 -> 0 | L8: ='Hwy TX Financials'!P4 -> 0 | M8: ='Hwy TX Financials'!Q4 -> 36927747 | N8: =SUM('Hwy TX Financials'!R4:Y4) -> 323288703.8 | O8: =SUM('Hwy TX Financials'!Z4:AI4) -> 483233919.5 | P8: ='Hwy TX Financials'!AJ4 -> 1453772117
B9: ='Hwy TX Financials'!B5 -> 3 - Lcl Contribution | C9: ='Hwy TX Financials'!G5 -> 31260000 | D9: ='Hwy TX Financials'!H5 -> 17175225 | E9: ='Hwy TX Financials'!I5 -> 1750000 | F9: ='Hwy TX Financials'!J5 -> 186550000 | G9: ='Hwy TX Financials'!K5 -> 2687103 | H9: ='Hwy TX Financials'!L5 -> 0 | I9: ='Hwy TX Financials'!M5 -> 0 | J9: ='Hwy TX Financials'!N5 -> 0 | K9: ='Hwy TX Financials'!O5 -> 50449320.93 | L9: ='Hwy TX Financials'!P5 -> 0 | M9: ='Hwy TX Financials'!Q5 -> 263291.051 | N9: =SUM('Hwy TX Financials'!R5:Y5) -> 48663100 | O9: =SUM('Hwy TX Financials'!Z5:AI5) -> 0 | P9: ='Hwy TX Financials'!AJ5 -> 338798040
B10: ='Hwy TX Financials'!B6 -> 3 - Transportation Mobility Fund | C10: ='Hwy TX Financials'!G6 -> 0 | D10: ='Hwy TX Financials'!H6 -> 0 | E10: ='Hwy TX Financials'!I6 -> 18000000 | F10: ='Hwy TX Financials'!J6 -> 0 | G10: ='Hwy TX Financials'!K6 -> 0 | H10: ='Hwy TX Financials'!L6 -> 0 | I10: ='Hwy TX Financials'!M6 -> 0 | J10: ='Hwy TX Financials'!N6 -> 0 | K10: ='Hwy TX Financials'!O6 -> 0 | L10: ='Hwy TX Financials'!P6 -> 0 | M10: ='Hwy TX Financials'!Q6 -> 0 | N10: =SUM('Hwy TX Financials'!R6:Y6) -> 0 | O10: =SUM('Hwy TX Financials'!Z6:AI6) -> 0 | P10: ='Hwy TX Financials'!AJ6 -> 18000000
B11: ='Hwy TX Financials'!B7 -> 4 - Statewide Urban Connectivity Corridor Projects | C11: ='Hwy TX Financials'!G7 -> 27979725 | D11: ='Hwy TX Financials'!H7 -> 0 | E11: ='Hwy TX Financials'!I7 -> 95337323 | F11: ='Hwy TX Financials'!J7 -> 82558999 | G11: ='Hwy TX Financials'!K7 -> 39518348 | H11: ='Hwy TX Financials'!L7 -> 28506950 | I11: ='Hwy TX Financials'!M7 -> 21911936 | J11: ='Hwy TX Financials'!N7 -> 21962241 | K11: ='Hwy TX Financials'!O7 -> 24375166 | L11: ='Hwy TX Financials'!P7 -> 19932272 | M11: ='Hwy TX Financials'!Q7 -> 16916115 | N11: =SUM('Hwy TX Financials'!R7:Y7) -> 167886574.8 | O11: =SUM('Hwy TX Financials'!Z7:AI7) -> 253150703.1 | P11: ='Hwy TX Financials'!AJ7 -> 800036352.9
B12: ='Hwy TX Financials'!B8 -> 5 - CMAQ | C12: ='Hwy TX Financials'!G8 -> 9548522 | D12: ='Hwy TX Financials'!H8 -> 9607461 | E12: ='Hwy TX Financials'!I8 -> 9799623 | F12: ='Hwy TX Financials'!J8 -> 9975761 | G12: ='Hwy TX Financials'!K8 -> 10175289 | H12: ='Hwy TX Financials'!L8 -> 9783502 | I12: ='Hwy TX Financials'!M8 -> 9783502 | J12: ='Hwy TX Financials'!N8 -> 9783502 | K12: ='Hwy TX Financials'!O8 -> 9783502 | L12: ='Hwy TX Financials'!P8 -> 9783502 | M12: ='Hwy TX Financials'!Q8 -> 9783502 | N12: =SUM('Hwy TX Financials'!R8:Y8) -> 80357152.59 | O12: =SUM('Hwy TX Financials'!Z8:AI8) -> 109740663.6 | P12: ='Hwy TX Financials'!AJ8 -> 297905484.2
B13: ='Hwy TX Financials'!B9 -> 6 - Structures Replacement & Rehabilitation | C13: ='Hwy TX Financials'!G9 -> 1900000 | D13: ='Hwy TX Financials'!H9 -> 1900000 | E13: ='Hwy TX Financials'!I9 -> 1900000 | F13: ='Hwy TX Financials'!J9 -> 1900000 | G13: ='Hwy TX Financials'!K9 -> 1900000 | H13: ='Hwy TX Financials'!L9 -> 1900000 | I13: ='Hwy TX Financials'!M9 -> 1900000 | J13: ='Hwy TX Financials'!N9 -> 1900000 | K13: ='Hwy TX Financials'!O9 -> 1900000 | L13: ='Hwy TX Financials'!P9 -> 1900000 | M13: ='Hwy TX Financials'!Q9 -> 1900000 | N13: =SUM('Hwy TX Financials'!R9:Y9) -> 15200000 | O13: =SUM('Hwy TX Financials'!Z9:AI9) -> 19000000 | P13: ='Hwy TX Financials'!AJ9 -> 55100000
B14: ='Hwy TX Financials'!B10 -> 7 - STP - MM | C14: ='Hwy TX Financials'!G10 -> 22609172 | D14: ='Hwy TX Financials'!H10 -> 26195292 | E14: ='Hwy TX Financials'!I10 -> 26719233 | F14: ='Hwy TX Financials'!J10 -> 27253642 | G14: ='Hwy TX Financials'!K10 -> 27798750 | H14: ='Hwy TX Financials'!L10 -> 26576927 | I14: ='Hwy TX Financials'!M10 -> 26576927 | J14: ='Hwy TX Financials'!N10 -> 26576927 | K14: ='Hwy TX Financials'!O10 -> 26576927 | L14: ='Hwy TX Financials'!P10 -> 26576927 | M14: ='Hwy TX Financials'!Q10 -> 26576927 | N14: =SUM('Hwy TX Financials'!R10:Y10) -> 218290525.7 | O14: =SUM('Hwy TX Financials'!Z10:AI10) -> 298110943.1 | P14: ='Hwy TX Financials'!AJ10 -> 806439119.8
B15: ='Hwy TX Financials'!B11 -> 7 - CRRSAA | C15: ='Hwy TX Financials'!G11 -> 7670000 | D15: ='Hwy TX Financials'!H11 -> 0 | E15: ='Hwy TX Financials'!I11 -> 0 | F15: ='Hwy TX Financials'!J11 -> 0 | G15: ='Hwy TX Financials'!K11 -> 0 | H15: ='Hwy TX Financials'!L11 -> 0 | I15: ='Hwy TX Financials'!M11 -> 0 | J15: ='Hwy TX Financials'!N11 -> 0 | K15: ='Hwy TX Financials'!O11 -> 0 | L15: ='Hwy TX Financials'!P11 -> 0 | M15: ='Hwy TX Financials'!Q11 -> 0 | N15: =SUM('Hwy TX Financials'!R11:Y11) -> 0 | O15: =SUM('Hwy TX Financials'!Z11:AI11) -> 0 | P15: ='Hwy TX Financials'!AJ11 -> 7670000
B16: ='Hwy TX Financials'!B12 -> 8 - Safety Projects | C16: ='Hwy TX Financials'!G12 -> 670094 | D16: ='Hwy TX Financials'!H12 -> 670094 | E16: ='Hwy TX Financials'!I12 -> 670094 | F16: ='Hwy TX Financials'!J12 -> 670094 | G16: ='Hwy TX Financials'!K12 -> 670094 | H16: ='Hwy TX Financials'!L12 -> 670094 | I16: ='Hwy TX Financials'!M12 -> 670094 | J16: ='Hwy TX Financials'!N12 -> 670094 | K16: ='Hwy TX Financials'!O12 -> 670094 | L16: ='Hwy TX Financials'!P12 -> 670094 | M16: ='Hwy TX Financials'!Q12 -> 670094 | N16: =SUM('Hwy TX Financials'!R12:Y12) -> 5360752 | O16: =SUM('Hwy TX Financials'!Z12:AI12) -> 6700940 | P16: ='Hwy TX Financials'!AJ12 -> 19432726
B17: ='Hwy TX Financials'!B13 -> 9 - Transportation Enhancements Program (TXDOT) | C17: ='Hwy TX Financials'!G13 -> 0 | D17: ='Hwy TX Financials'!H13 -> 3761928 | E17: ='Hwy TX Financials'!I13 -> 4844900 | F17: ='Hwy TX Financials'!J13 -> 2850513 | G17: ='Hwy TX Financials'!K13 -> 0 | H17: ='Hwy TX Financials'!L13 -> 0 | I17: ='Hwy TX Financials'!M13 -> 0 | J17: ='Hwy TX Financials'!N13 -> 0 | K17: ='Hwy TX Financials'!O13 -> 0 | L17: ='Hwy TX Financials'!P13 -> 0 | M17: ='Hwy TX Financials'!Q13 -> 0 | N17: =SUM('Hwy TX Financials'!R13:Y13) -> 0 | O17: =SUM('Hwy TX Financials'!Z13:AI13) -> 0 | P17: ='Hwy TX Financials'!AJ13 -> 11457341
B18: ='Hwy TX Financials'!B14 -> 9 - Transportation Alternatives-Set Aside | C18: ='Hwy TX Financials'!G14 -> 1398351 | D18: ='Hwy TX Financials'!H14 -> 3037430 | E18: ='Hwy TX Financials'!I14 -> 3098183 | F18: ='Hwy TX Financials'!J14 -> 3160149 | G18: ='Hwy TX Financials'!K14 -> 3223356 | H18: ='Hwy TX Financials'!L14 -> 3091958 | I18: ='Hwy TX Financials'!M14 -> 3091958 | J18: ='Hwy TX Financials'!N14 -> 3091958 | K18: ='Hwy TX Financials'!O14 -> 3091958 | L18: ='Hwy TX Financials'!P14 -> 3091958 | M18: ='Hwy TX Financials'!Q14 -> 3091958 | N18: =SUM('Hwy TX Financials'!R14:Y14) -> 24735664 | O18: =SUM('Hwy TX Financials'!Z14:AI14) -> 30919580 | P18: ='Hwy TX Financials'!AJ14 -> 88124461
B19: ='Hwy TX Financials'!B15 -> 11 - District Discretionary | C19: ='Hwy TX Financials'!G15 -> 3753714 | D19: ='Hwy TX Financials'!H15 -> 4449068 | E19: ='Hwy TX Financials'!I15 -> 4071628 | F19: ='Hwy TX Financials'!J15 -> 5663606 | G19: ='Hwy TX Financials'!K15 -> 4998966 | H19: ='Hwy TX Financials'!L15 -> 4278932 | I19: ='Hwy TX Financials'!M15 -> 4300871 | J19: ='Hwy TX Financials'!N15 -> 4331667 | K19: ='Hwy TX Financials'!O15 -> 4108056 | L19: ='Hwy TX Financials'!P15 -> 4210810 | M19: ='Hwy TX Financials'!Q15 -> 4179748 | N19: =SUM('Hwy TX Financials'!R15:Y15) -> 33189526 | O19: =SUM('Hwy TX Financials'!Z15:AI15) -> 41529010 | P19: ='Hwy TX Financials'!AJ15 -> 123065602
B20: ='Hwy TX Financials'!B16 -> 11 - B | C20: ='Hwy TX Financials'!G16 -> 0 | D20: ='Hwy TX Financials'!H16 -> 10000000 | E20: ='Hwy TX Financials'!I16 -> 20000000 | F20: ='Hwy TX Financials'!J16 -> 20000000 | G20: ='Hwy TX Financials'!K16 -> 0 | H20: ='Hwy TX Financials'!L16 -> 0 | I20: ='Hwy TX Financials'!M16 -> 0 | J20: ='Hwy TX Financials'!N16 -> 0 | K20: ='Hwy TX Financials'!O16 -> 0 | L20: ='Hwy TX Financials'!P16 -> 0 | M20: ='Hwy TX Financials'!Q16 -> 0 | N20: =SUM('Hwy TX Financials'!R16:Y16) -> 70000000 | O20: =SUM('Hwy TX Financials'!Z16:AI16) -> 100000000 | P20: ='Hwy TX Financials'!AJ16 -> 220000000
B21: ='Hwy TX Financials'!B17 -> 11 - BSIF | C21: ='Hwy TX Financials'!G17 -> 14000000 | D21: ='Hwy TX Financials'!H17 -> 0 | E21: ='Hwy TX Financials'!I17 -> 0 | F21: ='Hwy TX Financials'!J17 -> 0 | G21: ='Hwy TX Financials'!K17 -> 0 | H21: ='Hwy TX Financials'!L17 -> 0 | I21: ='Hwy TX Financials'!M17 -> 0 | J21: ='Hwy TX Financials'!N17 -> 0 | K21: ='Hwy TX Financials'!O17 -> 0 | L21: ='Hwy TX Financials'!P17 -> 0 | M21: ='Hwy TX Financials'!Q17 -> 0 | N21: =SUM('Hwy TX Financials'!R17:Y17) -> 0 | O21: =SUM('Hwy TX Financials'!Z17:AI17) -> 0 | P21: ='Hwy TX Financials'!AJ17 -> 14000000
B22: ='Hwy TX Financials'!B18 -> 12 - Strategic Priority | C22: ='Hwy TX Financials'!G18 -> 0 | D22: ='Hwy TX Financials'!H18 -> 0 | E22: ='Hwy TX Financials'!I18 -> 168500000 | F22: ='Hwy TX Financials'!J18 -> 16820000 | G22: ='Hwy TX Financials'!K18 -> 0 | H22: ='Hwy TX Financials'!L18 -> 0 | I22: ='Hwy TX Financials'!M18 -> 0 | J22: ='Hwy TX Financials'!N18 -> 882083776 | K22: ='Hwy TX Financials'!O18 -> 0 | L22: ='Hwy TX Financials'!P18 -> 0 | M22: ='Hwy TX Financials'!Q18 -> 0 | N22: =SUM('Hwy TX Financials'!R18:Y18) -> 0 | O22: =SUM('Hwy TX Financials'!Z18:AI18) -> 0 | P22: ='Hwy TX Financials'!AJ18 -> 1067403776
B23: ='Hwy TX Financials'!B19 -> 12 - Strategic Priority CMAQ | C23: ='Hwy TX Financials'!G19 -> 0 | D23: ='Hwy TX Financials'!H19 -> 0 | E23: ='Hwy TX Financials'!I19 -> 0 | F23: ='Hwy TX Financials'!J19 -> 0 | G23: ='Hwy TX Financials'!K19 -> 0 | H23: ='Hwy TX Financials'!L19 -> 0 | I23: ='Hwy TX Financials'!M19 -> 0 | J23: ='Hwy TX Financials'!N19 -> 0 | K23: ='Hwy TX Financials'!O19 -> 0 | L23: ='Hwy TX Financials'!P19 -> 0 | M23: ='Hwy TX Financials'!Q19 -> 0 | N23: =SUM('Hwy TX Financials'!R19:Y19) -> 0 | O23: =SUM('Hwy TX Financials'!Z19:AI19) -> 0 | P23: ='Hwy TX Financials'!AJ19 -> 0
B24: ='Hwy TX Financials'!B20 -> 12 - Strategic Priority STP | C24: ='Hwy TX Financials'!G20 -> 0 | D24: ='Hwy TX Financials'!H20 -> 0 | E24: ='Hwy TX Financials'!I20 -> 0 | F24: ='Hwy TX Financials'!J20 -> 0 | G24: ='Hwy TX Financials'!K20 -> 0 | H24: ='Hwy TX Financials'!L20 -> 0 | I24: ='Hwy TX Financials'!M20 -> 0 | J24: ='Hwy TX Financials'!N20 -> 0 | K24: ='Hwy TX Financials'!O20 -> 0 | L24: ='Hwy TX Financials'!P20 -> 0 | M24: ='Hwy TX Financials'!Q20 -> 0 | N24: =SUM('Hwy TX Financials'!R20:Y20) -> 0 | O24: =SUM('Hwy TX Financials'!Z20:AI20) -> 0 | P24: ='Hwy TX Financials'!AJ20 -> 0
B25: ='Hwy TX Financials'!B21 -> Bonding CRRMA for Borderland Expressway | C25: ='Hwy TX Financials'!G21 -> 0 | D25: ='Hwy TX Financials'!H21 -> 0 | E25: ='Hwy TX Financials'!I21 -> 0 | F25: ='Hwy TX Financials'!J21 -> 0 | G25: ='Hwy TX Financials'!K21 -> 0 | H25: ='Hwy TX Financials'!L21 -> 137851235 | I25: ='Hwy TX Financials'!M21 -> 0 | J25: ='Hwy TX Financials'!N21 -> 137851235 | K25: ='Hwy TX Financials'!O21 -> 0 | L25: ='Hwy TX Financials'!P21 -> 0 | M25: ='Hwy TX Financials'!Q21 -> 0 | N25: =SUM('Hwy TX Financials'!R21:Y21) -> 0 | O25: =SUM('Hwy TX Financials'!Z21:AI21) -> 0 | P25: ='Hwy TX Financials'!AJ21 -> 275702470
B26: ='Hwy TX Financials'!B22 -> Clear Lanes Initiative v2 (Urban districts) | C26: ='Hwy TX Financials'!G22 -> 0 | D26: ='Hwy TX Financials'!H22 -> 0 | E26: ='Hwy TX Financials'!I22 -> 0 | F26: ='Hwy TX Financials'!J22 -> 0 | G26: ='Hwy TX Financials'!K22 -> 0 | H26: ='Hwy TX Financials'!L22 -> 0 | I26: ='Hwy TX Financials'!M22 -> 150000000 | J26: ='Hwy TX Financials'!N22 -> 0 | K26: ='Hwy TX Financials'!O22 -> 0 | L26: ='Hwy TX Financials'!P22 -> 150000000 | M26: ='Hwy TX Financials'!Q22 -> 0 | N26: =SUM('Hwy TX Financials'!R22:Y22) -> 300000000 | O26: =SUM('Hwy TX Financials'!Z22:AI22) -> 300000000 | P26: ='Hwy TX Financials'!AJ22 -> 900000000
B27: ='Hwy TX Financials'!B23 -> 10 - CBI Program | C27: ='Hwy TX Financials'!G23 -> 0 | D27: ='Hwy TX Financials'!H23 -> 0 | E27: ='Hwy TX Financials'!I23 -> 0 | F27: ='Hwy TX Financials'!J23 -> 0 | G27: ='Hwy TX Financials'!K23 -> 0 | H27: ='Hwy TX Financials'!L23 -> 0 | I27: ='Hwy TX Financials'!M23 -> 0 | J27: ='Hwy TX Financials'!N23 -> 0 | K27: ='Hwy TX Financials'!O23 -> 0 | L27: ='Hwy TX Financials'!P23 -> 0 | M27: ='Hwy TX Financials'!Q23 -> 0 | N27: =SUM('Hwy TX Financials'!R23:Y23) -> 0 | O27: =SUM('Hwy TX Financials'!Z23:AI23) -> 0 | P27: ='Hwy TX Financials'!AJ23 -> 0
B28: ='Hwy TX Financials'!B24 -> 10 - Carbon Reduction Program | C28: ='Hwy TX Financials'!G24 -> 0 | D28: ='Hwy TX Financials'!H24 -> 0 | E28: ='Hwy TX Financials'!I24 -> 9411814 | F28: ='Hwy TX Financials'!J24 -> 2944038 | G28: ='Hwy TX Financials'!K24 -> 3002918 | H28: ='Hwy TX Financials'!L24 -> 3026688 | I28: ='Hwy TX Financials'!M24 -> 3025719 | J28: ='Hwy TX Financials'!N24 -> 3025719 | K28: ='Hwy TX Financials'!O24 -> 3025719 | L28: ='Hwy TX Financials'!P24 -> 3025719 | M28: ='Hwy TX Financials'!Q24 -> 3025719 | N28: =SUM('Hwy TX Financials'!R24:Y24) -> 6051438 | O28: =SUM('Hwy TX Financials'!Z24:AI24) -> 0 | P28: ='Hwy TX Financials'!AJ24 -> 39565491
B29: ='Hwy TX Financials'!B25 -> 10 - Earmark | C29: ='Hwy TX Financials'!G25 -> 0 | D29: ='Hwy TX Financials'!H25 -> 0 | E29: ='Hwy TX Financials'!I25 -> 0 | F29: ='Hwy TX Financials'!J25 -> 0 | G29: ='Hwy TX Financials'!K25 -> 0 | H29: ='Hwy TX Financials'!L25 -> 0 | I29: ='Hwy TX Financials'!M25 -> 0 | J29: ='Hwy TX Financials'!N25 -> 0 | K29: ='Hwy TX Financials'!O25 -> 0 | L29: ='Hwy TX Financials'!P25 -> 0 | M29: ='Hwy TX Financials'!Q25 -> 0 | N29: =SUM('Hwy TX Financials'!R25:Y25) -> 0 | O29: =SUM('Hwy TX Financials'!Z25:AI25) -> 0 | P29: ='Hwy TX Financials'!AJ25 -> 0
B30: ='Hwy TX Financials'!B26 -> Prop 1/ Prop 7 | C30: ='Hwy TX Financials'!G26 -> 0 | D30: ='Hwy TX Financials'!H26 -> 0 | E30: ='Hwy TX Financials'!I26 -> 0 | F30: ='Hwy TX Financials'!J26 -> 0 | G30: ='Hwy TX Financials'!K26 -> 0 | H30: ='Hwy TX Financials'!L26 -> 0 | I30: ='Hwy TX Financials'!M26 -> 0 | J30: ='Hwy TX Financials'!N26 -> 0 | K30: ='Hwy TX Financials'!O26 -> 0 | L30: ='Hwy TX Financials'!P26 -> 0 | M30: ='Hwy TX Financials'!Q26 -> 0 | N30: =SUM('Hwy TX Financials'!R26:Y26) -> 0 | O30: =SUM('Hwy TX Financials'!Z26:AI26) -> 0 | P30: ='Hwy TX Financials'!AJ26 -> 0
B31: ='Hwy TX Financials'!B27 -> 3 - City of El Paso TRZ #3 | C31: ='Hwy TX Financials'!G27 -> 0 | D31: ='Hwy TX Financials'!H27 -> 0 | E31: ='Hwy TX Financials'!I27 -> 0 | F31: ='Hwy TX Financials'!J27 -> 0 | G31: ='Hwy TX Financials'!K27 -> 0 | H31: ='Hwy TX Financials'!L27 -> 0 | I31: ='Hwy TX Financials'!M27 -> 0 | J31: ='Hwy TX Financials'!N27 -> 0 | K31: ='Hwy TX Financials'!O27 -> 0 | L31: ='Hwy TX Financials'!P27 -> 0 | M31: ='Hwy TX Financials'!Q27 -> 0 | N31: =SUM('Hwy TX Financials'!R27:Y27) -> 0 | O31: =SUM('Hwy TX Financials'!Z27:AI27) -> 0 | P31: ='Hwy TX Financials'!AJ27 -> 0
B32: ='Hwy TX Financials'!B28 -> 3 - Socorro TRZ | C32: ='Hwy TX Financials'!G28 -> 0 | D32: ='Hwy TX Financials'!H28 -> 0 | E32: ='Hwy TX Financials'!I28 -> 0 | F32: ='Hwy TX Financials'!J28 -> 0 | G32: ='Hwy TX Financials'!K28 -> 9971134 | H32: ='Hwy TX Financials'!L28 -> 0 | I32: ='Hwy TX Financials'!M28 -> 0 | J32: ='Hwy TX Financials'!N28 -> 0 | K32: ='Hwy TX Financials'!O28 -> 15000000 | L32: ='Hwy TX Financials'!P28 -> 0 | M32: ='Hwy TX Financials'!Q28 -> 0 | N32: =SUM('Hwy TX Financials'!R28:Y28) -> 5000000 | O32: =SUM('Hwy TX Financials'!Z28:AI28) -> 0 | P32: ='Hwy TX Financials'!AJ28 -> 29971134
B33: ='Hwy TX Financials'!B29 -> 3 - Horizon TRZ | C33: ='Hwy TX Financials'!G29 -> 0 | D33: ='Hwy TX Financials'!H29 -> 0 | E33: ='Hwy TX Financials'!I29 -> 0 | F33: ='Hwy TX Financials'!J29 -> 3181674 | G33: ='Hwy TX Financials'!K29 -> 0 | H33: ='Hwy TX Financials'!L29 -> 0 | I33: ='Hwy TX Financials'!M29 -> 0 | J33: ='Hwy TX Financials'!N29 -> 0 | K33: ='Hwy TX Financials'!O29 -> 0 | L33: ='Hwy TX Financials'!P29 -> 0 | M33: ='Hwy TX Financials'!Q29 -> 0 | N33: =SUM('Hwy TX Financials'!R29:Y29) -> 0 | O33: =SUM('Hwy TX Financials'!Z29:AI29) -> 0 | P33: ='Hwy TX Financials'!AJ29 -> 3181674
B34: ='Hwy TX Financials'!B30 -> 3 - Local PE Funds | C34: ='Hwy TX Financials'!G30 -> 0 | D34: ='Hwy TX Financials'!H30 -> 0 | E34: ='Hwy TX Financials'!I30 -> 0 | F34: ='Hwy TX Financials'!J30 -> 0 | G34: ='Hwy TX Financials'!K30 -> 0 | H34: ='Hwy TX Financials'!L30 -> 0 | I34: ='Hwy TX Financials'!M30 -> 0 | J34: ='Hwy TX Financials'!N30 -> 0 | K34: ='Hwy TX Financials'!O30 -> 0 | L34: ='Hwy TX Financials'!P30 -> 0 | M34: ='Hwy TX Financials'!Q30 -> 0 | N34: =SUM('Hwy TX Financials'!R30:Y30) -> 0 | O34: =SUM('Hwy TX Financials'!Z30:AI30) -> 1939646.869 | P34: ='Hwy TX Financials'!AJ30 -> 1939646.869
B35: ='Hwy TX Financials'!B31 -> 3 - State PE Funds | C35: ='Hwy TX Financials'!G31 -> 6013344 | D35: ='Hwy TX Financials'!H31 -> 3595379 | E35: ='Hwy TX Financials'!I31 -> 11805718.75 | F35: ='Hwy TX Financials'!J31 -> 4655813 | G35: ='Hwy TX Financials'!K31 -> 787500 | H35: ='Hwy TX Financials'!L31 -> 0 | I35: ='Hwy TX Financials'!M31 -> 0 | J35: ='Hwy TX Financials'!N31 -> 40739473.23 | K35: ='Hwy TX Financials'!O31 -> 0 | L35: ='Hwy TX Financials'!P31 -> 21773421.86 | M35: ='Hwy TX Financials'!Q31 -> 0 | N35: =SUM('Hwy TX Financials'!R31:Y31) -> 30559036.19 | O35: =SUM('Hwy TX Financials'!Z31:AI31) -> 66370126.21 | P35: ='Hwy TX Financials'!AJ31 -> 186299812.2
B36: ='Hwy TX Financials'!B32 -> 3 - Local ROW Funds | C36: ='Hwy TX Financials'!G32 -> 0 | D36: ='Hwy TX Financials'!H32 -> 1250000 | E36: ='Hwy TX Financials'!I32 -> 1025000 | F36: ='Hwy TX Financials'!J32 -> 403314 | G36: ='Hwy TX Financials'!K32 -> 1500000 | H36: ='Hwy TX Financials'!L32 -> 0 | I36: ='Hwy TX Financials'!M32 -> 9000000 | J36: ='Hwy TX Financials'!N32 -> 0 | K36: ='Hwy TX Financials'!O32 -> 10000 | L36: ='Hwy TX Financials'!P32 -> 0 | M36: ='Hwy TX Financials'!Q32 -> 0 | N36: =SUM('Hwy TX Financials'!R32:Y32) -> 376614 | O36: =SUM('Hwy TX Financials'!Z32:AI32) -> 2403424.098 | P36: ='Hwy TX Financials'!AJ32 -> 15968352.1
B37: ='Hwy TX Financials'!B33 -> 3 - State ROW Funds | C37: ='Hwy TX Financials'!G33 -> 7626000 | D37: ='Hwy TX Financials'!H33 -> 30441669 | E37: ='Hwy TX Financials'!I33 -> 20000000 | F37: ='Hwy TX Financials'!J33 -> 58094414 | G37: ='Hwy TX Financials'!K33 -> 2000000 | H37: ='Hwy TX Financials'!L33 -> 0 | I37: ='Hwy TX Financials'!M33 -> 0 | J37: ='Hwy TX Financials'!N33 -> 31607167 | K37: ='Hwy TX Financials'!O33 -> 0 | L37: ='Hwy TX Financials'!P33 -> 3188603.939 | M37: ='Hwy TX Financials'!Q33 -> 0 | N37: =SUM('Hwy TX Financials'!R33:Y33) -> 0 | O37: =SUM('Hwy TX Financials'!Z33:AI33) -> 0 | P37: ='Hwy TX Financials'!AJ33 -> 152957853.9
B38: ='Hwy TX Financials'!A37 -> Total TX Highway Revenues | C38: ='Hwy TX Financials'!G37 -> 344697272 | D38: ='Hwy TX Financials'!H37 -> 212849499 | E38: ='Hwy TX Financials'!I37 -> 474459668.8 | F38: ='Hwy TX Financials'!J37 -> 627998035 | G38: ='Hwy TX Financials'!K37 -> 331699898 | H38: ='Hwy TX Financials'!L37 -> 393820853 | I38: ='Hwy TX Financials'!M37 -> 289863144 | J38: ='Hwy TX Financials'!N37 -> 1220579270 | K38: ='Hwy TX Financials'!O37 -> 183055412.9 | L38: ='Hwy TX Financials'!P37 -> 287611344.8 | M38: ='Hwy TX Financials'!Q37 -> 150747852.1 | N38: ='Hwy TX Financials'!T38 -> 1757249806 | O38: ='Hwy TX Financials'!AD38 -> 2355918411 | P38: ='Hwy TX Financials'!AJ37 -> 8630550467
B39: ='Hwy TX Financials'!$A$46 -> CONSTRUCTION Cost | C39: ='Hwy TX Financials'!G52 -> 280808719 | D39: ='Hwy TX Financials'!H52 -> 113623678.9 | E39: ='Hwy TX Financials'!I52 -> 227835199.2 | F39: ='Hwy TX Financials'!J52 -> 411838185 | G39: ='Hwy TX Financials'!K52 -> 247778061 | H39: ='Hwy TX Financials'!L52 -> 94357064 | I39: ='Hwy TX Financials'!M52 -> 95025738.16 | J39: ='Hwy TX Financials'!N52 -> 1062419752 | K39: ='Hwy TX Financials'!O52 -> 154175806.9 | L39: ='Hwy TX Financials'!P52 -> 397221653 | M39: ='Hwy TX Financials'!Q52 -> 55356131.75 | N39: ='Hwy TX Financials'!T52 -> 1577182159 | O39: ='Hwy TX Financials'!AD52 -> 2222317919 | P39: ='Hwy TX Financials'!AJ52 -> 6939940067
B40: ='Hwy TX Financials'!$A$53 -> FHWA to FTA Transfers | C40: ='Hwy TX Financials'!G53 -> 0 | D40: ='Hwy TX Financials'!H53 -> 1917592 | E40: ='Hwy TX Financials'!I53 -> 3300000 | F40: ='Hwy TX Financials'!J53 -> 0 | G40: ='Hwy TX Financials'!K53 -> 0 | H40: ='Hwy TX Financials'!L53 -> 0 | I40: ='Hwy TX Financials'!M53 -> 0 | J40: ='Hwy TX Financials'!N53 -> 0 | K40: ='Hwy TX Financials'!O53 -> 0 | L40: ='Hwy TX Financials'!P53 -> 0 | M40: ='Hwy TX Financials'!Q53 -> 0 | N40: ='Hwy TX Financials'!T53 -> 0 | O40: ='Hwy TX Financials'!AD53 -> 0 | P40: ='Hwy TX Financials'!AJ53 -> 5217592
A41: 1000000
B42: ='Hwy TX Financials'!D58 -> State & Local PE Cost | C42: ='Hwy TX Financials'!G58 -> 6013344 | D42: ='Hwy TX Financials'!H58 -> 22409588.57 | E42: ='Hwy TX Financials'!I58 -> 27891018.75 | F42: ='Hwy TX Financials'!J58 -> 18295458 | G42: ='Hwy TX Financials'!K58 -> 9706785 | H42: ='Hwy TX Financials'!L58 -> 6529111 | I42: ='Hwy TX Financials'!M58 -> 797561.8359 | J42: ='Hwy TX Financials'!N58 -> 46364390.39 | K42: ='Hwy TX Financials'!O58 -> 8737149 | L42: ='Hwy TX Financials'!P58 -> 21773421.86 | M42: ='Hwy TX Financials'!Q58 -> 263291.051 | N42: ='Hwy TX Financials'!T58 -> 41772099.41 | O42: ='Hwy TX Financials'!AD58 -> 68309773.08 | P42: ='Hwy TX Financials'!AJ58 -> 278862991.9
A43: 1000000
B44: ='Hwy TX Financials'!D63 -> State & Local ROW Cost | C44: ='Hwy TX Financials'!G63 -> 7626000 | D44: ='Hwy TX Financials'!H63 -> 31691669 | E44: ='Hwy TX Financials'!I63 -> 21025000 | F44: ='Hwy TX Financials'!J63 -> 58497728 | G44: ='Hwy TX Financials'!K63 -> 3500000 | H44: ='Hwy TX Financials'!L63 -> 0 | I44: ='Hwy TX Financials'!M63 -> 9000000 | J44: ='Hwy TX Financials'!N63 -> 31607167 | K44: ='Hwy TX Financials'!O63 -> 10000 | L44: ='Hwy TX Financials'!P63 -> 3188603.939 | M44: ='Hwy TX Financials'!Q63 -> 0 | N44: ='Hwy TX Financials'!T63 -> 376614 | O44: ='Hwy TX Financials'!AD63 -> 2403424.098 | P44: ='Hwy TX Financials'!AJ63 -> 168926206
A45: 1000000
B46: ='Hwy TX Financials'!$A$66 -> Total Project Cost (Construction, PE, & ROW) | C46: ='Hwy TX Financials'!G66 -> 294448063 | D46: ='Hwy TX Financials'!H66 -> 169642528.4 | E46: ='Hwy TX Financials'!I66 -> 280051218 | F46: ='Hwy TX Financials'!J66 -> 488631371 | G46: ='Hwy TX Financials'!K66 -> 260984846 | H46: ='Hwy TX Financials'!L66 -> 100886175 | I46: ='Hwy TX Financials'!M66 -> 104823300 | J46: ='Hwy TX Financials'!N66 -> 1140391309 | K46: ='Hwy TX Financials'!O66 -> 162922955.9 | L46: ='Hwy TX Financials'!P66 -> 422183678.8 | M46: ='Hwy TX Financials'!Q66 -> 55619422.81 | N46: ='Hwy TX Financials'!T66 -> 1619330872 | O46: ='Hwy TX Financials'!AD66 -> 2293031117 | P46: ='Hwy TX Financials'!AJ66 -> 7392946857
B47: ='Hwy TX Financials'!A70 -> Total Balance (includes carry-over) | C47: ='Hwy TX Financials'!G70 -> 50249209 | D47: ='Hwy TX Financials'!H70 -> 91295270.57 | E47: ='Hwy TX Financials'!I70 -> 270868959.8 | F47: ='Hwy TX Financials'!J70 -> 255529269.8 | G47: ='Hwy TX Financials'!K70 -> 236303637.8 | H47: ='Hwy TX Financials'!L70 -> 457796366.8 | I47: ='Hwy TX Financials'!M70 -> 364767135.8 | J47: ='Hwy TX Financials'!N70 -> 417650331.7 | K47: ='Hwy TX Financials'!O70 -> 424766922.7 | L47: ='Hwy TX Financials'!P70 -> 263150028.7 | M47: ='Hwy TX Financials'!Q70 -> 358278457.9 | N47: ='Hwy TX Financials'!T70 -> 538346105.3 | O47: ='Hwy TX Financials'!AD70 -> 671946597.1 | P47: ='Hwy TX Financials'!AJ70 -> 1237603610
A48: 1000000
A49: 1000000
A50: 1000000 | B50: ='Transit TX Financials'!A1 -> TRANSIT FUNDING CATEGORIES
A51: 1000000 | B51: ='Transit TX Financials'!A2 -> Large Urban Cities (5307)
B52: ='Transit TX Financials'!B3 -> 1. Capital Maintenance | C52: ='Transit TX Financials'!G3 -> 14045393 | D52: ='Transit TX Financials'!H3 -> 11945475 | E52: ='Transit TX Financials'!I3 -> 11063385 | F52: ='Transit TX Financials'!J3 -> 11945475 | G52: ='Transit TX Financials'!K3 -> 11945475 | H52: ='Transit TX Financials'!L3 -> 11945475 | I52: ='Transit TX Financials'!M3 -> 11945475 | J52: ='Transit TX Financials'!N3 -> 12064929.75 | K52: ='Transit TX Financials'!O3 -> 12185579.05 | L52: ='Transit TX Financials'!P3 -> 12307434.84 | M52: ='Transit TX Financials'!Q3 -> 12430509.19 | N52: =SUM('Transit TX Financials'!R3:Y3) -> 104025055.1 | O52: =SUM('Transit TX Financials'!Z3:AI3) -> 142234457.8 | P52: ='Transit TX Financials'!AJ3 -> 380084118.7
B53: ='Transit TX Financials'!B4 -> 3. Security Equipment | C53: ='Transit TX Financials'!G4 -> 179068 | D53: ='Transit TX Financials'!H4 -> 222338 | E53: ='Transit TX Financials'!I4 -> 269356 | F53: ='Transit TX Financials'!J4 -> 222338 | G53: ='Transit TX Financials'!K4 -> 222338 | H53: ='Transit TX Financials'!L4 -> 222338 | I53: ='Transit TX Financials'!M4 -> 222338 | J53: ='Transit TX Financials'!N4 -> 227896.45 | K53: ='Transit TX Financials'!O4 -> 233593.8612 | L53: ='Transit TX Financials'!P4 -> 239433.7078 | M53: ='Transit TX Financials'!Q4 -> 245419.5505 | N53: =SUM('Transit TX Financials'!R4:Y4) -> 2197613.978 | O53: =SUM('Transit TX Financials'!Z4:AI4) -> 3433784.85 | P53: ='Transit TX Financials'!AJ4 -> 8137856.397
B54: ='Transit TX Financials'!B5 -> 4. Planning | C54: ='Transit TX Financials'!G5 -> 1050907 | D54: ='Transit TX Financials'!H5 -> 752606 | E54: ='Transit TX Financials'!I5 -> 376303 | F54: ='Transit TX Financials'!J5 -> 752606 | G54: ='Transit TX Financials'!K5 -> 752606 | H54: ='Transit TX Financials'!L5 -> 752606 | I54: ='Transit TX Financials'!M5 -> 752606 | J54: ='Transit TX Financials'!N5 -> 760132.06 | K54: ='Transit TX Financials'!O5 -> 767733.3806 | L54: ='Transit TX Financials'!P5 -> 775410.7144 | M54: ='Transit TX Financials'!Q5 -> 783164.8216 | N54: =SUM('Transit TX Financials'!R5:Y5) -> 6553936.165 | O54: =SUM('Transit TX Financials'!Z5:AI5) -> 8961259.917 | P54: ='Transit TX Financials'!AJ5 -> 23791877.06
B55: ='Transit TX Financials'!B6 -> 5. ADA Para Transit | C55: ='Transit TX Financials'!G6 -> 1707891 | D55: ='Transit TX Financials'!H6 -> 2213380 | E55: ='Transit TX Financials'!I6 -> 2132349 | F55: ='Transit TX Financials'!J6 -> 2213380 | G55: ='Transit TX Financials'!K6 -> 2213380 | H55: ='Transit TX Financials'!L6 -> 2213380 | I55: ='Transit TX Financials'!M6 -> 2213380 | J55: ='Transit TX Financials'!N6 -> 2235513.8 | K55: ='Transit TX Financials'!O6 -> 2257868.938 | L55: ='Transit TX Financials'!P6 -> 2280447.627 | M55: ='Transit TX Financials'!Q6 -> 2303252.104 | N55: =SUM('Transit TX Financials'!R6:Y6) -> 19274828.04 | O55: =SUM('Transit TX Financials'!Z6:AI6) -> 26354657.65 | P55: ='Transit TX Financials'!AJ6 -> 69613708.16
B56: ='Transit TX Financials'!B7 -> 6. Bus Purchase | C56: ='Transit TX Financials'!G7 -> 0 | D56: ='Transit TX Financials'!H7 -> 7000000 | E56: ='Transit TX Financials'!I7 -> 7041973 | F56: ='Transit TX Financials'!J7 -> 7000000 | G56: ='Transit TX Financials'!K7 -> 7000000 | H56: ='Transit TX Financials'!L7 -> 7000000 | I56: ='Transit TX Financials'!M7 -> 7000000 | J56: ='Transit TX Financials'!N7 -> 0 | K56: ='Transit TX Financials'!O7 -> 0 | L56: ='Transit TX Financials'!P7 -> 0 | M56: ='Transit TX Financials'!Q7 -> 0 | N56: =SUM('Transit TX Financials'!R7:Y7) -> 0 | O56: =SUM('Transit TX Financials'!Z7:AI7) -> 0 | P56: ='Transit TX Financials'!AJ7 -> 42041973
B57: ='Transit TX Financials'!A8 -> SUBTOTAL | C57: ='Transit TX Financials'!G8 -> 16983259 | D57: ='Transit TX Financials'!H8 -> 22133799 | E57: ='Transit TX Financials'!I8 -> 20883366 | F57: ='Transit TX Financials'!J8 -> 22133799 | G57: ='Transit TX Financials'!K8 -> 22133799 | H57: ='Transit TX Financials'!L8 -> 22133799 | I57: ='Transit TX Financials'!M8 -> 22133799 | J57: ='Transit TX Financials'!N8 -> 15288472.06 | K57: ='Transit TX Financials'!O8 -> 15444775.23 | L57: ='Transit TX Financials'!P8 -> 15602726.89 | M57: ='Transit TX Financials'!Q8 -> 15762345.66 | N57: =SUM('Transit TX Financials'!R8:Y8) -> 132051433.3 | O57: =SUM('Transit TX Financials'!Z8:AI8) -> 180984160.2 | P57: ='Transit TX Financials'!AJ8 -> 523669533.3
B58: ='Transit TX Financials'!B10 -> Seniors and People with Disabilities (5310) | C58: ='Transit TX Financials'!G10 -> 616037 | D58: ='Transit TX Financials'!H10 -> 1508293 | E58: ='Transit TX Financials'!I10 -> 894421 | F58: ='Transit TX Financials'!J10 -> 923650 | G58: ='Transit TX Financials'!K10 -> 585000 | H58: ='Transit TX Financials'!L10 -> 585000 | I58: ='Transit TX Financials'!M10 -> 585000 | J58: ='Transit TX Financials'!N10 -> 585000 | K58: ='Transit TX Financials'!O10 -> 585000 | L58: ='Transit TX Financials'!P10 -> 585000 | M58: ='Transit TX Financials'!Q10 -> 585000 | N58: =SUM('Transit TX Financials'!R10:Y10) -> 4680000 | O58: =SUM('Transit TX Financials'!Z10:AI10) -> 5850000 | P58: ='Transit TX Financials'!AJ10 -> 18567401
A59: 1000000 | B59: ='Transit TX Financials'!B9 -> Seniors and People with Disabilities (5310)-Administrative | C59: ='Transit TX Financials'!G9 -> 68449 | D59: ='Transit TX Financials'!H9 -> 167588 | E59: ='Transit TX Financials'!I9 -> 99380 | F59: ='Transit TX Financials'!J9 -> 102627 | G59: ='Transit TX Financials'!K9 -> 65000 | H59: ='Transit TX Financials'!L9 -> 65000 | I59: ='Transit TX Financials'!M9 -> 65000 | J59: ='Transit TX Financials'!N9 -> 65000 | K59: ='Transit TX Financials'!O9 -> 65000 | L59: ='Transit TX Financials'!P9 -> 65000 | M59: ='Transit TX Financials'!Q9 -> 65000 | N59: =SUM('Transit TX Financials'!R9:Y9) -> 520000 | O59: =SUM('Transit TX Financials'!Z9:AI9) -> 650000 | P59: ='Transit TX Financials'!AJ9 -> 2063044
B60: ='Transit TX Financials'!B11 -> SUBTOTAL | C60: ='Transit TX Financials'!G11 -> 684486 | D60: ='Transit TX Financials'!H11 -> 1675881 | E60: ='Transit TX Financials'!I11 -> 993801 | F60: ='Transit TX Financials'!J11 -> 1026277 | G60: ='Transit TX Financials'!K11 -> 650000 | H60: ='Transit TX Financials'!L11 -> 650000 | I60: ='Transit TX Financials'!M11 -> 650000 | J60: ='Transit TX Financials'!N11 -> 650000 | K60: ='Transit TX Financials'!O11 -> 650000 | L60: ='Transit TX Financials'!P11 -> 650000 | M60: ='Transit TX Financials'!Q11 -> 650000 | N60: =SUM('Transit TX Financials'!R11:Y11) -> 5200000 | O60: =SUM('Transit TX Financials'!Z11:AI11) -> 6500000 | P60: ='Transit TX Financials'!AJ11 -> 20630445
B61: ='Transit TX Financials'!B13 -> 5339 - Bus and Bus facilities | C61: ='Transit TX Financials'!G13 -> 1435000 | D61: ='Transit TX Financials'!H13 -> 1226711 | E61: ='Transit TX Financials'!I13 -> 1109522 | F61: ='Transit TX Financials'!J13 -> 1226711 | G61: ='Transit TX Financials'!K13 -> 1226711 | H61: ='Transit TX Financials'!L13 -> 1226711 | I61: ='Transit TX Financials'!M13 -> 1226711 | J61: ='Transit TX Financials'!N13 -> 1257378.775 | K61: ='Transit TX Financials'!O13 -> 1288813.244 | L61: ='Transit TX Financials'!P13 -> 1321033.575 | M61: ='Transit TX Financials'!Q13 -> 1354059.415 | N61: =SUM('Transit TX Financials'!R13:Y13) -> 12124950.48 | O61: =SUM('Transit TX Financials'!Z13:AI13) -> 18945306.9 | P61: ='Transit TX Financials'!AJ13 -> 44969619.4
B62: ='Transit TX Financials'!B14 -> 5339 - Support Vehicles/Bus Rehab | C62: ='Transit TX Financials'!G14 -> 553900 | D62: ='Transit TX Financials'!H14 -> 250000 | E62: ='Transit TX Financials'!I14 -> 250000 | F62: ='Transit TX Financials'!J14 -> 250000 | G62: ='Transit TX Financials'!K14 -> 250000 | H62: ='Transit TX Financials'!L14 -> 250000 | I62: ='Transit TX Financials'!M14 -> 250000 | J62: ='Transit TX Financials'!N14 -> 252500 | K62: ='Transit TX Financials'!O14 -> 255025 | L62: ='Transit TX Financials'!P14 -> 257575.25 | M62: ='Transit TX Financials'!Q14 -> 260151.0025 | N62: =SUM('Transit TX Financials'!R14:Y14) -> 2177080.758 | O62: =SUM('Transit TX Financials'!Z14:AI14) -> 2976743.448 | P62: ='Transit TX Financials'!AJ14 -> 8232975.459
B63: ='Transit TX Financials'!B15 -> 5339 - Transit Enhancements (to include shelters) | C63: ='Transit TX Financials'!G15 -> 0 | D63: ='Transit TX Financials'!H15 -> 500000 | E63: ='Transit TX Financials'!I15 -> 500000 | F63: ='Transit TX Financials'!J15 -> 500000 | G63: ='Transit TX Financials'!K15 -> 500000 | H63: ='Transit TX Financials'!L15 -> 500000 | I63: ='Transit TX Financials'!M15 -> 500000 | J63: ='Transit TX Financials'!N15 -> 500000 | K63: ='Transit TX Financials'!O15 -> 500000 | L63: ='Transit TX Financials'!P15 -> 500000 | M63: ='Transit TX Financials'!Q15 -> 500000 | N63: =SUM('Transit TX Financials'!R15:Y15) -> 4000000 | O63: =SUM('Transit TX Financials'!Z15:AI15) -> 5000000 | P63: ='Transit TX Financials'!AJ15 -> 14000000
B64: ='Transit TX Financials'!B16 -> 5339 - Low or No Emissions Vehicle Program | C64: ='Transit TX Financials'!G16 -> 0 | D64: ='Transit TX Financials'!H16 -> 11095890 | E64: ='Transit TX Financials'!I16 -> 0 | F64: ='Transit TX Financials'!J16 -> 0 | G64: ='Transit TX Financials'!K16 -> 0 | H64: ='Transit TX Financials'!L16 -> 0 | I64: ='Transit TX Financials'!M16 -> 0 | J64: ='Transit TX Financials'!N16 -> 0 | K64: ='Transit TX Financials'!O16 -> 0 | L64: ='Transit TX Financials'!P16 -> 0 | M64: ='Transit TX Financials'!Q16 -> 0 | N64: =SUM('Transit TX Financials'!R16:Y16) -> 0 | O64: =SUM('Transit TX Financials'!Z16:AI16) -> 0 | P64: ='Transit TX Financials'!AJ16 -> 11095890
B65: ='Transit TX Financials'!B18 -> Very Small Starts Revenue (5309) | C65: ='Transit TX Financials'!G18 -> 0 | D65: ='Transit TX Financials'!H18 -> 0 | E65: ='Transit TX Financials'!I18 -> 0 | F65: ='Transit TX Financials'!J18 -> 0 | G65: ='Transit TX Financials'!K18 -> 0 | H65: ='Transit TX Financials'!L18 -> 0 | I65: ='Transit TX Financials'!M18 -> 0 | J65: ='Transit TX Financials'!N18 -> 0 | K65: ='Transit TX Financials'!O18 -> 0 | L65: ='Transit TX Financials'!P18 -> 0 | M65: ='Transit TX Financials'!Q18 -> 0 | N65: =SUM('Transit TX Financials'!R18:Y18) -> 0 | O65: =SUM('Transit TX Financials'!Z18:AI18) -> 150423313.4 | P65: ='Transit TX Financials'!AJ18 -> 150423313.4
B66: ='Transit TX Financials'!B19 -> FTA 5305 HOPE Grant Program | C66: ='Transit TX Financials'!G19 -> 0 | D66: ='Transit TX Financials'!J19 -> 0 | E66: ='Transit TX Financials'!I19 -> 0 | F66: ='Transit TX Financials'!J19 -> 0 | G66: ='Transit TX Financials'!K19 -> 0 | H66: ='Transit TX Financials'!L19 -> 0 | I66: ='Transit TX Financials'!M19 -> 0 | J66: ='Transit TX Financials'!N19 -> 0 | K66: ='Transit TX Financials'!O19 -> 0 | L66: ='Transit TX Financials'!P19 -> 0 | M66: ='Transit TX Financials'!Q19 -> 0 | N66: =SUM('Transit TX Financials'!R19:Y19) -> 0 | O66: =SUM('Transit TX Financials'!Z19:AI19) -> 0 | P66: ='Transit TX Financials'!AJ19 -> 194700
B67: ='Transit TX Financials'!B19 -> FTA 5305 HOPE Grant Program | C67: ='Transit TX Financials'!G19 -> 0 | D67: ='Transit TX Financials'!H19 -> 194700 | E67: ='Transit TX Financials'!I19 -> 0 | F67: ='Transit TX Financials'!J19 -> 0 | G67: ='Transit TX Financials'!K19 -> 0 | H67: ='Transit TX Financials'!L19 -> 0 | I67: ='Transit TX Financials'!M19 -> 0 | J67: ='Transit TX Financials'!N19 -> 0 | K67: ='Transit TX Financials'!O19 -> 0 | L67: ='Transit TX Financials'!P19 -> 0 | M67: ='Transit TX Financials'!Q19 -> 0 | N67: =SUM('Transit TX Financials'!R19:Y19) -> 0 | O67: =SUM('Transit TX Financials'!Z19:AI19) -> 0 | P67: ='Transit TX Financials'!AJ19 -> 194700
B68: ='Transit TX Financials'!B20 -> Certificates of Obligation | C68: ='Transit TX Financials'!G20 -> 0 | D68: ='Transit TX Financials'!H20 -> 0 | E68: ='Transit TX Financials'!I20 -> 0 | F68: ='Transit TX Financials'!J20 -> 0 | G68: ='Transit TX Financials'!K20 -> 0 | H68: ='Transit TX Financials'!L20 -> 0 | I68: ='Transit TX Financials'!M20 -> 0 | J68: ='Transit TX Financials'!N20 -> 0 | K68: ='Transit TX Financials'!O20 -> 0 | L68: ='Transit TX Financials'!P20 -> 0 | M68: ='Transit TX Financials'!Q20 -> 0 | N68: =SUM('Transit TX Financials'!R20:Y20) -> 0 | O68: =SUM('Transit TX Financials'!Z20:AI20) -> 150423313.4 | P68: ='Transit TX Financials'!AJ20 -> 150423313.4
B69: ='Transit TX Financials'!A21 -> FACILITIES AND EQUIPMENT FUNDS - SUBTOTAL | C69: ='Transit TX Financials'!G21 -> 1988900 | D69: ='Transit TX Financials'!H21 -> 13267301 | E69: ='Transit TX Financials'!I21 -> 1859522 | F69: ='Transit TX Financials'!J21 -> 1976711 | G69: ='Transit TX Financials'!K21 -> 1976711 | H69: ='Transit TX Financials'!L21 -> 1976711 | I69: ='Transit TX Financials'!M21 -> 1976711 | J69: ='Transit TX Financials'!N21 -> 2009878.775 | K69: ='Transit TX Financials'!O21 -> 2043838.244 | L69: ='Transit TX Financials'!P21 -> 2078608.825 | M69: ='Transit TX Financials'!Q21 -> 2114210.417 | N69: =SUM('Transit TX Financials'!R21:Y21) -> 18302031.24 | O69: =SUM('Transit TX Financials'!Z21:AI21) -> 327768677.1 | P69: ='Transit TX Financials'!AJ21 -> 379339811.6
B70: ='Transit TX Financials'!A22 -> TRANSIT Revenues - TOTAL | C70: ='Transit TX Financials'!G22 -> 19656645 | D70: ='Transit TX Financials'!H22 -> 37076981 | E70: ='Transit TX Financials'!I22 -> 23736689 | F70: ='Transit TX Financials'!J22 -> 25136787 | G70: ='Transit TX Financials'!K22 -> 24760510 | H70: ='Transit TX Financials'!L22 -> 24760510 | I70: ='Transit TX Financials'!M22 -> 24760510 | J70: ='Transit TX Financials'!N22 -> 17948350.83 | K70: ='Transit TX Financials'!O22 -> 18138613.47 | L70: ='Transit TX Financials'!P22 -> 18331335.71 | M70: ='Transit TX Financials'!Q22 -> 18526556.08 | N70: ='Transit TX Financials'!T23 -> 155553464.5 | O70: ='Transit TX Financials'!AD23 -> 515252837.3 | P70: ='Transit TX Financials'!AJ22 -> 923639789.9
B71: ='Transit TX Financials'!A37 -> CONSTRUCTION (projects) Cost | C71: ='Transit TX Financials'!G37 -> 0 | D71: ='Transit TX Financials'!H37 -> 0 | E71: ='Transit TX Financials'!I37 -> 0 | F71: ='Transit TX Financials'!J37 -> 0 | G71: ='Transit TX Financials'!T48 -> 0 | H71: ='Transit TX Financials'!L37 -> 0 | I71: ='Transit TX Financials'!M37 -> 0 | J71: ='Transit TX Financials'!N37 -> 0 | K71: ='Transit TX Financials'!O37 -> 0 | N71: ='Transit TX Financials'!T37 -> 0 | O71: ='Transit TX Financials'!AD37 -> 286793733.8 | P71: ='Transit TX Financials'!AJ37 -> 286793733.8
B72: ='Transit TX Financials'!A38 -> Construction Operations, Prog. 5307, Prog. 5308(T079X), Prog. 5309(T073X), Prog. 5310, Prog. 5311, Prog. 5316, Prog. 5317, Prog 5339 (T3I) Cost | C72: ='Transit TX Financials'!G38 -> 19656645 | D72: ='Transit TX Financials'!H38 -> 37076981 | E72: ='Transit TX Financials'!I38 -> 23736689 | F72: ='Transit TX Financials'!J38 -> 25136787 | G72: ='Transit TX Financials'!K38 -> 24760510 | H72: ='Transit TX Financials'!L38 -> 24760510 | I72: ='Transit TX Financials'!M38 -> 24760510 | J72: ='Transit TX Financials'!N38 -> 17948350.83 | K72: ='Transit TX Financials'!O38 -> 18138613.47 | L72: ='Transit TX Financials'!P38 -> 18331335.71 | M72: ='Transit TX Financials'!Q38 -> 18526556.08 | N72: ='Transit TX Financials'!T38 -> 155553464.5 | O72: ='Transit TX Financials'!AD38 -> 214406210.5 | P72: ='Transit TX Financials'!AJ38 -> 622793163.1
A73: 1000000
B74: ='Transit TX Financials'!A42 -> PE COST | C74: ='Transit TX Financials'!G42 -> 0 | D74: ='Transit TX Financials'!H42 -> 0 | E74: ='Transit TX Financials'!I42 -> 0 | F74: ='Transit TX Financials'!J42 -> 0 | G74: ='Transit TX Financials'!T53 -> 0 | H74: ='Transit TX Financials'!L42 -> 0 | I74: ='Transit TX Financials'!M42 -> 0 | J74: ='Transit TX Financials'!N42 -> 0 | K74: ='Transit TX Financials'!O42 -> 0 | L74: ='Transit TX Financials'!P42 -> 0 | M74: ='Transit TX Financials'!Q42 -> 0 | N74: ='Transit TX Financials'!T42 -> 0 | O74: ='Transit TX Financials'!AD42 -> 14052892.95 | P74: ='Transit TX Financials'!AJ42 -> 14052892.95
B75: ='Transit TX Financials'!A43 -> ROW COST | C75: ='Transit TX Financials'!G43 -> 0 | D75: ='Transit TX Financials'!H43 -> 0 | E75: ='Transit TX Financials'!I43 -> 0 | F75: ='Transit TX Financials'!J43 -> 0 | G75: ='Transit TX Financials'!T54 -> 0 | H75: ='Transit TX Financials'!L43 -> 0 | I75: ='Transit TX Financials'!M43 -> 0 | J75: ='Transit TX Financials'!N43 -> 0 | K75: ='Transit TX Financials'!O41 -> 0 | L75: ='Transit TX Financials'!P41 -> 0 | M75: ='Transit TX Financials'!Q41 -> 0 | N75: ='Transit TX Financials'!T43 -> 0 | O75: ='Transit TX Financials'!AD43 -> 0 | P75: ='Transit TX Financials'!AJ43 -> 0
A76: 1000000
B77: ='Transit TX Financials'!A45 -> Total PROJECT COSTS | C77: ='Transit TX Financials'!G45 -> 19656645 | D77: ='Transit TX Financials'!H45 -> 37076981 | E77: ='Transit TX Financials'!I45 -> 23736689 | F77: ='Transit TX Financials'!J45 -> 25136787 | G77: ='Transit TX Financials'!K45 -> 24760510 | H77: ='Transit TX Financials'!L45 -> 24760510 | I77: ='Transit TX Financials'!M45 -> 24760510 | J77: ='Transit TX Financials'!N45 -> 17948350.83 | K77: ='Transit TX Financials'!O45 -> 18138613.47 | L77: ='Transit TX Financials'!P45 -> 18331335.71 | M77: ='Transit TX Financials'!Q45 -> 18526556.08 | N77: ='Transit TX Financials'!T45 -> 155553464.5 | O77: ='Transit TX Financials'!AD45 -> 515252837.3 | P77: ='Transit TX Financials'!AJ45 -> 923639789.9
B78: ='Transit TX Financials'!A47 -> Total TRANSIT Balance with Carry Over | C78: ='Transit TX Financials'!G47 -> 0 | D78: ='Transit TX Financials'!H47 -> 0 | E78: ='Transit TX Financials'!I47 -> 0 | F78: ='Transit TX Financials'!J47 -> 0 | G78: ='Transit TX Financials'!K47 -> 0 | H78: ='Transit TX Financials'!L47 -> 0 | I78: ='Transit TX Financials'!M47 -> 0 | J78: ='Transit TX Financials'!N47 -> 0 | K78: ='Transit TX Financials'!O47 -> 0 | L78: ='Transit TX Financials'!P47 -> 0 | M78: ='Transit TX Financials'!Q47 -> 0 | N78: ='Transit TX Financials'!T47 -> 0 | O78: ='Transit TX Financials'!AD47 -> 0 | P78: ='Transit TX Financials'!AJ47 -> 0
A79: 1000000
A80: 1000000
A81: 1000000 | B81: ='NM Financials'!$A$2 -> NEW MEXICO FUNDING CATEGORIES
B82: ='NM Financials'!B3 -> STPL (Surface Transportation Program - Large Urban) | C82: ='NM Financials'!G3 -> 2250124 | D82: ='NM Financials'!H3 -> 0 | E82: ='NM Financials'!I3 -> 1626581 | F82: ='NM Financials'!J3 -> 2977864 | G82: ='NM Financials'!K3 -> 1164467 | H82: ='NM Financials'!L3 -> 1164467 | I82: ='NM Financials'!M3 -> 1164467 | J82: ='NM Financials'!N3 -> 1164467 | K82: ='NM Financials'!O3 -> 1164467 | L82: ='NM Financials'!P3 -> 1164467 | M82: ='NM Financials'!Q3 -> 1164467 | N82: =SUM('NM Financials'!R3:Y3) -> 9315736 | O82: =SUM('NM Financials'!Z3:AI3) -> 11644670 | P82: ='NM Financials'!AJ3 -> 35966244
B83: ='NM Financials'!B4 -> STLE (Surface Transportation Program - Exempt) | C83: ='NM Financials'!G4 -> 240816 | D83: ='NM Financials'!H4 -> 0 | E83: ='NM Financials'!I4 -> 240816 | F83: ='NM Financials'!J4 -> 240816 | G83: ='NM Financials'!K4 -> 240816 | H83: ='NM Financials'!L4 -> 240816 | I83: ='NM Financials'!M4 -> 240816 | J83: ='NM Financials'!N4 -> 240816 | K83: ='NM Financials'!O4 -> 240816 | L83: ='NM Financials'!P4 -> 240816 | M83: ='NM Financials'!Q4 -> 240816 | N83: =SUM('NM Financials'!R4:Y4) -> 1926528 | O83: =SUM('NM Financials'!Z4:AI4) -> 2408160 | P83: ='NM Financials'!AJ4 -> 6742848
B84: ='NM Financials'!B5 -> STPF (Surface Transportation Program - Flex) | C84: ='NM Financials'!G5 -> 5995050 | D84: ='NM Financials'!H5 -> 0 | E84: ='NM Financials'!I5 -> 7278073 | F84: ='NM Financials'!J5 -> 12106280 | G84: ='NM Financials'!K5 -> 3250526 | H84: ='NM Financials'!L5 -> 0 | I84: ='NM Financials'!M5 -> 0 | J84: ='NM Financials'!N5 -> 0 | K84: ='NM Financials'!O5 -> 0 | L84: ='NM Financials'!P5 -> 0 | M84: ='NM Financials'!Q5 -> 0 | N84: =SUM('NM Financials'!R5:Y5) -> 0 | O84: =SUM('NM Financials'!Z5:AI5) -> 0 | P84: ='NM Financials'!AJ5 -> 28629929
B85: ='NM Financials'!B6 -> STPE (Surface Transportation Program - Enhancements) | C85: ='NM Financials'!G6 -> 0 | D85: ='NM Financials'!H6 -> 0 | E85: ='NM Financials'!I6 -> 0 | F85: ='NM Financials'!J6 -> 0 | G85: ='NM Financials'!K6 -> 0 | H85: ='NM Financials'!L6 -> 0 | I85: ='NM Financials'!M6 -> 0 | J85: ='NM Financials'!N6 -> 0 | K85: ='NM Financials'!O6 -> 0 | L85: ='NM Financials'!P6 -> 0 | M85: ='NM Financials'!Q6 -> 0 | N85: =SUM('NM Financials'!R6:Y6) -> 0 | O85: =SUM('NM Financials'!Z6:AI6) -> 0 | P85: ='NM Financials'!AJ6 -> 0
B86: ='NM Financials'!B7 -> STPR (Surface Transportation Program - Rural) | C86: ='NM Financials'!G7 -> 0 | D86: ='NM Financials'!H7 -> 0 | E86: ='NM Financials'!I7 -> 0 | F86: ='NM Financials'!J7 -> 0 | G86: ='NM Financials'!K7 -> 0 | H86: ='NM Financials'!L7 -> 0 | I86: ='NM Financials'!M7 -> 0 | J86: ='NM Financials'!N7 -> 0 | K86: ='NM Financials'!O7 -> 0 | L86: ='NM Financials'!P7 -> 0 | M86: ='NM Financials'!Q7 -> 0 | N86: =SUM('NM Financials'!R7:Y7) -> 0 | O86: =SUM('NM Financials'!Z7:AI7) -> 0 | P86: ='NM Financials'!AJ7 -> 0
B87: ='NM Financials'!B8 -> STPS (Surface Transportation Program - Small Urban) | C87: ='NM Financials'!G8 -> 0 | D87: ='NM Financials'!H8 -> 0 | E87: ='NM Financials'!I8 -> 0 | F87: ='NM Financials'!J8 -> 0 | G87: ='NM Financials'!K8 -> 0 | H87: ='NM Financials'!L8 -> 0 | I87: ='NM Financials'!M8 -> 0 | J87: ='NM Financials'!N8 -> 0 | K87: ='NM Financials'!O8 -> 0 | L87: ='NM Financials'!P8 -> 0 | M87: ='NM Financials'!Q8 -> 0 | N87: =SUM('NM Financials'!R8:Y8) -> 0 | O87: =SUM('NM Financials'!Z8:AI8) -> 0 | P87: ='NM Financials'!AJ8 -> 0
B88: ='NM Financials'!B9 -> TAPL (Transportation Alternatives Program - Large Urban) | C88: ='NM Financials'!G9 -> 0 | D88: ='NM Financials'!H9 -> 0 | E88: ='NM Financials'!I9 -> 0 | F88: ='NM Financials'!J9 -> 220451 | G88: ='NM Financials'!K9 -> 117202 | H88: ='NM Financials'!L9 -> 117202 | I88: ='NM Financials'!M9 -> 0 | J88: ='NM Financials'!N9 -> 0 | K88: ='NM Financials'!O9 -> 0 | L88: ='NM Financials'!P9 -> 0 | M88: ='NM Financials'!Q9 -> 0 | N88: =SUM('NM Financials'!R9:Y9) -> 0 | O88: =SUM('NM Financials'!Z9:AI9) -> 0 | P88: ='NM Financials'!AJ9 -> 454855
B89: ='NM Financials'!B10 -> TAPF (Transportation Alternatives Program - Flex) | C89: ='NM Financials'!G10 -> 0 | D89: ='NM Financials'!H10 -> 0 | E89: ='NM Financials'!I10 -> 0 | F89: ='NM Financials'!J10 -> 0 | G89: ='NM Financials'!K10 -> 0 | H89: ='NM Financials'!L10 -> 0 | I89: ='NM Financials'!M10 -> 0 | J89: ='NM Financials'!N10 -> 0 | K89: ='NM Financials'!O10 -> 0 | L89: ='NM Financials'!P10 -> 0 | M89: ='NM Financials'!Q10 -> 0 | N89: =SUM('NM Financials'!R10:Y10) -> 0 | O89: =SUM('NM Financials'!Z10:AI10) -> 0 | P89: ='NM Financials'!AJ10 -> 0
B90: ='NM Financials'!B11 -> BR-Prev | C90: ='NM Financials'!G11 -> 0 | D90: ='NM Financials'!H11 -> 0 | E90: ='NM Financials'!I11 -> 0 | F90: ='NM Financials'!J11 -> 0 | G90: ='NM Financials'!K11 -> 0 | H90: ='NM Financials'!L11 -> 0 | I90: ='NM Financials'!M11 -> 0 | J90: ='NM Financials'!N11 -> 0 | K90: ='NM Financials'!O11 -> 0 | L90: ='NM Financials'!P11 -> 0 | M90: ='NM Financials'!Q11 -> 0 | N90: =SUM('NM Financials'!R11:Y11) -> 0 | O90: =SUM('NM Financials'!Z11:AI11) -> 0 | P90: ='NM Financials'!AJ11 -> 0
B91: ='NM Financials'!B12 -> BR-On System | C91: ='NM Financials'!G12 -> 0 | D91: ='NM Financials'!H12 -> 0 | E91: ='NM Financials'!I12 -> 0 | F91: ='NM Financials'!J12 -> 0 | G91: ='NM Financials'!K12 -> 0 | H91: ='NM Financials'!L12 -> 0 | I91: ='NM Financials'!M12 -> 0 | J91: ='NM Financials'!N12 -> 0 | K91: ='NM Financials'!O12 -> 0 | L91: ='NM Financials'!P12 -> 0 | M91: ='NM Financials'!Q12 -> 0 | N91: =SUM('NM Financials'!R12:Y12) -> 0 | O91: =SUM('NM Financials'!Z12:AI12) -> 0 | P91: ='NM Financials'!AJ12 -> 0
B92: ='NM Financials'!B13 -> BR-Off System | C92: ='NM Financials'!G13 -> 0 | D92: ='NM Financials'!H13 -> 0 | E92: ='NM Financials'!I13 -> 0 | F92: ='NM Financials'!J13 -> 0 | G92: ='NM Financials'!K13 -> 0 | H92: ='NM Financials'!L13 -> 0 | I92: ='NM Financials'!M13 -> 0 | J92: ='NM Financials'!N13 -> 0 | K92: ='NM Financials'!O13 -> 0 | L92: ='NM Financials'!P13 -> 0 | M92: ='NM Financials'!Q13 -> 0 | N92: =SUM('NM Financials'!R13:Y13) -> 0 | O92: =SUM('NM Financials'!Z13:AI13) -> 0 | P92: ='NM Financials'!AJ13 -> 0
B93: ='NM Financials'!B14 -> BR- ON/Off System (Flexible) | C93: ='NM Financials'!G14 -> 0 | D93: ='NM Financials'!H14 -> 0 | E93: ='NM Financials'!I14 -> 0 | F93: ='NM Financials'!J14 -> 0 | G93: ='NM Financials'!K14 -> 0 | H93: ='NM Financials'!L14 -> 0 | I93: ='NM Financials'!M14 -> 0 | J93: ='NM Financials'!N14 -> 0 | K93: ='NM Financials'!O14 -> 0 | L93: ='NM Financials'!P14 -> 0 | M93: ='NM Financials'!Q14 -> 0 | N93: =SUM('NM Financials'!R14:Y14) -> 0 | O93: =SUM('NM Financials'!Z14:AI14) -> 0 | P93: ='NM Financials'!AJ14 -> 0
B94: ='NM Financials'!B15 -> MGS (Minimum Guarantee - Special Limitation) | C94: ='NM Financials'!G15 -> 0 | D94: ='NM Financials'!H15 -> 0 | E94: ='NM Financials'!I15 -> 0 | F94: ='NM Financials'!J15 -> 0 | G94: ='NM Financials'!K15 -> 0 | H94: ='NM Financials'!L15 -> 0 | I94: ='NM Financials'!M15 -> 0 | J94: ='NM Financials'!N15 -> 0 | K94: ='NM Financials'!O15 -> 0 | L94: ='NM Financials'!P15 -> 0 | M94: ='NM Financials'!Q15 -> 0 | N94: =SUM('NM Financials'!R15:Y15) -> 0 | O94: =SUM('NM Financials'!Z15:AI15) -> 0 | P94: ='NM Financials'!AJ15 -> 0
B95: ='NM Financials'!B16 -> MGO (Minimum Guarantee - Obligation Limit) | C95: ='NM Financials'!G16 -> 0 | D95: ='NM Financials'!H16 -> 0 | E95: ='NM Financials'!I16 -> 0 | F95: ='NM Financials'!J16 -> 0 | G95: ='NM Financials'!K16 -> 0 | H95: ='NM Financials'!L16 -> 0 | I95: ='NM Financials'!M16 -> 0 | J95: ='NM Financials'!N16 -> 0 | K95: ='NM Financials'!O16 -> 0 | L95: ='NM Financials'!P16 -> 0 | M95: ='NM Financials'!Q16 -> 0 | N95: =SUM('NM Financials'!R16:Y16) -> 0 | O95: =SUM('NM Financials'!Z16:AI16) -> 0 | P95: ='NM Financials'!AJ16 -> 0
B96: ='NM Financials'!B17 -> EBSL Equity Bonus - Special Limitation)-STP | C96: ='NM Financials'!G17 -> 0 | D96: ='NM Financials'!H17 -> 0 | E96: ='NM Financials'!I17 -> 0 | F96: ='NM Financials'!J17 -> 0 | G96: ='NM Financials'!K17 -> 0 | H96: ='NM Financials'!L17 -> 0 | I96: ='NM Financials'!M17 -> 0 | J96: ='NM Financials'!N17 -> 0 | K96: ='NM Financials'!O17 -> 0 | L96: ='NM Financials'!P17 -> 0 | M96: ='NM Financials'!Q17 -> 0 | N96: =SUM('NM Financials'!R17:Y17) -> 0 | O96: =SUM('NM Financials'!Z17:AI17) -> 0 | P96: ='NM Financials'!AJ17 -> 0
B97: ='NM Financials'!B18 -> EBE (Equity Bonus - Exempt From Limitation) | C97: ='NM Financials'!G18 -> 0 | D97: ='NM Financials'!H18 -> 0 | E97: ='NM Financials'!I18 -> 0 | F97: ='NM Financials'!J18 -> 0 | G97: ='NM Financials'!K18 -> 0 | H97: ='NM Financials'!L18 -> 0 | I97: ='NM Financials'!M18 -> 0 | J97: ='NM Financials'!N18 -> 0 | K97: ='NM Financials'!O18 -> 0 | L97: ='NM Financials'!P18 -> 0 | M97: ='NM Financials'!Q18 -> 0 | N97: =SUM('NM Financials'!R18:Y18) -> 0 | O97: =SUM('NM Financials'!Z18:AI18) -> 0 | P97: ='NM Financials'!AJ18 -> 0
B98: ='NM Financials'!B19 -> State PE (Preliminary Engineering) Funds | C98: ='NM Financials'!G19 -> 0 | D98: ='NM Financials'!H19 -> 0 | E98: ='NM Financials'!I19 -> 0 | F98: ='NM Financials'!J19 -> 0 | G98: ='NM Financials'!K19 -> 0 | H98: ='NM Financials'!L19 -> 0 | I98: ='NM Financials'!M19 -> 0 | J98: ='NM Financials'!N19 -> 0 | K98: ='NM Financials'!O19 -> 0 | L98: ='NM Financials'!P19 -> 0 | M98: ='NM Financials'!Q19 -> 0 | N98: =SUM('NM Financials'!R19:Y19) -> 0 | O98: =SUM('NM Financials'!Z19:AI19) -> 0 | P98: ='NM Financials'!AJ19 -> 0
B99: ='NM Financials'!B20 -> State ROW (Right of Way) Funds | C99: ='NM Financials'!G20 -> 0 | D99: ='NM Financials'!H20 -> 0 | E99: ='NM Financials'!I20 -> 0 | F99: ='NM Financials'!J20 -> 0 | G99: ='NM Financials'!K20 -> 0 | H99: ='NM Financials'!L20 -> 0 | I99: ='NM Financials'!M20 -> 0 | J99: ='NM Financials'!N20 -> 0 | K99: ='NM Financials'!O20 -> 0 | L99: ='NM Financials'!P20 -> 0 | M99: ='NM Financials'!Q20 -> 0 | N99: =SUM('NM Financials'!R20:Y20) -> 0 | O99: =SUM('NM Financials'!Z20:AI20) -> 0 | P99: ='NM Financials'!AJ20 -> 0
B100: ='NM Financials'!B21 -> Local ROW (Right of Way) Funds | C100: ='NM Financials'!G21 -> 0 | D100: ='NM Financials'!H21 -> 0 | E100: ='NM Financials'!I21 -> 0 | F100: ='NM Financials'!J21 -> 0 | G100: ='NM Financials'!K21 -> 0 | H100: ='NM Financials'!L21 -> 0 | I100: ='NM Financials'!M21 -> 0 | J100: ='NM Financials'!N21 -> 0 | K100: ='NM Financials'!O21 -> 0 | L100: ='NM Financials'!P21 -> 0 | M100: ='NM Financials'!Q21 -> 0 | N100: =SUM('NM Financials'!R21:Y21) -> 0 | O100: =SUM('NM Financials'!Z21:AI21) -> 0 | P100: ='NM Financials'!AJ21 -> 0
B101: ='NM Financials'!B22 -> Interstate Maintenance | C101: ='NM Financials'!G22 -> 0 | D101: ='NM Financials'!H22 -> 0 | E101: ='NM Financials'!I22 -> 0 | F101: ='NM Financials'!J22 -> 0 | G101: ='NM Financials'!K22 -> 0 | H101: ='NM Financials'!L22 -> 0 | I101: ='NM Financials'!M22 -> 0 | J101: ='NM Financials'!N22 -> 0 | K101: ='NM Financials'!O22 -> 0 | L101: ='NM Financials'!P22 -> 0 | M101: ='NM Financials'!Q22 -> 0 | N101: =SUM('NM Financials'!R22:Y22) -> 0 | O101: =SUM('NM Financials'!Z22:AI22) -> 0 | P101: ='NM Financials'!AJ22 -> 0
B102: ='NM Financials'!B23 -> CBIP (Coordinated Border Infrastructure Program) | C102: ='NM Financials'!G23 -> 0 | D102: ='NM Financials'!H23 -> 0 | E102: ='NM Financials'!I23 -> 0 | F102: ='NM Financials'!J23 -> 0 | G102: ='NM Financials'!K23 -> 0 | H102: ='NM Financials'!L23 -> 0 | I102: ='NM Financials'!M23 -> 0 | J102: ='NM Financials'!N23 -> 0 | K102: ='NM Financials'!O23 -> 0 | L102: ='NM Financials'!P23 -> 0 | M102: ='NM Financials'!Q23 -> 0 | N102: =SUM('NM Financials'!R23:Y23) -> 0 | O102: =SUM('NM Financials'!Z23:AI23) -> 0 | P102: ='NM Financials'!AJ23 -> 0
B103: ='NM Financials'!B24 -> CMAQ (CMAQ -Mandatory) | C103: ='NM Financials'!G24 -> 1780418 | D103: ='NM Financials'!H24 -> 1920450 | E103: ='NM Financials'!I24 -> 1958859 | F103: ='NM Financials'!J24 -> 1998036 | G103: ='NM Financials'!K24 -> 2966276 | H103: ='NM Financials'!L24 -> 1998036 | I103: ='NM Financials'!M24 -> 1998036 | J103: ='NM Financials'!N24 -> 1998036 | K103: ='NM Financials'!O24 -> 1998036 | L103: ='NM Financials'!P24 -> 1998036 | M103: ='NM Financials'!Q24 -> 1998036 | N103: =SUM('NM Financials'!R24:Y24) -> 15984288 | O103: =SUM('NM Financials'!Z24:AI24) -> 19980360 | P103: ='NM Financials'!AJ24 -> 58576903
B104: ='NM Financials'!B27 -> FTA 5339(b) Bus and Bus Facilities | C104: ='NM Financials'!G27 -> 0 | D104: ='NM Financials'!H27 -> 3979851 | E104: ='NM Financials'!I27 -> 0 | F104: ='NM Financials'!J27 -> 0 | G104: ='NM Financials'!K27 -> 0 | H104: ='NM Financials'!L27 -> 0 | I104: ='NM Financials'!M27 -> 0 | J104: ='NM Financials'!N27 -> 0 | K104: ='NM Financials'!O27 -> 0 | L104: ='NM Financials'!P27 -> 0 | M104: ='NM Financials'!Q27 -> 0 | N104: =SUM('NM Financials'!R27:Y27) -> 0 | O104: =SUM('NM Financials'!Z27:AI27) -> 0 | P104: ='NM Financials'!AJ27 -> 3979851
B105: ='NM Financials'!B28 -> FTA 5339(c) Low or No Emission | C105: ='NM Financials'!G28 -> 0 | D105: ='NM Financials'!H28 -> 3139851 | E105: ='NM Financials'!I28 -> 0 | F105: ='NM Financials'!J28 -> 0 | G105: ='NM Financials'!K28 -> 0 | H105: ='NM Financials'!L28 -> 0 | I105: ='NM Financials'!M28 -> 0 | J105: ='NM Financials'!N28 -> 0 | K105: ='NM Financials'!O28 -> 0 | L105: ='NM Financials'!P28 -> 0 | M105: ='NM Financials'!Q28 -> 0 | N105: =SUM('NM Financials'!R28:Y28) -> 0 | O105: =SUM('NM Financials'!Z28:AI28) -> 0 | P105: ='NM Financials'!AJ28 -> 3139851
B106: ='NM Financials'!B29 -> FTA 5307 Urbanized Area Formula Grant | C106: ='NM Financials'!G29 -> 1104932 | D106: ='NM Financials'!H29 -> 1087942 | E106: ='NM Financials'!I29 -> 908170 | F106: ='NM Financials'!J29 -> 0 | G106: ='NM Financials'!K29 -> 0 | H106: ='NM Financials'!L29 -> 0 | I106: ='NM Financials'!M29 -> 0 | J106: ='NM Financials'!N29 -> 0 | K106: ='NM Financials'!O29 -> 0 | L106: ='NM Financials'!P29 -> 0 | M106: ='NM Financials'!Q29 -> 0 | N106: =SUM('NM Financials'!R29:Y29) -> 0 | O106: =SUM('NM Financials'!Z29:AI29) -> 0 | P106: ='NM Financials'!AJ29 -> 3101044
B107: ='NM Financials'!B25 -> CMAQ Flex | C107: ='NM Financials'!G25 -> 0 | D107: ='NM Financials'!H25 -> 236908 | E107: ='NM Financials'!I25 -> 0 | F107: ='NM Financials'!J25 -> 0 | G107: ='NM Financials'!K25 -> 0 | H107: ='NM Financials'!L25 -> 0 | I107: ='NM Financials'!M25 -> 0 | J107: ='NM Financials'!N25 -> 0 | K107: ='NM Financials'!O25 -> 0 | L107: ='NM Financials'!P25 -> 0 | M107: ='NM Financials'!Q25 -> 0 | N107: =SUM('NM Financials'!R25:Y25) -> 0 | O107: =SUM('NM Financials'!Z25:AI25) -> 0 | P107: ='NM Financials'!AJ25 -> 236908
B108: ='NM Financials'!B30 -> State Severance Tax Bond Proceeds | C108: ='NM Financials'!G30 -> 0 | D108: ='NM Financials'!H30 -> 0 | E108: ='NM Financials'!I30 -> 0 | F108: ='NM Financials'!J30 -> 45000000 | G108: ='NM Financials'!K30 -> 0 | H108: ='NM Financials'!L30 -> 0 | I108: ='NM Financials'!M30 -> 0 | J108: ='NM Financials'!N30 -> 0 | K108: ='NM Financials'!O30 -> 0 | L108: ='NM Financials'!P30 -> 0 | M108: ='NM Financials'!Q30 -> 0 | N108: =SUM('NM Financials'!R30:Y30) -> 0 | O108: =SUM('NM Financials'!Z30:AI30) -> 0 | P108: ='NM Financials'!AJ30 -> 45000000
B109: ='NM Financials'!B31 -> SPP (State Priority) | C109: ='NM Financials'!G31 -> 0 | D109: ='NM Financials'!H31 -> 0 | E109: ='NM Financials'!I31 -> 0 | F109: ='NM Financials'!J31 -> 0 | G109: ='NM Financials'!K31 -> 0 | H109: ='NM Financials'!L31 -> 0 | I109: ='NM Financials'!M31 -> 0 | J109: ='NM Financials'!N31 -> 0 | K109: ='NM Financials'!O31 -> 0 | L109: ='NM Financials'!P31 -> 0 | M109: ='NM Financials'!Q31 -> 0 | N109: =SUM('NM Financials'!R31:Y31) -> 0 | O109: =SUM('NM Financials'!Z31:AI31) -> 0 | P109: ='NM Financials'!AJ31 -> 0
B110: ='NM Financials'!B32 -> NHPP - National Highway Performance Program | C110: ='NM Financials'!G32 -> 17348999 | D110: ='NM Financials'!H32 -> 0 | E110: ='NM Financials'!I32 -> 0 | F110: ='NM Financials'!J32 -> 19618366 | G110: ='NM Financials'!K32 -> 5302337 | H110: ='NM Financials'!L32 -> 0 | I110: ='NM Financials'!M32 -> 0 | J110: ='NM Financials'!N32 -> 0 | K110: ='NM Financials'!O32 -> 0 | L110: ='NM Financials'!P32 -> 0 | M110: ='NM Financials'!Q32 -> 0 | N110: =SUM('NM Financials'!R32:Y32) -> 0 | O110: =SUM('NM Financials'!Z32:AI32) -> 0 | P110: ='NM Financials'!AJ32 -> 42269702
B111: ='NM Financials'!B33 -> NHPP-F - National Highway Performance Program Freight | C111: ='NM Financials'!G33 -> 14290179 | D111: ='NM Financials'!H33 -> 0 | E111: ='NM Financials'!I33 -> 0 | F111: ='NM Financials'!J33 -> 13914485 | G111: ='NM Financials'!K33 -> 0 | H111: ='NM Financials'!L33 -> 0 | I111: ='NM Financials'!M33 -> 0 | J111: ='NM Financials'!N33 -> 0 | K111: ='NM Financials'!O33 -> 0 | L111: ='NM Financials'!P33 -> 0 | M111: ='NM Financials'!Q33 -> 0 | N111: =SUM('NM Financials'!R33:Y33) -> 0 | O111: =SUM('NM Financials'!Z33:AI33) -> 0 | P111: ='NM Financials'!AJ33 -> 28204664
B112: ='NM Financials'!B35 -> HSIP - Highway Safety Improvement Program | C112: ='NM Financials'!G35 -> 0 | D112: ='NM Financials'!H35 -> 0 | E112: ='NM Financials'!I35 -> 0 | F112: ='NM Financials'!J35 -> 600000 | G112: ='NM Financials'!K35 -> 0 | H112: ='NM Financials'!L35 -> 0 | I112: ='NM Financials'!M35 -> 0 | J112: ='NM Financials'!N35 -> 0 | K112: ='NM Financials'!O35 -> 0 | L112: ='NM Financials'!P35 -> 0 | M112: ='NM Financials'!Q35 -> 0 | N112: =SUM('NM Financials'!R35:Y35) -> 0 | O112: =SUM('NM Financials'!Z35:AI35) -> 0 | P112: ='NM Financials'!AJ35 -> 600000
B113: ='NM Financials'!B36 -> NM State Funds | C113: ='NM Financials'!G36 -> 0 | D113: ='NM Financials'!H36 -> 0 | E113: ='NM Financials'!I36 -> 3525200 | F113: ='NM Financials'!J36 -> 31474800 | G113: ='NM Financials'!K36 -> 0 | H113: ='NM Financials'!L36 -> 0 | I113: ='NM Financials'!M36 -> 38867581 | J113: ='NM Financials'!N36 -> 0 | K113: ='NM Financials'!O36 -> 0 | L113: ='NM Financials'!P36 -> 0 | M113: ='NM Financials'!Q36 -> 0 | N113: =SUM('NM Financials'!R36:Y36) -> 127600000 | O113: =SUM('NM Financials'!Z36:AI36) -> 11000000 | P113: ='NM Financials'!AJ36 -> 212467581
B114: ='NM Financials'!B37 -> SBSI (Border)(Borderland Expressway) | C114: ='NM Financials'!G37 -> 4632832 | D114: ='NM Financials'!H37 -> 0 | E114: ='NM Financials'!I37 -> 0 | F114: ='NM Financials'!J37 -> 5545788 | G114: ='NM Financials'!K37 -> 0 | H114: ='NM Financials'!L37 -> 0 | I114: ='NM Financials'!M37 -> 0 | J114: ='NM Financials'!N37 -> 0 | K114: ='NM Financials'!O37 -> 0 | L114: ='NM Financials'!P37 -> 0 | M114: ='NM Financials'!Q37 -> 0 | N114: =SUM('NM Financials'!R37:Y37) -> 0 | O114: =SUM('NM Financials'!Z37:AI37) -> 0 | P114: ='NM Financials'!AJ37 -> 10178620
B115: ='NM Financials'!B38 -> Anthony, NM | C115: ='NM Financials'!G38 -> 0 | D115: ='NM Financials'!H38 -> 0 | E115: ='NM Financials'!I38 -> 0 | F115: ='NM Financials'!J38 -> 0 | G115: ='NM Financials'!K38 -> 0 | H115: ='NM Financials'!L38 -> 0 | I115: ='NM Financials'!M38 -> 0 | J115: ='NM Financials'!N38 -> 0 | K115: ='NM Financials'!O38 -> 0 | L115: ='NM Financials'!P38 -> 0 | M115: ='NM Financials'!Q38 -> 0 | N115: =SUM('NM Financials'!R38:Y38) -> 24878282 | O115: =SUM('NM Financials'!Z38:AI38) -> 15764175 | P115: ='NM Financials'!AJ38 -> 40642457
B116: ='NM Financials'!B39 -> City of Sunland Park, N.M.(GRT, GRT Bonds, TIDD, GSA, MRA) | C116: ='NM Financials'!G39 -> 0 | D116: ='NM Financials'!H39 -> 0 | E116: ='NM Financials'!I39 -> 0 | F116: ='NM Financials'!J39 -> 0 | G116: ='NM Financials'!K39 -> 0 | H116: ='NM Financials'!L39 -> 90013778 | I116: ='NM Financials'!M39 -> 0 | J116: ='NM Financials'!N39 -> 0 | K116: ='NM Financials'!O39 -> 0 | L116: ='NM Financials'!P39 -> 0 | M116: ='NM Financials'!Q39 -> 0 | N116: =SUM('NM Financials'!R39:Y39) -> 0 | O116: =SUM('NM Financials'!Z39:AI39) -> 0 | P116: ='NM Financials'!AJ39 -> 90013778
B117: ='NM Financials'!B40 -> NM Border Authority Funds | C117: ='NM Financials'!G40 -> 0 | D117: ='NM Financials'!H40 -> 0 | E117: ='NM Financials'!I40 -> 0 | F117: ='NM Financials'!J40 -> 0 | G117: ='NM Financials'!K40 -> 0 | H117: ='NM Financials'!L40 -> 19354859 | I117: ='NM Financials'!M40 -> 0 | J117: ='NM Financials'!N40 -> 0 | K117: ='NM Financials'!O40 -> 0 | L117: ='NM Financials'!P40 -> 0 | M117: ='NM Financials'!Q40 -> 0 | N117: =SUM('NM Financials'!R40:Y40) -> 0 | O117: =SUM('NM Financials'!Z40:AI40) -> 0 | P117: ='NM Financials'!AJ40 -> 19354859
B118: ='NM Financials'!B41 -> SCRTD Funds | C118: ='NM Financials'!G41 -> 0 | D118: ='NM Financials'!H41 -> 700000 | E118: ='NM Financials'!I41 -> 83733 | F118: ='NM Financials'!J41 -> 0 | G118: ='NM Financials'!K41 -> 0 | H118: ='NM Financials'!L41 -> 0 | I118: ='NM Financials'!M41 -> 0 | J118: ='NM Financials'!N41 -> 0 | K118: ='NM Financials'!O41 -> 0 | L118: ='NM Financials'!P41 -> 0 | M118: ='NM Financials'!Q41 -> 0 | N118: =SUM('NM Financials'!R41:Y41) -> 0 | O118: =SUM('NM Financials'!Z41:AI41) -> 0 | P118: ='NM Financials'!AJ41 -> 783733
B119: ='NM Financials'!B42 -> Other (Includes INFRA) | C119: ='NM Financials'!G42 -> 0 | D119: ='NM Financials'!H42 -> 0 | E119: ='NM Financials'!I42 -> 0 | F119: ='NM Financials'!J42 -> 0 | G119: ='NM Financials'!K42 -> 0 | H119: ='NM Financials'!L42 -> 45000000 | I119: ='NM Financials'!M42 -> 0 | J119: ='NM Financials'!N42 -> 0 | K119: ='NM Financials'!O42 -> 0 | L119: ='NM Financials'!P42 -> 0 | M119: ='NM Financials'!Q42 -> 0 | N119: =SUM('NM Financials'!R42:Y42) -> 0 | O119: =SUM('NM Financials'!Z42:AI42) -> 0 | P119: ='NM Financials'!AJ42 -> 45000000
B120: ='NM Financials'!B43 -> General Fund | C120: ='NM Financials'!G43 -> 0 | D120: ='NM Financials'!H43 -> 0 | E120: ='NM Financials'!I43 -> 0 | F120: ='NM Financials'!J43 -> 0 | G120: ='NM Financials'!K43 -> 0 | H120: ='NM Financials'!L43 -> 0 | I120: ='NM Financials'!M43 -> 0 | J120: ='NM Financials'!N43 -> 0 | K120: ='NM Financials'!O43 -> 0 | L120: ='NM Financials'!P43 -> 0 | M120: ='NM Financials'!Q43 -> 0 | N120: =SUM('NM Financials'!R43:Y43) -> 0 | O120: =SUM('NM Financials'!Z43:AI43) -> 0 | P120: ='NM Financials'!AJ43 -> 0
B121: ='NM Financials'!B44 -> Other State Fund | C121: ='NM Financials'!G44 -> 0 | D121: ='NM Financials'!H44 -> 0 | E121: ='NM Financials'!I44 -> 3000000 | F121: ='NM Financials'!J44 -> 3362446 | G121: ='NM Financials'!K44 -> 0 | H121: ='NM Financials'!L44 -> 0 | I121: ='NM Financials'!M44 -> 0 | J121: ='NM Financials'!N44 -> 0 | K121: ='NM Financials'!O44 -> 0 | L121: ='NM Financials'!P44 -> 0 | M121: ='NM Financials'!Q44 -> 0 | N121: =SUM('NM Financials'!R44:Y44) -> 0 | O121: =SUM('NM Financials'!Z44:AI44) -> 0 | P121: ='NM Financials'!AJ44 -> 6362446
B122: ='NM Financials'!$A$47 -> Total NM Roadway Revenues | C122: ='NM Financials'!G47 -> 47643350 | D122: ='NM Financials'!H47 -> 11065002 | E122: ='NM Financials'!I47 -> 18621432 | F122: ='NM Financials'!J47 -> 137320024 | G122: ='NM Financials'!K47 -> 13041624 | H122: ='NM Financials'!L47 -> 157889158 | I122: ='NM Financials'!M47 -> 42270900 | J122: ='NM Financials'!N47 -> 3403319 | K122: ='NM Financials'!O47 -> 3403319 | L122: ='NM Financials'!P47 -> 3403319 | M122: ='NM Financials'!Q47 -> 3403319 | N122: ='NM Financials'!V48 -> 179704834 | O122: ='NM Financials'!AE48 -> 60797365 | P122: ='NM Financials'!AJ47 -> 681966965
B123: ='NM Financials'!$A$54 -> Total CONSTRUCTION Cost | C123: ='NM Financials'!G54 -> 42500000 | D123: ='NM Financials'!H54 -> 9837060 | E123: ='NM Financials'!I54 -> 7143625.5 | F123: ='NM Financials'!J54 -> 120376158 | G123: ='NM Financials'!K54 -> 0 | H123: ='NM Financials'!L54 -> 139257692.8 | I123: ='NM Financials'!M54 -> 0 | J123: ='NM Financials'!N54 -> 0 | K123: ='NM Financials'!O54 -> 0 | L123: ='NM Financials'!P54 -> 0 | M123: ='NM Financials'!Q54 -> 0 | N123: ='NM Financials'!V54 -> 138616619.6 | O123: ='NM Financials'!AE54 -> 24331068.05 | P123: ='NM Financials'!AJ54 -> 482062224
A124: 1000000
B125: ='NM Financials'!D56 -> PE Cost | C125: ='NM Financials'!G56 -> 0 | D125: ='NM Financials'!H56 -> 0 | E125: ='NM Financials'!I56 -> 7900000 | F125: ='NM Financials'!J56 -> 6846066 | G125: ='NM Financials'!K56 -> 0 | H125: ='NM Financials'!L56 -> 3456084.991 | I125: ='NM Financials'!M56 -> 0 | J125: ='NM Financials'!N56 -> 0 | K125: ='NM Financials'!O56 -> 0 | L125: ='NM Financials'!P56 -> 0 | M125: ='NM Financials'!Q56 -> 0 | N125: ='NM Financials'!V56 -> 13861661.96 | O125: ='NM Financials'!AE56 -> 2433106.805 | P125: ='NM Financials'!AJ56 -> 34496919.76
A126: 1000000
B127: ='NM Financials'!D58 -> ROW Cost | C127: ='NM Financials'!G58 -> 2258000 | D127: ='NM Financials'!H58 -> 0 | E127: ='NM Financials'!I58 -> 1525200 | F127: ='NM Financials'!J58 -> 6810000 | G127: ='NM Financials'!K58 -> 0 | H127: ='NM Financials'!L58 -> 3000000 | I127: ='NM Financials'!M58 -> 0 | J127: ='NM Financials'!N58 -> 0 | K127: ='NM Financials'!O58 -> 0 | L127: ='NM Financials'!P58 -> 0 | M127: ='NM Financials'!Q58 -> 0 | N127: ='NM Financials'!T58 -> 0 | O127: ='NM Financials'!AE58 -> 0 | P127: ='NM Financials'!AJ58 -> 13593200
B128: ='NM Financials'!A60 -> Total Project Costs | C128: ='NM Financials'!G60 -> 44758000 | D128: ='NM Financials'!H60 -> 9837060 | E128: ='NM Financials'!I60 -> 16568825.5 | F128: ='NM Financials'!J60 -> 134032224 | G128: ='NM Financials'!K60 -> 0 | H128: ='NM Financials'!L60 -> 145713777.8 | I128: ='NM Financials'!M60 -> 0 | J128: ='NM Financials'!N60 -> 0 | K128: ='NM Financials'!O60 -> 0 | L128: ='NM Financials'!P60 -> 0 | M128: ='NM Financials'!Q60 -> 0 | N128: ='NM Financials'!V60 -> 152478281.6 | O128: ='NM Financials'!AE60 -> 26764174.85 | P128: ='NM Financials'!AJ60 -> 530152343.7
B129: ='NM Financials'!A61 -> Total NM Balance with Carry Over | C129: ='NM Financials'!G61 -> 2885350 | D129: ='NM Financials'!H61 -> 4113292 | E129: ='NM Financials'!I61 -> 6165898.5 | F129: ='NM Financials'!J61 -> 9453698.5 | G129: ='NM Financials'!K61 -> 22495322.5 | H129: ='NM Financials'!L61 -> 34670702.67 | I129: ='NM Financials'!M61 -> 76941602.67 | J129: ='NM Financials'!N61 -> 80344921.67 | K129: ='NM Financials'!O61 -> 83748240.67 | L129: ='NM Financials'!P61 -> 87151559.67 | M129: ='NM Financials'!Q61 -> 90554878.67 | N129: ='NM Financials'!V61 -> 117781431.1 | O129: ='NM Financials'!AE61 -> 34033190.15 | P129: ='NM Financials'!AJ61 -> 151814621.3
A130: 1000000
A131: 1000000
A132: 1000000 | B132: ='Hwy TX Financials'!A75 -> TOTAL RMS 2050 MTP FINANCIALS
B133: ='Hwy TX Financials'!A76 -> TOTAL MTP REVENUE | C133: =C122+C70+C38 -> 411997267 | D133: 260991482 | E133: 516817789.8 | F133: 790454846 | G133: 369502032 | H133: 576470521 | I133: 356894554 | J133: 1241930940 | K133: 204597345.4 | L133: 309345999.5 | M133: 172677727.1 | N133: 2092508105 | O133: 2931968613 | P133: 1.023615722e+10
B134: ='Hwy TX Financials'!A77 -> TOTAL 2022-2032 NON-Carry Over Revenue | C134: 0 | D134: 0 | E134: 0 | F134: 0 | G134: 0 | H134: 0 | I134: 0 | J134: 0 | K134: 0 | L134: 0 | M134: 0 | N134: 0 | O134: 0 | P134: 0
A135: 1000000
B136: ='Hwy TX Financials'!A80 -> TOTAL MTP Construction Cost | C136: =C39+C71+C123 -> 323308719 | D136: 123460738.9 | E136: 234978824.8 | F136: 532214343 | G136: 247778061 | H136: 233614756.8 | I136: 95025738.16 | J136: 1062419752 | K136: 154175806.9 | L136: 397221653 | M136: 55356131.75 | N136: 1715798778 | O136: 2533442721 | P136: 7708796025
B137: ='Hwy TX Financials'!A81 -> TOTAL MTP PE Cost | C137: =C42+C74+C125 -> 6013344 | D137: 22409588.57 | E137: 35791018.75 | F137: 25141524 | G137: 9706785 | H137: 9985195.991 | I137: 797561.8359 | J137: 46364390.39 | K137: 8737149 | L137: 21773421.86 | M137: 263291.051 | N137: 55633761.37 | O137: 84795772.84 | P137: 327412804.7
B138: ='Hwy TX Financials'!A82 -> TOTAL MTP ROW Cost | C138: =C44+C75+C127 -> 9884000 | D138: 31691669 | E138: 22550200 | F138: 65307728 | G138: 3500000 | H138: 3000000 | I138: 9000000 | J138: 31607167 | K138: 10000 | L138: 3188603.939 | M138: 0 | N138: 376614 | O138: 2403424.098 | P138: 182519406
A139: 1000000 | B139: TOTAL MTP TRANSIT NON CONSTRUCTION COST | C139: =C72+C40 -> 19656645 | D139: 38994573 | E139: 27036689 | F139: 25136787 | G139: 24760510 | H139: 24760510 | I139: 24760510 | J139: 17948350.83 | K139: 18138613.47 | L139: 18331335.71 | M139: 18526556.08 | N139: 155553464.5 | O139: 214406210.5 | P139: 628010755.1
B140: ='Hwy TX Financials'!A84 -> TOTAL PROJECT COST (HWY, TRANSIT, NM) | C140: =C128+C77+C46 -> 358862708 | D140: 216556569.4 | E140: 320356732.5 | F140: 647800382 | G140: 285745356 | H140: 271360462.8 | I140: 129583810 | J140: 1158339660 | K140: 181061569.4 | L140: 440515014.5 | M140: 74145978.88 | N140: 1927362618 | O140: 2835048129 | P140: 8846738991
A141: 1000000
B142: ='Hwy TX Financials'!A86 -> TOTAL MTP Balance (includes carry over) | C142: =C47+C129 -> 53134559 | D142: 95408562.57 | E142: 277034858.2 | F142: 264982968.2 | G142: 258798960.2 | H142: 492467069.4 | I142: 441708738.4 | J142: 497995253.4 | K142: 508515163.4 | L142: 350301588.3 | M142: 448833336.6 | N142: 656127536.4 | O142: 705979787.2 | P142: 1389418231
B170: tpc
B171: TX HWY Total Project Cost (FHWA & other funds)
B172: TX Transit Total Project Cost (FTA & other funds)
B173: NM HWY & Transit Total Project Cost
B174: Subtotal
B176: Developer Total Project Cost
B177: Total
B179: revenue
B180: TX HWY Total Revenue (FHWA & other funds)
B181: TX Transit Total Revenue (FTA & other funds)
B182: NM HWY & Transit Total Revenue
B183: Subtotal
B185: Developer Total Revenue
B186: Total

Sheet Hwy TX Projects
A1: Text | B1: Text | D1: Number | H1: Text | I1: Text | J1: Text Specific | K1: Number and Text | L1: Text | M1: Text | N1: Text | O1: Text | P1: Text | Q1: Number | R1: Currency | S1: Formula | T1: Formula or Currency | U1: Formula or Currency | V1: Formula | W1: Text | X1: Number or text | Y1: Date (mm/yyyy) | Z1: Text | AA1: Date (mm/yyyy) | AB1: Text | AC1: Text | AD1: Dropdown | AE1: Dropdown | AF1: Yes/No | AG1: Yes/No | AH1: Currency | AI1: Dropdown | AJ1: Dropdown | AK1: Dropdown | AL1: Dropdown | AM1: Dropdown | AN1: Formula | AO1: Percentage | AP1: Formula | AQ1: Formula | AR1: Formula | AS1: Formula | AT1: Formula | AU1: Currency | AV1: Currency | AW1: Currency | AY1: Currency | AZ1: Currency | BA1: Currency | BB1: Currency | BC1: Currency | BD1: Currency | BE1: Currency | BF1: Currency | BI1: Currency | BJ1: Currency | BK1: Currency | BM1: Formula | BO1: Currency | BP1: Currency | BU1: Currency | BW1: Currency | BZ1: Currency | CA1: Currency | CB1: Currency | CC1: Formula | CD1: Formula
A2: Project Mode (for MTP Stats) | B2: Project Type (for MPO ID) | C2: FFCS (for MPO ID) | D2: El Paso District Rep No. | E2: State House of Rep. District No. | F2: Amended D2045 MTP | G2: 2019 CMP | H2: CMP Strategy | I2: City Area | J2: Project Element | K2: CSJ | L2: Project ID | M2: Project Name | N2: Project Description | O2: From | P2: To | Q2: Network | R2: Current Const. Cost / 2021-2050 Cost | S2: Est. Const. Cost with Inflation (Includes CE, Contingencies, and Change Orders) | T2: Est. PE Cost | U2: Est. ROW Cost | V2: Total Project Cost/YOE | W2: Sponsor | X2: YOE (FY) | Y2: New Revision Date | Z2: Revision Remarks | AA2: Prev Rev Date | AB2: Prev Revision Remarks | AC2: Other Comments Notes | AD2: REPEAT IN TRANSIT LIST? | AE2: HWY TRANSFER | AF2: Generating County EP, Horizon, & Socorro Potential TRZ Revenue? | AG2: SUN METRO- MATCH REQUIRED? (Transit Project List Only) | AH2: Amount to MATCH by SM | AI2: CONSTRUCT COST? | AJ2: PE? | AK2: PE COST COVERED BY PE REV? | AL2: ROW? | AM2: ROW COST COVERED BY ROW REV? | AN2: No. Inflated Years or $/yr. w/o Inflation | AO2: Infl. Rate- Yr Ex | AP2: CONST. COST FOR FINANCIALS | AQ2: Calculations only YOE=TPC | AR2: Calculations only | AS2: Construction Cost and Authorize Funding DIFFERENCE | AT2: Total AUTHORIZE Funding = PROJECT COST (Financials) | AU2: ='Hwy TX Financials'!$B3 -> 1 - Preventive Maintenance & Rehabilitation | AV2: ='Hwy TX Financials'!$B4 -> 2 - Metropolitan Area (TMA) Corridor Projects | AW2: ='Hwy TX Financials'!$B5 -> 3 - Lcl Contribution | AX2: ='Hwy TX Financials'!$B6 -> 3 - Transportation Mobility Fund | AY2: ='Hwy TX Financials'!$B7 -> 4 - Statewide Urban Connectivity Corridor Projects | AZ2: ='Hwy TX Financials'!$B8 -> 5 - CMAQ | BA2: ='Hwy TX Financials'!$B9 -> 6 - Structures Replacement & Rehabilitation | BB2: ='Hwy TX Financials'!$B10 -> 7 - STP - MM | BC2: ='Hwy TX Financials'!$B12 -> 8 - Safety Projects | BD2: ='Hwy TX Financials'!$B14 -> 9 - Transportation Alternatives-Set Aside | BE2: ='Hwy TX Financials'!$B13 -> 9 - Transportation Enhancements Program (TXDOT) | BF2: ='Hwy TX Financials'!$B15 -> 11 - District Discretionary | BG2: ='Hwy TX Financials'!$B16 -> 11 - B | BH2: ='Hwy TX Financials'!$B17 -> 11 - BSIF | BI2: ='Hwy TX Financials'!$B18 -> 12 - Strategic Priority | BJ2: ='Hwy TX Financials'!$B19 -> 12 - Strategic Priority CMAQ | BK2: ='Hwy TX Financials'!$B20 -> 12 - Strategic Priority STP | BL2: ='Hwy TX Financials'!A21 -> Bonding CRRMA for Borderland Expressway | BM2: Total Construction Cost (non carry over) | BN2: ='Hwy TX Financials'!A22 -> Clear Lanes v2 | BO2: ='Hwy TX Financials'!$B23 -> 10 - CBI Program | BP2: ='Hwy TX Financials'!$B24 -> 10 - Carbon Reduction Program | BQ2: 5 - CMAQ Carryover | BR2: 7- STP Carryover | BS2: 7 - CRRSAA | BT2: 11-B Carryover | BU2: ='Hwy TX Financials'!A26 -> Prop 1/ Prop 7 | BV2: ='Hwy TX Financials'!B27 -> 3 - City of El Paso TRZ #3 | BW2: ='Hwy TX Financials'!B28 -> 3 - Socorro TRZ | BX2: ='Hwy TX Financials'!B29 -> 3 - Horizon TRZ | BY2: ='Hwy TX Financials'!$B30 -> 3 - Local PE Funds | BZ2: ='Hwy TX Financials'!$B31 -> 3 - State PE Funds | CA2: ='Hwy TX Financials'!$B32 -> 3 - Local ROW Funds | CB2: ='Hwy TX Financials'!$B33 -> 3 - State ROW Funds | CC2: Total Project Cost (Carryover Categories) | CD2: Total Construction Cost (Carryover Categories)
A3: ITS | B3: Signals | C3: N/A | D3: N/A | E3: N/A | F3: Yes | H3: Traffic Operations | I3: Regional | J3: ITS | K3: 0924-06-620 | L3: S502X | M3: ITS Infra. @Zaragoza/BOTA POE (ON-SYS) | N3: The Design, Construction, and Installation of Intelligent Transportation Systems (ITS) at the Bridge of the Americas (BOTA) and Zaragoza Ports of Entry. | O3: At Bridge of the Americas, 1 mile north, south, east, and west of I-10 at US 54 interchange | P3: At Zaragoza Port of Entry, along I-10, 1 mile east and west of Loop 375 interchange, along Loop375 from Padres Drive to 1 mile north of I-10 interchange. | Q3: N/A | R3: 14000000 | S3: =IF(OR(AI3="YES",AI3="ONLY"),AR3,IF(OR(AND(AI3="NO",AJ3="ONLY",AL3="NO"),AND(AI3="NO",AJ3="NO",AL3="ONLY"),AND(AI3="NO",AJ3="YES",AL3="YES")),0,R3)) -> 14000000 | T3: =IF($AJ3="YES",TXPE*$AR3,IF($AJ3="ONLY",$AR3,0)) -> 0 | U3: =IF($AL3="YES",TXRow*$AR3,IF($AL3="ONLY",$AR3,0)) -> 0 | V3: =SUM(S3:U3) -> 14000000 | W3: COEP | X3: 2022 | AD3: NO | AE3: NO | AF3: No | AG3: No | AI3: YES | AJ3: NO | AK3: NO | AL3: NO | AM3: NO | AN3: =IF(Q3="ALL",R3/28,IF(OR(X3=2021, X3=2022, X3=2023, X3=2024),0,X3-2020)) -> 0 | AO3: 0.04 | AP3: =IF(AND(AK3="NO",AM3="NO"),V3,IF(AND(AK3="NO",AM3="YES"),S3+T3,IF(AND(AM3="NO",AK3="YES"),S3+U3,AR3))) -> 14000000 | AQ3: =EXACT(AP3,V3) -> TRUE | AR3: =IF(AN3<28,R3*(1+AO3)^(AN3),AN3) -> 14000000 | AS3: =IF(AND(AN3=0),ROUND(AT3-V3,0),"NOT IN TIP") -> 0 | AT3: =SUM(AU3:CC3) -> 14000000 | BH3: 14000000
A4: ITS | B4: Signals | C4: N/A | D4: N/A | E4: N/A | F4: Yes | H4: Traffic Operations | I4: Central | J4: ITS | K4: 0924-06-566 | L4: S301D | M4: Traffic Management Center Upgrade Phase 1 | N4: The project included the upgrade of the COEP Traffic Management Center and Traffic Signal controller equipment citywide. Ph. 1 is the design phase. Ph. 2-5 are implementation and construction phases. | O4: City of El Paso city limits. | P4: City of El Paso city limits. | Q4: N/A | R4: 0 | S4: 0 | T4: 5360329 | U4: 0 | V4: 5360329 | W4: COEP | X4: 2024 | Y4: 2023-11-01 | Z4: Program in RMS 2050 MTP and RMS 23-26 TIP in FY 2024 - Exempt | AD4: NO | AE4: NO | AG4: No | AI4: NO | AJ4: ONLY | AK4: NO | AL4: NO | AM4: NO | AN4: =IF(Q4="ALL",R4/28,IF(OR(X4=2021, X4=2022, X4=2023, X4=2024),0,X4-2020)) -> 0 | AO4: 0.04 | AP4: 5360329 | AQ4: TRUE | AR4: 0 | AS4: 0 | AT4: 5360329 | BQ4: 5360329
A5: Bike & Pedestrian | B5: Miscellaneous | C5: N/A | D5: 8 | E5: 77 | F5: Yes | H5: Travel Demand Management | I5: Central | J5: Other | K5: 0924-06-664 | L5: M309X | M5: I-10 Deck Plaza Planning Study | N5: This project will develop study for a Deck Plaza over I-10 in the downtown area. The proposed deck would add about 12 acres, including amenities such as green space, public gathering space, and entertainment venues. | O5: Prospect Street | P5: Campbell Street | Q5: N/A | R5: 1260000 | S5: 1260000 | T5: =IF($AJ5="YES",TXPE*$AR5,IF($AJ5="ONLY",$AR5,0)) -> 0 | U5: 0 | V5: 1260000 | W5: COEP | X5: 2022 | AD5: NO | AE5: NO | AG5: No | AI5: ONLY | AJ5: NO | AK5: NO | AL5: NO | AM5: NO | AN5: =IF(Q5="ALL",R5/28,IF(OR(X5=2021, X5=2022, X5=2023, X5=2024),0,X5-2020)) -> 0 | AO5: 0.04 | AP5: 1260000 | AQ5: TRUE | AR5: 1260000 | AS5: 0 | AT5: 1260000 | AW5: 1260000
A6: Added Capacity | B6: Minor Arterial | C6: Not Classified | E6: 79 | F6: No | G6: No | H6: Road Capacity | I6: East | J6: Capacity Changes | L6: A437A | M6: George Perry Extension Ph 1 | N6: Build 4-Lane Divided road. 0.6 miles of George Perry Extension + 0.4 miles of Constitution from George Perry Extension to Spur 601. | O6: Walter Jones Blvd; George Perry Extension | P6: Constitution (proposed); Constitution (existing) | Q6: 2032 | R6: 14843304 | S6: =IF(OR(AI6="YES",AI6="ONLY"),AR6,IF(OR(AND(AI6="NO",AJ6="ONLY",AL6="NO"),AND(AI6="NO",AJ6="NO",AL6="ONLY"),AND(AI6="NO",AJ6="YES",AL6="YES")),0,R6)) -> 14843304 | T6: 1081920.57 | U6: 0 | V6: =SUM(S6:U6) -> 15925224.57 | W6: COEP | X6: 2023 | Y6: 2023-05-01 | Z6: Amend RMS 2050 MTP, 23-26 TIP to add PE phase using Category 3 Local Contribution funds in FY 2023 | AA6: 2023-02-01 | AB6: Amend RMS 2050 MTP, 23-26 TIP to program in FY 2023 | AD6: NO | AE6: NO | AG6: No | AI6: YES | AJ6: YES | AK6: NO | AL6: NO | AM6: NO | AN6: =IF(Q6="ALL",R6/28,IF(OR(X6=2021, X6=2022, X6=2023, X6=2024),0,X6-2020)) -> 0 | AO6: 0.04 | AP6: =IF(AND(AK6="NO",AM6="NO"),V6,IF(AND(AK6="NO",AM6="YES"),S6+T6,IF(AND(AM6="NO",AK6="YES"),S6+U6,AR6))) -> 15925224.57 | AQ6: =EXACT(AP6,V6) -> TRUE | AR6: =IF(AN6<28,R6*(1+AO6)^(AN6),AN6) -> 14843304 | AS6: =IF(AND(AN6=0),ROUND(AT6-V6,0),"NOT IN TIP") -> 0 | AT6: 15925225 | AW6: =15925225-1081920.57 -> 14843304.43 | BY6: 1081920.57
A7: ITS | B7: Signals | C7: N/A | D7: N/A | E7: N/A | F7: Yes | H7: Traffic Operations | I7: Regional | J7: ITS | K7: 0924-06-619 | L7: S501X | M7: ITS Infra. @Zaragoza/BOTA POE (OFF-SYS) | N7: The Design, Construction, and Installation of Intelligent Transportation Systems (ITS) at the Bridge of the Americas (BOTA) and Zaragoza Ports of Entry. | O7: At Bridge of the Americas, 1 mile north, south, east, and west of I-10 at US 54 interchange | P7: At Zaragoza Port of Entry, along I-10, 1 mile east and west of Loop 375 interchange, along Loop375 from Padres Drive to 1 mile north of I-10 interchange. | Q7: N/A | R7: 18000000 | S7: 18000000 | T7: =IF($AJ7="YES",TXPE*$AR7,IF($AJ7="ONLY",$AR7,0)) -> 0 | U7: 0 | V7: 18000000 | W7: COEP | X7: 2024 | Y7: 2022-11-01 | Z7: Admin Amend RMS 2050 MTP and RMS 23-26 TIP to move from FY 2023 to FY 2024 - EXEMPT | AA7: 2022-07-01 | AB7: Program in RMS 2050 MTP and RMS 23-26 TIP in FY 2023 - EXEMPT | AD7: NO | AE7: NO | AG7: No | AI7: YES | AJ7: NO | AK7: NO | AL7: NO | AM7: NO | AN7: =IF(Q7="ALL",R7/28,IF(OR(X7=2023, X7=2024, X7=2025, X7=2026),0,X7-2022)) -> 0 | AO7: 0.04 | AP7: 18000000 | AQ7: TRUE | AR7: 18000000 | AS7: 0 | AT7: 18000000 | AX7: 18000000
A8: Added Capacity | B8: Bridge | C8: Minor Arterial | D8: 4 | E8: 78 | F8: Yes | H8: Road Capacity | I8: NE | J8: Capacity Changes | K8: 0924-06-611 | L8: B201X-CAP | M8: Sean Haggerty Dr Extension | N8: Construct new 4-Lane bridge with pedestrian and bike facilities from Nathan Bay Dr to Dyer St. | O8: Nathan Bay Dr | P8: Dyer St | Q8: 2027 | R8: =24131181+1303838 -> 25435019 | S8: 25435019 | T8: 1410000 | U8: 25000 | V8: 26870019 | W8: COEP | X8: 2024 | Y8: 2023-07-01 | Z8: Admin amend to update Category 7 CRRSAA funding from 100% Federal Share to 80% Federal share and 20% State share in FY 2024 | AA8: 2023-02-01 | AB8: Admin amend to move from FY 2023 to FY 2024 | AD8: NO | AE8: NO | AF8: No | AG8: No | AI8: YES | AJ8: YES | AK8: NO | AL8: NO | AM8: NO | AN8: =IF(Q8="ALL",R8/28,IF(OR(X8=2023, X8=2024, X8=2025, X8=2026),0,X8-2022)) -> 0 | AO8: 0.04 | AP8: 26870019 | AQ8: TRUE | AR8: 25435019 | AS8: 0 | AT8: 26870019 | BR8: =24131181 -> 24131181 | BS8: 1303838 | BZ8: 1410000 | CA8: 25000
A9: ITS | B9: Signals | C9: N/A | D9: N/A | E9: N/A | F9: Yes | H9: Traffic Operations | I9: Central | J9: ITS | K9: 0924-06-566 | L9: S301E | M9: Traffic Management Center Upgrade Phase 2 | N9: The project included the upgrade of the COEP Traffic Management Center and Traffic Signal controller equipment citywide. Ph. 1 is the design phase. Ph. 2-5 are implementation and construction phases. | O9: City of El Paso city limits. | P9: City of El Paso city limits. | Q9: N/A | R9: 3669976 | S9: 3669976 | T9: =IF($AJ9="YES",TXPE*$AR9,IF($AJ9="ONLY",$AR9,0)) -> 0 | U9: 0 | V9: 3669976 | W9: COEP | X9: 2025 | Y9: 2022-11-01 | Z9: Admin Amend RMS 2050 MTP and RMS 23-26 TIP to move from FY 2023 to FY 2025 - EXEMPT | AA9: 2022-07-01 | AB9: Program in RMS 2050 MTP and RMS 23-26 TIP in FY 2023 - EXEMPT | AD9: NO | AE9: NO | AG9: No | AI9: ONLY | AJ9: NO | AK9: NO | AL9: NO | AM9: NO | AN9: =IF(Q9="ALL",R9/28,IF(OR(X9=2023, X9=2024, X9=2025, X9=2026),0,X9-2022)) -> 0 | AO9: 0.04 | AP9: 3669976 | AQ9: TRUE | AR9: 3669976 | AS9: 0 | AT9: 3669976 | BQ9: 3669976
A10: Bike & Pedestrian | B10: Enhancements | C10: N/A | D10: 1,8 | E10: 77 | F10: Yes | H10: Travel Demand Management | I10: West | J10: Bike/Ped | K10: 0924-06-609 | L10: E112X | M10: Border Highway West Shared Use Path | N10: Project includes installation of an 11-foot asphalt pavement hike and bike trail with irrigated landscaping | O10: Racetrack (2) interchange | P10: Executive Center (2) interchange | Q10: N/A | R10: =1526560 -> 1526560 | S10: 1526560 | T10: 343264 | U10: 0 | V10: 1869824 | W10: COEP | X10: 2024 | Y10: 2022-07-01 | Z10: Program in RMS 2050 MTP and RMS 23-26 TIP in FY 2024 - EXEMPT | AD10: NO | AE10: NO | AG10: No | AI10: YES | AJ10: YES | AK10: NO | AL10: NO | AM10: NO | AN10: =IF(Q10="ALL",R10/28,IF(OR(X10=2023, X10=2024, X10=2025, X10=2026),0,X10-2022)) -> 0 | AO10: 0.04 | AP10: 1869824 | AQ10: TRUE | AR10: 1526560 | AS10: 0 | AT10: 1869824 | BQ10: 1869824
A11: Bike | B11: Miscellaneous | C11: N/A | D11: 8 | E11: 77 | F11: Yes | H11: Travel Demand Management | I11: Central | J11: Bike/Ped | K11: 0924-06-570 | L11: M089A | M11: Downtown Bicycle Improvements Phase I | N11: Construct bike facilities dwntwn: bffrd bike lns, convntnal bike lns, bike bvlds, shrd ln mrkngs, & protected bike lns. Includes road diets (from 4/3 lanes to 2), signage, wayfndng, stripng, & intersection treatments. | O11: Campbell from Missouri; Main from Oregon; Mills from Sheldon; Missouri from Santa Fe; San Antonio from Anthony; Sheldon from Santa Fe; Virginia from Mills; St. Vrain from San Antonio; Overland from St. Vrain; Santa Fe from San Antonio | P11: Campbell to Paisano; Main to Campbell; Mills to Virginia; Missouri to Campbell; San Antonio to Virginia; Sheldon to El Paso; Virginia to San Antonio; St. Vrain to Paisano; Overland to El Paso; Santa Fe to Missouri | Q11: 2027 | R11: 2143722 | S11: 2143722 | T11: 428357 | U11: 0 | V11: 2572079 | W11: COEP | X11: 2025 | Y11: 2025-02-01 | Z11: Amend RMS 2050, Amended RMS 2050, RMS 25-28 TIP and 25-28 STIP to change project description to include the number of traffic lanes decrease the indirect cost to $0 and adding $28,440 of contingencies costs- EXEMPT | AA11: 2024-11-01 | AB11: Amend RMS 2050, Amended RMS 2050, RMS 25-28 TIP and 25-28 STIP to change project lmitsand administratively amend by decreasing construction costs to $1,895,990 and adding $28,440 of indirect costs, and $219,212 of CE costs- EXEMPT | AD11: NO | AE11: NO | AG11: No | AI11: YES | AJ11: YES | AK11: NO | AL11: NO | AM11: NO | AN11: 0 | AO11: 0.04 | AP11: 2572079 | AQ11: TRUE | AR11: 2143722 | AS11: 0 | AT11: 2572079 | BQ11: 2572079
A12: ITS | B12: Signals | C12: N/A | D12: N/A | E12: N/A | F12: Yes | H12: Traffic Operations | I12: Central | J12: ITS | K12: 0924-06-567 | L12: S301F | M12: Traffic Management Center Upgrade Phase 3 | N12: The project included the upgrade of the COEP Traffic Management Center and Traffic Signal controller equipment citywide. Ph. 1 is the design phase. Ph. 2-5 are implementation and construction phases. | O12: City of El Paso city limits. | P12: City of El Paso city limits. | Q12: N/A | R12: 5000000 | S12: 5000000 | T12: =IF($AJ12="YES",TXPE*$AR12,IF($AJ12="ONLY",$AR12,0)) -> 0 | U12: 0 | V12: 5000000 | W12: COEP | X12: 2025 | Y12: 2024-11-02 | Z12: Amend RMS 2050 MTP, Amended RMS 2050 , RMS 2025-2028 TIP, 25-28 STIP to reduce local contribution from $2,750,000 to $600,000 beyond required match and increase Cat 5 CMAQ funds from $2,250,000 to $4,400,000 for a total project fund of $5,000,000 in FY 2025. | AA12: 2022-11-02 | AB12: Admin Amend RMS 2050 MTP and RMS 23-26 TIP to move from FY 2023 to FY 2025 - EXEMPT | AD12: NO | AE12: NO | AG12: No | AI12: ONLY | AJ12: NO | AK12: NO | AL12: NO | AM12: NO | AN12: =IF(Q12="ALL",R12/28,IF(OR(X12=2023, X12=2024, X12=2025, X12=2026),0,X12-2022)) -> 0 | AO12: 0.04 | AP12: 5000000 | AQ12: TRUE | AR12: 5000000 | AS12: =IF(AND(AN12=0),ROUND(AT12-V12,0),"NOT IN TIP") -> 0 | AT12: 5000000 | AW12: 600000 | BQ12: 4400000
A13: Pedestrian | B13: Enhancements | C13: N/A | F13: No | H13: Travel Demand Management | I13: East | J13: Ped | K13: 0924-06-677 | L13: E408X | M13: Ysleta POE Pedestrian Safety Improvements | N13: Design and construction of pedestrian safety improvements; pedestrian drop-off/pick-up zones, shade canopies, improved crosswalks, pedestrian illumination, signs, signals, traffic calming, streetlights, landscaping, seating, screening walls, CCTVs, bus stop, and wayfinding | O13: At Ysleta POE | P13: At Ysleta POE | Q13: N/A | R13: =11700000+800000 -> 12500000 | S13: 12500000 | T13: 2500000 | U13: 0 | V13: 15000000 | W13: COEP | X13: 2025 | Y13: 2022-11-01 | Z13: Amend RMS 2050 MTP and RMS 2023-2026 TIP to program in FY 2025 - EXEMPT | AD13: NO | AE13: NO | AF13: No | AG13: No | AI13: YES | AJ13: YES | AK13: NO | AL13: NO | AM13: NO | AN13: =IF(Q13="ALL",R13/28,IF(OR(X13=2021, X13=2022, X13=2023, X13=2024),0,X13-2022)) -> 3 | AO13: 0.04 | AP13: 15000000 | AQ13: TRUE | AR13: 14060800 | AS13: =IF(AND(AN13=0),ROUND(AT13-V13,0),"NOT IN TIP") -> NOT IN TIP | AT13: =SUM(AU13:CB13) -> 15000000 | AW13: 15000000
A14: Maint./Rehab. | B14: Rehabilitation | C14: Not Classified | E14: 76 | F14: No | H14: Traffic Operations | I14: East | J14: Exempt | K14: 0924-06-665 | L14: R401XPE | M14: PE Phase Buffalo Soldier Street Improvements | N14: Project includes complete 2 lane roadway reconstruction, parkway improvements, sidewalks, bicycle facilities, street illumination, landscaping and irrigation, and striping. | O14: Edgemere Blvd | P14: Montana Ave | Q14: N/A | R14: $7,016,566 | S14: $7,016,566 | T14: $1,317,612 | U14: 0 | V14: $8,441,816 | W14: COEP | X14: 2025 | Y14: 2024-02-01 | Z14: Program in RMS 20250 MTP, 23-26 TIP, and 23-26 STIP | AD14: NO | AE14: NO | AF14: No | AG14: No | AI14: NO | AJ14: ONLY | AK14: NO | AL14: NO | AM14: NO | AN14: =IF(Q14="ALL",R14/28,IF(OR(X14=2023, X14=2024, X14=2025, X14=2026),0,X14-2022)) -> 0 | AO14: 0.04 | AP14: =IF(AND(AK14="NO",AM14="NO"),V14,IF(AND(AK14="NO",AM14="YES"),S14+T14,IF(AND(AM14="NO",AK14="YES"),S14+U14,AR14))) -> $8,441,816 | AQ14: TRUE | AR14: =IF(AN14<28,R14*(1+AO14)^(AN14),AN14) -> 7016566 | AS14: =IF(AND(AN14=0),ROUND(AT14-V14,0),"NOT IN TIP") -> -7124204 | AT14: =SUM(AU14:CC14) -> 1317612 | BR14: 1317612
A15: Bike & Pedestrian | B15: Enhancements | C15: N/A | E15: 76 | F15: No | H15: Travel Demand Management | I15: West | J15: Exempt | K15: 0924-06-730 | L15: E111XPE | M15: PE Phase Sunland Park Shared Use Path | N15: Construction of a shared use path with associated signage, landscaping and irrigation, furnishings, and illumination. | O15: Cadiz St. | P15: Mesa St. | Q15: N/A | R15: $3,341,000 | S15: $3,341,000 | T15: $1,799,000 | U15: 0 | V15: $5,190,000 | W15: COEP | X15: 2025 | Y15: 2024-02-01 | Z15: Program in RMS 20250 MTP, 23-26 TIP, and 23-26 STIP | AD15: NO | AE15: NO | AF15: No | AG15: No | AI15: NO | AJ15: ONLY | AK15: NO | AL15: NO | AM15: NO | AN15: =IF(Q15="ALL",R15/28,IF(OR(X15=2023, X15=2024, X15=2025, X15=2026),0,X15-2022)) -> 0 | AO15: 0.04 | AP15: =IF(AND(AK15="NO",AM15="NO"),V15,IF(AND(AK15="NO",AM15="YES"),S15+T15,IF(AND(AM15="NO",AK15="YES"),S15+U15,AR15))) -> $5,190,000 | AQ15: TRUE | AR15: =IF(AN15<28,R15*(1+AO15)^(AN15),AN15) -> 3341000 | AS15: =IF(AND(AN15=0),ROUND(AT15-V15,0),"NOT IN TIP") -> -3391000 | AT15: 1799000 | BQ15: 1799000
A16: Study | B16: Miscellaneous | C16: N/A | D16: 8 | E16: 77 | H16: Travel Demand Management | I16: Central | J16: Other | L16: M311X | M16: PDN and Stanton International Bridges Development Study | N16: Study to improve safety, mobility, and equity at the U.S.- Mexico border & Segundo Barrio neighborhood. Scope includes data analysis, planning, and design work to secure implementation funds. | O16: Cesar Chavez Border HWY | P16: I-10 / N. Piedras St | Q16: 2027 | R16: 2000000 | S16: 2000000 | T16: 0 | U16: 0 | V16: 2000000 | W16: COEP | X16: 2025 | Y16: 2024-11-01 | Z16: Program into RMS 2050 MTP, Amended RMS 2050, RMS 25-28 TIP and 25-28 STIP in FY 2025 | AD16: NO | AE16: NO | AG16: No | AI16: ONLY | AJ16: NO | AK16: NO | AL16: NO | AM16: NO | AN16: =IF(Q16="ALL",R16/28,IF(OR(X16=2023, X16=2024, X16=2025, X16=2026),0,X16-2022)) -> 0 | AO16: 0.04 | AP16: 2000000 | AQ16: TRUE | AR16: 2000000 | AS16: 0 | AT16: 2000000 | BO16: 2000000
A17: Study | B17: Miscellaneous | C17: N/A | D17: N/A | E17: N/A | H17: Travel Demand Management | I17: Regional | J17: Other | L17: M093X | M17: Safe Routes to School Program | N17: Safe Streets & Roads for All Grant funds to create a plan to launch a Safe Routes to School Program. Planning study to identify strategies to promote walking and biking to school through education, enforcement, and infrastructure | O17: City wide | P17: City wide | Q17: 2027 | R17: 1200000 | S17: 1200000 | T17: 0 | U17: 0 | V17: 1200000 | W17: COEP | X17: 2025 | Y17: 2024-11-02 | Z17: Program into RMS 2050 MTP, Amended RMS 2050, RMS 25-28 TIP and 25-28 STIP in FY 2025 | AD17: NO | AE17: NO | AG17: No | AI17: ONLY | AJ17: NO | AK17: NO | AL17: NO | AM17: NO | AN17: 0 | AO17: 0.04 | AP17: 1200000 | AQ17: TRUE | AR17: 1200000 | AS17: 0 | AT17: 1200000 | BO17: 1200000
A18: All Safety | B18: Miscellaneous | C18: N/A | D18: N/A | E18: N/A | H18: Traffic Operations | I18: Regional | J18: Other | L18: M094X | M18: Vision Zero Education and Encouragement Campaign | N18: Educational outreach campaign to address unsafe driver behavior in El Paso through media, programs, and community partnerships. The campaign will target behaviors contributing to the city crash profile. | O18: City wide | P18: City wide | Q18: 2027 | R18: 1000000 | S18: 1000000 | T18: 0 | U18: 0 | V18: 1000000 | W18: COEP | X18: 2025 | Y18: 2024-11-03 | Z18: Program into RMS 2050 MTP, Amended RMS 2050, RMS 25-28 TIP and 25-28 STIP in FY 2025 | AD18: NO | AE18: NO | AG18: No | AI18: ONLY | AJ18: NO | AK18: NO | AL18: NO | AM18: NO | AN18: 0 | AO18: 0.04 | AP18: 1000000 | AQ18: TRUE | AR18: 1000000 | AS18: 0 | AT18: 1000000 | BO18: 1000000
A19: ITS | B19: ITS | C19: N/A | D19: N/A | E19: N/A | H19: Traffic Operations | I19: Regional | J19: ITS | L19: I071X | M19: Intersections Safety Improvement Program | N19: Intersection improvements focused on locations of high frequency of killed or seriously injured (KSI) crashes as identified in Vision Zero. Safe Streets and Roads for All Grant. | O19: City wide | P19: City wide | Q19: 2027 | R19: 1000000 | S19: 1000000 | T19: 0 | U19: 0 | V19: 1000000 | W19: COEP | X19: 2025 | Y19: 2024-11-04 | Z19: Program into RMS 2050 MTP, Amended RMS 2050, RMS 25-28 TIP and 25-28 STIP in FY 2025 | AD19: NO | AE19: NO | AG19: No | AI19: ONLY | AJ19: NO | AK19: NO | AL19: NO | AM19: NO | AN19: 0 | AO19: 0.04 | AP19: 1000000 | AQ19: TRUE | AR19: 1000000 | AS19: 0 | AT19: 1000000 | BO19: 1000000
A20: Bike & Pedestrian | B20: Enhancements | C20: Major Collector | D20: 3,7 | E20: 76 | H20: Travel Demand Management | I20: Mission Valley | J20: Bike/Ped | L20: E503X | M20: N Yarbrough Corridor Improvements | N20: Construction of safety improvements to address fatal crashes, bicycle, and pedestrian safety concerns, and outdated design on N Yarborough Dr. | O20: I-10 | P20: Alameda | Q20: 2027 | R20: 5980298 | S20: 5980298 | T20: 0 | U20: 0 | V20: 5980298 | W20: COEP | X20: 2025 | Y20: 2024-11-05 | Z20: Program into RMS 2050 MTP, Amended RMS 2050, RMS 25-28 TIP and 25-28 STIP in FY 2025 | AD20: NO | AE20: NO | AG20: No | AI20: ONLY | AJ20: NO | AK20: NO | AL20: NO | AM20: NO | AN20: 0 | AO20: 0.04 | AP20: 5980298 | AQ20: TRUE | AR20: 5980298 | AS20: 0 | AT20: 5980298 | BO20: 5980298
A21: Bike & Pedestrian | B21: Enhancements | C21: N/A | D21: N/A | E21: N/A | H21: Travel Demand Management | I21: Regional | J21: Bike/Ped | L21: E007X | M21: Quick Build Demonstration | N21: Quick build demonstration projects for various street segments along the Bicycle and Pedestrian High Injury Network identified in the Vision Zero Action Plan. Projects include road diets and curb extensions. | O21: City wide | P21: City wide | Q21: 2027 | R21: 2995930 | S21: 2995930 | T21: 0 | U21: 0 | V21: 2995930 | W21: COEP | X21: 2025 | Y21: 2024-11-06 | Z21: Program into RMS 2050 MTP, Amended RMS 2050, RMS 25-28 TIP and 25-28 STIP in FY 2025 | AD21: NO | AE21: NO | AG21: No | AI21: ONLY | AJ21: NO | AK21: NO | AL21: NO | AM21: NO | AN21: 0 | AO21: 0.04 | AP21: 2995930 | AQ21: TRUE | AR21: 2995930 | AS21: 0 | AT21: 2995930 | BO21: 2995930
A22: Study | B22: Miscellaneous | C22: N/A | D22: N/A | E22: N/A | H22: Travel Demand Management | I22: Regional | J22: Other | L22: M095X | M22: El Paso County Mobility Plan | N22: County wide equitable mobility plan that will address transportation challenges and inform future design and project implementation. | O22: County wide | P22: County wide | Q22: 2027 | R22: 900000 | S22: 900000 | T22: 0 | U22: 0 | V22: 900000 | W22: COEP | X22: 2025 | Y22: 2024-11-07 | Z22: Program into RMS 2050 MTP, Amended RMS 2050, RMS 25-28 TIP and 25-28 STIP in FY 2025 | AD22: NO | AE22: NO | AG22: No | AI22: ONLY | AJ22: NO | AK22: NO | AL22: NO | AM22: NO | AN22: 0 | AO22: 0.04 | AP22: 900000 | AQ22: TRUE | AR22: 900000 | AS22: 0 | AT22: 900000 | BO22: 900000
A23: Roadway Operations | B23: Enhancements | C23: N/A | D23: N/A | E23: N/A | H23: Traffic Operations | I23: Regional | J23: Other | L23: E006X | M23: Charging and Fueling Infrastructure | N23: Project is to install a total of 74 EV charging ports at publicly accessible locations, including multi-family dwellings, retail businesses, and community centers. | O23: County wide | P23: County wide | Q23: 2027 | R23: $18,750,000 | S23: $18,750,000 | T23: 0 | U23: 0 | V23: $18,750,000 | W23: COEP | X23: 2025 | Y23: 2024-11-01 | Z23: Program into RMS 2050 MTP, Amended RMS 2050, RMS 25-28 TIP and 25-28 STIP in FY 2025 | AD23: NO | AE23: NO | AG23: No | AI23: ONLY | AJ23: NO | AK23: NO | AL23: NO | AM23: NO | AN23: 0 | AO23: 0.04 | AP23: $18,750,000 | AQ23: TRUE | AR23: 18750000 | AS23: 0 | AT23: 18750000 | BO23: 18750000
A24: ITS | B24: Signals | C24: N/A | D24: N/A | E24: N/A | F24: Yes | H24: Traffic Operations | I24: Central | J24: ITS | K24: 0924-06-568 | L24: S301G | M24: Traffic Management Center Upgrade Phase 4 | N24: The project included the upgrade of the COEP Traffic Management Center and Traffic Signal controller equipment citywide. Ph. 1 is the design phase. Ph. 2-5 are implementation and construction phases. | O24: City of El Paso city limits. | P24: City of El Paso city limits. | Q24: N/A | R24: 5180000 | S24: =IF(OR(AI24="YES",AI24="ONLY"),AR24,IF(OR(AND(AI24="NO",AJ24="ONLY",AL24="NO"),AND(AI24="NO",AJ24="NO",AL24="ONLY"),AND(AI24="NO",AJ24="YES",AL24="YES")),0,R24)) -> 5180000 | T24: =IF($AJ24="YES",TXPE*$AR24,IF($AJ24="ONLY",$AR24,0)) -> 0 | U24: 0 | V24: 5180000 | W24: COEP | X24: 2026 | Y24: 2025-02-01 | Z24: Amend RMS 2050 MTP, Amended RMS 2050 MTP, 25-28 TIP and 25-28 STIP to reduce Cat 3 match funds to $0 and add $1,036,000 of CAT 5 match funds. | AA24: 2024-11-01 | AB24: Amend RMS 2050 MTP, Amended RMS 2050 MTP, 25-28 TIP and 25-28 STIP to reduce local contribution beyond required match to $0 and increase CAT 5 CMAQ program funds to $5,180,000 in FY 2026. | AD24: NO | AE24: NO | AF24: No | AG24: No | AI24: ONLY | AJ24: NO | AK24: NO | AL24: NO | AM24: NO | AN24: 0 | AO24: 0.04 | AP24: 5180000 | AQ24: TRUE | AR24: 5180000 | AS24: 0 | AT24: 5180000 | AW24: 0 | BQ24: 5180000
A25: Maint./Rehab. | B25: Rehabilitation | C25: Not Classified | E25: 76 | F25: No | H25: Traffic Operations | I25: East | J25: Exempt | K25: 0924-06-665 | L25: R401X | M25: Buffalo Soldier Street Improvements | N25: Project includes complete 2 lane roadway reconstruction, parkway improvements, sidewalks, bicycle facilities, street illumination, landscaping and irrigation, and striping. | O25: Edgemere Blvd | P25: Montana Ave | Q25: N/A | R25: =6372211+644355 -> 7016566 | S25: 7016566 | T25: 1317612 | U25: 0 | V25: =SUM(S25:U25)+107638 -> 8441816 | W25: COEP | X25: 2027 | Y25: 2024-02-01 | Z25: Amend RMS 2050 MTP, 23-26 TIP, and 23-26 STIP to remove PE phase, increase CAT 7 STP MM funds, move from FY 2026 to FY 2027, and deprogram from the RMS 2023-2026 TIP | AA25: 2022-07-01 | AB25: Program in RMS 2050 MTP and RMS 23-26 TIP in FY 2026 - EXEMPT | AD25: NO | AE25: NO | AF25: No | AG25: No | AI25: YES | AJ25: YES | AK25: NO | AL25: NO | AM25: NO | AN25: =IF(Q25="ALL",R25/28,IF(OR(X25=2025, X25=2026, X25=2027, X25=2028),0,X25-2022)) -> 0 | AO25: 0.04 | AP25: 8441816 | AQ25: TRUE | AR25: 7016566 | AS25: -1317612 | AT25: 7124204 | BR25: =6372211+644355+107638 -> 7124204
A26: Maint./Rehab. | B26: Rehabilitation | C26: Minor Arterial | E26: 76 | F26: No | H26: Traffic Operations | I26: Mission Valley | J26: Exempt | K26: 0924-06-666 | L26: R501X | M26: Carolina Street Improvements | N26: Project includes complete roadway reconstruction, parkway improvements, bicycle facilities, street illumination, and striping on Carolina Dr from Stiles Dr to North Loop Dr. | O26: Stiles Dr | P26: North Loop Dr | Q26: N/A | R26: =5556240+696312 -> 6252552 | S26: 8227931.878 | T26: 1211922 | U26: 0 | V26: =SUM(S26:U26)+95872 -> 9535725.878 | W26: COEP | X26: 2030 | Y26: 2024-02-01 | Z26: Amend RMS 2050 MTP, 23-26 TIP and 23-26 STIP to move from FY 2026 to FY 2030 and deprogram from the RMS 2023-2026 TIP | AA26: 2022-07-01 | AB26: Program in RMS 2050 MTP and RMS 23-26 TIP in FY 2026 - EXEMPT | AD26: NO | AE26: NO | AF26: No | AG26: No | AI26: YES | AJ26: YES | AK26: NO | AL26: NO | AM26: NO | AN26: =IF(Q26="ALL",R26/28,IF(OR(X26=2023, X26=2024, X26=2025, X26=2026),0,X26-2023)) -> 7 | AO26: 0.04 | AP26: 9535725.878 | AQ26: TRUE | AR26: 8227931.878 | AS26: NOT IN TIP | AT26: 3273082 | BR26: 3273082
A27: Added Capacity | B27: Principal/Major Arterial | C27: Principal Arterial | D27: 4 | E27: 77,78 | F27: Yes | H27: Road Capacity | I27: NE | J27: Capacity Changes | K27: 0924-06-625 | L27: P219X-CAP-PE | M27: PE Phase Railroad Dr. Widening and Reconstruction | N27: Add 1 lane ea direction fr Purple Heart Hwy to Shrub Oak to increase capacity fr 2 to 4 lanes. Include road rehab & reconstruction of existing road, sidewalk, shared use path, illumination, landscaping & irrigation. | O27: Purple Heart Highway | P27: Shrub Oak Drive | Q27: 2032 | R27: $19,421,336 | S27: 19421336 | T27: $3,500,000 | U27: 0 | V27: $22,921,338 | W27: COEP | X27: 2024 | Y27: 2024-05-01 | Z27: Program in RMS 20250 MTP, 23-26 TIP, and 23-26 STIP | AD27: NO | AE27: NO | AF27: No | AG27: No | AI27: NO | AJ27: ONLY | AK27: NO | AL27: NO | AM27: NO | AN27: =IF(Q27="ALL",R27/28,IF(OR(X27=2023, X27=2024, X27=2025, X27=2026),0,X27-2022)) -> 0 | AO27: 0.04 | AP27: $22,921,338 | AQ27: =EXACT(AP27,V27) -> TRUE | AR27: =IF(AN27<28,R27*(1+AO27)^(AN27),AN27) -> 19421336 | AS27: =IF(AND(AN27=0),ROUND(AT27-V27,0),"NOT IN TIP") -> -19421338 | AT27: =SUM(AU27:CC27) -> 3500000 | BR27: 3500000
A28: Added Capacity | B28: Principal/Major Arterial | C28: Principal Arterial | D28: 4 | E28: 77,78 | F28: Yes | H28: Road Capacity | I28: NE | J28: Capacity Changes | K28: 0924-06-625 | L28: P219X-CAP | M28: Railroad Dr. Widening and Reconstruction | N28: Add 1 lane ea direction fr Purple Heart Hwy to Shrub Oak to increase capacity fr 2 to 4 lanes. Include road rehab & reconstruction of existing road, sidewalk, shared use path, illumination, landscaping & irrigation. | O28: Purple Heart Highway | P28: Shrub Oak Drive | Q28: 2032 | R28: =19220998+200340 -> 19421338 | S28: 19421338 | T28: 3500000 | U28: 0 | V28: 22921338 | W28: COEP | X28: 2026 | Y28: 2025-02-01 | Z28: Admin amend RMS 2050 MTP, Amended RMS 2050 MTP, RMS 2025-2028 TIP, and 25-28 STIP to decrease Category 7 STP funds from $17,305,338 to $15,205,338 and increase category 10 CRP funds from $0 to $2,100,000 | AA28: 2023-05-01 | AB28: Amend RMS 2050 MTP and RMS 23-26 TIP to change project description and remove PE phase in FY 2026 | AD28: NO | AE28: NO | AF28: No | AG28: No | AI28: ONLY | AJ28: YES | AK28: NO | AL28: NO | AM28: NO | AN28: =IF(Q28="ALL",R28/28,IF(OR(X28=2023, X28=2024, X28=2025, X28=2026),0,X28-2022)) -> 0 | AO28: 0.04 | AP28: 22921338 | AQ28: TRUE | AR28: 19421338 | AS28: -3500000 | AT28: 19421338 | AW28: 2116000 | BP28: 2100000 | BR28: =17305338-2100000 -> 15205338
A29: ITS | B29: Signals | C29: N/A | D29: N/A | E29: N/A | F29: Yes | H29: Traffic Operations | I29: Central | J29: ITS | K29: 0924-06-569 | L29: S301H | M29: Traffic Management Center Upgrade Phase 5 | N29: The project included the upgrade of the COEP Traffic Management Center and Traffic Signal controller equipment citywide. Ph. 1 is the design phase. Ph. 2-5 are implementation and construction phases. | O29: City of El Paso city limits. | P29: City of El Paso city limits. | Q29: N/A | R29: 6294000 | S29: 6294000 | T29: =IF($AJ29="YES",TXPE*$AR29,IF($AJ29="ONLY",$AR29,0)) -> 0 | U29: 0 | V29: 6294000 | W29: COEP | X29: 2026 | Y29: 2024-11-01 | Z29: Amend RMS 2050 MTP, Amended RMS 2050 MTP, RMS 25-28 TIP, and 25-28 STIP to reduce local contribution beyond required match to $0 and increase CAT 5 CMAQ program funds to $6,294,000 in FY 2026. | AA29: 2022-07-01 | AB29: Program in RMS 2050 MTP and RMS 23-26 TIP in FY 2026 - EXEMPT | AD29: NO | AE29: NO | AF29: No | AG29: No | AI29: ONLY | AJ29: NO | AK29: NO | AL29: NO | AM29: NO | AN29: 0 | AO29: 0.04 | AP29: 6294000 | AQ29: TRUE | AR29: 6294000 | AS29: 0 | AT29: 6294000 | BQ29: 6294000
A30: Bike & Pedestrian | B30: Enhancements | C30: N/A | D30: 3,7 | E30: 76 | F30: Yes | H30: Travel Demand Management | I30: Mission Valley | J30: Bike/Ped | K30: 0924-06-728 | L30: E501X-2PE | M30: PE Phase Playa Drain Hike and Bike Trail (Yarbrough to Midway) | N30: Pedestrian and bicycle facilities with signage, sidewalks, landscaping , furnishings and Illumination. | O30: Yarbrough Dr | P30: Midway Dr | Q30: N/A | R30: $4,107,096 | S30: $4,107,096 | T30: $1,597,204 | U30: 0 | V30: $5,704,300 | W30: COEP | X30: 2026 | Y30: 2024-02-01 | Z30: Program in RMS 20250 MTP, 23-26 TIP, and 23-26 STIP | AD30: NO | AE30: NO | AF30: No | AG30: No | AI30: NO | AJ30: ONLY | AK30: NO | AL30: NO | AM30: NO | AN30: =IF(Q30="ALL",R30/28,IF(OR(X30=2023, X30=2024, X30=2025, X30=2026),0,X30-2022)) -> 0 | AO30: 0.04 | AP30: =IF(AND(AK30="NO",AM30="NO"),V30,IF(AND(AK30="NO",AM30="YES"),S30+T30,IF(AND(AM30="NO",AK30="YES"),S30+U30,AR30))) -> $5,704,300 | AQ30: =EXACT(AP30,V30) -> TRUE | AR30: =IF(AN30<28,R30*(1+AO30)^(AN30),AN30) -> 4107096 | AS30: =IF(AND(AN30=0),ROUND(AT30-V30,0),"NOT IN TIP") -> -4107096 | AT30: =SUM(AU30:BX30) -> 1597204 | BQ30: 1597204
A31: Maint./Rehab. | B31: Rehabilitation | C31: Minor Arterial | E31: 78 | F31: No | H31: Traffic Operations | I31: NE | J31: Capacity Changes | K31: 0924-06-729 | L31: R201XPE | M31: PE Phase Sun Valley Street Improvements Gateway Blvd North to Kenworthy | N31: Roadway reconstruction of existing roadway, road diet reduction from 4 lanes to 2 lanes, buffered bike lane, street illumination, landscaping and irrigation, and striping on Sun Valley Dr from Gateway Blvd North to Kenworthy St. | O31: Gateway Blvd North | P31: Kenworthy St. | Q31: 2032 | R31: $4,945,984 | S31: '$4,945,984 | T31: $1,000,652 | U31: 0 | V31: $6,022,519 | W31: COEP | X31: 2026 | Y31: 2024-02-01 | Z31: Program in RMS 20250 MTP, 23-26 TIP, and 23-26 STIP | AD31: NO | AE31: NO | AF31: No | AG31: No | AI31: YES | AJ31: YES | AK31: NO | AL31: NO | AM31: NO | AN31: =IF(Q31="ALL",R31/28,IF(OR(X31=2023, X31=2024, X31=2025, X31=2026),0,X31-2022)) -> 0 | AO31: 0.04 | AP31: $6,022,519 | AQ31: TRUE | AR31: 4945984 | AS31: -5021867 | AT31: =SUM(AU31:BX31) -> 1000652 | BR31: 1000652
A32: Bike | B32: Miscellaneous | C32: N/A | D32: N/A | E32: N/A | F32: Yes | G32: Yes | H32: Travel Demand Management | I32: Regional | J32: Bike/Ped | K32: 0924-06-577 | L32: M090X | M32: Bicycle Infrastructure Citywide | N32: Construct bicycle facilities citywide to include: buffered bike lanes, conventional bike lanes, bicycle boulevards, shared lane markings, and protected bicycle lanes. The project will include, associated signage, wayfinding, striping, and intersection treatments | O32: High Ridge from Resler; Ojo de Agua from Westwind; Sean Haggerty to US 54 (Patriot Freeway); Montwood from Yarbrough; Lomaland from Montwood; Pellicano from George Dieter; Peter Cooper from Pellicano; George Dieter from Vista del Sol; Pebble Hills from George Dieter | P32: High Ridge to Franklin Hills; Ojo de Agua to Via Descanso: ; ; Montwood to Lee Trevino; Lomaland to Trawood; Pellicano to Loop 375; Peter Cooper to Missy Yvette Dr.; George Dieter to Montwood; Pebble Hills to Lisa Scherr | Q32: 2027 | R32: 4795780 | S32: 5834799.656 | T32: 814643 | U32: 0 | V32: 6649442.656 | W32: COEP | X32: 2027 | AD32: NO | AE32: NO | AG32: No | AI32: YES | AJ32: YES | AK32: NO | AL32: NO | AM32: NO | AN32: =IF(Q32="ALL",R32/28,IF(OR(X32=2021, X32=2020, X32=2023, X32=2024),0,X32-2022)) -> 5 | AO32: 0.04 | AP32: 6649442.656 | AQ32: TRUE | AR32: 5834799.656 | AS32: NOT IN TIP | AT32: =SUM(AU32:BX32) -> 5610423 | BQ32: 5610423
A33: Bike & Pedestrian | B33: Enhancements | C33: N/A | D33: 3,7 | E33: 76 | F33: Yes | H33: Travel Demand Management | I33: Mission Valley | J33: Bike/Ped | K33: 0924-06-728 | L33: E501X-2 | M33: Playa Drain Hike and Bike Trail (Yarbrough to Midway) | N33: Pedestrian and bicycle facilities with signage, sidewalks, landscaping , furnishings and Illumination. | O33: Yarbrough Dr | P33: Midway Dr | Q33: N/A | R33: =3707795+399301 -> 4107096 | S33: 4107096 | T33: 1597204 | U33: 0 | V33: 5704300 | W33: COEP | X33: 2027 | Y33: 2024-01-01 | Z33: Amend RMS 2050 MTP to increase total project cost in FY 2027 | AD33: NO | AE33: NO | AF33: No | AG33: No | AI33: YES | AJ33: YES | AK33: NO | AL33: NO | AM33: NO | AN33: =IF(Q33="ALL",R33/28,IF(OR(X33=2025, X33=2026, X33=2027, X33=2028),0,X33-2022)) -> 0 | AO33: 0.04 | AP33: 5704300 | AQ33: TRUE | AR33: 4107096 | AS33: -1597204 | AT33: =SUM(AU33:CB33) -> 4107096 | BQ33: 4107096
A34: Maint./Rehab. | B34: Rehabilitation | C34: Minor Arterial | E34: 78 | F34: No | H34: Traffic Operations | I34: NE | J34: Capacity Changes | K34: 0924-06-729 | L34: R201X | M34: Sun Valley Street Improvements Gateway Blvd North to Kenworthy | N34: Roadway reconstruction of existing roadway, road diet reduction from 4 lanes to 2 lanes, buffered bike lane, street illumination, landscaping and irrigation, and striping on Sun Valley Dr from Gateway Blvd North to Kenworthy St. | O34: Gateway Blvd North | P34: Kenworthy St. | Q34: 2032 | R34: 5021867 | S34: 5021867 | T34: 1000652 | U34: 0 | V34: 6022519 | W34: COEP | X34: 2027 | Y34: 2024-11-01 | Z34: Amend RMS 2050 MTP, Amended RMS 2050 MTP, RMS 25-28 TIP, 25-28 STIP to reduce CAT 7 STP funds and increase CAT 10 CRP funds for a total project amount of $5,021,867 | AA34: 2024-07-01 | AB34: Program in RMS 2025-2028 TIP and 2025-2028 STIP in FY 2027 | AD34: NO | AE34: NO | AF34: No | AG34: No | AI34: YES | AJ34: NO | AK34: NO | AL34: NO | AM34: NO | AN34: =IF(Q34="ALL",R34/28,IF(OR(X34=2025, X34=2026, X34=2027, X34=2028),0,X34-2022)) -> 0 | AO34: 0.04 | AP34: 6022519 | AQ34: TRUE | AR34: 5021867 | AS34: -1000652 | AT34: =SUM(AU34:BX34) -> 5021867 | BP34: 1400000 | BR34: 3621867
A35: Bike & Pedestrian | B35: Enhancements | C35: N/A | D35: 8 | E35: 77 | F35: Yes | H35: Travel Demand Management | I35: West | J35: Bike/Ped | K35: 0924-06-730 | L35: E111X | M35: Sunland Park Shared Use Path | N35: Construction of a shared use path with associated signage, landscaping and irrigation, furnishings, and illumination. | O35: Cadiz St. | P35: Mesa St. | Q35: N/A | R35: =2981200+359800 -> 3341000 | S35: =2981200+359800 -> 3341000 | T35: 1799000 | U35: =IF($AL35="YES",TXRow*$AR35,IF($AL35="ONLY",$AR35,0)) -> 0 | V35: =SUM(S35:U35)+50000 -> 5190000 | W35: COEP | X35: 2027 | Y35: 2024-01-01 | Z35: Amend to change project name, description, cost and move from FY 2030 to 2027 | AD35: NO | AE35: NO | AF35: No | AG35: No | AI35: YES | AJ35: NO | AK35: NO | AL35: NO | AM35: NO | AN35: =IF(Q35="ALL",R35/28,IF(OR(X35=2021, X35=2022, X35=2023, X35=2024),0,X35-2022)) -> 5 | AO35: 0.04 | AP35: =IF(AND(AK35="NO",AM35="NO"),V35,IF(AND(AK35="NO",AM35="YES"),S35+T35,IF(AND(AM35="NO",AK35="YES"),S35+U35,AR35))) -> 5190000 | AQ35: =EXACT(AP35,V35) -> TRUE | AR35: =IF(AN35<28,R35*(1+AO35)^(AN35),AN35) -> 4064837.347 | AS35: =IF(AND(AN35=0),ROUND(AT35-V35,0),"NOT IN TIP") -> NOT IN TIP | AT35: =SUM(AU35:CC35) -> 3341000 | BQ35: =2981200+359800 -> 3341000
A36: ITS | B36: Border Crossings | C36: N/A | D36: 6 | E36: 75 | F36: Yes | G36: Yes | H36: Traffic Operations | I36: Regional | J36: ITS | K36: 0924-06-733 | L36: C032XPE | M36: PE Phase Border Traveler ITS | N36: Regional Cross-Border Travel Information to Local Travelers, Fleet Managers, Manufacturers, Maquiladoras, and Others. | O36: Stanton POE and Paso del Norte POE. | P36: Stanton POE and Paso del Norte POE. | Q36: N/A | R36: $2,076,049 | S36: $2,076,049 | T36: $525,582 | U36: 0 | V36: $2,627,910 | W36: COEP | X36: 2027 | AD36: NO | AE36: NO | AF36: No | AG36: No | AI36: YES | AJ36: YES | AK36: NO | AL36: NO | AM36: NO | AN36: =IF(Q36="ALL",R36/28,IF(OR(X36=2023, X36=2024, X36=2025, X36=2026),0,X36-2022)) -> 5 | AO36: 0.04 | AP36: =IF(AND(AK36="NO",AM36="NO"),V36,IF(AND(AK36="NO",AM36="YES"),S36+T36,IF(AND(AM36="NO",AK36="YES"),S36+U36,AR36))) -> $2,627,910 | AQ36: =EXACT(AP36,V36) -> TRUE | AR36: =IF(AN36<28,R36*(1+AO36)^(AN36),AN36) -> 2525831.041 | AS36: =IF(AND(AN36=0),ROUND(AT36-V36,0),"NOT IN TIP") -> NOT IN TIP | AT36: =SUM(AU36:BX36) -> 525582 | BQ36: 525582 | BR36: 0
A37: ITS | B37: Border Crossings | C37: N/A | D37: 6 | E37: 75 | F37: Yes | G37: Yes | H37: Traffic Operations | I37: Regional | J37: ITS | K37: 0924-06-733 | L37: C032X | M37: Border Traveler ITS | N37: Regional Cross-Border Travel Information to Local Travelers, Fleet Managers, Manufacturers, Maquiladoras, and Others. | O37: Stanton POE and Paso del Norte POE. | P37: Stanton POE and Paso del Norte POE. | Q37: N/A | R37: =1708142+367907 -> 2076049 | S37: =1708142+367907 -> 2076049 | T37: 525582 | U37: 0 | V37: =SUM(S37:U37)+26279 -> 2627910 | W37: COEP | X37: 2028 | AD37: NO | AE37: NO | AF37: No | AG37: No | AI37: YES | AJ37: YES | AK37: NO | AL37: NO | AM37: NO | AN37: =IF(Q37="ALL",R37/28,IF(OR(X37=2021, X37=2022, X37=2023, X37=2024),0,X37-2022)) -> 6 | AO37: 0.04 | AP37: 2627910 | AQ37: TRUE | AR37: 2626864.283 | AS37: NOT IN TIP | AT37: =SUM(AU37:BX37) -> 2102328 | BQ37: 2102328
A38: ITS | B38: Miscellaneous | C38: N/A | D38: N/A | E38: N/A | F38: Yes | G38: Yes | H38: Travel Demand Management | I38: Regional | J38: ITS | K38: 0924-06-732 | L38: M025BPE | M38: PE Phase Video Surveillance and Count Stations Phase II | N38: Project includes installation or integration of new count stations, dynamic message signs, hardware and software, conduit, fiber optic cable and the communication systems into the COEP TMC and TxDOT TransVista. | O38: Citywide | P38: Citywide | Q38: N/A | R38: $3,904,931 | S38: $3,904,931 | T38: $191,342 | U38: 0 | V38: $4,096,273 | W38: COEP | X38: 2027 | AD38: NO | AE38: NO | AF38: No | AG38: No | AI38: NO | AJ38: ONLY | AK38: NO | AL38: NO | AM38: NO | AN38: =IF(Q38="ALL",R38/28,IF(OR(X38=2025, X38=2026, X38=2027, X38=2028),0,X38-2022)) -> 0 | AO38: 0.04 | AP38: =IF(AND(AK38="NO",AM38="NO"),V38,IF(AND(AK38="NO",AM38="YES"),S38+T38,IF(AND(AM38="NO",AK38="YES"),S38+U38,AR38))) -> $4,096,273 | AQ38: =EXACT(AP38,V38) -> TRUE | AR38: =IF(AN38<28,R38*(1+AO38)^(AN38),AN38) -> 3904931 | AS38: =IF(AND(AN38=0),ROUND(AT38-V38,0),"NOT IN TIP") -> -3904931 | AT38: =SUM(AU38:BX38) -> 191342 | BQ38: 191342 | BR38: 0
A39: ITS | B39: Miscellaneous | C39: N/A | D39: N/A | E39: N/A | F39: Yes | G39: Yes | H39: Travel Demand Management | I39: Regional | J39: ITS | K39: 0924-06-732 | L39: M025B | M39: Video Surveillance and Count Stations Phase II | N39: The project includes installation or integration of new count stations, dynamic message signs, hardware and software, conduit, fiber optic cable and the communication systems into the City of El Paso's Traffic Management Center (TMC) and TXDOT's Trans-Vista. The proposed locations include: Resler & Helen of Troy, Doniphan & Sunland Park, Diana & Railroad, Airport & Airway, Resler & High Ridge, Mesa & Executive Center, Montana & Copia, Airway & Boeing, Resler & Redd Rd., Paisano & Santa Fe, Montana & Reynolds, Edgemere & Airway Redd Rd. & Thorn, Hondo Pass & Dyer, Montana & Trowbridge, Airway & Viscount, Redd Rd. & Doniphan, Hondo Pass & Railroad, Alameda & Piedras, Hawkins & Edgemere, Hawkins & Viscount, Hawkins & Market, Hawkins & Phoenix, Lee Trevino & Yermoland, Lee Trevino & Castner, George Dieter & Trawood, George Dieter & Rojas, Redd & Derrickson, Redd Rd (60 Ft west of Southwestern ) Yarbrough (30 Ft. SW of North Loop) Resler & Plaza Taurina, Viscount ( 100 Ft. east of Golden Key), Viscount & Grover. | O39: Multiple roadway intersections within the community as described in the project description. | P39: Multiple roadway intersections within the community as described in the project description. | Q39: N/A | R39: =2779549+1125382 -> 3904931 | S39: 3904931 | T39: 191342 | U39: 0 | V39: 4096273 | W39: COEP | X39: 2028 | AD39: NO | AE39: NO | AF39: No | AG39: No | AI39: YES | AJ39: YES | AK39: NO | AL39: NO | AM39: NO | AN39: =IF(Q39="ALL",R39/28,IF(OR(X39=2025, X39=2026, X39=2027, X39=2028),0,X39-2022)) -> 0 | AO39: 0.04 | AP39: 4096273 | AQ39: TRUE | AR39: 3904931 | AS39: -191342 | AT39: =SUM(AU39:CC39) -> 3904931 | BQ39: 3904931
A40: Maint./Rehab. | B40: Rehabilitation | C40: Major Collector | E40: 79 | F40: No | H40: Traffic Operations | I40: East | J40: Exempt | L40: R402X | M40: Saul Kleinfeld Street Improvements | N40: Project includes complete roadway reconstruction, parkway improvements, bicycle facilities, landscaping and irrigation, and striping on Saul Kleinfeld Dr from Montwood Dr to Pebble Hills Blvd. | O40: Montwood Dr | P40: Pebble Hills Blvd | Q40: N/A | R40: 13751108 | S40: 18095520.02 | T40: =IF($AJ40="YES",TXPE*$AR40,IF($AJ40="ONLY",$AR40,0)) -> 886680.4808 | U40: 0 | V40: 18982200.5 | W40: COEP | X40: 2029 | AD40: NO | AE40: NO | AF40: No | AG40: No | AI40: YES | AJ40: YES | AK40: NO | AL40: NO | AM40: NO | AN40: 7 | AO40: 0.04 | AP40: 18982200.5 | AQ40: TRUE | AR40: 18095520.02 | AS40: NOT IN TIP | AT40: =SUM(AU40:CC40) -> 18982200 | BR40: 18982200
A41: Added Capacity | B41: Minor Arterial | C41: Local | D41: 8 | E41: 77 | F41: Yes | G41: Yes | H41: Road Capacity | I41: West | J41: Capacity Changes | L41: A126X-CAP | M41: Montecillo Extension (I-10 to Montecillo Blvd) Construction | N41: Build 4-Lane Divided. This is for the construction phase only. | O41: I-10 | P41: Montecillo Blvd | Q41: 2032 | R41: 29763340 | S41: 40733185.96 | T41: 4235207 | U41: 10000 | V41: 44978392.96 | W41: COEP | X41: 2030 | Y41: 2024-03-01 | Z41: Amend to change project name, project limits, and update project cost in FY 2030. | AD41: NO | AE41: NO | AF41: No | AG41: No | AI41: ONLY | AJ41: NO | AK41: NO | AL41: NO | AM41: NO | AN41: 8 | AO41: 0.04 | AP41: 44978392.96 | AQ41: TRUE | AR41: 40733185.96 | AS41: NOT IN TIP | AT41: =SUM(AU41:CC41) -> 44978392.96 | AW41: =V41 -> 44978392.96
A42: Added Capacity | B42: Minor Arterial | C42: Not Classified | E42: 79 | F42: No | G42: No | H42: Road Capacity | I42: East | J42: Capacity Changes | L42: A437B | M42: George Perry Extension Ph 2 | N42: Build 4-Lane Divided. | O42: Proposed Constitution Ave (from George Perry Extension Ph 1) | P42: Existing Iron Dust-Off | Q42: 2032 | R42: 18572593 | S42: 25417875.97 | T42: 3290020 | U42: 0 | V42: =SUM(S42:U42)+285413 -> 28993308.97 | W42: COEP | X42: 2030 | Y42: 2023-02-01 | Z42: Amend RMS 2050 MTP to change project ID, change project name, change project limits, and update TPC based on phases split in FY 2030 | AD42: NO | AE42: NO | AF42: No | AG42: No | AI42: YES | AJ42: YES | AK42: NO | AL42: NO | AM42: NO | AN42: 8 | AO42: 0.04 | AP42: 28993308.97 | AQ42: TRUE | AR42: 25417875.97 | AS42: NOT IN TIP | AT42: =SUM(AU42:BX42) -> 28993308.97 | AW42: =V42-BR42 -> 10001547.97 | BR42: 18991761
A43: Bike & Pedestrian | B43: Enhancements | C43: N/A | D43: 8 | E43: 77 | F43: Yes | H43: Travel Demand Management | I43: Central | J43: Bike/Ped | L43: E304X | M43: Downtown Bicycle Improvements Phase II | N43: Construct bicycle facilities downtown to include: buffered bike lanes, conventional bike lanes, bicycle boulevards, shared lane markings, and protected lanes. The project will include associated signage, wayfinding, striping, and intersection treatments. | O43: Myrtle from Campbell; Oregon from Missouri; Stanton from San Antonio; Franklin from Los Angeles | P43: Myrtle to Virginia; Oregon to Paisano; Stanton to Paisano; Franklin to Durango | Q43: 2040 | R43: 1350641.49 | S43: 2079250.52 | T43: 101883.2755 | U43: 0 | V43: 2181133.796 | W43: COEP | X43: 2033 | AD43: NO | AE43: NO | AF43: No | AG43: No | AI43: YES | AJ43: YES | AK43: NO | AL43: NO | AM43: NO | AN43: 11 | AO43: 0.04 | AP43: 2181133.796 | AQ43: TRUE | AR43: 2079250.52 | AS43: NOT IN TIP | AT43: =SUM(AU43:BX43) -> 2097244 | BQ43: 2097244
A44: Maint./Rehab. | B44: Rehabilitation | C44: Minor Arterial | E44: 79 | F44: No | H44: Traffic Operations | I44: East | J44: Exempt | L44: R402X | M44: Edgemere Street Improvements | N44: Project includes complete roadway reconstruction, parkway improvements, bicycle facilities, street illumination, landscaping and irrigation, and striping on Edgemere Blvd from McRae Blvd to Yarbrough Dr. | O44: McRae Blvd | P44: Yarbrough Dr | Q44: N/A | R44: 8707098.43 | S44: 13404178 | T44: 656804.7218 | U44: 0 | V44: 14060982.72 | W44: COEP | X44: 2033 | AD44: NO | AE44: NO | AF44: No | AG44: No | AI44: YES | AJ44: YES | AK44: NO | AL44: NO | AM44: NO | AN44: 11 | AO44: 0.04 | AP44: 14060982.72 | AQ44: TRUE | AR44: 13404178 | AS44: NOT IN TIP | AT44: =SUM(AU44:CB44) -> 17107335 | BR44: 17107335
A45: Added Capacity | B45: Freeway/Expressway | C45: Freeways and Expressways | D45: 3 | E45: 76 | F45: Yes | G45: Yes | H45: Road Capacity | I45: East | J45: Capacity Changes | K45: 0924-06-532 | L45: F405X-CAP | M45: GLOBAL REACH DR RECONSTRUCTION AND ADDITION OF FRONTAGE ROADS | N45: Reconstruction of existing mainlanes (6 lanes, 3 in each direction), construct 4 lane frontage roads (2 in each direction), and single lane direct connectors at SS 601 NB to WB and EB to SB. | O45: (ON GLOBAL REACH DR) US 62/180 MONTANA AVE | P45: SS 601 | Q45: 2040 | R45: 20076509 | S45: 30906863.22 | T45: 1514436.298 | U45: 0 | V45: 32421299.51 | W45: COEP | X45: 2033 | AD45: NO | AE45: NO | AF45: No | AG45: No | AI45: YES | AJ45: YES | AK45: NO | AL45: NO | AM45: NO | AN45: 11 | AO45: 0.04 | AP45: 32421299.51 | AQ45: TRUE | AR45: 30906863.22 | AS45: NOT IN TIP | AT45: =SUM(AU45:CC45) -> 41643621 | AW45: =41643621 -> 41643621
A46: Roadway Operations | B46: Bridge | C46: Principal Arterial | D46: 8 | E46: 77 | F46: Yes | H46: Traffic Operations | I46: Central | J46: Operational | K46: 0924-06-599 | L46: B300X | M46: MONTANA AVE. OVERPASS AT RAILROAD | N46: CONSTRUCT OVERPASS AT RAILROAD ON MONTANA AVE. | O46: COTTON RD | P46: PALM ST | Q46: N/A | R46: 17058307.7 | S46: 26260480.98 | T46: 1286763.568 | U46: 0 | V46: 27547244.55 | W46: COEP | X46: 2033 | AD46: NO | AE46: NO | AF46: No | AG46: No | AI46: YES | AJ46: YES | AK46: NO | AL46: NO | AM46: NO | AN46: 11 | AO46: 0.04 | AP46: 27547244.55 | AQ46: TRUE | AR46: 26260480.98 | AS46: NOT IN TIP | AT46: =SUM(AU46:CC46) -> 0
A47: Added Capacity | B47: Principal/Major Arterial | C47: Principal Arterial | D47: 6 | E47: 79 | F47: Yes | G47: Yes | H47: Road Capacity | I47: East | J47: Capacity Changes | L47: P443X-CAP | M47: Montwood Drive Widening | N47: Addition of one lane in each direction to increase capacity from 4 to 6 lanes and a bike facility within existing right of way. Project includes road rehabilitation and ADA compliant pedestrian ramps. | O47: Firehouse Drive | P47: Sun Fire Boulevard | Q47: 2040 | R47: 9433310 | S47: 14522147.34 | T47: 711585.2199 | U47: 0 | V47: 15233732.56 | W47: COEP | X47: 2033 | AD47: NO | AE47: NO | AF47: No | AG47: No | AI47: YES | AJ47: YES | AK47: NO | AL47: NO | AM47: NO | AN47: 11 | AO47: 0.04 | AP47: 15233732.56 | AQ47: TRUE | AR47: 14522147.34 | AS47: NOT IN TIP | AT47: =SUM(AU47:CC47) -> 0
A48: Bike & Pedestrian | B48: Enhancements | C48: N/A | D48: 3,7 | E48: 76 | F48: Yes | H48: Travel Demand Management | I48: Mission Valley | J48: Bike/Ped | L48: E501X-1 | M48: Playa Drain Hike and Bike Trail (Liberty-Whittier) | N48: Pedestrian and bicycle facilities with signage, sidewalks, landscaping , furnishings and Illumination. | O48: Liberty St. | P48: Whittier Dr. | Q48: N/A | R48: 870000 | S48: 1339325.029 | T48: 65626.92642 | U48: 0 | V48: 1404951.955 | W48: COEP | X48: 2033 | AD48: NO | AE48: NO | AF48: No | AG48: No | AI48: YES | AJ48: YES | AK48: NO | AL48: NO | AM48: NO | AN48: 11 | AO48: 0.04 | AP48: 1404951.955 | AQ48: TRUE | AR48: 1339325.029 | AS48: NOT IN TIP | AT48: =SUM(AU48:CB48) -> 0
A49: Bike | B49: Enhancements | C49: N/A | D49: 8 | E49: 77 | F49: Yes | H49: Travel Demand Management | I49: Central | J49: Bike/Ped | K49: 0924-06-571 | L49: E303X | M49: Stanton Two-Way Cycle Track Roadway Improvements | N49: Project includes installation of two-way cycle track facilities. Project will include road diet reduction from 3 lanes to 2 lanes. | O49: San Antonio Avenue | P49: Rio Grande Avenue | Q49: 2040 | R49: 597282 | S49: 919488.1977 | T49: 45054.92169 | U49: 0 | V49: 964543.1193 | W49: COEP | X49: 2033 | AD49: NO | AE49: NO | AF49: No | AG49: No | AI49: YES | AJ49: YES | AK49: NO | AL49: NO | AM49: NO | AN49: 11 | AO49: 0.04 | AP49: 964543.1193 | AQ49: TRUE | AR49: =IF(AN49<28,R49*(1+AO49)^(AN49),AN49) -> 919488.1977 | AS49: =IF(AND(AN49=0),ROUND(AT49-V49,0),"NOT IN TIP") -> NOT IN TIP | AT49: =SUM(AU49:BX49) -> 626549 | BQ49: 626549
A50: Maint./Rehab. | B50: Rehabilitation | C50: Principal Arterial | E50: 77 | F50: No | H50: Traffic Operations | I50: West | J50: Exempt | L50: R100X | M50: Sunland Park Street Improvements | N50: Project includes complete roadway reconstruction, sidewalk improvements, shared use path, street illumintation, landscaping and irrigation, and striping on Sunland Park Dr. | O50: Mesa St | P50: Cadiz St | Q50: N/A | R50: 9408808 | S50: 14484427.64 | T50: 709736.9544 | U50: 0 | V50: 15194164.6 | W50: COEP | X50: 2033 | AD50: NO | AE50: NO | AF50: No | AG50: No | AI50: YES | AJ50: YES | AK50: NO | AL50: NO | AM50: NO | AN50: 11 | AO50: 0.04 | AP50: 15194164.6 | AQ50: TRUE | AR50: 14484427.64 | AS50: NOT IN TIP | AT50: =SUM(AU50:CC50) -> 15013700 | BR50: 15013700
A51: Maint./Rehab. | B51: Rehabilitation | C51: Minor Arterial | E51: 76 | H51: Traffic Operations | I51: East | J51: Operational | L51: R403X | M51: Trowbridge Dr I-10 to Marlow Street Improvements | N51: Project includes complete roadway reconstruction, parkway improvements, bicycle facilities, street illumination, landscaping and irrigation, and striping on Trowbridge Dr and Trowbridge Ave from Marlow Rd to Gateway Blvd East | O51: Marlow Rd | P51: Gateway Blvd East | Q51: N/A | R51: 8531333 | S51: 13133595.19 | T51: 643546.1644 | U51: 0 | V51: 13777141.36 | W51: COEP | X51: 2033 | AD51: NO | AE51: NO | AF51: No | AG51: No | AI51: YES | AJ51: YES | AK51: NO | AL51: NO | AM51: NO | AN51: 11 | AO51: 0.04 | AP51: 13777141.36 | AQ51: TRUE | AR51: 13133595.19 | AS51: NOT IN TIP | AT51: =SUM(AU51:BX51) -> 0
A52: Bike & Pedestrian | B52: Enhancements | C52: N/A | D52: 1,8 | E52: 77,78 | F52: Yes | H52: Travel Demand Management | I52: West | J52: Bike/Ped | L52: E110X | M52: Westwind Bicycle Improvements | N52: Striping, pedestrian, signal and signage improvements to incorporate bicycle facilities. | O52: Redd Rd | P52: Thunderbird Dr. | Q52: 2040 | R52: 1737664 | S52: 2675053.893 | T52: 131077.6408 | U52: 0 | V52: 2806131.534 | W52: COEP | X52: 2033 | AD52: NO | AE52: NO | AF52: No | AG52: No | AI52: YES | AJ52: YES | AK52: NO | AL52: NO | AM52: NO | AN52: 11 | AO52: 0.04 | AP52: 2806131.534 | AQ52: TRUE | AR52: 2675053.893 | AS52: NOT IN TIP | AT52: =SUM(AU52:BX52) -> 2698202 | BQ52: 2698202
A53: Roadway Operations | B53: Bridge | C53: Principal Arterial | E53: 76 | H53: Traffic Operations | I53: Mission Valley | J53: Operational | L53: B504X | M53: Zaragoza Rd. RR Overpass | N53: Construction of a new bridge over the Railroad | O53: Rabe Ct. | P53: Sunland Rd | Q53: N/A | R53: 16845252 | S53: 25932491.52 | T53: 1270692.085 | U53: 0 | V53: 27203183.61 | W53: COEP | X53: 2033 | AD53: NO | AE53: NO | AF53: No | AG53: No | AI53: YES | AJ53: YES | AK53: NO | AL53: NO | AM53: NO | AN53: 11 | AO53: 0.04 | AP53: 27203183.61 | AQ53: TRUE | AR53: 25932491.52 | AS53: NOT IN TIP | AT53: =SUM(AU53:CC53) -> 0
A54: Transit Operations | B54: Transit | C54: N/A | D54: N/A | E54: N/A | F54: Yes | H54: Public Transportation | I54: Regional | J54: Transit | K54: 0924-06-612 | L54: T001-2 | M54: Regional Transit Start-up assistance for FY22 | N54: Establish Transit Service to provide a more efficient, single, seamless, transit system in El Paso County, Horizon City, Vinton, Anthony, San Elizario, Clint, and Socorro. | O54: County wide | P54: County wide | Q54: N/A | R54: 1000000 | S54: 1000000 | T54: 0 | U54: 0 | V54: 1000000 | W54: County EP | X54: 2022 | AD54: NO | AE54: NO | AF54: No | AG54: No | AI54: ONLY | AJ54: NO | AK54: NO | AL54: NO | AM54: NO | AN54: =IF(Q54="ALL",R54/28,IF(OR(X54=2013,X54=2014,X54=2015,X54=2016, X54=2017, X54=2018, X54=2019, X54=2020, X54=2021, X54=2022),0,X54-2020)) -> 0 | AO54: 0.04 | AP54: 1000000 | AQ54: TRUE | AR54: 1000000 | AS54: 0 | AT54: 1000000 | BQ54: 1000000
A55: Added Capacity | B55: Principal/Major Arterial | C55: Major Collector | E55: 75 | F55: Yes | H55: Road Capacity | I55: East | J55: Capacity Changes | K55: 0924-06-564 | L55: P004X-CAP-1 | M55: John Hayes (Darrington/Berryville)(Construction Phase 1) | N55: Build 2-lane roadway (1 lane in each direction with raised median). Existing SB section from Montwood to 0.5 miles south will remain as 2-lanes. | O55: Pellicano Dr. | P55: Montwood | Q55: 2027 | R55: 18000000 | S55: 18000000 | T55: 0 | U55: =IF($AL55="YES",TXRow*$AR55,IF($AL55="ONLY",$AR55,0)) -> 0 | V55: 18000000 | W55: County EP | X55: 2023 | Y55: 2022-11-01 | Z55: Admin amend the RMS 2050 MTP and RMS 23-26 TIP to add $6,000,000 CAT 7 STP – MM funds in FY 2023 (TPC has been updated to reflect latest cost estimate) | AD55: NO | AE55: NO | AG55: No | AI55: YES | AJ55: YES | AK55: NO | AL55: NO | AM55: NO | AN55: =IF(Q55="ALL",R55/28,IF(OR(X55=2023,X55=2024,X55=2025,X55=2026),0,X55-2022)) -> 0 | AO55: 0.04 | AP55: 18000000 | AQ55: TRUE | AR55: 18000000 | AS55: 0 | AT55: 18000000 | BR55: 14816919 | BS55: 3183081
A56: Transit Operations | B56: Transit | C56: N/A | D56: N/A | E56: N/A | F56: Yes | H56: Public Transportation | I56: Regional | J56: Transit | K56: 0924-06-613 | L56: T001-3 | M56: Regional Transit Start-up assistance for FY23 | N56: Establish Transit Service to provide a more efficient, single, seamless, transit system in El Paso County, Horizon City, Vinton, Anthony, San Elizario, Clint, and Socorro. | O56: County wide | P56: County wide | Q56: N/A | R56: =2245213+1860141 -> 4105354 | S56: =2245213+1860141 -> 4105354 | T56: 0 | U56: 0 | V56: =SUM(S56:U56) -> 4105354 | W56: County EP | X56: 2024 | Y56: 2023-02-01 | Z56: Admin Amend RMS 2050 MTP and RMS 23-26 TIP to move from FY 2023 to FY2024 | AA56: 2022-07-01 | AB56: Amend RMS 2050 MTP and RMS 23-26 TIP to add $1,860,141 CAT 5 CMAQ funds in FY 2023 - EXEMPT | AD56: NO | AE56: NO | AF56: No | AG56: No | AI56: ONLY | AJ56: NO | AK56: NO | AL56: NO | AM56: NO | AN56: =IF(Q56="ALL",R56/28,IF(OR(X56=2023, X56=2024, X56=2025, X56=2026),0,X56-2022)) -> 0 | AO56: 0.04 | AP56: 4105354 | AQ56: TRUE | AR56: 4105354 | AS56: 0 | AT56: 4105354 | BQ56: =2245213+1860141 -> 4105354
A57: Added Capacity | B57: Principal/Major Arterial | C57: Major Collector | E57: 75 | F57: Yes | H57: Road Capacity | I57: East | J57: Capacity Changes | K57: 0924-06-565 | L57: P004X-CAP-2 | M57: John Hayes (Darrington/Berryville)(Construction Phase 2) | N57: Widen from 1-lane to 3-lanes in each direction with shared use path. Existing SB section from Montwood to 0.5 miles south will be restriped as 3-lanes | O57: Pellicano Dr. | P57: Montwood | Q57: 2027 | R57: 21000000 | S57: =IF(OR(AI57="YES",AI57="ONLY"),AR57,IF(OR(AND(AI57="NO",AJ57="ONLY",AL57="NO"),AND(AI57="NO",AJ57="NO",AL57="ONLY"),AND(AI57="NO",AJ57="YES",AL57="YES")),0,R57)) -> 21000000 | T57: =IF($AJ57="YES",TXPE*$AR57,IF($AJ57="ONLY",$AR57,0)) -> 0 | U57: =IF($AL57="YES",TXRow*$AR57,IF($AL57="ONLY",$AR57,0)) -> 0 | V57: =SUM(S57:U57) -> 21000000 | W57: County EP | X57: 2025 | Y57: 2024-05-01 | Z57: Amend RMS 2050 MTP and RMS 23-26 TIP to replace $2,800,000 of CAT 7 STP with CAT 10 CRP funds in FY 2025 | AA57: 2023-02-01 | AB57: Admin amend to add $3,000,000 of CAT 7 STP-MM funds. | AD57: NO | AE57: NO | AG57: No | AI57: YES | AJ57: NO | AK57: NO | AL57: NO | AM57: NO | AN57: =IF(Q57="ALL",R57/28,IF(OR(X57=2023, X57=2024, X57=2025, X57=2026),0,X57-2022)) -> 0 | AO57: 0.04 | AP57: 21000000 | AQ57: TRUE | AR57: 21000000 | AS57: 0 | AT57: 21000000 | BP57: 2800000 | BR57: =21000000-2800000 -> 18200000
A58: Added Capacity | B58: Principal/Major Arterial | C58: Major Collector | D58: 5 | E58: 75 | F58: Yes | H58: Road Capacity | I58: East | J58: Capacity Changes | K58: 0924-06-621 | L58: P002X-CAP | M58: Tierra Este (Arterial 1) | N58: Build a 4-lane roadway (2-lanes each direction) from Cozy Cove Ave. to Montwood Dr., and 6-lane roadway (3-lanes in each direction) from Montwood Dr. to Pellicano Dr. with bike lanes. | O58: Cozy Cove Ave. | P58: Pellicano Dr. | Q58: 2032 | R58: 34000000 | S58: 34000000 | T58: 0 | U58: 9000000 | V58: 43000000 | W58: County EP | X58: 2028 | Y58: 2024-11-01 | Z58: Administratively amend RMS 2050 MTP, Amended RMS 2050 MTP and 2025-2028 TIP to to reduce Categroy 7 STP funds from $34,000,000 to $31,700,000 and increase Category 10 CRP funds from $0 to $2,300,000 and Change FY from 2027 to 2028 | AA58: 2024-02-01 | AB58: Program in RMS 2050 MTP in FY 2027 | AD58: NO | AE58: NO | AG58: No | AI58: ONLY | AJ58: NO | AK58: NO | AL58: NO | AM58: NO | AN58: 0 | AO58: 0.04 | AP58: 43000000 | AQ58: TRUE | AR58: 34000000 | AS58: -9000000 | AT58: 34000000 | BP58: 2300000 | BR58: 31700000
A59: Added Capacity | B59: Minor Arterial | C59: Major Collector | D59: 6 | E59: 75 | F59: Yes | H59: Road Capacity | I59: East | J59: Capacity Changes | K59: 0924-06-637 | L59: A434X-CAP-1 | M59: Bob Hope Ext. Phase I | N59: Build 6- Lane divided with bike lanes | O59: Loop 375 | P59: Mission Ridge Blvd (Arterial 1) | Q59: 2032 | R59: 7417903.5 | S59: 9761454.951 | T59: 0 | U59: 0 | V59: 9761454.951 | W59: County EP | X59: 2029 | AD59: NO | AE59: NO | AG59: No | AI59: ONLY | AJ59: NO | AK59: NO | AL59: NO | AM59: NO | AN59: =IF(Q59="ALL",R59/28,IF(OR(X59=2021, X59=2022, X59=2023, X59=2024),0,X59-2022)) -> 7 | AO59: 0.04 | AP59: 9761454.951 | AQ59: TRUE | AR59: 9761454.951 | AS59: NOT IN TIP | AT59: 10892105 | BR59: 10892105
A60: Added Capacity | B60: Minor Arterial | C60: Major Collector | E60: 75 | F60: No | H60: Road Capacity | I60: East | J60: Capacity Changes | L60: A438X | M60: Montwood Ext. | N60: Build 6-Lane divided with bike lanes | O60: Sheyra St. | P60: Rich Beam | Q60: 2032 | R60: 14488636 | S60: 19828698.81 | T60: 0 | U60: 0 | V60: 19828698.81 | W60: County EP | X60: 2030 | AD60: NO | AE60: NO | AG60: No | AI60: YES | AJ60: NO | AK60: NO | AL60: NO | AM60: NO | AN60: 8 | AO60: 0.04 | AP60: 9933677.023 | AQ60: TRUE | AR60: 19828698.81 | AS60: NOT IN TIP | AT60: 19828699 | BR60: 19828699
A61: Added Capacity | B61: Minor Arterial | C61: Major Collector | E61: 75 | F61: No | H61: Road Capacity | I61: East | J61: Capacity Changes | L61: A439A | M61: Ascension Widening Phase 1 | N61: Build/Widening of a 2-lane road to a 4-Lane divided with bike lanes | O61: Horizon Blvd | P61: Pellicano Dr. | Q61: 2040 | R61: 17051499.45 | S61: 26249999.99 | T61: 0 | U61: 0 | V61: 26249999.99 | W61: County EP | X61: 2033 | AD61: NO | AE61: NO | AG61: No | AI61: YES | AJ61: NO | AK61: NO | AL61: NO | AM61: NO | AN61: 11 | AO61: 0.04 | AP61: 159321966 | AQ61: TRUE | AR61: 26249999.99 | AS61: NOT IN TIP | AT61: 0
A62: Added Capacity | B62: Minor Arterial | C62: Major Collector | D62: 6 | E62: 75 | F62: Yes | H62: Road Capacity | I62: East | J62: Capacity Changes | K62: 0924-06-637 | L62: A434X-CAP-2 | M62: Bob Hope Ext. Phase II | N62: Build 4- Lane divided with bike lanes | O62: Peyton | P62: Berryville/Darrington | Q62: 2040 | R62: 7527407 | S62: 11588097.24 | T62: 0 | U62: 0 | V62: 11588097.24 | W62: County EP | X62: 2033 | AD62: NO | AE62: NO | AG62: No | AI62: ONLY | AJ62: NO | AK62: NO | AL62: NO | AM62: NO | AN62: 11 | AO62: 0.04 | AP62: =IF(AND(AK62="NO",AM62="NO"),V62,IF(AND(AK62="NO",AM62="YES"),S62+T62,IF(AND(AM62="NO",AK62="YES"),S62+U62,AR62))) -> 11588097.24 | AQ62: =EXACT(AP62,V62) -> TRUE | AR62: 11588097.24 | AS62: NOT IN TIP | AT62: 11852739 | BR62: 11852739
A63: Added Capacity | B63: Minor Arterial | C63: Major Collector | E63: 75 | F63: Yes | H63: Road Capacity | I63: Mission Valley | J63: Capacity Changes | K63: 1281-01-017 | L63: P520B-2-15A | M63: FM1110 New Location (SH20 to FM76) | N63: CONSTRUCT A NEW 4 LANE DIVIDED ARTERIAL | O63: SH 20 (ALAMEDA AVE) | P63: FM 76 (NORTH LOOP) | Q63: 2040 | R63: 19162637.48 | S63: 29500000 | T63: 1445500 | U63: 0 | V63: 30945500 | W63: County EP | X63: 2033 | AD63: NO | AE63: NO | AG63: No | AI63: YES | AJ63: YES | AK63: YES | AL63: NO | AM63: NO | AN63: 11 | AO63: 0.04 | AP63: =IF(AND(AK63="NO",AM63="NO"),V63,IF(AND(AK63="NO",AM63="YES"),S63+T63,IF(AND(AM63="NO",AK63="YES"),S63+U63,AR63))) -> 29500000 | AQ63: =EXACT(AP63,V63) -> FALSE | AR63: 29500000 | AS63: NOT IN TIP | AT63: 0
A64: Added Capacity | B64: Principal/Major Arterial | C64: Major Collector | E64: 75 | F64: Yes | H64: Road Capacity | I64: Mission Valley | J64: Capacity Changes | K64: 1281-02-007 | L64: P520B-1-15A | M64: FM1110 Widening (FM76 to IH10) | N64: CONSTRUCT AND UPGRADE TO 4 LANE DIVIDED ARTERIAL | O64: FM 76 (NORTH LOOP) | P64: I-10 | Q64: 2040 | R64: 5500000 | S64: 8466997.31 | T64: 414882.8682 | U64: 0 | V64: 8881880.178 | W64: County EP | X64: 2033 | AD64: NO | AE64: NO | AG64: No | AI64: YES | AJ64: YES | AK64: YES | AL64: NO | AM64: NO | AN64: 11 | AO64: 0.04 | AP64: =IF(AND(AK64="NO",AM64="NO"),V64,IF(AND(AK64="NO",AM64="YES"),S64+T64,IF(AND(AM64="NO",AK64="YES"),S64+U64,AR64))) -> 8466997.31 | AQ64: =EXACT(AP64,V64) -> FALSE | AR64: 8466997.31 | AS64: NOT IN TIP | AT64: 7019479 | AW64: =7019479 -> 7019479
A65: Added Capacity | B65: Principal/Major Arterial | C65: Not Classified | E65: 75 | F65: No | H65: Road Capacity | I65: East | J65: Capacity Changes | L65: A440X | M65: Peyton Rd. Widening/Reconstruction | N65: Widening road from 2-lane to 4-Lane with bike lanes | O65: Mark Twain Ave. | P65: Horizon Blvd. | Q65: 2040 | R65: 12073864 | S65: 18587158.91 | T65: 0 | U65: 0 | V65: 18587158.91 | W65: County EP | X65: 2033 | AD65: NO | AE65: NO | AG65: No | AI65: YES | AJ65: NO | AK65: NO | AL65: NO | AM65: NO | AN65: 11 | AO65: 0.04 | AP65: 24459433.1 | AQ65: TRUE | AR65: 18587158.91 | AS65: NOT IN TIP | AT65: 0
A66: Added Capacity | B66: Minor Arterial | C66: Minor Arterial | E66: 75 | F66: No | H66: Road Capacity | I66: East | J66: Capacity Changes | L66: A436X | M66: Vista del Sol Ext. | N66: Build 4-Lane divided with bike lanes | O66: Cherrington St. | P66: Horizon Mesa Dr. | Q66: 2040 | R66: =10718085.37 -> 10718085.37 | S66: 16500000 | T66: 808499.9999 | U66: 0 | V66: 17308500 | W66: County EP | X66: 2033 | AD66: NO | AE66: NO | AG66: No | AI66: YES | AJ66: YES | AK66: NO | AL66: NO | AM66: NO | AN66: 11 | AO66: 0.04 | AP66: 22581389.33 | AQ66: TRUE | AR66: 16500000 | AS66: NOT IN TIP | AT66: 0
A67: Added Capacity | B67: Minor Arterial | C67: Not Classified | E67: 78 | H67: Road Capacity | I67: West | J67: Capacity Changes | L67: A138X | M67: Westway Blvd. Widening/Reconstruction | N67: Widen from 2-lanes to 3-lanes in each direction from Desert Blvd. to De Alva Dr. and from 1-lane to 3-lanes each direction from De alva Dr. to Tom Mays Dr. divided roadway with bike lanes. | O67: Desert Blvd | P67: Tom Mays Dr. | Q67: 2040 | R67: 5965909 | S67: 9184242.81 | T67: 0 | U67: 0 | V67: 9184242.81 | W67: County EP | X67: 2033 | AD67: NO | AE67: NO | AG67: No | AI67: YES | AJ67: NO | AK67: NO | AL67: NO | AM67: NO | AN67: 11 | AO67: 0.04 | AP67: 9933677.023 | AQ67: TRUE | AR67: 9184242.81 | AS67: NOT IN TIP | AT67: =SUM(AU67:CC67) -> 0
A68: Added Capacity | B68: Minor Arterial | C68: Major Collector | E68: 75 | F68: No | H68: Road Capacity | I68: East | J68: Capacity Changes | L68: A439B | M68: Ascension Widening Phase 2 | N68: Build/Widening of a 2-lane road to a 4-Lane divided with bike lanes | O68: Pellicano Dr. | P68: Greg St | Q68: 2050 | R68: 21803886.35 | S68: 45937499.99 | T68: 0 | U68: 0 | V68: 45937499.99 | W68: County EP | X68: 2041 | AD68: NO | AE68: NO | AG68: No | AI68: YES | AJ68: NO | AK68: NO | AL68: NO | AM68: NO | AN68: 19 | AO68: 0.04 | AP68: 159321966 | AQ68: TRUE | AR68: 45937499.99 | AS68: NOT IN TIP | AT68: 0 | BY68: =+T68 -> 0
A69: Added Capacity | B69: Minor Arterial | C69: Minor Arterial | D69: N/A | E69: 75 | F69: Yes | H69: Road Capacity | I69: East | J69: Capacity Changes | L69: A407X-25A | M69: Darrington Widening | N69: Widen from 2-lane to 4-Lane divided | O69: LTV Rd | P69: IH-10 | Q69: 2050 | R69: 29006249.9 | S69: 61111793.7 | T69: 0 | U69: 0 | V69: 61111793.7 | W69: County EP | X69: 2041 | AD69: NO | AE69: NO | AG69: No | AI69: YES | AJ69: NO | AK69: NO | AL69: NO | AM69: NO | AN69: 19 | AO69: 0.04 | AP69: =IF(AND(AK69="NO",AM69="NO"),V69,IF(AND(AK69="NO",AM69="YES"),S69+T69,IF(AND(AM69="NO",AK69="YES"),S69+U69,AR69))) -> 61111793.7 | AQ69: TRUE | AR69: 61111793.7 | AS69: NOT IN TIP | AT69: 0 | BY69: =T69 -> 0
A70: Added Capacity | B70: Minor Arterial | C70: Not Classified | E70: 78 | F70: No | H70: Road Capacity | I70: West | J70: Capacity Changes | L70: A139X | M70: Los Mochis Ext. | N70: Build 4-Lane divided with bike lanes | O70: I-10 | P70: Northwestern Dr. | Q70: 2050 | R70: =5250000/1.04^19 -> 2491872.726 | S70: 5250000 | T70: 257250 | U70: 0 | V70: 5507250 | W70: County EP | X70: 2041 | AD70: NO | AE70: NO | AG70: No | AI70: YES | AJ70: YES | AK70: NO | AL70: NO | AM70: NO | AN70: 19 | AO70: 0.04 | AP70: 5507250 | AQ70: TRUE | AR70: 5250000 | AS70: NOT IN TIP | AT70: 257250 | BY70: =T70 -> 257250
A71: Added Capacity | B71: Minor Arterial | C71: Minor Arterial | D71: 1 | E71: 78 | F71: Yes | H71: Road Capacity | I71: West | J71: Capacity Changes | K71: 0924-06-638 | L71: A135X-CAP | M71: Tom Mays/Northwestern Ext.(Construction) | N71: Build 2- Lane divided with bike lanes | O71: Westway Blvd | P71: Transmountain (Loop 375) | Q71: 2040 | R71: 10360000 | S71: 15948744.02 | T71: 0 | U71: 0 | V71: 15948744.02 | W71: County EP & COEP | X71: 2033 | AD71: NO | AE71: NO | AG71: No | AI71: YES | AJ71: NO | AK71: NO | AL71: NO | AM71: NO | AN71: 11 | AO71: 0.04 | AP71: 15948744.02 | AQ71: =EXACT(AP71,V71) -> TRUE | AR71: 15948744.02 | AS71: NOT IN TIP | AT71: 0
A72: Bike & Pedestrian | B72: Miscellaneous | C72: N/A | D72: 8 | E72: 77 | F72: Yes | H72: Travel Demand Management | I72: Central | J72: Other | L72: M308X | M72: Downtown Deck Plaza | N72: To construct a a Deck Plaza over the sunken I-10 in the downtown area. The proposed deck would add about twelve acres, including amenities such as green space, public gathering space, and entertainment venues. | O72: Prospect Street | P72: Campbell Street | Q72: N/A | R72: =167000000/1.04^3 -> 148462391.9 | S72: 167000000 | T72: 1800000 | U72: 0 | V72: 168800000 | W72: Downtown Deck Plaza Foundation | X72: 2025 | Y72: 2022-07-01 | Z72: Program in RMS 2050 MTP and RMS 23-26 TIP in FY 2025 | AD72: NO | AE72: NO | AG72: No | AI72: YES | AJ72: YES | AK72: NO | AL72: NO | AM72: NO | AN72: 3 | AO72: 0.04 | AP72: 168800000 | AQ72: TRUE | AR72: 167000000 | AS72: NOT IN TIP | AT72: 168800000 | AW72: =V72 -> 168800000
A73: Study | B73: Border Crossings | C73: N/A | F73: No | G73: No | H73: Traffic Operations | I73: Regional | J73: Exempt | K73: 0924-06-738 | L73: C407X | M73: International Border Crossings System-wide Improvements Analysis | N73: The study will analyze current conditions on all crossings within the EPMPO region as a system and identify operational and infrastructure improvements to each individual crossing. | O73: El Paso MPO study area | P73: El Paso MPO study area | Q73: N/A | R73: 2000000 | S73: 2000000 | T73: 0 | U73: 0 | V73: 2000000 | W73: EPMPO | X73: 2025 | Y73: 2025-02-01 | Z73: Program in to the RMS 25-28 TIP and 25-28 STIP, and amend FY in RMS 2050 MTP, and the amended RMS 2050 MTP in FY 2025. | AA73: 2023-07-01 | AB73: Admin Amend RMS 2050 MTP, 23-26 TIP to move to FY 2024 - EXEMPT | AD73: NO | AE73: NO | AF73: No | AG73: No | AI73: ONLY | AJ73: NO | AK73: NO | AL73: NO | AM73: NO | AN73: 3 | AO73: 0.04 | AP73: =IF(AND(AK73="NO",AM73="NO"),V73,IF(AND(AK73="NO",AM73="YES"),S73+T73,IF(AND(AM73="NO",AK73="YES"),S73+U73,AR73))) -> 2000000 | AQ73: =EXACT(AP73,V73) -> TRUE | AR73: =IF(AN73<28,R73*(1+AO73)^(AN73),AN73) -> 2249728 | AS73: =IF(AND(AN73=0),ROUND(AT73-V73,0),"NOT IN TIP") -> NOT IN TIP | AT73: 2000000 | BR73: 2000000
A74: Maint./Rehab. | B74: Minor Arterial | C74: Minor Arterial | D74: N/A | E74: 75 | F74: Yes | H74: Traffic Operations | I74: East | J74: Exempt | K74: 0924-06-587 | L74: A432X | M74: N. Darrington Reconstruction | N74: Reconstruction of an existing 4-lane roadway | O74: Eastlake Boulevard | P74: Oxbow Drive | Q74: N/A | R74: 20450000 | S74: 20450000 | T74: 2471000 | U74: 1250000 | V74: 24171000 | W74: Horizon | X74: 2023 | Y74: 2023-05-01 | Z74: Amend RMS 2050 MTP and 23-26 TIP to add ROW phase using CAT 3 Lcl Contribution funds in FY 2023 | AA74: 2023-02-01 | AB74: Amend RMS 2050 MTP, 23-26 TIP to program in FY 2023 - EXEMPT | AD74: NO | AE74: NO | AG74: No | AI74: YES | AJ74: YES | AK74: NO | AL74: YES | AM74: NO | AN74: =IF(Q74="ALL",R74/28,IF(OR(X74=2023, X74=2024, X74=2025, X74=2026),0,X74-2022)) -> 0 | AO74: 0.04 | AP74: 24171000 | AQ74: TRUE | AR74: 20450000 | AS74: -3450000 | AT74: 20721000 | BR74: 13816919 | BS74: 3183081 | BZ74: 2471000 | CA74: 1250000
A75: Added Capacity | B75: Minor Arterial | C75: Not Classified | E75: 75 | F75: No | G75: No | H75: Road Capacity | I75: East | J75: Capacity Changes | L75: M408X | M75: Horizon City TOD Design | N75: Includes the design of two complete streets, Dilley Road and Delake Street and the design of the TOD Transit Plaza, to include amenities and utilities. | O75: Darrington Road | P75: Rodman Street | Q75: N/A | R75: 0 | S75: =IF(OR(AI75="YES",AI75="ONLY"),AR75,IF(OR(AND(AI75="NO",AJ75="ONLY",AL75="NO"),AND(AI75="NO",AJ75="NO",AL75="ONLY"),AND(AI75="NO",AJ75="YES",AL75="YES")),0,R75)) -> 0 | T75: 1750000 | U75: 0 | V75: =SUM(S75:U75) -> 1750000 | W75: Horizon | X75: 2024 | Y75: 2023-02-01 | Z75: Amend RMS 2050 MTP, 23-26 TIP to program in FY 2024 | AA75: 2023-02-01 | AB75: Amend RMS 2050 MTP, 23-26 TIP to program in FY 2023 | AD75: NO | AE75: NO | AG75: No | AI75: NO | AJ75: ONLY | AK75: NO | AL75: NO | AM75: NO | AN75: =IF(Q75="ALL",R75/28,IF(OR(X75=2023, X75=2024, X75=2025, X75=2026),0,X75-2022)) -> 0 | AO75: 0.04 | AP75: =IF(AND(AK75="NO",AM75="NO"),V75,IF(AND(AK75="NO",AM75="YES"),S75+T75,IF(AND(AM75="NO",AK75="YES"),S75+U75,AR75))) -> 1750000 | AQ75: =EXACT(AP75,V75) -> TRUE | AR75: =IF(AN75<28,R75*(1+AO75)^(AN75),AN75) -> 0 | AS75: =IF(AND(AN75=0),ROUND(AT75-V75,0),"NOT IN TIP") -> 0 | AT75: 1750000 | AW75: 1750000
A76: Added Capacity | B76: Minor Arterial | C76: Not Classified | E76: 75 | F76: No | H76: Road Capacity | I76: East | J76: Capacity Changes | K76: 0924-06-691 | L76: A442X | M76: Delake Street Construction | N76: Construction of a two lane roadway with enhanced pedestrian facilities, bike lanes and illumination to provide access to the Horizon City Transit Oriented Town Center. | O76: Darrington Road | P76: Rodman Street | Q76: 2032 | R76: =3219292+1512821+646128 -> 5378241 | S76: 5378241 | T76: 1749999 | U76: 119539 | V76: 7247779 | W76: Horizon | X76: 2025 | Y76: 2024-02-01 | Z76: Amend the RMS 2050 MTP, 23-26 TIP, and 23-26 STIP to change project name, description, and reduce CAT 7 STP MM funds in FY 2025 | AA76: 2022-07-01 | AB76: Program in RMS 2050 MTP and RMS 23-26 TIP in FY 2025 | AD76: NO | AE76: NO | AG76: No | AI76: YES | AJ76: YES | AK76: NO | AL76: YES | AM76: NO | AN76: =IF(Q76="ALL",R76/28,IF(OR(X76=2023, X76=2024, X76=2025, X76=2026),0,X76-2022)) -> 0 | AO76: 0.04 | AP76: 7247779 | AQ76: TRUE | AR76: 5378241 | AS76: -1749998 | AT76: 5497781 | BR76: 5497781
A77: Transit Operations | B77: Transit | C77: N/A | F77: No | H77: Public Transportation | J77: Transit | K77: 0924-06-743 | L77: T410X | M77: Horizon City Transit Plaza | N77: Development of Transit Plaza with parking within the Horizon Country Club Estates Subdivision(s) | O77: Bordered by Darrington Road (west) and Rodman Street (east) | P77: Bordered by Horizon Boulevard (south) | Q77: N/A | R77: 3516225 | S77: =IF(OR(AI77="YES",AI77="ONLY"),AR77,IF(OR(AND(AI77="NO",AJ77="ONLY",AL77="NO"),AND(AI77="NO",AJ77="NO",AL77="ONLY"),AND(AI77="NO",AJ77="YES",AL77="YES")),0,R77)) -> 3516225 | T77: 0 | U77: 283775 | V77: 3800000 | W77: Horizon | X77: 2025 | Y77: 2024-11-01 | Z77: Amend the RMS 2050 MTP, Amended RMS 2050 MTP, 25-28 TIP, and 25-28 STIP to move the the local contribution amount to $0 and add $3,800,000 in Cat 5 CMAQ funds for a total funded amount of $3,800,000; increase phase costs for construction, construction engineering, contingencies, reduce ROW phase cost, remove PE phase for a total project cost of $3,800,000, and add CSJ: 0924-06-743 to the project. | AA77: 2024-07-01 | AB77: Program in RMS 20250 MTP, 25-28 TIP, and 25-28 STIP using $2,714,257 of CAT 3TRZ funds in FY 2025 | AD77: NO | AE77: NO | AG77: No | AI77: YES | AJ77: YES | AK77: NO | AL77: YES | AM77: NO | AN77: 0 | AO77: 0.04 | AP77: 3800000 | AQ77: TRUE | AR77: 3516225 | AS77: 0 | AT77: 3800000 | BQ77: 3800000 | BX77: 0
A78: Transit Operations | B78: Transit | C78: N/A | D78: N/A | E78: N/A | F78: No | H78: Public Transportation | J78: Transit | K78: 0924-06-745 | L78: T411X | M78: Horizon City - Socorro Bus Circulator | N78: A transit route that provides service to and from the City of Socorro, Horizon City, and the Mission Del Paso EPPC Campus. This is being proposed as a three year pilot program; the cost presented is for the three year total. | O78: Horizon City, TX (stop at future TOD site at Horizon Blvd. and Darrington Road) | P78: Socorro, TX (stops near Nuevo Hueco Tanks Road and North Loop Drive and at EPPC Mission Del Paso Campus) | Q78: 2032 | R78: 923784 | S78: 923784 | T78: =IF($AJ78="YES",TXPE*$AR78,IF($AJ78="ONLY",$AR78,0)) -> 0 | U78: =IF($AL78="YES",TXRow*$AR78,IF($AL78="ONLY",$AR78,0)) -> 0 | V78: 923784 | W78: Horizon | X78: 2026 | Y78: 2024-11-01 | Z78: Program in RMS 2050, Amended RMS 2050, RMS 25-28 TIP, 25-28 STIP in FY 2026, and add CSJ: 0924-06-745 to the project. | AD78: NO | AE78: NO | AG78: No | AI78: ONLY | AJ78: NO | AK78: NO | AL78: NO | AM78: NO | AN78: 0 | AO78: 0.04 | AP78: 923784 | AQ78: TRUE | AR78: 923784 | AS78: 0 | AT78: 923784 | BQ78: 923784
A79: Transit Operations | B79: Transit | C79: N/A | D79: N/A | E79: N/A | F79: No | H79: Public Transportation | J79: Transit | K79: 0924-06-744 | L79: T412X | M79: Horizon City to UTEP Express Route | N79: A transit route that provides service to UTEP from Horizon City at peak hours. This is a pilot program that will begin with two morning routes and two afternoon routes. This is being proposed as a three year pilot program; the cost presented is for the three year total. | O79: Horizon City, TX | P79: Glory Road Transit Station | Q79: 2032 | R79: 611000 | S79: 611000 | T79: 0 | U79: 0 | V79: 611000 | W79: Horizon | X79: 2028 | Y79: 2024-11-01 | Z79: Program in RMS 2050, Amended RMS 2050, RMS 25-28 TIP, 25-28 STIP in FY 2028, and add CSJ: 0924-06-744 to the project. | AD79: NO | AE79: NO | AG79: No | AI79: ONLY | AJ79: NO | AK79: NO | AL79: NO | AM79: NO | AN79: 0 | AO79: 0.04 | AP79: 611000 | AQ79: TRUE | AR79: 611000 | AS79: 0 | AT79: 611000 | BP79: 611000
A80: Added Capacity | B80: Minor Arterial | C80: Not Classified | E80: 75 | F80: No | H80: Road Capacity | I80: East | J80: Capacity Changes | L80: A441X | M80: Alberton Avenue/Antwerp Road Construction | N80: Construction and Reconstruction of Alberton Avenue and Antwerp Road to include pedestrian and bicycle facilities and illumination. | O80: FM 1281 (HORIZON BLVD) | P80: Darrington Road | Q80: 2050 | R80: 5656570 | S80: 11917539.84 | T80: 583959.4523 | U80: 834227.789 | V80: 13335727.08 | W80: Horizon | X80: 2041 | AD80: NO | AE80: NO | AG80: No | AI80: YES | AJ80: YES | AK80: NO | AL80: YES | AM80: NO | AN80: =IF(Q80="ALL",R80/28,IF(OR(X80=2021, X80=2022, X80=2023, X80=2024),0,X80-2022)) -> 19 | AO80: 0.04 | AP80: 13335727.08 | AQ80: TRUE | AR80: 11917539.84 | AS80: NOT IN TIP | AT80: 583959.4523 | BY80: =T80 -> 583959.4523
A81: Maint./Rehab. | B81: Rehabilitation | C81: Minor Arterial | E81: 75 | F81: No | H81: Traffic Operations | I81: East | J81: Exempt | L81: R404X | M81: N. Kenazo Avenue Reconstruction | N81: Reconstruction of existing 4-lane roadway to include pedestrian and bicycle facilities and illumination. | O81: Eastlake Boulevard | P81: FM 1281 (HORIZON BLVD) | Q81: N/A | R81: 6377711 | S81: 13436875.17 | T81: 658406.8831 | U81: 940581.2616 | V81: 15035863.31 | W81: Horizon | X81: 2041 | AD81: NO | AE81: NO | AG81: No | AI81: YES | AJ81: YES | AK81: NO | AL81: YES | AM81: NO | AN81: 19 | AO81: 0.04 | AP81: 15035863.31 | AQ81: TRUE | AR81: 13436875.17 | AS81: NOT IN TIP | AT81: 658406.8831 | BY81: =T81 -> 658406.8831
A82: Maint./Rehab. | B82: Minor Arterial | C82: Minor Arterial | D82: N/A | E82: 75 | F82: Yes | H82: Traffic Operations | I82: East | J82: Exempt | L82: A431X | M82: South Darrington Road Repaving | N82: Repaving of South Darrington Road from Oxbow Drive to Alberton Avenue | O82: Oxbow Drive | P82: Alberton Avenue | Q82: N/A | R82: 4262391 | S82: 8980214.966 | T82: 440030.5333 | U82: 628615.0476 | V82: 10048860.55 | W82: Horizon | X82: 2041 | AD82: NO | AE82: NO | AG82: No | AI82: YES | AJ82: YES | AK82: NO | AL82: YES | AM82: NO | AN82: 19 | AO82: 0.04 | AP82: 10048860.55 | AQ82: TRUE | AR82: =IF(AN82<28,R82*(1+AO82)^(AN82),AN82) -> 8980214.966 | AS82: =IF(AND(AN82=0),ROUND(AT82-V82,0),"NOT IN TIP") -> NOT IN TIP | AT82: 440030.5333 | BY82: =T82 -> 440030.5333
A83: Study | B83: Miscellaneous | C83: N/A | D83: N/A | F83: No | G83: No | H83: Traffic Operations | I83: Mission Valley | J83: Exempt | K83: 0002-14-050 | L83: M508X | M83: Transportation Needs Assessment for the City of San Elizario | N83: Study will evaluate condition of existing transportation network and identify future multimodal, transit, and roadway improvements. Study will also incorporate the city's historical assets. | O83: City limits of San Elizario | P83: City limits of San Elizario | Q83: N/A | R83: 400000 | S83: =IF(OR(AI83="YES",AI83="ONLY"),AR83,IF(OR(AND(AI83="NO",AJ83="ONLY",AL83="NO"),AND(AI83="NO",AJ83="NO",AL83="ONLY"),AND(AI83="NO",AJ83="YES",AL83="YES")),0,R83)) -> 400000 | T83: 0 | U83: 0 | V83: =SUM(S83:U83) -> 400000 | W83: San Elizario | X83: 2024 | Y83: 2024-05-01 | Z83: Admin Amend RMS 2050 MTP, 23-26 TIP to change CSJ from 0924-06-739 to 0002-14-050 | AA83: 2023-07-01 | AB83: Admin Amend RMS 2050 MTP, 23-26 TIP to move to FY 2024 - EXEMPT | AD83: NO | AE83: NO | AG83: No | AI83: ONLY | AJ83: NO | AK83: NO | AL83: NO | AM83: NO | AN83: 0 | AO83: 0.04 | AP83: 400000 | AQ83: TRUE | AR83: 400000 | AS83: =IF(AND(AN83=0),ROUND(AT83-V83,0),"NOT IN TIP") -> 0 | AT83: 400000 | BR83: 400000
A84: Added Capacity | B84: Minor Arterial | C84: Minor Arterial | D84: N/A | E84: 75 | F84: Yes | G84: Yes | H84: Road Capacity | I84: East | J84: Capacity Changes | K84: 0924-06-563 | L84: A433-CAP-PE2 | M84: Arterial 1 (1682 Blvd) (PE – Final Design) | N84: Build 4-lane divided | O84: Future Border Highway East | P84: IH-10 | Q84: 2032 | R84: 0 | S84: 0 | T84: 6221707 | U84: 0 | V84: 6221707 | W84: Socorro | X84: 2024 | Y84: 2023-07-01 | Z84: Admin Amend RMS 2050 MTP, 23-26 TIP to move to FY 2024 - EXEMPT | AA84: 2023-02-01 | AB84: Amend RMS 2050 MTP, 23-26 TIP to program in FY 2023 - EXEMPT | AD84: NO | AE84: NO | AG84: No | AI84: NO | AJ84: ONLY | AK84: NO | AL84: NO | AM84: NO | AN84: 0 | AO84: 0.04 | AP84: =IF(AND(AK84="NO",AM84="NO"),V84,IF(AND(AK84="NO",AM84="YES"),S84+T84,IF(AND(AM84="NO",AK84="YES"),S84+U84,AR84))) -> 6221707 | AQ84: =EXACT(AP84,V84) -> TRUE | AR84: =IF(AN84<28,R84*(1+AO84)^(AN84),AN84) -> 0 | AS84: =IF(AND(AN84=0),ROUND(AT84-V84,0),"NOT IN TIP") -> -4832941 | AT84: 1388766 | BR84: 1388766
A85: Added Capacity | B85: Minor Arterial | C85: Minor Arterial | D85: N/A | E85: 75 | F85: Yes | G85: Yes | H85: Road Capacity | I85: Mission Valley | J85: Capacity Changes | K85: 0924-06-607 | L85: A527X-CAP-1 | M85: Nuevo Hueco Tanks Extension (FM 76 to SH20) - Construction | N85: Build 4 lane roadway and shared-use path | O85: FM 76 North Loop Dr | P85: SH 20 - Alameda Avenue | Q85: 2032 | R85: 19961510 | S85: 25257678.24 | T85: 3500000 | U85: 1500000 | V85: 30257678.24 | W85: Socorro | X85: 2026 | Y85: 2023-05-01 | Z85: Amend RMS 2050 MTP and RMS 23-26 TIP to move from FY 2024 to FY2026 | AA85: 2023-02-01 | AB85: Amend RMS 2050 MTP and RMS 23-26 TIP to add ROW phase using CAT 3 Lcl Contribution funds in FY 2024 | AD85: NO | AE85: NO | AG85: No | AI85: YES | AJ85: NO | AK85: NO | AL85: NO | AM85: NO | AN85: =IF(Q85="ALL",R85/28,IF(OR(X85=2019, X85=2020, X85=2021, X85=2022, X85=2023, X85=2024),0,X85-2020)) -> 6 | AO85: 0.04 | AP85: 30257678.24 | AQ85: TRUE | AR85: 25257678.24 | AT85: 24961510 | BR85: =5000000+4990376 -> 9990376 | BW85: 9971134 | BY85: 3500000 | CA85: 1500000
A86: Bike & Pedestrian | B86: Miscellaneous | C86: N/A | E86: 75 | F86: No | H86: Travel Demand Management | I86: Mission Valley | J86: Bike/Ped | K86: 0924-06-734 | L86: M506X | M86: 4-D Tigua Spur of Paso del Norte Trail | N86: A 12-foot shared-use path for bicyclists and pedestrian along the Franklin Feeder canal (4-B Socorro Spur of PDN Trail) | O86: Alameda Avenue/Franklin Feeder Canal | P86: Socorro Rd./Franklin Feeder Canal | Q86: N/A | R86: 1300597 | S86: 1645670.119 | T86: =IF($AJ86="YES",TXPE*$AR86,IF($AJ86="ONLY",$AR86,0)) -> 80637.83586 | U86: =IF($AL86="YES",TXRow*$AR86,IF($AL86="ONLY",$AR86,0)) -> 0 | V86: 1726307.955 | W86: Socorro | X86: 2028 | AD86: NO | AE86: NO | AG86: No | AI86: YES | AJ86: YES | AK86: YES | AL86: NO | AM86: YES | AN86: =IF(Q86="ALL",R86/28,IF(OR(X86=2021, X86=2022, X86=2023, X86=2024),0,X86-2022)) -> 6 | AO86: 0.04 | AP86: 1645670.119 | AQ86: FALSE | AR86: 1645670.119 | AS86: NOT IN TIP | AT86: 1543810 | BQ86: 1543810
A87: Bike & Pedestrian | B87: Miscellaneous | C87: N/A | E87: 75 | F87: No | H87: Travel Demand Management | I87: Mission Valley | J87: Bike/Ped | L87: M507X | M87: Segment of 4-B Socorro Spur of Paso del Norte Trail | N87: A 12-foot shared-use path for bicyclists and pedestrian along the Socorro Lateral segment of 4-B Socorro Spur of PDN Trail | O87: Alameda Avenue/Place Road | P87: Socorro Rd./Holguin Rd. | Q87: N/A | R87: 992122 | S87: 1305564.869 | T87: 63972.67857 | U87: =IF($AL87="YES",TXRow*$AR87,IF($AL87="ONLY",$AR87,0)) -> 0 | V87: 1369537.547 | W87: Socorro | X87: 2029 | AD87: NO | AE87: NO | AG87: No | AI87: YES | AJ87: YES | AK87: YES | AL87: NO | AM87: YES | AN87: 7 | AO87: 0.04 | AP87: 1305564.869 | AQ87: FALSE | AR87: 1305564.869 | AS87: NOT IN TIP | AT87: 1369538 | BQ87: 1369538
A88: Added Capacity | B88: Minor Arterial | C88: Minor Arterial | D88: N/A | E88: 75 | F88: Yes | G88: Yes | H88: Road Capacity | I88: East | J88: Capacity Changes | K88: 0924-06-563 | L88: A433X-CAP-1 | M88: Arterial 1 East (1682 Blvd.) | N88: Construction of new roadway with 4 lanes divided, bike lane and shared use path | O88: FM258 (Socorro Rd.) | P88: IH-10 | Q88: 2032 | R88: 13500000 | S88: 18475682.18 | T88: 0 | U88: =IF($AL88="YES",TXRow*$AR88,IF($AL88="ONLY",$AR88,0)) -> 0 | V88: 18475682.18 | W88: Socorro | X88: 2030 | AD88: NO | AE88: NO | AG88: No | AI88: ONLY | AJ88: NO | AK88: NO | AL88: NO | AM88: NO | AN88: 8 | AO88: 0.04 | AP88: 18475682.18 | AQ88: TRUE | AR88: 18475682.18 | AS88: NOT IN TIP | AT88: 19214709 | BR88: 4214709 | BW88: 15000000
A89: Added Capacity | B89: Minor Arterial | C89: Minor Arterial | D89: N/A | E89: 75 | F89: Yes | G89: Yes | H89: Road Capacity | I89: East | J89: Capacity Changes | L89: A433X-CAP-2 | M89: Arterial 1 West (1682 Blvd.) | N89: Construction of new roadway with 4 lanes divided, bike lane and shared use path | O89: Future Border Highway East (BHE) | P89: FM258 Socorro Rd.) | Q89: 2040 | R89: 5500000 | S89: 8466997.31 | T89: 0 | U89: =IF($AL89="YES",TXRow*$AR89,IF($AL89="ONLY",$AR89,0)) -> 0 | V89: 8466997.31 | W89: Socorro | X89: 2033 | AD89: NO | AE89: NO | AG89: No | AI89: ONLY | AJ89: NO | AK89: NO | AL89: NO | AM89: NO | AN89: 11 | AO89: 0.04 | AP89: 8466997.31 | AQ89: TRUE | AR89: 8466997.31 | AS89: NOT IN TIP | AT89: 5000000 | BW89: 5000000
A90: Added Capacity | B90: Minor Arterial | C90: Minor Arterial | D90: N/A | E90: 75 | F90: Yes | G90: Yes | H90: Road Capacity | I90: Mission Valley | J90: Capacity Changes | K90: 0924-06-607 | L90: A527X-CAP-2 | M90: Nuevo Hueco Tanks Extension-Phase II | N90: Build a 4-lane roadway and shared-use path | O90: SH 20 - Alameda Avenue | P90: Border Highway East (BHE) | Q90: 2040 | R90: 10000000 | S90: 15394540.56 | T90: 0 | U90: 0 | V90: 15394540.56 | W90: Socorro | X90: 2033 | AD90: NO | AE90: NO | AG90: No | AI90: ONLY | AJ90: NO | AK90: NO | AL90: NO | AM90: NO | AN90: 11 | AO90: 0.04 | AP90: 15394540.56 | AQ90: TRUE | AR90: 15394540.56 | AS90: NOT IN TIP | AT90: 0
A91: Added Capacity | B91: Minor Arterial | C91: Not Classified | D91: N/A | F91: No | H91: Road Capacity | I91: Mission Valley | J91: Capacity Changes | L91: A529X | M91: Rio Vista Road Widening | N91: Widen Rio Vista Road from 1-lane to 2-lanes in each direction with shared-use path | O91: FM 76 - North Loop Drive | P91: Buford Road | Q91: 2040 | R91: 18651888.86 | S91: 28713725.96 | T91: 1406972.572 | U91: 108000 | V91: 30228698.54 | W91: Socorro | X91: 2033 | AD91: NO | AE91: NO | AG91: No | AI91: YES | AJ91: YES | AK91: NO | AL91: YES | AM91: NO | AN91: 11 | AO91: 0.04 | AP91: 30228698.54 | AQ91: TRUE | AR91: 28713725.96 | AS91: NOT IN TIP | AT91: 0
A92: Transit Operations | B92: Transit | C92: N/A | D92: 6 | E92: 75 | F92: Yes | G92: Yes | H92: Public Transportation | I92: Regional | J92: Transit | L92: T081X | M92: Far East Connector | N92: Zaragoza, Alameda, Montana Connection (Bus and Roadway Improvements); build park and ride lot @ Zaragoza @ Pellicano or Vista Del Sol for connectivity to R.C. Poe terminal and Loop 375 plus provide express service to terminals and Zaragoza POE. | O92: Montana | P92: Zaragoza POE | Q92: 2032 | R92: 7907591 | S92: =IF(OR(AI92="YES",AI92="ONLY"),AR92,IF(OR(AND(AI92="NO",AJ92="ONLY",AL92="NO"),AND(AI92="NO",AJ92="NO",AL92="ONLY"),AND(AI92="NO",AJ92="YES",AL92="YES")),0,R92)) -> 10405850.29 | T92: =IF($AJ92="YES",TXPE*$AR92,IF($AJ92="ONLY",$AR92,0)) -> 0 | U92: =IF($AL92="YES",TXRow*$AR92,IF($AL92="ONLY",$AR92,0)) -> 0 | V92: =SUM(S92:U92) -> 10405850.29 | W92: Sun Metro | X92: 2029 | AD92: NO | AE92: NO | AI92: YES | AJ92: NO | AK92: NO | AL92: NO | AM92: NO | AN92: =IF(Q92="ALL",R92/28,IF(OR(X92=2013,X92=2014,X92=2015,X92=2016, X92=2017, X92=2018, X92=2019, X92=2020),0,X92-2022)) -> 7 | AO92: 0.04 | AP92: =IF(AND(AK92="NO",AM92="NO"),V92,IF(AND(AK92="NO",AM92="YES"),S92+T92,IF(AND(AM92="NO",AK92="YES"),S92+U92,AR92))) -> 10405850.29 | AQ92: =EXACT(AP92,V92) -> TRUE | AR92: =IF(AN92<28,R92*(1+AO92)^(AN92),AN92) -> 10405850.29 | AS92: =IF(AND(AN92=0),ROUND(AT92-V92,0),"NOT IN TIP") -> NOT IN TIP | AT92: 10405850.29 | BQ92: =V92 -> 10405850.29
A93: Transit Operations | B93: Transit | C93: N/A | D93: 1 | E93: 78 | F93: Yes | H93: Public Transportation | I93: West | J93: Transit | K93: 0924-06-610 | L93: T106 | M93: Park and Ride Far West | N93: Create a Park and Ride site in Far West El Paso in the area of I-10 and Transmountain | O93: Loop 375 Westside | P93: Desert Boulevard | Q93: 2040 | R93: 3011562 | S93: =IF(OR(AI93="YES",AI93="ONLY"),AR93,IF(OR(AND(AI93="NO",AJ93="ONLY",AL93="NO"),AND(AI93="NO",AJ93="NO",AL93="ONLY"),AND(AI93="NO",AJ93="YES",AL93="YES")),0,R93)) -> 5014472.102 | T93: =IF($AJ93="YES",TXPE*$AR93,IF($AJ93="ONLY",$AR93,0)) -> 0 | U93: 268614 | V93: =SUM(S93:U93) -> 5283086.102 | W93: Sun Metro | X93: 2033 | AD93: NO | AE93: NO | AI93: YES | AJ93: NO | AK93: NO | AL93: YES | AM93: NO | AN93: =IF(Q93="ALL",R93/28,IF(OR(X93=2013,X93=2014,X93=2015,X93=2016, X93=2017, X93=2018, X93=2019, X93=2020),0,X93-2020)) -> 13 | AO93: 0.04 | AP93: =IF(AND(AK93="NO",AM93="NO"),V93,IF(AND(AK93="NO",AM93="YES"),S93+T93,IF(AND(AM93="NO",AK93="YES"),S93+U93,AR93))) -> 5283086.102 | AQ93: =EXACT(AP93,V93) -> TRUE | AR93: =IF(AN93<28,R93*(1+AO93)^(AN93),AN93) -> 5014472.102 | AS93: =IF(AND(AN93=0),ROUND(AT93-V93,0),"NOT IN TIP") -> NOT IN TIP | AT93: 0
A94: Roadway Operations | B94: Miscellaneous | C94: N/A | D94: N/A | E94: N/A | F94: Yes | H94: Traffic Operations | I94: Regional | J94: Exempt | K94: 0924-06-652 | L94: M091X | M94: ELP Safety Service Patrol-HERO | N94: HIGHWAY EMERGENCY RESPONSE OPERATIONS (HERO) | O94: Countywide | P94: Along I‐10, US 54, & LP 375 | Q94: N/A | R94: 2461146 | S94: 2461146 | T94: 0 | U94: =IF($AL94="YES",TXRow*$AR94,IF($AL94="ONLY",$AR94,0)) -> 0 | V94: 2461146 | W94: TXDOT | X94: 2022 | AD94: NO | AE94: NO | AG94: No | AI94: ONLY | AJ94: NO | AK94: YES | AL94: NO | AM94: NO | AN94: 0 | AO94: 0.04 | AP94: 2461146 | AQ94: TRUE | AR94: 2461146 | AS94: 0 | AT94: 2461146 | BR94: 2461146
A95: Added Capacity | B95: Interstate | C95: Interstate | D95: 1 | E95: 78 | F95: Yes | G95: Yes | H95: Road Capacity | I95: West | J95: Capacity Changes | K95: 2121-01-094 | L95: I405X-CAP | M95: IH 10 WIDENING (FM 1905 to SH 20) | N95: EXPAND FROM 4 TO 6 LANES; RAMP RECONFIGURATIONS; RECONSTRUCT EXISTING FRONTAGE ROADS AND OPERATIONAL IMPROVEMENTS | O95: 0.22 MILES WEST OF FM 1905 (ANTONIO ST) | P95: SH 20 (MESA ST) | Q95: 2027 | R95: 170058472 | S95: 170058472 | T95: 3591774 | U95: =IF($AL95="YES",TXRow*$AR95,IF($AL95="ONLY",$AR95,0)) -> 0 | V95: 173650246 | W95: TXDOT | X95: 2022 | AD95: NO | AE95: NO | AG95: No | AI95: YES | AJ95: YES | AK95: YES | AL95: NO | AM95: YES | AN95: =IF(Q95="ALL",R95/28,IF(OR(X95=2019, X95=2020,X95=2021,X95=2022),0,X95-2020)) -> 0 | AO95: 0.04 | AP95: 170058472 | AQ95: FALSE | AR95: 170058472 | AS95: 0 | AT95: 173650246 | AV95: =129468472 -> 129468472 | AW95: 30000000 | AY95: 10590000 | BZ95: =T95 -> 3591774
A96: Added Capacity | B96: Freeway/Expressway | C96: Freeways and Expressways | D96: 5 | E96: 75 | F96: Yes | H96: Road Capacity | I96: Regional | J96: Capacity Changes | K96: 2552-02-028 | L96: F057X-CAP | M96: Loop 375 (Purple Heart) Widening and Construction of Frontage Roads | N96: Widen 4 to 6 lanes on mainlanes and construct 2 lane frontage roads in each direction | O96: Spur 601 | P96: US 62/180 (Montana Ave) | Q96: 2027 | R96: 54663725 | S96: 54663725 | T96: 2421570 | U96: 7626000 | V96: 64711295 | W96: TXDOT | X96: 2022 | AD96: NO | AE96: NO | AF96: NO | AG96: No | AI96: YES | AJ96: YES | AK96: YES | AL96: YES | AM96: YES | AN96: =IF(Q96="ALL",R96/28,IF(OR(X96=2019, X96=2020,X96=2021,X96=2022),0,X96-2020)) -> 0 | AO96: 0.04 | AP96: 54663725 | AQ96: FALSE | AR96: 54663725 | AS96: 0 | AT96: 64711295 | AV96: 37274000 | AY96: 17389725 | BZ96: 2421570 | CB96: 7626000
A97: Maint./Rehab. | B97: Minor Arterial | C97: Minor Arterial | D97: N/A | E97: 75 | F97: Yes | H97: Traffic Operations | I97: East | J97: Operational | K97: 3451-01-040 | L97: A435X | M97: Horizon at Darrington Intersection Imp. | N97: Intersection & Operational lmprv. The operational improvements consist of left and right turn lanes, directional islands and medians, and traffic signal improvements | O97: Horizon at Darrington Intersection | Q97: N/A | R97: =6000000+505986+125769+125769 -> 6757524 | S97: 6757524 | T97: 1095379 | U97: =IF($AL97="YES",TXRow*$AR97,IF($AL97="ONLY",$AR97,0)) -> 0 | V97: 7852903 | W97: TXDOT | X97: 2023 | Y97: 2023-05-01 | Z97: Amend RMS 2050 MTP and 23-26 TIP to add PE phase using SWPE funds in FY 2023 | AA97: 2022-11-01 | AB97: Admin Amend RMS 2050 MTP, 2023-2026 TIP, and 2023-2026 STIP to add STIP Remarks: "The operational improvements consist of left and right turn lanes, directional islands and medians, and traffic signal improvements." | AD97: NO | AE97: NO | AF97: NO | AG97: No | AI97: YES | AJ97: YES | AK97: YES | AL97: NO | AM97: NO | AN97: =IF(Q97="ALL",R97/28,IF(OR(X97=2023, X97=2024, X97=2025, X97=2026),0,X97-2022)) -> 0 | AO97: 0.04 | AP97: 6757524 | AQ97: FALSE | AR97: 6757524 | AS97: -757524 | AT97: 7095379 | AV97: 6000000 | BZ97: 1095379
B98: Principal/Major Arterial | C98: Principal Arterial | D98: 4 | E98: 78 | F98: Yes | H98: Road Capacity | I98: NE | J98: Capacity Changes | K98: 0665-02-004 | L98: P201B-CAP2 | M98: Borderland Expressway, Phase 2: FM3255 to Railroad Dr. PE/ROW Phase | N98: Construct New Divided 4 Lane Facility (2-lanes each direction) with additional auxiliary lane in each direction from Dyer to US 54 | O98: FM3255 | P98: Railroad Dr. | Q98: 2032 | R98: 0 | S98: =IF(OR(AI98="YES",AI98="ONLY"),AR98,IF(OR(AND(AI98="NO",AJ98="ONLY",AL98="NO"),AND(AI98="NO",AJ98="NO",AL98="ONLY"),AND(AI98="NO",AJ98="YES",AL98="YES")),0,R98)) -> 0 | T98: 7161289 | U98: 18009491 | V98: =SUM(S98:U98) -> 25170780 | W98: TXDOT | X98: 2023 | Y98: 2023-05-01 | Z98: Program in RMS 2050 MTP and 23-26 TIP in FY 2023. Ultimate CSJ 0924-06-136 | BZ98: =T98 -> 7161289 | CB98: =U98 -> 18009491
B99: Principal/Major Arterial | C99: Principal Arterial | D99: 4 | E99: 78 | F99: Yes | H99: Road Capacity | I99: NE | J99: Capacity Changes | K99: 0665-02-005 | L99: P201B-CAP3 | M99: Borderland Expressway, Phase 3: BU54 (Dyer St.) to SL 375 PE/ROW Phase | N99: Construct New Divided 4 Lane Facility from Railroad to SL 375 and Transitionary work from BU54 (Dyer) to Railroad Drive | O99: BU54 (Dyer St.) | P99: SL 375 | Q99: 2032 | R99: 0 | S99: =IF(OR(AI99="YES",AI99="ONLY"),AR99,IF(OR(AND(AI99="NO",AJ99="ONLY",AL99="NO"),AND(AI99="NO",AJ99="NO",AL99="ONLY"),AND(AI99="NO",AJ99="YES",AL99="YES")),0,R99)) -> 0 | T99: 8100000 | U99: 9912178 | V99: =SUM(S99:U99) -> 18012178 | W99: TXDOT | X99: 2023 | Y99: 2023-05-01 | Z99: Program in RMS 2050 MTP and 23-26 TIP in FY 2023. Ultimate CSJ 0924-06-136 | BZ99: =T99 -> 8100000 | CB99: =U99 -> 9912178
A100: Roadway Operations | B100: Miscellaneous | C100: N/A | D100: N/A | E100: N/A | F100: Yes | H100: Traffic Operations | I100: Regional | J100: Exempt | K100: 0924-06-681 | L100: M091X-2 | M100: ELP Safety Service Patrol-HERO FY2023 | N100: Highway Emergency Response Operations (HERO) FY2023 | O100: Countywide | P100: AlongI10,US54,LP375,SS601,SH178&US62/180 | Q100: N/A | R100: 2500000 | S100: =IF(OR(AI100="YES",AI100="ONLY"),AR100,IF(OR(AND(AI100="NO",AJ100="ONLY",AL100="NO"),AND(AI100="NO",AJ100="NO",AL100="ONLY"),AND(AI100="NO",AJ100="YES",AL100="YES")),0,R100)) -> 2500000 | T100: 0 | U100: =IF($AL100="YES",TXRow*$AR100,IF($AL100="ONLY",$AR100,0)) -> 0 | V100: =SUM(S100:U100) -> 2500000 | W100: TXDOT | X100: 2023 | Y100: 2023-02-01 | Z100: Amend RMS 2050 MTP, 23-26 TIP to program in FY 2023-EXEMPT | AD100: NO | AE100: NO | AF100: No | AG100: No | AI100: ONLY | AJ100: NO | AK100: NO | AL100: NO | AM100: NO | AN100: =IF(Q100="ALL",R100/28,IF(OR(X100=2023, X100=2024, X100=2025, X100=2026),0,X100-2022)) -> 0 | AO100: 0.04 | AP100: =IF(AND(AK100="NO",AM100="NO"),V100,IF(AND(AK100="NO",AM100="YES"),S100+T100,IF(AND(AM100="NO",AK100="YES"),S100+U100,AR100))) -> 2500000 | AQ100: =EXACT(AP100,V100) -> TRUE | AR100: =IF(AN100<28,R100*(1+AO100)^(AN100),AN100) -> 2500000 | AS100: =IF(AND(AN100=0),ROUND(AT100-V100,0),"NOT IN TIP") -> 0 | AT100: =SUM(AU100:CC100) -> 2500000 | BR100: 2500000
A101: Roadway Operations | B101: Miscellaneous | C101: N/A | D101: N/A | E101: N/A | F101: Yes | H101: Traffic Operations | I101: Regional | J101: Exempt | K101: 0924-06-682 | L101: M091X-3 | M101: ELP Safety Service Patrol-HERO FY2024 | N101: Highway Emergency Response Operations (HERO) FY2024 | O101: Countywide | P101: AlongI10,US54,LP375,SS601,SH178&US62/180 | Q101: N/A | R101: 2500000 | S101: 2500000 | T101: 0 | U101: =IF($AL101="YES",TXRow*$AR101,IF($AL101="ONLY",$AR101,0)) -> 0 | V101: 2500000 | W101: TXDOT | X101: 2024 | Y101: 2023-02-01 | Z101: Amend RMS 2050 MTP, 23-26 TIP to program in FY 2024-EXEMPT | AD101: NO | AE101: NO | AF101: No | AG101: No | AI101: ONLY | AJ101: NO | AK101: NO | AL101: NO | AM101: NO | AN101: =IF(Q101="ALL",R101/28,IF(OR(X101=2023, X101=2024, X101=2025, X101=2026),0,X101-2022)) -> 0 | AO101: 0.04 | AP101: =IF(AND(AK101="NO",AM101="NO"),V101,IF(AND(AK101="NO",AM101="YES"),S101+T101,IF(AND(AM101="NO",AK101="YES"),S101+U101,AR101))) -> 2500000 | AQ101: =EXACT(AP101,V101) -> TRUE | AR101: 2500000 | AS101: 0 | AT101: 2500000 | BR101: 2500000
A102: Added Capacity | B102: Interstate | C102: Interstate | D102: 1 | E102: 78 | F102: No | G102: No | H102: Road Capacity | I102: West | J102: Capacity Changes | K102: 2121-01-104 | L102: I405X-CAP-2 | M102: IH 10 WIDENING (NMSL | SPUR 37) | N102: EXPAND FROM 4 TO 6 LANES AND OPERATIONAL IMPROVEMENTS from 0.22 MI W OF FM 1905 (ANTONIO ST) to SPUR 37; INCIDENTALS TO INCLUDE LANDSCAPE IMPROVEMENTS from 0.22 MI W OF FM 1905 (ANTONIO ST) to SH 20 (MESA ST) | O102: 0.22 MI W OF FM 1905 (ANTONIO ST) | P102: SH 20 (MESA ST) | Q102: 2027 | R102: =110000000+2789062.5+2232142.86+558035.71 -> 115579241.1 | S102: 115579241.1 | T102: 2324218.75 | U102: 0 | V102: 117903459.8 | W102: TXDOT | X102: 2024 | Y102: 2024-02-01 | Z102: Admin amend to move to FY 2025 | AA102: 2023-08-01 | AB102: Amend RMS 2050 MTP, 23-26 TIP to program in FY 2024 | AD102: NO | AE102: NO | AF102: No | AG102: No | AI102: YES | AJ102: YES | AK102: YES | AL102: NO | AM102: NO | AN102: =IF(Q102="ALL",R102/28,IF(OR(X102=2023, X102=2024, X102=2025, X102=2026),0,X102-2022)) -> 0 | AO102: 0.04 | AP102: =IF(AND(AK102="NO",AM102="NO"),V102,IF(AND(AK102="NO",AM102="YES"),S102+T102,IF(AND(AM102="NO",AK102="YES"),S102+U102,AR102))) -> 115579241.1 | AQ102: =EXACT(AP102,V102) -> FALSE | AR102: =IF(AN102<28,R102*(1+AO102)^(AN102),AN102) -> 115579241.1 | AS102: =IF(AND(AN102=0),ROUND(AT102-V102,0),"NOT IN TIP") -> -5579241 | AT102: 112324218.8 | AV102: 14662677 | AY102: 95337323 | BZ102: 2324218.75
A103: Roadway Operations | B103: Freeway/Expressway | C103: Freeways and Expressways | D103: 8 | E103: 77 | F103: Yes | H103: Traffic Operations | J103: Operational | K103: 3592-01-009 | L103: P136X | M103: SH 178 OPERATIONAL IMPROVEMENTS | N103: Interchange Improvements to include Grade Separation(s), U Turns and Two, 2-lane DC’s (WB IH-10 to WB SH 178 and EB SH 178 to EB IH-10) and Two, 1-lane DC’s (EB IH-10 to WB SH 178 and EB SH 178 to WB IH-10). | O103: NM/TX STATELINE | P103: IH 10 | Q103: 2032 | R103: =208500000+10160055+12811392 -> 231471447 | S103: =208500000+10160055+12811392 -> 231471447 | T103: 9481500 | U103: 20000000 | V103: =SUM(S103:U103) -> 260952947 | W103: TXDOT | X103: 2024 | Y103: 2023-07-01 | Z103: Admin amend to add $20,000,000 of Category 2M funds and $20,000,000 of Category 11 Rider 11 b funds in FY 2024 | AA103: 2023-05-01 | AB103: Amend RMS 2050 MTP and 23-26 TIP to change project description, add PE phase using SWPE funds, and add ROW phase using SWROW funds in FY 2024 | AD103: NO | AE103: NO | AF103: No | AG103: No | AI103: YES | AJ103: YES | AK103: YES | AL103: NO | AM103: NO | AN103: =IF(Q103="ALL",R103/28,IF(OR(X103=2021,X103=2022,X103=2023,X103=2024),0,X103-2022)) -> 0 | AO103: 0.04 | AP103: 251471447 | AQ103: FALSE | AR103: 231471447 | AS103: -22971447 | AT103: 237981500 | AV103: 20000000 | BG103: 20000000 | BI103: 168500000 | BZ103: =T103 -> 9481500 | CB103: 20000000
A104: Added Capacity | B104: Principal/Major Arterial | C104: Principal Arterial | D104: 4 | E104: 78 | F104: Yes | H104: Road Capacity | I104: NE | J104: Capacity Changes | K104: 0665-02-002 | L104: P201B-CAP | M104: Spur 320 PH I (BU 54 to Railroad Dr) | N104: SS 320 Borderland Expressway Phase I Construct 2-lane Frontage Roads in each direction and Intersections between BU54 (Dyer) to Railroad Drive | O104: BU54 (Dyer St.) | P104: Railroad Dr. | Q104: 2027 | R104: =20497532+1642611+1455325+363831 -> 23959299 | S104: =IF(OR(AI104="YES",AI104="ONLY"),AR104,IF(OR(AND(AI104="NO",AJ104="ONLY",AL104="NO"),AND(AI104="NO",AJ104="NO",AL104="ONLY"),AND(AI104="NO",AJ104="YES",AL104="YES")),0,R104)) -> 23959299 | T104: 2500000 | U104: 2520000 | V104: 28979299 | W104: TXDOT | X104: 2023 | Y104: 2023-05-01 | Z104: Amend RMS 2050 MTP and RMS 23-26 TIP to add PE phase using $2,500,000 of SWPE funds and ROW phase using $2,520,000 of SWROW funds in FY 2023 in FY 2023. Ultimate CSJ 0924-06-136 | AA104: 2022-07-01 | AB104: Program in RMS 2050 MTP and RMS 23-26 TIP in FY 2023 Ultimate CSJ 0924-06-136 | AD104: NO | AE104: NO | AG104: No | AI104: YES | AJ104: YES | AK104: YES | AL104: NO | AM104: NO | AN104: =IF(Q104="ALL",R104/28,IF(OR(X104=2021,X104=2022,X104=2023,X104=2024),0,X104-2022)) -> 0 | AO104: 0.04 | AP104: 26479299 | AQ104: FALSE | AR104: 23959299 | AS104: 48668233 | AT104: 77647532 | AV104: 10497532 | BT104: 10000000 | BZ104: 17200000 | CB104: 39950000
B105: Principal/Major Arterial | C105: Principal Arterial | D105: 4 | E105: 78 | F105: Yes | H105: Road Capacity | I105: NE | J105: Capacity Changes | K105: 0665-02-004 | L105: P201B-CAP2 | M105: Borderland Expressway, Phase 2: FM3255 to Railroad Dr. | N105: Construct New Divided 4 Lane Facility (2-lanes each direction) with additional auxiliary lane in each direction from Dyer to US 54 | O105: FM3255 | P105: Railroad Dr. | Q105: 2027 | R105: 146984220 | S105: 146984220 | T105: 7161289 | U105: 26487247 | V105: 180632756 | W105: TXDOT | X105: 2025 | Y105: 2024-11-02 | Z105: Program in RMS 2050, Amended RMS 2050, RMS 25-28 TIP, 25-28 STIP in FY 2025 | AD105: NO | AE105: NO | AF105: No | AG105: No | AI105: YES | AJ105: YES | AK105: NO | AL105: YES | AM105: NO | AN105: 0 | AO105: 0.04 | AP105: 180632756 | AQ105: TRUE | AR105: 146984220 | AS105: 0 | AT105: 180632756 | AV105: 103195000 | AY105: 43789220 | BZ105: 7161289 | CB105: 26487247
A106: Roadway Operations | B106: Miscellaneous | C106: N/A | D106: N/A | E106: N/A | F106: Yes | H106: Traffic Operations | I106: Regional | J106: Exempt | L106: M091X-4 | M106: ELP Safety Service Patrol-HERO FY2025 | N106: Highway Emergency Response Operations (HERO) FY2025 | O106: Countywide | P106: AlongI10,US54,LP375,SS601,SH178&US62/180 | Q106: N/A | R106: 3000000 | S106: 3000000 | T106: 0 | U106: =IF($AL106="YES",TXRow*$AR106,IF($AL106="ONLY",$AR106,0)) -> 0 | V106: 3000000 | W106: TXDOT | X106: 2025 | Y106: 2024-02-01 | Z106: Amend RMS 2050 MTP, 23-26 TIP to program in FY 2024-EXEMPT | AD106: NO | AE106: NO | AF106: No | AG106: No | AI106: ONLY | AJ106: NO | AK106: NO | AL106: NO | AM106: NO | AN106: =IF(Q106="ALL",R106/28,IF(OR(X106=2023, X106=2024, X106=2025, X106=2026),0,X106-2022)) -> 0 | AO106: 0.04 | AP106: 3000000 | AQ106: TRUE | AR106: 3000000 | AS106: 0 | AT106: 3000000 | BP106: 3000000
A107: Added Capacity | B107: Interstate | C107: Interstate | D107: 8 | E107: 77 | F107: Yes | G107: Yes | H107: Road Capacity | I107: Regional | J107: Capacity Changes | K107: 2121-02-167 | L107: I061X-CAP-1 | M107: I‐10 FR Ext PH I (Executive to Sunland Park) | N107: Construct 2-lane Westbound Frontage Road, Frontage Road Improvements. | O107: EXECUTIVE CENTER BLVD | P107: SUNLAND PARK DR | Q107: 2027 | R107: =28475973+1015171+668454+450841+167113 -> 30777552 | S107: 30777552 | T107: 787500 | U107: 2000000 | V107: 33565052 | W107: TXDOT | X107: 2026 | Y107: 2025-03-01 | Z107: Amend RMS 2050 MTP, amended RMS 2050 MTP, RMS 25-28 TIP, and 25-28 STIP to change the federal share of CAT 2 from 80% to 0%, increase the state share from 20% to 100% and change the fiscal year from FY 2025 to FY 2026. | AA107: 2023-08-01 | AB107: Amend RMS 2050 MTP and 23-26 TIP to add $12M of CAT 2 M funds in FY2025 | AD107: NO | AE107: NO | AG107: No | AI107: YES | AJ107: YES | AK107: YES | AL107: NO | AM107: NO | AN107: =IF(Q107="ALL",R107/28,IF(OR(X107=2023, X107=2024, X107=2025, X107=2026),0,X107-2022)) -> 0 | AO107: 0.04 | AP107: 32777552 | AQ107: FALSE | AR107: 30777552 | AS107: -2301579 | AT107: 31263473 | AV107: =16475973+12000000 -> 28475973 | BZ107: =T107 -> 787500 | CB107: 2000000
A108: Added Capacity | B108: Principal/Major Arterial | C108: Not Classified | D108: 5 | E108: 75 | F108: Yes | G108: Yes | H108: Road Capacity | I108: East | J108: Capacity Changes | K108: 0374-02-100 | L108: F407B-CAP-PE | M108: Phase US 62/180 (Montana Ave.) Expressway & Frontage Roads, Phase II PE and ROW | N108: US 62/180 (Montana Ave.) Expressway & Frontage Roads, Phase II-Construct 6 lane expy and build 2 lane FRs from Tierra Este Road. to Zaragosa Rd. Reconst. 6 lane main lanes from Global Reach to Lee Trevino. Reconstruct. FR Global Reach to Tierra Este. | O108: Global Reach Dr. | P108: Zaragoza Rd. (FM 659) | Q108: 2027 | R108: 131607167 | S108: 131583776 | T108: 4655813 | U108: 31607167 | V108: 167846756 | W108: TXDOT | X108: 2025 | Y108: 2024-11-01 | Z108: Program in RMS 2050, Amended RMS 2050, RMS 25-28 TIP, 25-28 STIP in FY 2025, and add CSJ: 0374-02-100 to the project. | AD108: NO | AE108: NO | AF108: No | AG108: No | AI108: NO | AJ108: YES | AK108: YES | AL108: YES | AM108: YES | AN108: 0 | AO108: 0.04 | AP108: 131607167 | AQ108: FALSE | AR108: 131607167 | AS108: -131583776 | AT108: 36262980 | BZ108: 4655813 | CB108: 31607167
A109: Roadway Operations | B109: Miscellaneous | C109: N/A | D109: N/A | E109: N/A | H109: Traffic Operations | I109: Regional | J109: Exempt | K109: 0924-06-735 | L109: M091X-5 | M109: ELP Safety Service Patrol-HERO FY2026 | N109: Highway Emergency Response Operations (HERO) FY2026 | O109: Countywide | P109: AlongI10,US54,LP375,SS601,SH178&US62/180 | Q109: 2027 | R109: 2000000 | S109: 2000000 | T109: 0 | U109: 0 | V109: 2000000 | W109: TXDOT | X109: 2026 | Y109: 2024-11-01 | Z109: Program in 2050 RMS, Amended 2050 RMS, RMS 2025-2028 TIP, and 2025-2028 STIP in FY 2026 | AD109: NO | AE109: NO | AF109: No | AG109: No | AI109: ONLY | AJ109: NO | AK109: NO | AL109: NO | AM109: NO | AN109: 0 | AO109: 0.04 | AP109: 2000000 | AQ109: TRUE | AR109: 2000000 | AS109: 0 | AT109: 2000000 | BP109: 2000000
A110: Roadway Operations | B110: Miscellaneous | C110: N/A | D110: N/A | E110: N/A | H110: Traffic Operations | I110: Regional | J110: Exempt | K110: 0924-06-736 | L110: M091X-6 | M110: ELP Safety Service Patrol-HERO FY 2027 | N110: Highway Emergency Response Operations (HERO) FY2027 | O110: Countywide | P110: AlongI10,US54,LP375,SS601,SH178&US62/180 | Q110: 2032 | R110: 2000000 | S110: 2000000 | T110: 0 | U110: 0 | V110: 2000000 | W110: TXDOT | X110: 2027 | Y110: 2024-11-01 | Z110: Program in RMS 2050 MTP, Amended RMS 2050 MTP, RMS 2025-2028 TIP, and 2025-2028 STIP in FY 2027 | AD110: NO | AE110: NO | AF110: No | AI110: ONLY | AJ110: NO | AK110: NO | AL110: NO | AM110: NO | AN110: 0 | AO110: 0.04 | AP110: 2000000 | AQ110: TRUE | AR110: 2000000 | AS110: 0 | AT110: 2000000 | BB110: 2000000
A111: Roadway Operations | B111: Miscellaneous | C111: N/A | D111: N/A | E111: N/A | H111: Traffic Operations | I111: Regional | J111: Exempt | K111: 0924-06-737 | L111: M091X-7 | M111: ELP Safety Service Patrol-HERO FY2028 | N111: Highway Emergency Response Operations (HERO) FY2028 | O111: Countywide | P111: AlongI10,US54,LP375,SS601,SH178&US62/181 | Q111: 2032 | R111: 2000000 | S111: 2000000 | T111: 0 | U111: 0 | V111: 2000000 | W111: TXDOT | X111: 2028 | Y111: 2024-11-02 | Z111: Program in 2050 RMS, Amended 2050 RMS, RMS 2025-2028 TIP, and 2025-2028 STIP in FY 2028 | AD111: NO | AE111: NO | AF111: No | AI111: ONLY | AJ111: NO | AK111: NO | AL111: NO | AM111: NO | AN111: 0 | AO111: 0.04 | AP111: 2000000 | AQ111: TRUE | AR111: 2000000 | AS111: 0 | AT111: 2000000 | BB111: 2000000
A112: Added Capacity | B112: Interstate | C112: Interstate | D112: 6 | E112: 75 | F112: Yes | H112: Road Capacity | I112: East | J112: Operational/Modeled | K112: 2121-03-146 | L112: I006X-15A | M112: IH 10 Interchange at Pendale (Lee Trevino to FM659) | N112: CONSTRUCT INTERCHANGE | O112: Lee Trevino | P112: East of FM 659 (Zaragoza Rd) | Q112: 2032 | R112: 14952919 | S112: 19677021.3 | T112: =IF($AJ112="YES",TXPE*$AR112,IF($AJ112="ONLY",$AR112,0)) -> 964174.0439 | U112: =IF($AL112="YES",TXRow*$AR112,IF($AL112="ONLY",$AR112,0)) -> 0 | V112: 20641195.35 | W112: TXDOT | X112: 2029 | Y112: 2022-11-01 | Z112: Deprogram the IH 10 Interchange at Pendale (CSJ 2121-03-146/MPO ID I006X-15A) project using Category 12 funds in FY 2025 and move to FY 2027 | AA112: 2022-07-01 | AB112: Program in RMS 2050 MTP and RMS 23-26 TIP in FY 2025 | AD112: NO | AE112: NO | AG112: No | AI112: YES | AJ112: YES | AK112: YES | AL112: NO | AM112: NO | AN112: =IF(Q112="ALL",R112/28,IF(OR(X112=2021, X112=2022, X112=2023, X112=2024),0,X112-2022)) -> 7 | AO112: 0.04 | AP112: 19677021.3 | AQ112: FALSE | AR112: 19677021.3 | AS112: NOT IN TIP | AT112: 17644180 | BI112: 16820000 | BZ112: 824180
A113: Added Capacity | B113: Freeway/Expressway | C113: Freeways and Expressways | D113: 4 | E113: 78 | F113: Yes | H113: Road Capacity | I113: NE | J113: Capacity Changes | K113: 0167-01-122 | L113: F001B-15A | M113: US54 (PATRIOT FWY) MAINLANES (KENWORTHY TO FM2529) AND RAMP RECONFIGURATION | N113: BUILD 4 LANE (2-LANES EACH DIRECTION) DIVIDED HWY AND GRADE SEPARATIONS AND RAMP RECONFIGURATION. EXISTING 3- LANE ARTERIALS WILL BECOME THE FRONTAGE ROADS WITH CONNECTING RAMPS | O113: KENWORTHY ST | P113: FM 2529 (MCCOMBS ST) | Q113: 2027 | R113: 69213093 | S113: 69213093 | T113: 1919285 | U113: =IF($AL113="YES",TXRow*$AR113,IF($AL113="ONLY",$AR113,0)) -> 0 | V113: =SUM(S113:U113) -> 71132378 | W113: TXDOT | X113: 2026 | Y113: 2025-03-01 | Z113: Amend project to decrease $2,000,000 from CAT 2 Metropolitan Area (TMA) Corridor Projects, from $51,213,093 to $49,213,093, and reduce construction cost to $69,213,093 for a revised total project cost of $71,132,377 in fiscal year FY 2026. | AA113: 2024-11-01 | AB113: Amend project to add 51,213,093 in CAT 2 and 20,000,000 of Rider 11B funds in the construction phase and remove construction engineering, contingencies, potential change order and indirect costs for total project amount of 73,132,378 in FY 2026 | AD113: NO | AE113: NO | AF113: No | AG113: No | AI113: YES | AJ113: YES | AK113: NO | AL113: NO | AM113: NO | AN113: =IF(Q113="ALL",R113/28,IF(OR(X113=2023, X113=2024, X113=2025, X113=2026),0,X113-2022)) -> 0 | AO113: 0.04 | AP113: 71132378 | AQ113: TRUE | AR113: 69213093 | AS113: 0 | AT113: 71132378 | AV113: 49213093 | BG113: 20000000 | BZ113: 1919285
A114: Added Capacity | B114: Principal/Major Arterial | C114: Not Classified | D114: 5 | E114: 75 | F114: Yes | G114: Yes | H114: Road Capacity | I114: East | J114: Capacity Changes | K114: 0374-02-100 | L114: F407B-CAP | M114: US 62/180 (Montana Ave.) Expressway & Frontage Roads, Phase II | N114: Construct 6 lane (expressway) MLs EB/WB with auxiliary lanes and grade separations at intersections from Tierra Este Rd to FM 659 (Zaragoza Rd). Build 2 lane WB/EB FRs in each direction from Tierra Este Rd to FM 659 Zaragoza Rd. Reconstruct 6 lane WB/EB ML from Global Reach Dr. to Lee Trevino Dr. to include auxiliary lanes and grade separation at intersection. Reconstruct existing EB FR from Global Reach Dr. to Tierra Este Rd in concrete (no added capacity). Work includes drainage, advanced signing, striping, transitional and incidental work (operation improvements) up to FM 659 (Zaragoza Rd). Project scope may be further phased depending on funding availability. | O114: Global Reach Dr. | P114: Zaragoza Rd. (FM 659) | Q114: 2032 | R114: 131583776 | S114: 131583776 | T114: 4655813 | U114: 31607167 | V114: 167846756 | W114: TXDOT | X114: 2029 | Y114: 2024-11-01 | Z114: Deprogram from RMS 25-28 TIP, 25-28 STIP and amending RMS 2050 MTP and Amended RMS 2050 MTP to change from FY 26 to FY 29, remove PE, CE and ROW phases, decrease CAT 2, CAT 4, SWPE and SWROW funds to $0 and add $131,583, 776 of CAT 12 TTC program funds | AA114: 2023-05-01 | AB114: Admin amend to add $30,000,000 of Category 2M funds in FY 2026 | AD114: NO | AE114: NO | AF114: NO | AG114: No | AI114: ONLY | AJ114: NO | AK114: NO | AL114: NO | AM114: NO | AN114: 0 | AO114: 0.04 | AP114: 167846756 | AQ114: TRUE | AR114: =IF(AN114<28,R114*(1+AO114)^(AN114),AN114) -> 131583776 | AS114: -36262980 | AT114: 131583776 | BI114: 131583776
A115: Added Capacity | B115: Interstate | C115: Interstate | D115: 8 | E115: 77 | F115: Yes | G115: Yes | H115: Road Capacity | I115: Regional | J115: Capacity Changes | K115: 2121-02-166 | L115: I063X-CAP | M115: DOWNTOWN 10 EXECUTIVE CENTER to SL478 COPIA | N115: WIDEN FROM 3/5 TO 4/6 LANES EACH DIRECTION, ADD 2‐LANE FRONTAGE ROADS EACH DIRECTION, RAMP AND OPERATIONAL IMPROVEMENTS, AND BIKE/PED PATHS. | O115: EXECUTIVE CENTER | P115: SL 478 (COPIA ST) | Q115: 2032 | R115: =667191767/1.04^2 -> 616856293.5 | S115: 811740799.8 | T115: 39775299.19 | U115: =IF($AL115="YES",TXRow*$AR115,IF($AL115="ONLY",$AR115,0)) -> 0 | V115: 851516099 | W115: TXDOT | X115: 2029 | Y115: 2023-11-01 | Z115: Admin amend RMS 2050 MTP to change project name, project description and move from FY 2027 to FY 2029 | AD115: NO | AE115: NO | AG115: No | AI115: YES | AJ115: YES | AK115: YES | AL115: NO | AM115: NO | AN115: =IF(Q115="ALL",R115/28,IF(OR(X115=2021, X115=2022, X115=2023, X115=2024),0,X115-2022)) -> 7 | AO115: 0.04 | AP115: 811740799.8 | AQ115: FALSE | AR115: 811740799.8 | AS115: NOT IN TIP | AT115: 786824500 | AV115: 106340000 | AY115: 4000000 | BF115: 2829068 | BI115: =750050000-2829068-106340000-4000000 -> 636880932 | BZ115: 36774500
A116: Added Capacity | B116: Principal/Major Arterial | C116: Principal Arterial | D116: 4 | E116: 78 | F116: Yes | H116: Road Capacity | I116: NE | J116: Capacity Changes | K116: 0665-02-005 | L116: P201B-CAP3 | M116: Borderland Expressway, Phase 3: BU54 (Dyer St.) to SL 375 | N116: Borderland Expressway Phase III Construct New Divided 4 Lane Facility from Railroad to SL 375 and Transitionary work from BU54 (Dyer) to Railroad Drive | O116: BU54 (Dyer St.) | P116: SL 375 | Q116: 2032 | R116: 100726547 | S116: 132549264.2 | T116: 0 | U116: 0 | V116: 132549264.2 | W116: TXDOT | X116: 2029 | Z116: Ultimate CSJ 0924-06-136 | AD116: NO | AE116: NO | AG116: No | AI116: ONLY | AJ116: NO | AK116: NO | AL116: NO | AM116: NO | AN116: =IF(Q116="ALL",R116/28,IF(OR(X116=2021, X116=2022, X116=2023, X116=2024),0,X116-2022)) -> 7 | AO116: 0.04 | AP116: 132549264.2 | AQ116: TRUE | AR116: 132549264.2 | AS116: NOT IN TIP | AT116: 137851235 | BL116: 137851235
A117: Roadway Operations | B117: Principal/Major Arterial | C117: Principal Arterial | F117: Yes | H117: Traffic Operations | I117: Central | J117: Operational | K117: 0002-12-026 | L117: P334X | M117: Intersection Operational Improvements at Montana Ave./Paisano Dr. | N117: INTERSECTION OPERATIONAL IMPROVEMENTS: SIGNALIZED INTERSECTION IMPROVEMENTS BETWEEN SB PAISANO DR. AND EB MONTANA AVE. INTO A T-INTERSECTION BETWEEN EB MONTANA AVE. AND BOTH DIRECTIONS OF PAISANO DR | O117: At Montana Ave | Q117: 2032 | R117: 576605 | S117: 820688.7076 | T117: 18451 | U117: 0 | V117: 839139.7076 | W117: TXDOT | X117: 2029 | AD117: NO | AE117: NO | AG117: No | AS117: -839140
A118: Added Capacity | B118: Principal/Major Arterial | C118: Principal Arterial | E118: 75 | F118: Yes | G118: Yes | H118: Road Capacity | I118: East | J118: Capacity Changes | K118: 1046-01-021 | L118: P428X-MOD | M118: FM659 Widening (LP375 to US62/180) | N118: WIDEN FROM 4 LANE TO 6 LANE AND INTERSECTION IMPROVEMENTS | O118: SL 375 (JOE BATTLE) | P118: US 62/180 (Montana) | Q118: 2032 | R118: 30772951 | S118: =IF(OR(AI118="YES",AI118="ONLY"),AR118,IF(OR(AND(AI118="NO",AJ118="ONLY",AL118="NO"),AND(AI118="NO",AJ118="NO",AL118="ONLY"),AND(AI118="NO",AJ118="YES",AL118="YES")),0,R118)) -> 43799504.66 | T118: =IF($AJ118="YES",TXPE*$AR118,IF($AJ118="ONLY",$AR118,0)) -> 2146175.728 | U118: 3188603.939 | V118: =SUM(S118:U118) -> 49134284.33 | W118: TXDOT | X118: 2031 | AD118: NO | AE118: NO | AF118: NO | AG118: No | AI118: YES | AJ118: YES | AK118: YES | AL118: YES | AM118: YES | AN118: =IF(Q118="ALL",R118/28,IF(OR(X118=2021, X118=2022, X118=2023, X118=2024),0,X118-2022)) -> 9 | AO118: 0.04 | AP118: 45551484.85 | AQ118: FALSE | AR118: =IF(AN118<28,R118*(1+AO118)^(AN118),AN118) -> 43799504.66 | AS118: NOT IN TIP | AT118: 53204134.3 | BN118: =S118 -> 43799504.66 | BZ118: =T118 -> 2146175.728 | CB118: =U118 -> 3188603.939
A119: Added Capacity | B119: Interstate | C119: Interstate | E119: 77 | F119: No | H119: Road Capacity | I119: Regional | J119: Capacity Changes | K119: 2121-02-168 | L119: I064X-CAP | M119: I-10 SEG3A (Copia to Paisano) | N119: ADD 1 LANE EACH DIRECTION, FRONTAGE ROAD IMPROVEMENTS, RAMP IMPROVEMENTS, INTERSECTION IMPROVEMENTS, AND BIKE/PED AMENITIES. | O119: SL 478 (COPIA ST) | P119: US 62 (PAISANO DR) | Q119: 2040 | R119: 259395023 | S119: 301000000 | T119: 18090800.02 | U119: =IF($AL119="YES",TXRow*$AR119,IF($AL119="ONLY",$AR119,0)) -> 0 | V119: 319090800 | W119: TXDOT | X119: 2031 | AD119: NO | AE119: NO | AG119: No | AI119: YES | AJ119: YES | AK119: YES | AL119: NO | AM119: NO | AN119: 9 | AO119: 0.04 | AP119: =IF(AND(AK119="NO",AM119="NO"),V119,IF(AND(AK119="NO",AM119="YES"),S119+T119,IF(AND(AM119="NO",AK119="YES"),S119+U119,AR119))) -> 301000000 | AQ119: =EXACT(AP119,V119) -> FALSE | AR119: 369200000.3 | AS119: NOT IN TIP | AT119: =SUM(AU119:CC119) -> 318419500 | BN119: 301000000 | BZ119: 17419500
A120: Added Capacity | B120: Principal/Major Arterial | C120: Principal Arterial | E120: 75 | F120: No | H120: Road Capacity | I120: East | J120: Capacity Changes | K120: 3451-01-037 | L120: P466X-CAP | M120: Widen to 6 lane divided FM 1281 (I-10 to Ascension) | N120: RECONSTRUCT HORIZON BLVD NORTH OF I-10 TO FROM 2-LANES TO 3-LANES IN EACH DIRECTION WITH A 14' RAISED MEDIAN, DIRECTIONAL MEDIAN OPENINGS, AND BUS PULLOUTS | O120: I-10 | P120: Ascension | Q120: 2040 | R120: 22030340 | S120: =IF(OR(AI120="YES",AI120="ONLY"),AR120,IF(OR(AND(AI120="NO",AJ120="ONLY",AL120="NO"),AND(AI120="NO",AJ120="NO",AL120="ONLY"),AND(AI120="NO",AJ120="YES",AL120="YES")),0,R120)) -> 31356043.15 | T120: 1536446.115 | U120: 0 | V120: 32892489.27 | W120: TXDOT | X120: 2031 | AD120: NO | AE120: NO | AG120: No | AI120: YES | AJ120: YES | AK120: YES | AL120: NO | AM120: NO | AN120: 9 | AO120: 0.04 | AP120: 31356043.15 | AQ120: FALSE | AR120: 31356043.15 | AS120: NOT IN TIP | AT120: 32892489.27 | BN120: =S120 -> 31356043.15 | BZ120: =T120 -> 1536446.115
A121: Added Capacity | B121: Freeway/Expressway | C121: Freeways and Expressways | D121: N/A | E121: 75 | F121: Yes | H121: Road Capacity | I121: Regional | J121: Capacity Changes | K121: 0924-06-591 | L121: F059X-CAP-1 | M121: BORDER HWY EAST (BHE), PH 1 | N121: BUILD 4 LANES DIVIDED HWY INCLUDING 2-lane Direct connectors at SL 375 (WB-WB and EB-EB direction coming in/out of BHE) and connection to Pan American at Winn Road | O121: SL 375 (AMERICAS AVE) | P121: NUEVO HUECO TANKS EXTENSION | Q121: 2040 | R121: =119381867.5*0.9 -> 107443680.8 | S121: 165404610.2 | T121: 0 | U121: 0 | V121: 165404610.2 | W121: TXDOT | X121: 2033 | AD121: NO | AE121: NO | AG121: No | AI121: ONLY | AJ121: NO | AK121: NO | AL121: NO | AM121: NO | AN121: 11 | AO121: 0.04 | AP121: 165404610.2 | AQ121: TRUE | AR121: 165404610.2 | AS121: NOT IN TIP | AT121: 165404610.2 | BN121: =V121 -> 165404610.2
A122: Added Capacity | B122: Principal/Major Arterial | C122: Principal Arterial | D122: 4 | E122: 78 | F122: Yes | H122: Road Capacity | I122: NE | J122: Capacity Changes | K122: 0665-01-012 | L122: P206B-15A | M122: FM 3255 (MARTIN LUTHER KING JR BLVD.) WIDENING | N122: WIDEN FROM 2 LANES TO 4 LANES DIVIDED INCLUDING REHAB ON EXISTING 4 LANE SEGMENT. | O122: TX/NM STATELINE | P122: LOMA REAL AVE | Q122: 2040 | R122: 13667434.5 | S122: 21040387.48 | T122: 1030978.987 | U122: 0 | V122: 22071366.47 | W122: TXDOT | X122: 2033 | AD122: NO | AE122: NO | AG122: No | AI122: YES | AJ122: YES | AK122: YES | AL122: NO | AM122: NO | AN122: 11 | AO122: 0.04 | AP122: 21040387.48 | AQ122: FALSE | AR122: 21040387.48 | AS122: NOT IN TIP | AT122: 0
A123: Added Capacity | B123: Interstate | C123: Interstate | D123: 8 | E123: 77 | F123: Yes | G123: Yes | H123: Road Capacity | I123: Regional | J123: Capacity Changes | K123: 2121-02-177 | L123: I061X-CAP-2 | M123: I‐10 FR Ext PH II (Sunland Park to Executive) | N123: Construct 2-lane Eastbound Frontage Road, Frontage Road Improvements, and Ramp Improvements | O123: SUNLAND PARK DR | P123: EXECUTIVE CENTER BLVD | Q123: 2040 | R123: =35115356-16475973 -> 18639383 | S123: 28694473.77 | T123: 1406029.215 | U123: 0 | V123: 30100502.98 | W123: TXDOT | X123: 2033 | AD123: NO | AE123: NO | AG123: No | AI123: YES | AJ123: YES | AK123: YES | AL123: NO | AM123: NO | AN123: 11 | AO123: 0.04 | AP123: 28694473.77 | AQ123: FALSE | AR123: 28694473.77 | AS123: NOT IN TIP | AT123: 0
A124: Added Capacity | B124: Interstate | C124: Interstate | E124: 76 | F124: No | H124: Road Capacity | I124: Regional | J124: Capacity Changes | K124: 2121-03-159 | L124: I065X-CAP | M124: I-10 SEG3B (Paisano to Airway) | N124: ADD 1 LANE EACH DIRECTION, FRONTAGE ROAD IMPROVEMENTS, RAMP AND OPERATIONAL IMPROVEMENTS, AND BIKE/PED AMENITIES. | O124: US 62 (PAISANO DR) | P124: AIRWAY BLVD | Q124: 2040 | R124: =227262845*0.65 -> 147720849.2 | S124: 227409460.6 | T124: 11143063.57 | U124: 0 | V124: 238552524.1 | W124: TXDOT | X124: 2033 | AD124: NO | AE124: NO | AG124: No | AI124: YES | AJ124: YES | AK124: YES | AL124: NO | AM124: NO | AN124: 11 | AO124: 0.04 | AP124: 227409460.6 | AQ124: FALSE | AR124: 227409460.6 | AS124: NOT IN TIP | AT124: 13548500 | BZ124: 13548500
A125: Maint./Rehab. | B125: Interstate | C125: Interstate | E125: 78 | F125: No | H125: Traffic Operations | I125: West | J125: Exempt | K125: 2121-01-097 | L125: I102X | M125: IH10 Rehab (FM1905 to SS37) PH4 | N125: REHAB AND OPERATIONAL IMPROVEMENTS - EASTBOUND FRONTAGE ROAD (PHASE IV) | O125: FM 1905 (ANTONIO STREET) | P125: STATE SPUR 37 (WESTWAY BLVD) | Q125: N/A | R125: 5742295.5 | S125: 8840000.1 | T125: 433160.0049 | U125: 0 | V125: 9273160.105 | W125: TXDOT | X125: 2033 | AD125: NO | AE125: NO | AG125: No | AI125: YES | AJ125: YES | AK125: YES | AL125: NO | AM125: NO | AN125: 11 | AO125: 0.04 | AP125: 8840000.1 | AQ125: FALSE | AR125: 8840000.1 | AS125: NOT IN TIP | AT125: 8916500 | BN125: 8500000 | BZ125: 416500
A126: Added Capacity | B126: Interstate | C126: Interstate | F126: No | H126: Road Capacity | I126: Regional | J126: Capacity Changes | K126: 2121-04-113 | L126: I066X-CAP | M126: IH10 Widening (FM1281 to FM1110) | N126: IH 10 WIDENING FROM 2 TO 3 LANES IN EACH DIRECTION. INCLUDES WIDENING OF ARTERIAL 1/ 1682 BLVD. BETWEEN EB/WB FRONTAGE ROADS FROM 1 TO 2 LANES IN EACH DIRECTION | O126: FM 1281 (HORIZON BLVD) | P126: FM 1110 (CLINT) | Q126: 2040 | R126: 60000000 | S126: 92367243.38 | T126: 4525994.926 | U126: 0 | V126: 96893238.3 | W126: TXDOT | X126: 2033 | AD126: NO | AE126: NO | AG126: No | AI126: YES | AJ126: YES | AK126: YES | AL126: NO | AM126: NO | AN126: 11 | AO126: 0.04 | AP126: 92367243.38 | AQ126: FALSE | AR126: 92367243.38 | AS126: NOT IN TIP | AT126: 0
A127: Added Capacity | B127: Minor Arterial | C127: Local | D127: 8 | E127: 77 | F127: Yes | H127: Road Capacity | I127: West | J127: Capacity Changes | K127: 0924-06-590 | L127: A136X-CAP | M127: Mesa Park Dr (I-10 to Doniphan) | N127: BUILD 4 LANE UNDIVIDED ROAD EXTENSION | O127: IH-10 | P127: SH 20 (DONIPHAN DR.) | Q127: 2040 | R127: 9343654 | S127: 14384126.05 | T127: 704822.1765 | U127: 0 | V127: 15088948.23 | W127: TXDOT | X127: 2033 | AD127: NO | AE127: NO | AG127: No | AI127: YES | AJ127: YES | AK127: YES | AL127: NO | AM127: NO | AN127: 11 | AO127: 0.04 | AP127: 14384126.05 | AQ127: FALSE | AR127: 14384126.05 | AS127: NOT IN TIP | AT127: 15088948 | BN127: 15088948
A128: Added Capacity | B128: Principal/Major Arterial | C128: Principal Arterial | D128: 4 | E128: 78 | F128: Yes | H128: Road Capacity | I128: NE | J128: Capacity Changes | K128: 0167-01-129 | L128: P218X-CAP | M128: US 54 (PATRIOT FWY) MAINLANES | N128: BUILD 4 LANE DIVIDED (2-LANES EACH DIRECTION) HWY AND GRADE SEPARATIONS. REALIGN FRONTAGE ROAD. | O128: FM 2529 (MCCOMBS ST) | P128: STATE LINE RD | Q128: 2040 | R128: 150000000 | S128: 230918108.4 | T128: 11314987.31 | U128: 0 | V128: 242233095.8 | W128: TXDOT | X128: 2033 | AD128: NO | AE128: NO | AG128: No | AI128: YES | AJ128: YES | AK128: YES | AL128: NO | AM128: NO | AN128: 11 | AO128: 0.04 | AP128: 392521331.9 | AQ128: FALSE | AR128: 230918108.4 | AS128: =IF(AND(AN128=0),ROUND(AT128-V128,0),"NOT IN TIP") -> NOT IN TIP | AT128: 278166841
A129: Added Capacity | B129: Freeway/Expressway | C129: Freeways and Expressways | F129: Yes | H129: Road Capacity | J129: Capacity Changes | K129: 0924-06-592 | L129: F059X-CAP-2 | M129: BORDER HWY EAST (BHE), PH 2 | N129: BUILD 4 LANES DIVIDED HWY | O129: NUEVO HUECO TANKS EXTENSION | P129: ARTERIAL 1 | Q129: 2050 | R129: 25000000 | S129: 52671229.4 | T129: 0 | U129: =IF($AL129="YES",TXRow*$AR129,IF($AL129="ONLY",$AR129,0)) -> 0 | V129: 52671229.4 | W129: TXDOT | X129: 2041 | AD129: NO | AE129: NO | AG129: No | AI129: ONLY | AJ129: NO | AK129: NO | AL129: NO | AM129: NO | AN129: 19 | AO129: 0.04 | AP129: =IF(AND(AK129="NO",AM129="NO"),V129,IF(AND(AK129="NO",AM129="YES"),S129+T129,IF(AND(AM129="NO",AK129="YES"),S129+U129,AR129))) -> 52671229.4 | AQ129: =EXACT(AP129,V129) -> TRUE | AR129: 52671229.4 | AS129: NOT IN TIP | AT129: =SUM(AU129:CC129) -> 0 | BZ129: =T129 -> 0 | CB129: =U129 -> 0
A130: Maint./Rehab. | B130: Interstate | C130: Interstate | E130: 75 | F130: No | H130: Traffic Operations | I130: East | J130: Exempt | K130: 2121-04-117 | L130: I407X | M130: I-10 Reconstruction (EASTLAKE BLVD to FM 1281 (HORIZON BLVD)) | N130: MAINLANES RECONST, RAMP IMPROVEMENTS, EASTLAKE AND HORIZON INTERCHANGE RECONST. | O130: EASTLAKE BLVD | P130: FM 1281 (HORIZON BLVD) | Q130: N/A | R130: 66924582 | S130: 141000000.4 | T130: 6909000.022 | U130: 0 | V130: 147909000.5 | W130: TXDOT | X130: 2041 | AD130: NO | AE130: NO | AG130: No | AI130: YES | AJ130: YES | AK130: YES | AL130: NO | AM130: NO | AN130: 19 | AO130: 0.04 | AP130: 141000000.4 | AQ130: FALSE | AR130: 141000000.4 | AS130: NOT IN TIP | AT130: 6909000.022 | BZ130: 6909000.022 | CB130: 0
A131: Added Capacity | B131: Interstate | C131: Interstate | F131: No | H131: Road Capacity | I131: Regional | J131: Capacity Changes | K131: 2121-01-102 | L131: I067X-CAP | M131: I-10 SEG1G (THORN TO EXECUTIVE) | N131: ADD 1 LANE IN EACH DIRECTION, RAMP/FLYOVER IMPROVEMENTS | O131: THORN AVE | P131: EXECUTIVE CENTER BLVD | Q131: 2050 | R131: 28122564 | S131: 59250000.79 | T131: 2903250.039 | U131: 0 | V131: 62153250.83 | W131: TXDOT | X131: 2041 | AD131: NO | AE131: NO | AG131: No | AI131: YES | AJ131: YES | AK131: YES | AL131: NO | AM131: NO | AN131: 19 | AO131: 0.04 | AP131: 59250000.79 | AQ131: FALSE | AR131: 59250000.79 | AS131: NOT IN TIP | AT131: 2903250.039 | BZ131: 2903250.039 | CB131: 0
A132: Added Capacity | B132: Interstate | C132: Interstate | F132: No | H132: Road Capacity | I132: Regional | J132: Capacity Changes | K132: 2121-03-162 | L132: I068X-CAP | M132: I-10 SEG3C(AIRWAY TO YARBROUGH) | N132: ADD 1 LANE EACH DIRECTION, ADD BIKE/PED AMENITIES | O132: AIRWAY BLVD | P132: YARBROUGH DR | Q132: 2050 | R132: =230926021*0.85 -> 196287117.8 | S132: 413547352.5 | T132: 20263820.27 | U132: 0 | V132: 433811172.8 | W132: TXDOT | X132: 2041 | AD132: NO | AE132: NO | AG132: No | AI132: YES | AJ132: YES | AK132: YES | AL132: NO | AM132: NO | AN132: 19 | AO132: 0.04 | AP132: 413547352.5 | AQ132: FALSE | AR132: 413547352.5 | AS132: NOT IN TIP | AT132: 20263820.27 | BZ132: 20263820.27 | CB132: 0
A133: Added Capacity | B133: Interstate | C133: Interstate | H133: Road Capacity | I133: Regional | J133: Capacity Changes | K133: 2121-03-163 | L133: I069X-CAP | M133: I-10 SEG3D1 (YARBROUGH TO FM659) | N133: ADD 1 LANE EACH DIRECTION, ADD BIKE/PED AMENITIES | O133: YARBROUGH DR | P133: FM 659 (ZARAGOZA) | Q133: 2050 | R133: =179609127.5*0.85 -> 152667758.4 | S133: 321647940.9 | T133: 15760749.11 | U133: 0 | V133: 337408690 | W133: TXDOT | X133: 2041 | AD133: NO | AE133: NO | AG133: No | AI133: YES | AJ133: YES | AK133: YES | AL133: NO | AM133: NO | AN133: 19 | AO133: 0.04 | AP133: 321647940.9 | AQ133: FALSE | AR133: 321647940.9 | AS133: NOT IN TIP | AT133: 15760749.11 | BZ133: 15760749.11 | CB133: 0
A134: Added Capacity | B134: Interstate | C134: Interstate | H134: Road Capacity | I134: Regional | J134: Capacity Changes | K134: 2121-04-119 | L134: I070X-CAP | M134: I-10 SEG3D2 (FM659 TO EASTLAKE) | N134: ADD 1 LANE EACH DIRECTION, ADD BIKE/PED AMENITIES | O134: FM 659 (ZARAGOZA) | P134: EASTLAKE | Q134: 2050 | R134: =179609127.5*0.85 -> 152667758.4 | S134: 321647940.9 | T134: 15760749.11 | U134: 0 | V134: 337408690 | W134: TXDOT | X134: 2041 | AD134: NO | AE134: NO | AG134: No | AI134: YES | AJ134: YES | AK134: YES | AL134: NO | AM134: NO | AN134: 19 | AO134: 0.04 | AP134: 321647940.9 | AQ134: FALSE | AR134: 321647940.9 | AS134: NOT IN TIP | AT134: 15760749.11 | BZ134: 15760749.11 | CB134: 0
A135: Roadway Operations | B135: Principal/Major Arterial | C135: Not Classified | D135: 3 | E135: 76 | F135: Yes | H135: Traffic Operations | I135: East | J135: Operational/Modeled | K135: 0374-02-116 | L135: F407C | M135: US62/180 (Global-FM659) Op Imp & DCs | N135: Construction of single lane Direct Connector ramps at US 62/180 and Global Reach Dr. (SB-EB and WB-NB) and at US 62/180 and Loop 375 (EB-SB, NB-WB, SB-EB, WB-NB) for operational improvements at the intersections. Work to include advanced signing, striping and incidental work to FM 659 (Zaragoza Rd.) | O135: Global Reach Dr. | P135: Zaragoza Rd. (FM 659) | Q135: 2050 | R135: 46229762 | S135: 97399135.98 | T135: 4772557.663 | U135: 0 | V135: 102171693.6 | W135: TXDOT | X135: 2041 | AD135: NO | AE135: NO | AF135: NO | AG135: No | AI135: YES | AJ135: YES | AK135: YES | AL135: YES | AM135: YES | AN135: 19 | AO135: 0.04 | AP135: 97399135.98 | AQ135: FALSE | AR135: 97399135.98 | AS135: NOT IN TIP | AT135: 4772557.663 | BZ135: 4772557.663 | CB135: 0
A136: Maint./Rehab. | B136: Minor Arterial | C136: Minor Arterial | D136: 8 | E136: 77 | F136: Yes | H136: Traffic Operations | I136: West | J136: Operational | L136: A307X-B | M136: UTEP Transportation Improvements of Glory Road | N136: Geometry design and intersection improvements to Glory Road to improve vehicular flow without adding roadway capacity | O136: Oregon Street | P136: Sun Bowl Drive | Q136: N/A | R136: 3630000 | S136: 5373286.754 | T136: 263291.051 | U136: =IF($AL136="YES",TXRow*$AR136,IF($AL136="ONLY",$AR136,0)) -> 0 | V136: 5636577.805 | W136: UTEP | X136: 2032 | AD136: NO | AE136: NO | AG136: No | AI136: YES | AJ136: YES | AK136: YES | AL136: NO | AM136: NO | AN136: 10 | AO136: 0.04 | AP136: 5373286.754 | AQ136: FALSE | AR136: 5373286.754 | AS136: NOT IN TIP | AT136: 5636577.805 | AW136: =T136 -> 263291.051 | BR136: =S136 -> 5373286.754
A137: Maint./Rehab. | B137: Rehabilitation | C137: Minor Arterial | D137: N/A | E137: 78 | F137: Yes | H137: Traffic Operations | I137: West | J137: Exempt | K137: 0924-06-606 | L137: A137X | M137: VALLEY CHILE RD RECONSTRUCTION | N137: RECONSTRUCTION OF ROADWAY TO INCLUDE SIDEWALKS, DRAINAGE, LIGHTING AND ILLUMINATION, LANDCSAPING, AND IRRIGATION | O137: SH 20 (DONIPHAN DR) | P137: IH -10 | Q137: N/A | R137: 10200000 | S137: 10200000 | T137: 1000000 | U137: 1000000 | V137: 12200000 | W137: Vinton | X137: 2024 | Y137: 2023-11-01 | Z137: Admin Amend RMS 2050 MTP, RMS 23-26 TIP to add $3,700,000 of Cat 7 funds in FY 2024 | AA137: 2022-07-01 | AB137: Program in RMS 2050 MTP and RMS 23-26 TIP in FY 2024 | AD137: NO | AE137: NO | AG137: No | AI137: YES | AJ137: YES | AK137: NO | AL137: NO | AM137: NO | AN137: =IF(Q137="ALL",R137/28,IF(OR(X137=2023, X137=2024, X137=2025, X137=2026),0,X137-2022)) -> 0 | AO137: 0.04 | AP137: 12200000 | AQ137: TRUE | AR137: 10200000 | AS137: -1000000 | AT137: 11200000 | BR137: 11200000
K138: Fhwa Funding Transfers To Fta 5307 Funding (Projects Listed Below Are Informational Only, Funding Allocations Are Accounted In Fhwa Highway And Roadway Project List And Financials)
A139: Transit Operations | B139: Transit | C139: N/A | D139: N/A | E139: N/A | F139: Yes | G139: Yes | H139: Public Transportation | I139: Regional | J139: Transit | K139: 0924-06-574 | L139: T092X | M139: Montana RTS 1st year Operating Assistance | N139: 1st year of Montana RTS operations | O139: Five Points Terminal - 2830 Montana | P139: Far East Terminal - RC Poe & Edgemere | Q139: N/A | R139: 1917592 | S139: 1917592 | T139: =IF($AJ139="YES",TXPE*$AR139,IF($AJ139="ONLY",$AR139,0)) -> 0 | U139: =IF($AL139="YES",TXRow*$AR139,IF($AL139="ONLY",$AR139,0)) -> 0 | V139: =SUM(S139:U139) -> 1917592 | W139: Sun Metro-Transit | X139: 2023 | Y139: 2022-11-01 | Z139: Amend RMS 2050 MTP, RMS 23-26 TIP to change project "Limit to" from:"Dowtown terminal - Santa Fe" to:"Five Points Terminal - 2830 Montana" in FY 2023 - EXEMPT | AA139: 2022-07-01 | AB139: Program in RMS 2050 MTP and RMS 23-26 TIP in FY 2023 - EXEMPT | AD139: YES | AE139: YES | AI139: ONLY | AJ139: NO | AK139: NO | AL139: NO | AM139: NO | AN139: =IF(Q139="ALL",R139/28,IF(OR(X139=2023, X139=2024, X139=2025, X139=2026),0,X139-2022)) -> 0 | AO139: 0.04 | AP139: =IF(AND(AK139="NO",AM139="NO"),V139,IF(AND(AK139="NO",AM139="YES"),S139+T139,IF(AND(AM139="NO",AK139="YES"),S139+U139,AR139))) -> 1917592 | AQ139: =EXACT(AP139,V139) -> TRUE | AR139: =IF(AN139<28,R139*(1+AO139)^(AN139),AN139) -> 1917592 | AS139: =IF(AND(AN139=0),ROUND(AT139-V139,0),"NOT IN TIP") -> 0 | AT139: =SUM(AU139:CC139) -> 1917592 | BQ139: 1917592
A140: Transit Operations | B140: Transit | C140: N/A | D140: N/A | E140: N/A | F140: Yes | G140: Yes | H140: Public Transportation | I140: Regional | J140: Transit | K140: 0924-06-575 | L140: T097X | M140: Montana RTS 2nd year Operating Assistance | N140: 2nd year of Montana RTS operations | O140: Five Points Terminal - 2830 Montana | P140: Far East Terminal - RC Poe & Edgemere | Q140: N/A | R140: 1300000 | S140: 1300000 | T140: =IF($AJ140="YES",TXPE*$AR140,IF($AJ140="ONLY",$AR140,0)) -> 0 | U140: =IF($AL140="YES",TXRow*$AR140,IF($AL140="ONLY",$AR140,0)) -> 0 | V140: =SUM(S140:U140) -> 1300000 | W140: Sun Metro-Transit | X140: 2024 | Y140: 2022-11-01 | Z140: Amend RMS 2050 MTP, RMS 23-26 TIP to change project "Limit to" from:"Dowtown terminal - Santa Fe" to:"Five Points Terminal - 2830 Montana" in FY 2023 - EXEMPT | AA140: 2022-07-01 | AB140: Program in RMS 2050 MTP and RMS 23-26 TIP in FY 2024 - EXEMPT | AD140: YES | AE140: YES | AI140: ONLY | AJ140: NO | AK140: NO | AL140: NO | AM140: NO | AN140: =IF(Q140="ALL",R140/28,IF(OR(X140=2023, X140=2024, X140=2025, X140=2026),0,X140-2022)) -> 0 | AO140: 0.04 | AP140: =IF(AND(AK140="NO",AM140="NO"),V140,IF(AND(AK140="NO",AM140="YES"),S140+T140,IF(AND(AM140="NO",AK140="YES"),S140+U140,AR140))) -> 1300000 | AQ140: =EXACT(AP140,V140) -> TRUE | AR140: =IF(AN140<28,R140*(1+AO140)^(AN140),AN140) -> 1300000 | AS140: =IF(AND(AN140=0),ROUND(AT140-V140,0),"NOT IN TIP") -> 0 | AT140: =SUM(AU140:CC140) -> 1300000 | BQ140: 1300000
A141: Transit Operations | B141: Transit | C141: N/A | D141: N/A | E141: N/A | F141: Yes | G141: Yes | H141: Public Transportation | I141: Regional | J141: Transit | K141: 0924-06-541 | L141: T093X | M141: Montana RTS 3rd year Operating assistance | N141: 3rd year of Montana BRT-RTS operations. | O141: Five Points Terminal - 2830 Montana | P141: Far East Terminal - R.C. Poe - Edgemere | Q141: N/A | R141: 2000000 | S141: 2000000 | T141: =IF($AJ141="YES",TXPE*$AR141,IF($AJ141="ONLY",$AR141,0)) -> 0 | U141: =IF($AL141="YES",TXRow*$AR141,IF($AL141="ONLY",$AR141,0)) -> 0 | V141: =SUM(S141:U141) -> 2000000 | W141: Sun Metro-Transit | X141: 2024 | Y141: 2022-07-01 | Z141: Program in RMS 2050 MTP and RMS 23-26 TIP in FY 2025 - EXEMPT | AD141: YES | AE141: YES | AI141: ONLY | AJ141: NO | AK141: NO | AL141: NO | AM141: NO | AN141: =IF(Q141="ALL",R141/28,IF(OR(X141=2023, X141=2024, X141=2025, X141=2026),0,X141-2022)) -> 0 | AO141: 0.04 | AP141: =IF(AND(AK141="NO",AM141="NO"),V141,IF(AND(AK141="NO",AM141="YES"),S141+T141,IF(AND(AM141="NO",AK141="YES"),S141+U141,AR141))) -> 2000000 | AQ141: =EXACT(AP141,V141) -> TRUE | AR141: =IF(AN141<28,R141*(1+AO141)^(AN141),AN141) -> 2000000 | AS141: =IF(AND(AN141=0),ROUND(AT141-V141,0),"NOT IN TIP") -> 0 | AT141: =SUM(AU141:CC141) -> 2000000 | BQ141: 2000000
K142: Plan-Wide Projects Or "All" Years Projects (Yoe Equals The Approximate Cost Per Year Of Each Project)
A143: All-Maint./Rehab. | B143: Rehabilitation | C143: N/A | D143: N/A | E143: N/A | F143: N/A | G143: N/A | H143: Traffic Operations | I143: Regional | J143: Exempt | L143: R008X | M143: Preventive Maintenance & Rehabilitation Txdot (On State) | N143: For Major Reconstruction But Also Includes Signs, Striping, Pavement Markings, And Signals | O143: Texas State Highway System | Q143: N/A | R143: ='Hwy TX Financials'!$AJ$3 -> 1703759013 | S143: =IF(OR(AI143="YES",AI143="ONLY"),AR143,IF(OR(AND(AI143="NO",AJ143="ONLY",AL143="NO"),AND(AI143="NO",AJ143="NO",AL143="ONLY"),AND(AI143="NO",AJ143="YES",AL143="YES")),0,R143)) ->  | T143: =IF($AJ143="YES",TXPE*$AR143,IF($AJ143="ONLY",$AR143,0)) ->  | U143: =IF($AL143="YES",TXRow*$AR143,IF($AL143="ONLY",$AR143,0)) -> 0 | V143: =SUM(S143:U143) ->  | W143: TXDOT | X143: PM&R-ALL | AD143: NO | AE143: NO | AF143: NO | AG143: No | AH143: 0 | AI143: YES | AJ143: YES | AK143: YES | AL143: NO | AM143: NO | AN143: =IF(Q143="ALL",R143/29,IF(OR(X143=2021, X143=2022, X143=2023, X143=2024),0,X143-2022)) ->  | AO143: 0.04 | AP143: =IF(AND(AK143="NO",AM143="NO"),V143,IF(AND(AK143="NO",AM143="YES"),S143+T143,IF(AND(AM143="NO",AK143="YES"),S143+U143,AR143))) ->  | AQ143: =EXACT(AP143,V143) ->  | AR143: =IF(AN143<28,R143*(1+AO143)^(AN143),AN143) ->  | AS143: =IF(AND(AN143=0),ROUND(AT143-V143,0),"NOT IN TIP") ->  | AT143: =SUM(AU143:CC143) ->  | BZ143: =T143 -> 
A144: All-Safety | B144: Miscellaneous | C144: N/A | D144: N/A | E144: N/A | F144: N/A | G144: N/A | H144: Non-Cmp | I144: Regional | J144: Exempt | L144: M028B | M144: Safety Projects | N144: Safety Lighting, Signals, Intersections, Etc. | O144: Eputs Area | Q144: N/A | R144: ='Hwy TX Financials'!AJ42 -> 19432726 | S144: =IF(OR(AI144="YES",AI144="ONLY"),AR144,IF(OR(AND(AI144="NO",AJ144="ONLY",AL144="NO"),AND(AI144="NO",AJ144="NO",AL144="ONLY"),AND(AI144="NO",AJ144="YES",AL144="YES")),0,R144)) ->  | T144: =IF($AJ144="YES",TXPE*$AR144,IF($AJ144="ONLY",$AR144,0)) ->  | U144: =IF($AL144="YES",TXRow*$AR144,IF($AL144="ONLY",$AR144,0)) -> 0 | V144: =SUM(S144:U144) ->  | W144: TXDOT | X144: SAFE-ALL | AD144: NO | AE144: NO | AF144: NO | AG144: No | AH144: 0 | AI144: YES | AJ144: YES | AK144: YES | AL144: NO | AM144: NO | AN144: =IF(Q144="ALL",R144/29,IF(OR(X144=2021, X144=2022, X144=2023, X144=2024),0,X144-2022)) ->  | AO144: 0.04 | AP144: =IF(AND(AK144="NO",AM144="NO"),V144,IF(AND(AK144="NO",AM144="YES"),S144+T144,IF(AND(AM144="NO",AK144="YES"),S144+U144,AR144))) ->  | AQ144: =EXACT(AP144,V144) ->  | AR144: =IF(AN144<28,R144*(1+AO144)^(AN144),AN144) ->  | AS144: =IF(AND(AN144=0),ROUND(AT144-V144,0),"NOT IN TIP") ->  | AT144: =SUM(AU144:CC144) ->  | BZ144: =T144 -> 
A145: All-Maint./Rehab. | B145: Bridge | C145: N/A | D145: N/A | E145: N/A | F145: N/A | G145: N/A | H145: Traffic Operations | I145: Regional | J145: Exempt | L145: B001X | M145: Bridge Replacement/ Rehabilitation | N145: Replace Or Rehabilitate Bridges | O145: El Paso County- On And Off State System | Q145: N/A | R145: ='Hwy TX Financials'!AJ41 -> 55100000 | S145: =IF(OR(AI145="YES",AI145="ONLY"),AR145,IF(OR(AND(AI145="NO",AJ145="ONLY",AL145="NO"),AND(AI145="NO",AJ145="NO",AL145="ONLY"),AND(AI145="NO",AJ145="YES",AL145="YES")),0,R145)) ->  | T145: =IF($AJ145="YES",TXPE*$AR145,IF($AJ145="ONLY",$AR145,0)) ->  | U145: =IF($AL145="YES",TXRow*$AR145,IF($AL145="ONLY",$AR145,0)) -> 0 | V145: =SUM(S145:U145) ->  | W145: TXDOT | X145: STRUCTS-ALL | AD145: NO | AE145: NO | AF145: NO | AG145: No | AH145: 0 | AI145: YES | AJ145: YES | AK145: YES | AL145: NO | AM145: NO | AN145: =IF(Q145="ALL",R145/29,IF(OR(X145=2021, X145=2022, X145=2023, X145=2024),0,X145-2022)) ->  | AO145: 0.04 | AP145: =IF(AND(AK145="NO",AM145="NO"),V145,IF(AND(AK145="NO",AM145="YES"),S145+T145,IF(AND(AM145="NO",AK145="YES"),S145+U145,AR145))) ->  | AQ145: =EXACT(AP145,V145) ->  | AR145: =IF(AN145<28,R145*(1+AO145)^(AN145),AN145) ->  | AS145: =IF(AND(AN145=0),ROUND(AT145-V145,0),"NOT IN TIP") ->  | AT145: =SUM(AU145:CC145) ->  | BZ145: =T145 -> 
K146: TASA Grouped Projects (Informational - Not included in the MTP/TIP)
A147: Bike & Pedestrian | B147: Enhancements | C147: N/A | D147: N/A | E147: N/A | F147: N/A | G147: N/A | H147: Travel Demand Management | I147: Mission Valley | J147: Exempt | K147: 0924-06-604 | L147: E503X | M147: Passmore Road Shared-Use Path | N147: A 8-10 foot shared-use path along Passmore Road for bicyclists and pedestrians. | O147: Franklin Canal at Passmore Road | P147: Upper Clint Lateral at Passmore Road | Q147: N/A | R147: =895820+152290 -> 1048110 | S147: =895820+152290 -> 1048110 | T147: 98710 | U147: 0 | V147: =SUM(S147:U147) -> 1146820 | W147: Socorro | X147: 2022 | Y147: 2021-12-17 | Z147: Amend to increase CAT 9 TASA funds from $756,780 to $996,780 | AA147: 2021-10-22 | AB147: Deprogram from Destino 2045 MTP, Amended D2045 MTP, D21-24 TIP and 21-24 STIP/Amend to change project description from 12 ft to 8-10 ft | AD147: NO | AE147: NO | AF147: No | AG147: No | AH147: 0 | AI147: YES | AJ147: YES | AK147: NO | AL147: NO | AM147: NO | AN147: 0 | AO147: 0.04 | AP147: =IF(AND(AK147="NO",AM147="NO"),V147,IF(AND(AK147="NO",AM147="YES"),S147+T147,IF(AND(AM147="NO",AK147="YES"),S147+U147,AR147))) -> 1146820 | AQ147: =EXACT(AP147,V147) -> TRUE | AR147: =IF(AN147<28,R147*(1+AO147)^(AN147),AN147) -> 1048110 | AS147: =IF(AND(AN147=0),ROUND(AT147-V147,0),"NOT IN TIP") -> 0 | AT147: =SUM(AU147:CC147) -> 1146820 | BD147: 1146820
A148: Bike & Pedestrian | B148: Enhancements | C148: N/A | D148: N/A | E148: N/A | F148: N/A | G148: N/A | H148: Travel Demand Management | I148: Mission Valley | J148: Exempt | K148: 0924-06-616 | L148: E504X | M148: Tornillo South Sidewalks/SUP | N148: Design and Construction of new sidewalks 5 ft wide, new 12 ft wide Shared Use Path (SUP), driveways, striping, crosswalks and 28 ADA Ramps along different streets at Tornillo, TX. | O148: Cobb Ave, Florinda Dr., Linda Dr., Florella Dr., 2nd St. and 3rd. St. | P148: Various County streets/roadways | Q148: N/A | R148: 1146095 | S148: 1146095 | T148: 286524 | U148: 0 | V148: 1432619 | W148: County EP | X148: 2022 | Y148: 2021-11-01 | Z148: Deprogram from Destino 2045 MTP, Amended D2045 MTP, D21-24 TIP and 21-24 STIP | AA148: 2020-07-01 | AB148: Program into the Amended D2045 MTP, D21-24 TIP and 21-24 STIP | AD148: NO | AE148: NO | AF148: No | AG148: No | AH148: 0 | AI148: YES | AJ148: YES | AK148: NO | AL148: NO | AM148: NO | AN148: 0 | AO148: 0.04 | AP148: 1432619 | AQ148: TRUE | AR148: =IF(AN148<28,R148*(1+AO148)^(AN148),AN148) -> 1146095 | AS148: =IF(AND(AN148=0),ROUND(AT148-V148,0),"NOT IN TIP") -> 0 | AT148: =SUM(AU148:CC148) -> 1432619 | BE148: 1432619
A149: Bike & Pedestrian | B149: Enhancements | C149: N/A | D149: N/A | E149: N/A | F149: N/A | G149: N/A | H149: Travel Demand Management | I149: Mission Valley | J149: Exempt | K149: 0924-06-617 | L149: E505X | M149: Tornillo North Sidewalks/SUP | N149: Design and Construction of new sidewalks 5 ft wide, driveways, striping, crosswalks and 24 ADA Ramps. along different streets at Tornillo, TX. | O149: Drake St, Los Coyotes Dr. and Oil Mills Rd. | P149: Various County Streets/roadways | Q149: N/A | R149: 1063485 | S149: 1063485 | T149: 265871 | U149: 0 | V149: 1329356 | W149: County EP | X149: 2022 | Y149: 2021-11-01 | Z149: Deprogram from Destino 2045 MTP, Amended D2045 MTP, D21-24 TIP and 21-24 STIP | AA149: 2020-07-01 | AB149: Program into the Amended D2045 MTP, D21-24 TIP and 21-24 STIP | AD149: NO | AE149: NO | AF149: No | AG149: No | AH149: 0 | AI149: YES | AJ149: YES | AK149: NO | AL149: NO | AM149: NO | AN149: 0 | AO149: 0.04 | AP149: 1329356 | AQ149: TRUE | AR149: 1063485 | AS149: 0 | AT149: 1329356 | BE149: 1329356
A150: Bike & Pedestrian | B150: Enhancements | C150: N/A | D150: N/A | E150: N/A | F150: N/A | G150: N/A | H150: Travel Demand Management | I150: Mission Valley | J150: Exempt | K150: 0924-06-618 | L150: E506X | M150: Ysleta Middle School SRTS | N150: Installation of school zone flashers along Independence Drive, ADA ramps at multiple locations, and school zone signs will be upgraded to meet MUTCD standards at Ysleta Middle School. Bicycle lanes at Elvin Way between Alameda and Victor Lane, and hike & bike trail among Playa Lateral between Elvin and Jesuit Dr. | O150: Elvin Way from Alameda; Independence Dr from Elvin; Playa Lateral from Elvin Way | P150: Elvin Way to Victor; Independence Dr to Jesuit Dr; Playa Lateral to Jesuit Dr. | Q150: N/A | R150: 750000 | S150: 750000 | T150: 249953 | U150: 0 | V150: 999953 | W150: COEP | X150: 2022 | Y150: 2021-11-01 | Z150: Deprogram from Destino 2045 MTP, Amended D2045 MTP, D21-24 TIP and 21-24 STIP | AA150: 2020-07-01 | AB150: Program into the Amended D2045 MTP, D21-24 TIP and 21-24 STIP | AD150: NO | AE150: NO | AF150: No | AG150: No | AH150: 0 | AI150: YES | AJ150: YES | AK150: NO | AL150: NO | AM150: NO | AN150: 0 | AO150: 0.04 | AP150: 999953 | AQ150: TRUE | AR150: 750000 | AS150: 0 | AT150: 999953 | BE150: 999953
A151: Bike & Pedestrian | B151: Enhancements | C151: N/A | D151: N/A | E151: N/A | F151: N/A | G151: N/A | H151: Travel Demand Management | I151: Central | J151: Exempt | K151: 0924-06-640 | L151: E305X | M151: PDN Trail - Magoffin Shared Use Path | N151: Project consists of a shared use path along Magoffin Ave. | O151: San Antonio Ave. | P151: Cotton St. | Q151: N/A | R151: 1112761 | S151: 1112761 | T151: 427741 | U151: 0 | V151: 1540502 | W151: COEP | X151: 2024 | Y151: 2022-09-23 | Z151: Amend to change name to “PDN Trail - Magoffin Shared Use Path” and move project from FY 2023 to 2024. | AA151: 2021-11-01 | AB151: Deprogram from Destino 2045 MTP, Amended D2045 MTP, D21-24 TIP and 21-24 STIP | AD151: NO | AE151: NO | AF151: No | AG151: No | AH151: 0 | AI151: YES | AJ151: YES | AK151: NO | AL151: NO | AM151: NO | AN151: 0 | AO151: 0.04 | AP151: 1540502 | AQ151: TRUE | AR151: 1112761 | AS151: 0 | AT151: 1540502 | AW151: 260827 | BD151: 1279675
A152: Bike & Pedestrian | B152: Enhancements | C152: N/A | D152: N/A | E152: N/A | F152: N/A | G152: N/A | H152: Travel Demand Management | I152: Mission Valley | J152: Exempt | K152: 0924-06-648 | L152: E507X | M152: Fabens Sidewalk | N152: Design and Construction of new sidewalks 5 ft wide, driveways, striping, crosswalks and 61 ADA Ramps along various streets at Fabens, TX. | O152: G Ave (0.53 mi), Walker Ave (0.42 mi), Aspen Hills St. (0.44mi), 5th St.(0.84) and Mike Maros St. (0.49 mi) | P152: Various County Streets/roadways | Q152: N/A | R152: 1620593 | S152: 1620593 | T152: 424992 | U152: 0 | V152: 2045585 | W152: County EP | X152: 2023 | Y152: 2021-10-22 | Z152: Program into grouped projects using $2,045,585 of TAP (TXDOT) funds in FY 2023 | AD152: NO | AE152: NO | AF152: No | AG152: No | AH152: 0 | AI152: YES | AJ152: YES | AK152: NO | AL152: NO | AM152: NO | AN152: 0 | AO152: 0.04 | AP152: 2045585 | AQ152: TRUE | AR152: 1620593 | AS152: 0 | AT152: 2045585 | BE152: 2045585
A153: Bike & Pedestrian | B153: Enhancements | C153: N/A | D153: N/A | E153: N/A | F153: N/A | G153: N/A | H153: Travel Demand Management | I153: East | J153: Exempt | K153: 0924-06-639 | L153: E405X | M153: Playa Drain Shared Use Path (Padilla to Zaragoza) 2024 | N153: The project consists of a shared use path with shade trees, vegetation and other amenities. | O153: Padilla Dr. | P153: Zaragoza Rd. | Q153: N/A | R153: 1695265 | S153: 1695265 | T153: 621775 | U153: 0 | V153: 2317040 | W153: COEP | X153: 2024 | Y153: 2021-11-01 | Z153: Deprogram from Destino 2045 MTP, Amended D2045 MTP, D21-24 TIP and 21-24 STIP | AA153: 2021-08-01 | AB153: Program into the Amended D2045 MTP, D21-24 TIP and 21-24 STIP | AD153: NO | AE153: NO | AF153: No | AG153: No | AH153: 0 | AI153: YES | AJ153: YES | AK153: NO | AL153: NO | AM153: NO | AN153: 0 | AO153: 0.04 | AP153: 2317040 | AQ153: TRUE | AR153: 1695265 | AS153: 0 | AT153: 2317040 | AW153: 918689 | BD153: 1398351
A154: Bike & Pedestrian | B154: Enhancements | C154: N/A | D154: N/A | E154: N/A | F154: N/A | G154: N/A | H154: Travel Demand Management | I154: Mission Valley | J154: Exempt | K154: 0924-06-667 | L154: E508X | M154: Alamo Alto Segment PDN Trail – Phase 1 (Fabens) | N154: Design and Construction of new 12 ft wide Shared Use Path (SUP), Crosswalks, ADA ramps, Pedestrian Bridge, Pavement Marking, Street Signs, and Illumination. | O154: Intersection at Alameda Ave. (SH 20) and 3rd St. | P154: Intersection at Alameda Ave. (SH 20) and 8th St. | Q154: N/A | R154: 2479310 | S154: 2479310 | T154: 320005 | U154: 0 | V154: 2799315 | W154: County EP | X154: 2024 | Y154: 2022-01-01 | Z154: Program into EPMPO’s TASA Grouped project list using $2,799,315 CAT 9 TASA (TXDOT) funds in FY 2024. | AD154: NO | AE154: NO | AF154: No | AG154: No | AH154: 0 | AI154: YES | AJ154: YES | AK154: NO | AL154: NO | AM154: NO | AN154: 0 | AO154: 0.04 | AP154: 2799315 | AQ154: TRUE | AR154: 2479310 | AS154: 0 | AT154: 2799315 | BE154: 2799315
A155: Bike & Pedestrian | B155: Enhancements | C155: N/A | D155: N/A | E155: N/A | F155: N/A | G155: N/A | H155: Travel Demand Management | I155: Mission Valley | J155: Exempt | K155: 0924-06-669 | L155: E509X | M155: Alamo Alto Segment PDN Trail – Phase 2 (Tornillo) | N155: Design and Construction of new 12 ft wide Shared Use Path (SUP), Crosswalks, ADA ramps, Pedestrian Bridge, Pavement Marking, Street Signs, and Illumination. | O155: Intersection at EPWID1 Channel and and FM3380 | P155: Intersection at EPWID1 Channel and Shaffer Rd. | Q155: N/A | R155: 2512214 | S155: 2512214 | T155: 338299 | U155: 0 | V155: 2850513 | W155: County EP | X155: 2025 | Y155: 2022-01-01 | Z155: Program into EPMPO’s TASA Grouped project list using $2,850,513 CAT 9 TASA (TXDOT) funds in FY 2025. | AD155: NO | AE155: NO | AF155: No | AG155: No | AH155: 0 | AI155: YES | AJ155: YES | AK155: NO | AL155: NO | AM155: NO | AN155: 0 | AO155: 0.04 | AP155: =IF(AND(AK155="NO",AM155="NO"),V155,IF(AND(AK155="NO",AM155="YES"),S155+T155,IF(AND(AM155="NO",AK155="YES"),S155+U155,AR155))) -> 2850513 | AQ155: =EXACT(AP155,V155) -> TRUE | AR155: =IF(AN155<28,R155*(1+AO155)^(AN155),AN155) -> 2512214 | AS155: =IF(AND(AN155=0),ROUND(AT155-V155,0),"NOT IN TIP") -> 0 | AT155: =SUM(AU155:CC155) -> 2850513 | BE155: 2850513
A156: Bike & Pedestrian | B156: Enhancements | C156: N/A | D156: N/A | E156: N/A | F156: N/A | G156: N/A | H156: Travel Demand Management | I156: Regional | J156: Exempt | K156: 0924-06-695 | L156: M092X-1 | M156: Bike Share Fleet Enhancement Project PH 1 | N156: These funds will support the purchase of electric bikes and additional batteries to augment the bike share program. Users ride e-bikes at a higher rate and longer duration than traditional bikes which allows users to ride to further destinations and connect more of the City. | O156: El Paso MPO Region within El Paso County | P156: El Paso MPO Region within El Paso County | Q156: N/A | R156: 124996 | S156: 124996 | T156: 0 | U156: 0 | V156: 124996 | W156: CRRMA | X156: 2024 | Y156: 2022-12-01 | Z156: Program into EPMPO’s TASA Grouped project list using $124,996 of CAT 9 TASA (EPMPO) funds in FY 2024. | AD156: NO | AE156: NO | AF156: No | AG156: No | AH156: 0 | AI156: ONLY | AJ156: NO | AK156: NO | AL156: NO | AM156: NO | AN156: 0 | AO156: 0.04 | AP156: =IF(AND(AK156="NO",AM156="NO"),V156,IF(AND(AK156="NO",AM156="YES"),S156+T156,IF(AND(AM156="NO",AK156="YES"),S156+U156,AR156))) -> 124996 | AQ156: =EXACT(AP156,V156) -> TRUE | AR156: =IF(AN156<28,R156*(1+AO156)^(AN156),AN156) -> 124996 | AS156: =IF(AND(AN156=0),ROUND(AT156-V156,0),"NOT IN TIP") -> 0 | AT156: =SUM(AU156:CC156) -> 124996 | BD156: 124996
A157: Bike & Pedestrian | B157: Enhancements | C157: N/A | D157: N/A | E157: N/A | F157: N/A | G157: N/A | H157: Travel Demand Management | I157: Regional | J157: Exempt | K157: 0924-06-696 | L157: M092X-2 | M157: Bike Share Fleet Enhancement Project PH 2 | N157: These funds will support the purchase of electric bikes and additional batteries to augment the bike share program. Users ride e-bikes at a higher rate and longer duration than traditional bikes which allows users to ride to further destinations and connect more of the City. | O157: El Paso MPO Region within El Paso County | P157: El Paso MPO Region within El Paso County | Q157: N/A | R157: 124996 | S157: 124996 | T157: 0 | U157: 0 | V157: 124996 | W157: CRRMA | X157: 2025 | Y157: 2022-12-01 | Z157: Program into EPMPO’s TASA Grouped project list using $124,996 of CAT 9 TASA (EPMPO) funds in FY 2025. | AD157: NO | AE157: NO | AF157: No | AG157: No | AH157: 0 | AI157: ONLY | AJ157: NO | AK157: NO | AL157: NO | AM157: NO | AN157: 0 | AO157: 0.04 | AP157: 124996 | AQ157: TRUE | AR157: 124996 | AS157: 0 | AT157: 124996 | BD157: 124996
A158: Bike & Pedestrian | B158: Enhancements | C158: N/A | D158: N/A | E158: N/A | F158: N/A | G158: N/A | H158: Travel Demand Management | I158: Mission Valley | J158: Exempt | K158: 0924-06-697 | L158: M108X-1 | M158: Rodman Street Shared Use Path - Design | N158: The project includes the design of a new 11-foot shared-use path. Given existing conditions, the project includes preparation of the path width, concrete header curb, paving of the path, driveway construction at existing driveways, signage, solar power lighting and minimal landscaping. | O158: FM 1281 (Horizon Boulevard) | P158: Veny Webb Street | Q158: N/A | R158: 0 | S158: 0 | T158: 206020 | U158: 0 | V158: 206020 | W158: Horizon | X158: 2024 | Y158: 2022-12-01 | Z158: Program into EPMPO’s TASA Grouped project list using $206,020 of CAT 9 TASA (EPMPO) funds in FY 2024. | AD158: NO | AE158: NO | AF158: No | AG158: No | AH158: 0 | AI158: NO | AJ158: ONLY | AK158: NO | AL158: NO | AM158: NO | AN158: 0 | AO158: 0.04 | AP158: =IF(AND(AK158="NO",AM158="NO"),V158,IF(AND(AK158="NO",AM158="YES"),S158+T158,IF(AND(AM158="NO",AK158="YES"),S158+U158,AR158))) -> 206020 | AQ158: =EXACT(AP158,V158) -> TRUE | AR158: =IF(AN158<28,R158*(1+AO158)^(AN158),AN158) -> 0 | AS158: =IF(AND(AN158=0),ROUND(AT158-V158,0),"NOT IN TIP") -> 0 | AT158: =SUM(AU158:CC158) -> 206020 | BD158: 206020
A159: Bike & Pedestrian | B159: Enhancements | C159: N/A | D159: N/A | E159: N/A | F159: N/A | G159: N/A | H159: Travel Demand Management | I159: Mission Valley | J159: Exempt | K159: 0924-06-697 | L159: M108X-2 | M159: Rodman Street Shared Use Path - Construction | N159: The project includes the design of a new 11-foot shared-use path. Given existing conditions, the project includes preparation of the path width, concrete header curb, paving of the path, driveway construction at existing driveways, signage, solar power lighting and minimal landscaping. | O159: FM 1281 (Horizon Boulevard) | P159: Veny Webb Street | Q159: N/A | R159: 686323 | S159: 686323 | T159: 58420 | U159: 0 | V159: 744743 | W159: Horizon | X159: 2025 | Y159: 2022-12-01 | Z159: Program into EPMPO’s TASA Grouped project list using $789,272 of CAT 9 TASA (EPMPO) funds in FY 2025. | AD159: NO | AE159: NO | AF159: No | AG159: No | AH159: 0 | AI159: ONLY | AJ159: NO | AK159: NO | AL159: NO | AM159: NO | AN159: 0 | AO159: 0.04 | AP159: 744743 | AQ159: TRUE | AR159: 686323 | AS159: 44529 | AT159: 789272 | BD159: 789272
A160: Bike & Pedestrian | B160: Enhancements | C160: N/A | D160: N/A | E160: N/A | F160: N/A | G160: N/A | H160: Travel Demand Management | I160: Central | J160: Exempt | K160: 2201-01-011 | L160: M310B | M160: McRae (FM2316) Shared Use Path Album to Montana Ph II | N160: Project is a shared use path with landscaping and bollard lighting and pedestrian improvements to intersections including ADA ramps and striping. | O160: Album Ave | P160: Montana Ave | Q160: N/A | R160: =1315878+301676 -> 1617554 | S160: =1315878+301676 -> 1617554 | T160: 545302 | U160: 0 | V160: =SUM(S160:U160) -> 2162856 | W160: COEP | X160: 2025 | Y160: 2022-12-01 | Z160: Program into EPMPO’s TASA Grouped project list using $1,860,187 of CAT 9 TASA (EPMPO) funds in FY 2025. | AD160: NO | AE160: NO | AF160: No | AG160: No | AH160: 0 | AI160: YES | AJ160: YES | AK160: NO | AL160: NO | AM160: NO | AN160: 0 | AO160: 0.04 | AP160: 2162856 | AQ160: TRUE | AR160: 1617554 | AS160: -302669 | AT160: 1860187 | BD160: 1860187
A161: Bike & Pedestrian | B161: Enhancements | C161: N/A | D161: N/A | E161: N/A | F161: N/A | G161: N/A | H161: Travel Demand Management | I161: Central | J161: Exempt | K161: 2201-01-012 | L161: M310A | M161: McRae (FM2316) Shared Use Path Montwood to Album Ph I | N161: Project is a shared use path with landscaping and bollard lighting and pedestrian improvements to intersections including ADA ramps and striping. | O161: Montwood Dr | P161: Album Ave. | Q161: N/A | R161: =1704748+316442 -> 2021190 | S161: =1704748+316442 -> 2021190 | T161: 660128 | U161: 0 | V161: =SUM(S161:U161) -> 2681318 | W161: COEP | X161: 2025 | Y161: 2023-11-01 | Z161: Admin amend to move to FY 2025 | AA161: 2022-12-01 | AB161: Program into EPMPO’s TASA Grouped project list using $2,324,368of CAT 9 TASA (EPMPO) funds in FY 2024. | AD161: NO | AE161: NO | AF161: No | AG161: No | AH161: 0 | AI161: YES | AJ161: YES | AK161: NO | AL161: NO | AM161: NO | AN161: 0 | AO161: 0.04 | AP161: 2681318 | AQ161: TRUE | AR161: 2021190 | AS161: 303178 | AT161: 2984496 | AW161: 660128 | BD161: 2324368
A162: Bike & Pedestrian | B162: Enhancements | C162: N/A | D162: N/A | E162: N/A | F162: N/A | G162: N/A | H162: Travel Demand Management | I162: Mission Valley | J162: Exempt | K162: 0924-06-731 | L162: E510X | M162: TA23 Alamo Alto Segment of the PDN Trail (Alameda SUP - Phase III) | N162: Design and construction of Share Use Path (SUP) 12-ft wide along SH-20 totaling 4.82 miles. Project includes ADA ramps, pavement marking, singage, corsswalks, pedestrian bridges and illumination. | O162: Grace St | P162: Farm RD 1109 | Q162: N/A | R162: =7590887+595427+595427 -> 8781741 | S162: =7590887+595427+595427 -> 8781741 | T162: 1335178 | U162: 0 | V162: 10116919 | W162: County EP | X162: 2026 | Y162: 2024-03-01 | Z162: Program into EPMPO's TASA Grouped project list using $10,116,919 of Category 9 Statewide TASA funds in FY 2026 | AD162: NO | AE162: NO | AF162: No | AG162: No | AH162: 1 | AN162: 0 | AO162: 0.04 | AP162: =IF(AND(AK162="NO",AM162="NO"),V162,IF(AND(AK162="NO",AM162="YES"),S162+T162,IF(AND(AM162="NO",AK162="YES"),S162+U162,AR162))) -> 8781741 | AQ162: =EXACT(AP162,V162) -> FALSE | AR162: =IF(AN162<28,R162*(1+AO162)^(AN162),AN162) -> 8781741 | AS162: =IF(AND(AN162=0),ROUND(AT162-V162,0),"NOT IN TIP") -> 0 | AT162: =SUM(AU162:CC162) -> 10116919 | BE162: 10116919
A163: Bike & Pedestrian | B163: Enhancements | C163: N/A | D163: N/A | E163: N/A | F163: N/A | G163: N/A | H163: Travel Demand Management | I163: Mission Valley | J163: Exempt | K163: 0924-06-727 | L163: E511X | M163: TA23 Homestead Meadows SUP | N163: Design and construction of a 12-foot Shared Use Path (SUP) 1.97 miles along Greg Rd. & Krag St. and 5-foot-wide sidewalk 1.04 along Santiesteban Ln. and Krag St. totaling 3.02 miles of pedestrian improvements. | O163: Mutiple Streets : Krag St., Greg Rd. and Santiesteban Ln. | P163: Vista Del Este / Ascension St. | Q163: N/A | R163: =4050046+381217+317685 -> 4748948 | S163: =4050046+381217+317685 -> 4748948 | T163: 689223 | U163: 0 | V163: 5438171 | W163: County EP | X163: 2026 | Y163: 2024-03-01 | Z163: Program into EPMPO's TASA Grouped project list using $5,438,171 of Category 9 Statewide TASA funds in FY 2026 | AD163: NO | AE163: NO | AF163: No | AG163: No | AH163: 2 | AN163: 0 | AO163: 0.04 | AP163: 4748948 | AQ163: FALSE | AR163: 4748948 | AS163: 0 | AT163: 5438171 | BE163: 5438171
A164: Bike & Pedestrian | B164: Enhancements | C164: N/A | D164: N/A | E164: N/A | F164: N/A | G164: N/A | H164: Travel Demand Management | I164: East | J164: Exempt | K164: 0924-06-726 | L164: M409X | M164: TA23 Connected Bike Lanes | N164: Construct buffered bike lanes on 3 corridors. Project includes wayfinding signage, enhanced crosswalk markings, shared use path at roundabout. | O164: Pebble Hills Blvd from George Dieter; Montwood Dr from Yarbrough; Lomaland Dr from Montwood Dr | P164: Pebble Hills Blvd to Lisa Scherr; Montwood Dr to Lee Trevino; Lomaland Dr to Trawood | Q164: N/A | R164: =1430570+214100 -> 1644670 | S164: =1430570+214100 -> 1644670 | T164: 214586 | U164: 0 | V164: 1859256 | W164: COEP | X164: 2026 | Y164: 2024-03-01 | Z164: Program into EPMPO's TASA Grouped project list using $1,859,256 of Category 9 Statewide TASA funds in FY 2025 | AD164: NO | AE164: NO | AF164: No | AG164: No | AH164: 3 | AN164: 0 | AO164: 0.04 | AP164: 1644670 | AQ164: FALSE | AR164: 1644670 | AS164: 0 | AT164: 1859256 | BE164: 1859256
A165: Bike & Pedestrian | B165: Enhancements | C165: N/A | D165: N/A | E165: N/A | F165: N/A | G165: N/A | H165: Travel Demand Management | I165: Mission Valley | J165: Exempt | K165: 0002-14-048 | L165: M512X | M165: TA23 Paso del Norte Trail - Socorro Active Transportation Network | N165: This project proposes the construction of approximately 7 miles of the PDN Trail in Socorro, TX, to include shared-use paths, signal upgrades and sidewalk improvements, illumination, pedestrian crossings, signage, and pavement markings. | O165: Socorro Road / Winn Road | P165: Socorro Road / Glorietta Road | Q165: N/A | R165: =9517895+1306000+2616126 -> 13440021 | S165: =9517895+1306000+2616126 -> 13440021 | T165: =1306800+1427684 -> 2734484 | U165: 0 | V165: 16174505 | W165: Socorro | X165: 2026 | Y165: 2024-03-01 | Z165: Program into EPMPO's TASA Grouped project list using $16,174,505 of Category 9 Statewide TASA funds in FY 2026 | AD165: NO | AE165: NO | AF165: No | AG165: No | AH165: 4 | AN165: 0 | AO165: 0.04 | AP165: 13440021 | AQ165: FALSE | AR165: 13440021 | AS165: 0 | AT165: 16174505 | BE165: 16174505
R167: =SUBTOTAL(9,R3:R166) -> 6056947907 | S167: =SUBTOTAL(9,S3:S166) ->  | T167: =SUBTOTAL(9,T3:T166) ->  | U167: =SUBTOTAL(9,U3:U166) -> 168926206 | V167: =SUBTOTAL(9,V3:V166) ->  | Y167: - | AP167: =SUBTOTAL(9,AP3:AP166) ->  | AU167: =SUBTOTAL(9,AU3:AU166) -> 0 | AV167: 505126747 | AW167: 340115280.4 | AX167: 18000000 | AY167: 171106268 | AZ167: 0 | BA167: 0 | BB167: 4000000 | BC167: 0 | BD167: 9254685 | BE167: 45046192 | BF167: 2829068 | BG167: 40000000 | BH167: 14000000 | BI167: 953784708 | BJ167: 0 | BK167: 0 | BL167: 137851235 | BN167: =SUBTOTAL(9,BN3:BN166) -> 565149106 | BO167: 33826228 | BP167: 14211000 | BQ167: 86313037.29 | BR167: 297902377.8 | BS167: 7670000 | BT167: 10000000 | BU167: 0 | BV167: 0 | BW167: 29971134 | BX167: 0 | BY167: 6521567.439 | CA167: 2775000 | CB167: 158780686.9
V168: =SUMIF(Q3:Q146,"ALL",R3:R146)+SUMIFS(AP3:AP146,Q3:Q146,2022)+SUMIFS(AP3:AP146,Q3:Q146,2032)+SUMIFS(AP3:AP146,Q3:Q146,2040)+SUMIFS(AP3:AP146,Q3:Q146,2050) -> 4862914650
V169: NO PE & ROW INCLUDED EXCEPT FOR DESIGN-BUILD
AT170: 2022 | AU170: =SUMIF($X$3:$X$146,$AT$170,AU$3:AU$146) -> 0 | AV170: 166742472 | AW170: 31260000 | AX170: 0 | AY170: 27979725 | AZ170: 0 | BA170: 0 | BB170: 0 | BC170: 0 | BD170: =SUMIF($X$3:$X$165,$AT$170,BD$3:BD$165) -> 1146820 | BE170: =SUMIF($X$3:$X$165,$AT$170,BE$3:BE$165) -> 3761928 | BF170: =SUMIF($X$3:$X$146,$AT$170,BF$3:BF$146) -> 0 | BG170: 0 | BH170: 14000000 | BI170: 0 | BJ170: 0 | BK170: 0 | BL170: 0 | BM170: =SUM(AU170:BL170) -> 244890945 | BN170: =SUMIF($X$3:$X$146,$AT$170,BN$3:BN$146) -> 0 | BO170: 0 | BP170: 0 | BQ170: 1000000 | BR170: 2461146 | BS170: 0 | BT170: 0 | BU170: 0 | BV170: 0 | BW170: =SUMIF($X$3:$X$146,AT170,BW$3:BW$146) -> 0 | BX170: =SUMIF($X$3:$X$146,$AT$170,BX$3:BX$146) -> 0 | BY170: =SUMIF($X$3:$X$146,$AT$170,BY$3:BY$146) -> 0 | BZ170: =SUMIF($X$3:$X$146,$AT$170,BZ$3:BZ$146) -> 6013344 | CA170: =SUMIF($X$3:$X$146,$AT$170,CA$3:CA$146) -> 0 | CB170: =SUMIF($X$3:$X$146,$AT$170,CB$3:CB$146) -> 7626000 | CC170: =SUM(BN170:CB170) -> 17100490 | CD170: =SUM(BN170:BX170) -> 3461146
Y171: FY 2023 | AT171: 2023 | AU171: =SUMIF($X$3:$X$146,$AT$171,AU$3:AU$146) -> 0 | AV171: =SUMIF($X$3:$X$146,$AT$171,AV$3:AV$146) -> 16497532 | AW171: =SUMIF($X$3:$X$146,$AT$171,AW$3:AW$165) -> 14843304.43 | AX171: =SUMIF($X$3:$X$146,$AT$171,AX$3:AX$146) -> 0 | AY171: 0 | AZ171: 0 | BA171: 0 | BB171: 0 | BC171: 0 | BD171: =SUMIF($X$3:$X$165,$AT$171,BD$3:BD$165) -> 0 | BE171: =SUMIF($X$3:$X$165,$AT$171,BE$3:BE$165) -> 2045585 | BF171: =SUMIF($X$3:$X$146,$AT$171,BF$3:BF$146) -> 0 | BG171: 0 | BH171: 0 | BI171: 0 | BJ171: 0 | BK171: 0 | BL171: 0 | BM171: =SUM(AU171:BL171) -> 33386421.43 | BN171: =SUMIF($X$3:$X$146,$AT$171,BN$3:BN$146) -> 0 | BO171: =SUMIF($X$3:$X$146,$AT$171,BO$3:BO$146) -> 0 | BP171: =SUMIF($X$3:$X$146,$AT$169,BP$3:BP$146) -> 0 | BQ171: =SUMIF($X$3:$X$146,$AT$171,BQ$3:BQ$146) -> 1917592 | BR171: =SUMIF($X$3:$X$146,$AT$171,BR$3:BR$146) -> 31133838 | BS171: =SUMIF($X$3:$X$146,$AT$171,BS$3:BS$146) -> 6366162 | BT171: =SUMIF($X$3:$X$146,$AT$171,BT$3:BT$146) -> 10000000 | BU171: =SUMIF($X$3:$X$146,$AT$171,BU$3:BU$146) -> 0 | BV171: =SUMIF($X$3:$X$146,AT171,BV$3:BV$146) -> 0 | BW171: =SUMIF($X$3:$X$146,$AT$171,BW$3:BW$146) -> 0 | BX171: =SUMIF($X$3:$X$146,$AT$171,BX$3:BX$146) -> 0 | BY171: =SUMIF($X$3:$X$146,$AT$171,BY$3:BY$146) -> 1081920.57 | BZ171: =SUMIF($X$3:$X$146,$AT$171,BZ$3:BZ$146) -> 36027668 | CA171: =SUMIF($X$3:$X$146,$AT$24,CA$3:CA$146) -> 0 | CB171: =SUMIF($X$3:$X$146,$AT$171,CB$3:CB$146) -> 67871669 | CC171: =SUM(BN171:CB171) -> 154398849.6 | CD171: =SUM(BN171:BX171) -> 49417592
Y172: FY 2024 | AT172: 2024 | AU172: =SUMIF($X$3:$X$146,$AT$172,AU$3:AU$146) -> 0 | AV172: =SUMIF($X$3:$X$146,$AT$172,AV$3:AV$146) -> 34662677 | AW172: =SUMIF($X$3:$X$146,$AT$172,AW$3:AW$165) -> 1750000 | AX172: =SUMIF($X$3:$X$146,$AT$172,AX$3:AX$146) -> 18000000 | AY172: 95337323 | AZ172: 0 | BA172: 0 | BB172: 0 | BC172: 0 | BD172: =SUMIF($X$3:$X$165,$AT$172,BD$3:BD$165) -> 3009042 | BE172: =SUMIF($X$3:$X$165,$AT$172,BE$3:BE$165) -> 2799315 | BF172: =SUMIF($X$3:$X$146,$AT$172,BF$3:BF$146) -> 0 | BG172: =SUMIF($X$3:$X$146,$AT$172,BG$3:BG$146) -> 20000000 | BH172: =SUMIF($X$3:$X$146,$AT$172,BH$3:BH$146) -> 0 | BJ172: =SUMIF($X$3:$X$146,$AT$172,BJ$3:BJ$146) -> 0 | BK172: =SUMIF($X$3:$X$146,$AT$172,BK$3:BK$146) -> 0 | BL172: =SUMIF($X$3:$X$146,$AT$172,BL$3:BL$146) -> 0 | BM172: =SUM(AU172:BL172) -> 175558357 | BN172: =SUMIF($X$3:$X$146,$AT$172,BN$3:BN$146) -> 0 | BO172: =SUMIF($X$3:$X$146,$AT$172,BO$3:BO$146) -> 0 | BP172: =SUMIF($X$3:$X$146,$AT$171,BP$3:BP$146) -> 0 | BQ172: =SUMIF($X$3:$X$146,$AT$172,BQ$3:BQ$146) -> 14635507 | BR172: =SUMIF($X$3:$X$146,$AT$172,BR$3:BR$146) -> 43119947 | BS172: =SUMIF($X$3:$X$146,$AT$172,BS$3:BS$146) -> 1303838 | BT172: =SUMIF($X$3:$X$146,$AT$172,BT$3:BT$146) -> 0 | BU172: =SUMIF($X$3:$X$146,$AT$172,BU$3:BU$146) -> 0 | BV172: =SUMIF($X$3:$X$146,AT172,BV$3:BV$146) -> 0 | BW172: =SUMIF($X$3:$X$146,$AT$172,BW$3:BW$146) -> 0 | BX172: 0 | BY172: 0 | BZ172: 13215718.75 | CA172: 25000 | CB172: 20000000 | CC172: =SUM(BN172:CB172) -> 92300010.75 | CD172: =SUM(BN172:BX172) -> 59059292
Y173: FY 2025 | AT173: 2025 | AU173: =SUMIF($X$3:$X$146,$AT$173,AU$3:AU$146) -> 0 | AV173: =SUMIF($X$3:$X$146,$AT$173,AV$3:AV$146) -> 103195000 | AW173: =SUMIF($X$3:$X$146,$AT$173,AW$3:AW$165) -> 184400000 | AX173: =SUMIF($X$3:$X$146,$AT$173,AX$3:AX$146) -> 0 | AY173: 43789220 | AZ173: 0 | BA173: 0 | BB173: 0 | BC173: 0 | BD173: =SUMIF($X$3:$X$165,$AT$173,BD$3:BD$165) -> 5098823 | BE173: =SUMIF($X$3:$X$165,$AT$173,BE$3:BE$165) -> 2850513 | BF173: =SUMIF($X$3:$X$146,$AT$173,BF$3:BF$146) -> 0 | BG173: 0 | BH173: 0 | BI173: 0 | BJ173: 0 | BK173: 0 | BL173: 0 | BM173: =SUM(AU173:BL173) -> 339333556 | BN173: =SUMIF($X$3:$X$146,$AT$173,BN$3:BN$146) -> 0 | BO173: =SUMIF($X$3:$X$146,$AT$173,BO$3:BO$146) -> 33826228 | BP173: =SUMIF($X$3:$X$146,$AT$172,BP$3:BP$146) -> 0 | BQ173: =SUMIF($X$3:$X$146,$AT$173,BQ$3:BQ$146) -> 16241055 | BR173: =SUMIF($X$3:$X$146,$AT$173,BR$3:BR$146) -> 27015393 | BS173: =SUMIF($X$3:$X$146,$AT$173,BS$3:BS$146) -> 0 | BT173: =SUMIF($X$3:$X$146,$AT$173,BT$3:BT$146) -> 0 | BU173: =SUMIF($X$3:$X$146,$AT$173,BU$3:BU$146) -> 0 | BV173: =SUMIF($X$3:$X$146,AT173,BV$3:BV$146) -> 0 | BW173: =SUMIF($X$3:$X$146,$AT$173,BW$3:BW$146) -> 0 | BX173: 0 | BY173: 0 | BZ173: 11817102 | CA173: 0 | CB173: 58094414 | CC173: =SUM(BN173:CB173) -> 146994192 | CD173: =SUM(BN173:BX173) -> 77082676
Y174: FY 2026 | AT174: 2026 | AU174: =SUMIF($X$3:$X$146,$AT$174,AU$3:AU$146) -> 0 | AV174: =SUMIF($X$3:$X$146,$AT$174,AV$3:AV$146) -> 77689066 | AW174: =SUMIF($X$3:$X$146,$AT$174,AW$3:AW$165) -> 2116000 | AX174: =SUMIF($X$3:$X$146,$AT$174,AX$3:AX$146) -> 0 | AY174: 0 | AZ174: 0 | BA174: 0 | BB174: 0 | BC174: 0 | BD174: =SUMIF($X$3:$X$165,$AT$174,BD$3:BD$165) -> 0 | BE174: =SUMIF($X$3:$X$165,$AT$174,BE$3:BE$165) -> 33588851 | BF174: =SUMIF($X$3:$X$146,$AT$174,BF$3:BF$146) -> 0 | BG174: 20000000 | BH174: 0 | BI174: 0 | BJ174: 0 | BK174: 0 | BL174: 0 | BM174: =SUM(AU174:BL174) -> 133393917 | BN174: =SUMIF($X$3:$X$146,$AT$174,BN$3:BN$146) -> 0 | BO174: =SUMIF($X$3:$X$146,$AT$174,BO$3:BO$146) -> 0 | BP174: =SUMIF($X$3:$X$146,$AT$173,BP$3:BP$146) -> 5800000 | BQ174: =SUMIF($X$3:$X$146,$AT$174,BQ$3:BQ$146) -> 13994988 | BR174: 26196366 | BS174: 0 | BT174: 0 | BU174: 0 | BV174: 0 | BW174: 9971134 | BX174: 0 | BY174: 3500000 | BZ174: 2706785 | CA174: 1500000 | CB174: 2000000 | CC174: =SUM(BN174:CB174) -> 65669273 | CD174: =SUM(BN174:BX174) -> 55962488
AT175: TOTAL FOR TIP YRS (23-26) | AU175: =SUM(AU171:AU174) -> 0 | AV175: =SUM(AV171:AV174) -> 232044275 | AW175: =SUM(AW171:AW174) -> 203109304.4 | AX175: =SUM(AX171:AX174) -> 18000000 | AY175: =SUM(AY171:AY174) -> 139126543 | AZ175: =SUM(AZ171:AZ174) -> 0 | BA175: 0 | BB175: 0 | BC175: 0 | BD175: 8107865 | BE175: 41284264 | BF175: =SUM(BF171:BF174) -> 0 | BG175: =SUM(BG171:BG174) -> 40000000 | BH175: =SUM(BH171:BH174) -> 0 | BI175: =SUM(BI171:BI174) -> 0 | BJ175: =SUM(BJ171:BJ174) -> 0 | BK175: 0 | BL175: 0 | BM175: =SUM(BM171:BM174) -> 681672251.4 | BN175: 0 | BO175: 33826228 | BP175: 5800000 | BQ175: =SUM(BQ171:BQ174) -> 46789142 | BR175: =SUM(BR171:BR174) -> 127465544 | BS175: =SUM(BS171:BS174) -> 7670000 | BT175: 10000000 | BU175: 0 | BV175: 0 | BW175: 9971134 | BX175: 0 | BY175: =SUM(BY171:BY174) -> 4581920.57 | BZ175: 63767273.75 | CA175: 1525000 | CB175: 147966083 | CC175: 459362325.3 | CD175: 241522048
Y177: FY 2027 | AT177: 2027 | AU177: =SUMIF($X$3:$X$146,$AT$177,AU$3:AU$146) -> 0 | AV177: =SUMIF($X$3:$X$146,$AT$177,AV$3:AV$146) -> 0 | AW177: =SUMIF($X$3:$X$146,$AT$177,AW$3:AW$146) -> 0 | AX177: =SUMIF($X$3:$X$146,$AT$177,AX$3:AX$146) -> 0 | AY177: =SUMIF($X$3:$X$146,$AT$177,AY$3:AY$146) -> 0 | AZ177: =SUMIF($X$3:$X$146,$AT$176,AZ$3:AZ$146) -> 0 | BA177: =SUMIF($X$3:$X$146,$AT$177,BA$3:BA$146) -> 0 | BB177: 2000000 | BC177: 0 | BD177: 0 | BE177: 0 | BF177: 0 | BG177: 0 | BH177: 0 | BI177: 0 | BJ177: 0 | BK177: 0 | BL177: 0 | BM177: =SUM(AU177:BL177) -> 2000000 | BN177: =SUMIF($X$3:$X$146,$AT$177,BN$3:BN$146) -> 0 | BO177: =SUMIF($X$3:$X$146,$AT177,BO$3:BO$146) -> 0 | BP177: =SUMIF($X$3:$X$146,$AT$176,BP$3:BP$146) -> 0 | BQ177: =SUMIF($X$3:$X$146,$AT$177,BQ$3:BQ$146) -> 13775443 | BR177: 10746071 | BS177: 0 | BT177: 0 | BU177: 0 | BV177: 0 | BW177: 0 | BX177: 0 | BY177: 0 | BZ177: 0 | CA177: 0 | CB177: 0 | CC177: =SUM(BN177:CB177) -> 24521514 | CD177: =SUM(BN177:BX177) -> 24521514
Y178: FY 2028 | AT178: 2028 | AU178: =SUMIF($X$3:$X$146,$AT$178,AU$3:AU$146) -> 0 | AV178: =SUMIF($X$3:$X$146,$AT$178,AV$3:AV$146) -> 0 | AW178: =SUMIF($X$3:$X$146,$AT$178,AW$3:AW$146) -> 0 | AX178: =SUMIF($X$3:$X$146,$AT$178,AX$3:AX$146) -> 0 | AY178: =SUMIF($X$3:$X$146,$AT$178,AY$3:AY$146) -> 0 | AZ178: =SUMIF($X$3:$X$146,$AT$177,AZ$3:AZ$146) -> 0 | BA178: =SUMIF($X$3:$X$146,$AT$178,BA$3:BA$146) -> 0 | BB178: 2000000 | BC178: 0 | BD178: 0 | BE178: 0 | BF178: 0 | BG178: 0 | BH178: 0 | BI178: 0 | BJ178: 0 | BK178: 0 | BL178: 0 | BM178: 2000000 | BN178: =SUMIF($X$3:$X$146,$AT$178,BN$3:BN$146) -> 0 | BO178: =SUMIF($X$3:$X$146,$AT178,BO$3:BO$146) -> 0 | BP178: =SUMIF($X$3:$X$146,$AT$177,BP$3:BP$146) -> 1400000 | BQ178: =SUMIF($X$3:$X$146,$AT$178,BQ$3:BQ$146) -> 7551069 | BR178: 31700000 | BS178: 0 | BT178: 0 | BU178: 0 | BV178: 0 | BW178: 0 | BX178: 0 | BY178: 0 | BZ178: 0 | CA178: 0 | CB178: 0 | CC178: 40651069 | CD178: 40651069
Y179: FY 2029 | AT179: 2029 | AU179: =SUMIF($X$3:$X$146,$AT$179,AU$3:AU$146) -> 0 | AV179: =SUMIF($X$3:$X$146,$AT$179,AV$3:AV$146) -> 106340000 | AW179: =SUMIF($X$3:$X$146,$AT$179,AW$3:AW$146) -> 0 | AX179: =SUMIF($X$3:$X$146,$AT$179,AX$3:AX$146) -> 0 | AY179: =SUMIF($X$3:$X$146,$AT$179,AY$3:AY$146) -> 4000000 | AZ179: =SUMIF($X$3:$X$146,$AT$178,AZ$3:AZ$146) -> 0 | BA179: =SUMIF($X$3:$X$146,$AT$179,BA$3:BA$146) -> 0 | BB179: =SUMIF($X$3:$X$146,$AT$179,BB$3:BB$146) -> 0 | BC179: =SUMIF($X$3:$X$146,$AT$179,BC$3:BC$146) -> 0 | BD179: =SUMIF($X$3:$X$146,$AT$178,BD$3:BD$146) -> 0 | BE179: =SUMIF($X$3:$X$146,$AT$179,BE$3:BE$146) -> 0 | BF179: 2829068 | BG179: 0 | BH179: 0 | BI179: 785284708 | BJ179: 0 | BK179: 0 | BL179: 137851235 | BM179: 1036305011 | BN179: =SUMIF($X$3:$X$146,$AT$179,BN$3:BN$146) -> 0 | BO179: =SUMIF($X$3:$X$146,$AT179,BO$3:BO$146) -> 0 | BP179: =SUMIF($X$3:$X$146,$AT$178,BP$3:BP$146) -> 2911000 | BQ179: =SUMIF($X$3:$X$146,$AT$179,BQ$3:BQ$146) -> 11775388.29 | BR179: 29874305 | BS179: 0 | BT179: 0 | BU179: 0 | BV179: 0 | BW179: 0 | BX179: 0 | BY179: 0 | BZ179: 37598680 | CA179: 0 | CB179: 0 | CC179: 82159373.29 | CD179: 44560693.29
Y180: FY 2030 | AT180: 2030 | AU180: =SUMIF($X$3:$X$146,$AT$180,AU$3:AU$146) -> 0 | AV180: =SUMIF($X$3:$X$146,$AT$180,AV$3:AV$146) -> 0 | AW180: =SUMIF($X$3:$X$146,$AT$180,AW$3:AW$146) -> 54979940.93 | AX180: =SUMIF($X$3:$X$146,$AT$180,AX$3:AX$146) -> 0 | AY180: =SUMIF($X$3:$X$146,$AT$180,AY$3:AY$146) -> 0 | AZ180: =SUMIF($X$3:$X$146,$AT$179,AZ$3:AZ$146) -> 0 | BA180: =SUMIF($X$3:$X$146,$AT$180,BA$3:BA$146) -> 0 | BB180: 0 | BC180: 0 | BD180: 0 | BE180: 0 | BF180: 0 | BG180: 0 | BH180: 0 | BI180: 0 | BJ180: 0 | BK180: 0 | BL180: 0 | BM180: 54979940.93 | BN180: =SUMIF($X$3:$X$146,$AT$180,BN$3:BN$146) -> 0 | BO180: =SUMIF($X$3:$X$146,$AT180,BO$3:BO$146) -> 0 | BP180: =SUMIF($X$3:$X$146,$AT$179,BP$3:BP$146) -> 0 | BQ180: =SUMIF($X$3:$X$146,$AT$180,BQ$3:BQ$146) -> 0 | BR180: 46308251 | BS180: 0 | BT180: 0 | BU180: 0 | BV180: 0 | BW180: 15000000 | BX180: 0 | BY180: 0 | BZ180: 0 | CA180: 0 | CB180: 0 | CC180: 61308251 | CD180: 61308251
Y181: FY 2031 | AT181: 2031 | AU181: =SUMIF($X$3:$X$146,$AT$181,AU$3:AU$146) -> 0 | AV181: =SUMIF($X$3:$X$146,$AT$181,AV$3:AV$146) -> 0 | AW181: =SUMIF($X$3:$X$146,$AT$181,AW$3:AW$146) -> 0 | AX181: =SUMIF($X$3:$X$146,$AT$181,AX$3:AX$146) -> 0 | AY181: =SUMIF($X$3:$X$146,$AT$181,AY$3:AY$146) -> 0 | AZ181: =SUMIF($X$3:$X$146,$AT$180,AZ$3:AZ$146) -> 0 | BA181: =SUMIF($X$3:$X$146,$AT$181,BA$3:BA$146) -> 0 | BB181: 0 | BC181: 0 | BD181: 0 | BE181: 0 | BF181: 0 | BG181: 0 | BH181: 0 | BI181: 0 | BJ181: 0 | BK181: 0 | BL181: 0 | BM181: 0 | BN181: =SUMIF($X$3:$X$146,$AT$181,BN$3:BN$146) -> 376155547.8 | BO181: =SUMIF($X$3:$X$146,$AT$181,BO$3:BO$146) -> 0 | BP181: =SUMIF($X$3:$X$146,$AT$180,BP$3:BP$146) -> 0 | BQ181: =SUMIF($X$3:$X$146,$AT$181,BQ$3:BQ$146) -> 0 | BR181: 0 | BS181: 0 | BT181: 0 | BU181: 0 | BV181: 0 | BW181: 0 | BX181: 0 | BY181: 0 | BZ181: 21102121.84 | CA181: 0 | CB181: 3188603.939 | CC181: 400446273.6 | CD181: 376155547.8
Y182: FY 2032 | AT182: 2032 | AU182: =SUMIF($X$3:$X$146,$AT$182,AU$3:AU$146) -> 0 | AV182: =SUMIF($X$3:$X$146,$AT$182,AV$3:AV$146) -> 0 | AW182: =SUMIF($X$3:$X$146,$AT$182,AW$3:AW$146) -> 263291.051 | AX182: =SUMIF($X$3:$X$146,$AT$182,AX$3:AX$146) -> 0 | AY182: =SUMIF($X$3:$X$146,$AT$182,AY$3:AY$146) -> 0 | AZ182: =SUMIF($X$3:$X$146,$AT$181,AZ$3:AZ$146) -> 0 | BA182: =SUMIF($X$3:$X$146,$AT$182,BA$3:BA$146) -> 0 | BB182: 0 | BC182: 0 | BD182: 0 | BE182: 0 | BF182: 0 | BG182: 0 | BH182: 0 | BI182: 0 | BJ182: 0 | BK182: 0 | BL182: 0 | BM182: 263291.051 | BN182: =SUMIF($X$3:$X$146,$AT$182,BN$3:BN$146) -> 0 | BO182: =SUMIF($X$3:$X$146,$AT$182,BO$3:BO$146) -> 0 | BP182: =SUMIF($X$3:$X$146,$AT$181,BP$3:BP$146) -> 0 | BQ182: =SUMIF($X$3:$X$146,$AT$182,BQ$3:BQ$146) -> 0 | BR182: 5373286.754 | BS182: 0 | BT182: 0 | BU182: 0 | BV182: 0 | BW182: 0 | BX182: 0 | BY182: 0 | BZ182: 0 | CA182: 0 | CB182: 0 | CC182: 5373286.754 | CD182: 5373286.754
Y183: FY 2033 | AT183: 2033 | AU183: =SUMIF($X$3:$X$146,$AT$183,AU$3:AU$146) -> 0 | AV183: =SUMIF($X$3:$X$146,$AT$183,AV$3:AV$146) -> 0 | AW183: =SUMIF($X$3:$X$146,$AT$183,AW$3:AW$146) -> 48663100 | AX183: =SUMIF($X$3:$X$146,$AT$183,AX$3:AX$146) -> 0 | AY183: =SUMIF($X$3:$X$146,$AT$183,AY$3:AY$146) -> 0 | AZ183: =SUMIF($X$3:$X$146,$AT$182,AZ$3:AZ$146) -> 0 | BA183: =SUMIF($X$3:$X$146,$AT$183,BA$3:BA$146) -> 0 | BB183: 0 | BC183: 0 | BD183: 0 | BE183: 0 | BF183: 0 | BG183: 0 | BH183: 0 | BI183: 0 | BJ183: 0 | BK183: 0 | BL183: 0 | BM183: 48663100 | BN183: =SUMIF($X$3:$X$146,$AT$183,BN$3:BN$146) -> 188993558.2 | BO183: =SUMIF($X$3:$X$146,$AT$183,BO$3:BO$146) -> 0 | BP183: =SUMIF($X$3:$X$146,$AT$182,BP$3:BP$146) -> 0 | BQ183: =SUMIF($X$3:$X$146,$AT$183,BQ$3:BQ$146) -> 5421995 | BR183: 43973774 | BS183: 0 | BT183: 0 | BU183: 0 | BV183: 0 | BW183: 5000000 | BX183: 0 | BY183: 0 | BZ183: 13965000 | CA183: 0 | CB183: 0 | CC183: 257354327.2 | CD183: 243389327.2
Y184: FY 2041 | AT184: 2041 | AU184: =SUMIF($X$3:$X$146,$AT$184,AU$3:AU$146) -> 0 | AV184: 0 | AW184: 0 | AX184: 0 | AY184: 0 | AZ184: 0 | BA184: 0 | BB184: 0 | BC184: 0 | BD184: 0 | BE184: 0 | BF184: 0 | BG184: 0 | BH184: 0 | BI184: 0 | BJ184: 0 | BK184: 0 | BL184: 0 | BM184: 0 | BN184: =SUMIF($X$3:$X$146,$AT$184,BN$3:BN$146) -> 0 | BO184: =SUMIF($X$3:$X$146,$AT$184,BO$3:BO$146) -> 0 | BP184: =SUMIF($X$3:$X$146,$AT$183,BP$3:BP$146) -> 0 | BQ184: =SUMIF($X$3:$X$146,$AT$184,BQ$3:BQ$146) -> 0 | BR184: 0 | BS184: 0 | BT184: 0 | BU184: 0 | BV184: 0 | BW184: 0 | BX184: 0 | BY184: 1939646.869 | BZ184: 66370126.21 | CA184: 0 | CB184: 0 | CC184: 68309773.08 | CD184: 0
AT185: TOTAL | AU185: =SUM(AU175:AU184)+AU170 -> 0 | AV185: =SUM(AV175:AV184)+AV170 -> 505126747 | AW185: =SUM(AW175:AW184)+AW170 -> 338275636.4 | AX185: =SUM(AX175:AX184)+AX170 -> 18000000 | AY185: 171106268 | AZ185: 0 | BA185: 0 | BB185: 4000000 | BC185: =SUM(BC175:BC184)+BC170 -> 0 | BD185: =SUM(BD175:BD184)+BD170 -> 9254685 | BE185: 45046192 | BF185: 2829068 | BG185: 40000000 | BH185: =SUM(BH175:BH184)+BH170 -> 14000000 | BI185: =SUM(BI175:BI184)+BI170 -> 785284708 | BJ185: 0 | BK185: =SUM(BK175:BK184)+BK170 -> 0 | BL185: 137851235 | BM185: =SUM(BM175:BM184) -> 1825883594 | BN185: =SUM(BN175:BN184) -> 565149106 | BO185: =SUM(BO175:BO184) -> 33826228 | BP185: =SUM(BP175:BP184) -> 10111000 | BQ185: =SUM(BQ175:BQ184)+BQ170 -> 86313037.29 | BR185: 297902377.8 | BS185: 7670000 | BT185: 10000000 | BU185: 0 | BV185: 0 | BW185: 29971134 | BX185: 0 | BY185: 6521567.439 | BZ185: =SUM(BZ175:BZ184)+BZ170+BZ143+BZ144+BZ145 ->  | CA185: =SUM(CA175:CA184)+CA170 -> 1525000 | CB185: =SUM(CB175:CB184)+CB170 -> 158780686.9 | CC185: =SUM(CC175:CC184)+CC170 -> 1416586683 | CD185: =SUM(CD175:CD184)+CD170 -> 1040942883

Sheet Hwy TX Financials
A1: Cat | B1: Revenue by Categories | C1: Carry Over Cat? | D1: Growth Rate | E1: Infl. Rate | F1: Total Rate | G1: 2022 | H1: 2023 | I1: 2024 | J1: 2025 | K1: 2026 | L1: 2027 | M1: 2028 | N1: 2029 | O1: 2030 | P1: =O1+1 -> 2031 | Q1: 2032 | R1: 2033 | S1: 2034 | T1: 2035 | U1: 2036 | V1: 2037 | W1: 2038 | X1: 2039 | Y1: 2040 | Z1: =Y1+1 -> 2041 | AA1: =Z1+1 -> 2042 | AB1: =AA1+1 -> 2043 | AC1: =AB1+1 -> 2044 | AD1: =AC1+1 -> 2045 | AE1: 2046 | AF1: 2047 | AG1: 2048 | AH1: 2049 | AI1: 2050 | AJ1: TOTAL
A2: TEXAS HIGHWAY FUNDING CATEGORIES
A3: 1-PM&REHAB | B3: 1 - Preventive Maintenance & Rehabilitation | C3: NO | D3: R008X | E3: PM&R-ALL | F3: 0.0102 | G3: 43525878 | H3: 84268421 | I3: 42863475 | J3: 69645045 | K3: 69058347 | L3: 71794567 | M3: 59602137 | N3: 56955511 | O3: 44064670 | P3: 43458037 | Q3: 47412751 | R3: 48342977 | S3: 51107514 | T3: =S3*1.02 -> 52129664.28 | U3: 53172257.57 | V3: 54235702.72 | W3: 55320416.77 | X3: 56426825.11 | Y3: 57555361.61 | Z3: 58706468.84 | AA3: 59880598.22 | AB3: 61078210.18 | AC3: 62299774.39 | AD3: 63545769.87 | AE3: 64816685.27 | AF3: 66113018.98 | AG3: 67435279.36 | AH3: 68783984.94 | AI3: =AH3*1.02 -> 70159664.64 | AJ3: =SUM(G3:AI3) -> 1703759013
A4: 2 | B4: 2 - Metropolitan Area (TMA) Corridor Projects | C4: NO | F4: 0.0102 | G4: =129468472+37274000 -> 166742472 | H4: =10497532+6000000 -> 16497532 | I4: =20000000+14662677 -> 34662677 | J4: =16475973+12000000+103195000 -> 131670973 | K4: =73195000+30000000+51213093 -> 154408093 | L4: 106340000 | M4: 0 | N4: 0 | O4: 0 | Q4: 36927747 | R4: =Q4*1.02 -> 37666301.94 | S4: 38419627.98 | T4: 39188020.54 | U4: 39971780.95 | V4: 40771216.57 | W4: 41586640.9 | X4: 42418373.72 | Y4: 43266741.19 | Z4: 44132076.02 | AA4: 45014717.54 | AB4: 45915011.89 | AC4: 46833312.12 | AD4: 47769978.37 | AE4: 48725377.93 | AF4: 49699885.49 | AG4: 50693883.2 | AH4: 51707760.87 | AI4: 52741916.08 | AJ4: =SUM(G4:AI4) -> 1453772117
A5: 3 - LCL | B5: 3 - Lcl Contribution | C5: NO | G5: ='Hwy TX Projects'!AW170 -> 31260000 | H5: =15925225+1250000 -> 17175225 | I5: 1750000 | J5: ='[1]Hwy TX Projects'!AW141 -> 186550000 | K5: ='[1]Hwy TX Projects'!AW142 -> 2687103 | L5: ='[1]Hwy TX Projects'!AW145 -> 0 | M5: ='[1]Hwy TX Projects'!AW146 -> 0 | N5: ='[1]Hwy TX Projects'!AW147 -> 0 | O5: ='[1]Hwy TX Projects'!AW148 -> 50449320.93 | P5: ='[1]Hwy TX Projects'!AW149 -> 0 | Q5: ='[1]Hwy TX Projects'!AW150 -> 263291.051 | R5: ='[1]Hwy TX Projects'!AW151 -> 48663100 | Z5: ='[1]Hwy TX Projects'!AW152 -> 0 | AJ5: 338798040 | AL5: 2021-2045 | AM5: Revenue
A6: 3 - TMF | B6: 3 - Transportation Mobility Fund | C6: NO | I6: 18000000 | AJ6: 18000000
A7: 4 | B7: 4 - Statewide Urban Connectivity Corridor Projects | C7: NO | G7: =17389725+10590000 -> 27979725 | H7: 0 | I7: 95337323 | J7: =38769779+43789220 -> 82558999 | K7: 39518348 | L7: 28506950 | M7: 21911936 | N7: 21962241 | O7: 24375166 | P7: 19932272 | Q7: 16916115 | R7: 18258188 | S7: 20126807 | T7: =S7*1.02 -> 20529343.14 | U7: 20939930 | V7: 21358728.6 | W7: 21785903.17 | X7: 22221621.24 | Y7: 22666053.66 | Z7: 23119374.74 | AA7: 23581762.23 | AB7: 24053397.48 | AC7: 24534465.43 | AD7: 25025154.73 | AE7: 25525657.83 | AF7: 26036170.99 | AG7: 26556894.4 | AH7: 27088032.29 | AI7: 27629792.94 | AJ7: 800036352.9 | AL7: CAT 2 | AM7: =SUM(G4:AI4) -> 1453772117 | AN7: =SUM(AM7:AM12) -> 2769306784
A8: 5 | B8: 5 - CMAQ | C8: YES | D8: USE LINK FOR CAT 5 BALANCE SHEET | F8: 0.0101 | G8: =9548522 -> 9548522 | H8: 9607461 | I8: 9799623 | J8: 9975761 | K8: 10175289 | L8: 9783502 | M8: 9783502 | N8: 9783502 | O8: 9783502 | P8: 9783502 | Q8: 9783502 | R8: 9783502 | S8: 9783504 | T8: =S8*1.01 -> 9881339.04 | U8: 9980152.43 | V8: 10079953.95 | W8: 10180753.49 | X8: 10282561.03 | Y8: 10385386.64 | Z8: 10489240.51 | AA8: 10594132.91 | AB8: 10700074.24 | AC8: 10807074.98 | AD8: 10915145.73 | AE8: 11024297.19 | AF8: 11134540.16 | AG8: 11245885.56 | AH8: 11358344.42 | AI8: 11471927.86 | AJ8: 297905484.2 | AL8: CAT5 | AM8: =SUM(G8:AI8) -> 297905484.2
A9: 6 | B9: 6 - Structures Replacement & Rehabilitation | C9: NO | D9: B001X | E9: STRUCTS-ALL | G9: =G41 -> 1900000 | H9: =H41 -> 1900000 | I9: =I41 -> 1900000 | J9: =J41 -> 1900000 | K9: 1900000 | L9: 1900000 | M9: 1900000 | N9: 1900000 | O9: 1900000 | P9: 1900000 | Q9: 1900000 | R9: 1900000 | S9: 1900000 | T9: 1900000 | U9: 1900000 | V9: 1900000 | W9: 1900000 | X9: 1900000 | Y9: 1900000 | Z9: 1900000 | AA9: 1900000 | AB9: 1900000 | AC9: 1900000 | AD9: 1900000 | AE9: 1900000 | AF9: 1900000 | AG9: 1900000 | AH9: 1900000 | AI9: 1900000 | AJ9: 55100000 | AL9: CAT 7 | AM9: =SUM(G10:AI10) -> 806439119.8
A10: 7 | B10: 7 - STP - MM | C10: YES | D10: USE LINK FOR CAT 7 BALANCE SHEET | F10: 0.0101 | G10: =30279172-G11 -> 22609172 | H10: 26195292 | I10: 26719233 | J10: 27253642 | K10: 27798750 | L10: 26576927 | M10: 26576927 | N10: 26576927 | O10: 26576927 | P10: 26576927 | Q10: 26576927 | R10: 26576927 | S10: 26576927 | T10: =S10*1.01 -> 26842696.27 | U10: 27111123.23 | V10: 27382234.47 | W10: 27656056.81 | X10: 27932617.38 | Y10: 28211943.55 | Z10: 28494062.99 | AA10: 28779003.62 | AB10: 29066793.65 | AC10: 29357461.59 | AD10: 29651036.21 | AE10: 29947546.57 | AF10: 30247022.03 | AG10: 30549492.25 | AH10: 30854987.18 | AI10: 31163537.05 | AJ10: 806439119.8 | AL10: CAT 9 | AM10: =SUM(G14:AI14) -> 88124461
A11: 7 | B11: 7 - CRRSAA | C11: YES | G11: 7670000 | AJ11: 7670000
A12: 8 | B12: 8 - Safety Projects | C12: NO | D12: M028B | E12: SAFE-ALL | G12: =G42 -> 670094 | H12: =H42 -> 670094 | I12: =I42 -> 670094 | J12: =J42 -> 670094 | K12: 670094 | L12: 670094 | M12: 670094 | N12: 670094 | O12: 670094 | P12: =P42 -> 670094 | Q12: =Q42 -> 670094 | R12: =R42 -> 670094 | S12: 670094 | T12: 670094 | U12: 670094 | V12: 670094 | W12: =W42 -> 670094 | X12: 670094 | Y12: 670094 | Z12: 670094 | AA12: 670094 | AB12: 670094 | AC12: 670094 | AD12: 670094 | AE12: 670094 | AF12: 670094 | AG12: 670094 | AH12: 670094 | AI12: 670094 | AJ12: 19432726 | AL12: CAT 11 | AM12: =SUM(G15:AI15) -> 123065602
A13: 9 | B13: 9 - Transportation Enhancements Program (TXDOT) | C13: NO | H13: 3761928 | I13: =2045585+2799315 -> 4844900 | J13: 2850513 | AJ13: 11457341 | AL13: CAT 9 TXDOT | AM13: =SUM(G13:AI13) -> 11457341
A14: 9 - FLEX (TAP) | B14: 9 - Transportation Alternatives-Set Aside | C14: NO | G14: 1398351 | H14: 3037430 | I14: 3098183 | J14: 3160149 | K14: 3223356 | L14: 3091958 | M14: 3091958 | N14: 3091958 | O14: 3091958 | P14: 3091958 | Q14: 3091958 | R14: 3091958 | S14: 3091958 | T14: 3091958 | U14: 3091958 | V14: 3091958 | W14: 3091958 | X14: 3091958 | Y14: 3091958 | Z14: 3091958 | AA14: 3091958 | AB14: 3091958 | AC14: 3091958 | AD14: 3091958 | AE14: 3091958 | AF14: 3091958 | AG14: 3091958 | AH14: 3091958 | AI14: 3091958 | AJ14: =SUM(G14:AI14) -> 88124461 | AL14: NM Large Urban | AM14: ='NM Financials'!AM3 -> 35966244
A15: 11 | B15: 11 - District Discretionary | C15: NO | G15: =3753714 -> 3753714 | H15: 4449068 | I15: 4071628 | J15: 5663606 | K15: 4998966 | L15: 4278932 | M15: 4300871 | N15: 4331667 | O15: 4108056 | P15: 4210810 | Q15: 4179748 | R15: 4119219 | S15: 4152901 | T15: 4152901 | U15: 4152901 | V15: 4152901 | W15: 4152901 | X15: 4152901 | Y15: 4152901 | Z15: 4152901 | AA15: 4152901 | AB15: 4152901 | AC15: 4152901 | AD15: 4152901 | AE15: 4152901 | AF15: 4152901 | AG15: 4152901 | AH15: 4152901 | AI15: 4152901 | AJ15: 123065602 | AL15: NM CMAQ | AM15: ='NM Financials'!AM5 -> 58576903
A16: 11 (B) | B16: 11 - B | C16: YES | H16: 10000000 | I16: 20000000 | J16: 20000000 | S16: 10000000 | T16: 10000000 | U16: 10000000 | V16: 10000000 | W16: 10000000 | X16: 10000000 | Y16: 10000000 | Z16: 10000000 | AA16: 10000000 | AB16: 10000000 | AC16: 10000000 | AD16: 10000000 | AE16: 10000000 | AF16: 10000000 | AG16: 10000000 | AH16: 10000000 | AI16: 10000000 | AJ16: 220000000 | AL16: NM CMAQ | AM16: ='NM Financials'!AM6 -> 0
A17: 11 - BSIF | B17: 11 - BSIF | C17: NO | G17: 14000000 | AJ17: 14000000
A18: 12 | B18: 12 - Strategic Priority | C18: NO | H18: 0 | I18: 168500000 | J18: 16820000 | N18: =750500000+131583776 -> 882083776 | AJ18: 1067403776 | AL18: Sun Metro | AM18: ='Transit TX Financials'!AJ47-'Transit TX Financials'!G47 -> 0
A19: 12 - CMAQ | B19: 12 - Strategic Priority CMAQ | C19: NO | AJ19: 0 | AL19: Total | AM19: =SUM(AM7:AM18) -> 2875307272
A20: 12 - STP | B20: 12 - Strategic Priority STP | C20: NO | AJ20: 0
A21: Bonding CRRMA for Borderland Expressway | B21: Bonding CRRMA for Borderland Expressway | C21: NO | L21: 137851235 | N21: 137851235 | AJ21: 275702470
A22: Clear Lanes v2 | B22: Clear Lanes Initiative v2 (Urban districts) | C22: YES | M22: 150000000 | P22: 150000000 | T22: 150000000 | X22: 150000000 | AB22: 150000000 | AF22: 150000000 | AJ22: 900000000
A23: 10 - CBI | B23: 10 - CBI Program | C23: YES | AJ23: 0
A24: 10 - CR | B24: 10 - Carbon Reduction Program | C24: YES | G24: 0 | I24: 9411814 | J24: 2944038 | K24: 3002918 | L24: 3026688 | M24: 3025719 | N24: 3025719 | O24: 3025719 | P24: 3025719 | Q24: 3025719 | R24: 3025719 | S24: 3025719 | AJ24: 39565491
A25: 10 - ERMK | B25: 10 - Earmark | C25: YES | AJ25: 0
A26: Prop 1/ Prop 7 | B26: Prop 1/ Prop 7 | C26: YES | AJ26: 0
A27: 3 - TRZ | B27: 3 - City of El Paso TRZ #3 | C27: YES | AJ27: 0
A28: 3 - TRZ | B28: 3 - Socorro TRZ | C28: YES | K28: 9971134 | O28: 15000000 | R28: 5000000 | AJ28: 29971134
A29: 3 - TRZ | B29: 3 - Horizon TRZ | C29: YES | J29: 3181674 | AJ29: 3181674
A30: 3 - Local PE | B30: 3 - Local PE Funds | C30: YES | Z30: =SUMIFS('Hwy TX Projects'!$T$3:$T$146,'Hwy TX Projects'!$X$3:$X$146,Z1)+SUMIFS('Hwy TX Projects'!$T$3:$T$146,'Hwy TX Projects'!$Q$3:$Q$146,"ALL")-Z31 -> 1939646.869 | AA30: =SUMIFS('Hwy TX Projects'!$T$3:$T$146,'Hwy TX Projects'!$X$3:$X$146,AA1)+SUMIFS('Hwy TX Projects'!$T$3:$T$146,'Hwy TX Projects'!$Q$3:$Q$146,"ALL")-AA31 -> 0 | AB30: =SUMIFS('Hwy TX Projects'!$T$3:$T$146,'Hwy TX Projects'!$X$3:$X$146,AB1)+SUMIFS('Hwy TX Projects'!$T$3:$T$146,'Hwy TX Projects'!$Q$3:$Q$146,"ALL")-AB31 -> 0 | AC30: =SUMIFS('Hwy TX Projects'!$T$3:$T$146,'Hwy TX Projects'!$X$3:$X$146,AC1)+SUMIFS('Hwy TX Projects'!$T$3:$T$146,'Hwy TX Projects'!$Q$3:$Q$146,"ALL")-AC31 -> 0 | AD30: =SUMIFS('Hwy TX Projects'!$T$3:$T$146,'Hwy TX Projects'!$X$3:$X$146,AD1)+SUMIFS('Hwy TX Projects'!$T$3:$T$146,'Hwy TX Projects'!$Q$3:$Q$146,"ALL")-AD31 -> 0 | AE30: =SUMIFS('Hwy TX Projects'!$T$3:$T$146,'Hwy TX Projects'!$X$3:$X$146,AE1)+SUMIFS('Hwy TX Projects'!$T$3:$T$146,'Hwy TX Projects'!$Q$3:$Q$146,"ALL")-AE31 -> 0 | AF30: =SUMIFS('Hwy TX Projects'!$T$3:$T$146,'Hwy TX Projects'!$X$3:$X$146,AF1)+SUMIFS('Hwy TX Projects'!$T$3:$T$146,'Hwy TX Projects'!$Q$3:$Q$146,"ALL")-AF31 -> 0 | AG30: =SUMIFS('Hwy TX Projects'!$T$3:$T$146,'Hwy TX Projects'!$X$3:$X$146,AG1)+SUMIFS('Hwy TX Projects'!$T$3:$T$146,'Hwy TX Projects'!$Q$3:$Q$146,"ALL")-AG31 -> 0 | AH30: =SUMIFS('Hwy TX Projects'!$T$3:$T$146,'Hwy TX Projects'!$X$3:$X$146,AH1)+SUMIFS('Hwy TX Projects'!$T$3:$T$146,'Hwy TX Projects'!$Q$3:$Q$146,"ALL")-AH31 -> 0 | AI30: =SUMIFS('Hwy TX Projects'!$T$3:$T$146,'Hwy TX Projects'!$X$3:$X$146,AI1)+SUMIFS('Hwy TX Projects'!$T$3:$T$146,'Hwy TX Projects'!$Q$3:$Q$146,"ALL")-AI31 -> 0 | AJ30: 1939646.869
